Workbook

Sheet Data
D1: JOU | E1: Non- | H1: Transferred | I1: Contingent
C2: Total | D2: Dynamic | E2: Conforming | F2: Pumped | G2: Ramping | H2: Frequency | I2: BA | J2: BA | K2: BA
C3: Lost | D3: Schedules | E3: Load | F3: Hydro | G3: Units | H3: Response | I3: Lost Generation | J3: Bias | K3: Load
A4: mm/dd/yy hh:mm:ss | B4: Frequency | C4: Generation | D4: n/a | E4: Load (-) | F4: Load (-) Gen (+) | G4: n/a | H4: n/a | I4: n/a | J4: Setting
A5: Time (T) | B5: Hz | C5: MW | E5: MW | F5: MW | J5: MW/0.1 Hz | K5: MW
A6: 2009-10-12T02:12:00 | B6: 59.97999954 | C6: 633 | E6: -351.3615112 | F6: 0 | J6: -653 | K6: 7500
A7: 2009-10-12T02:12:02 | B7: 59.98099899 | C7: 633 | E7: -351.3615112 | F7: 0 | J7: -653 | K7: 7500.33
A8: 2009-10-12T02:12:04 | B8: 59.97999954 | C8: 633 | E8: -351.3615112 | F8: 0 | J8: -653 | K8: 7500.66
A9: 2009-10-12T02:12:06 | B9: 59.98099899 | C9: 633 | E9: -357.9475098 | F9: 0 | J9: -653 | K9: 7500.99
A10: 2009-10-12T02:12:08 | B10: 59.97999954 | C10: 633 | E10: -357.9475098 | F10: 0 | J10: -653 | K10: 7501.32
A11: 2009-10-12T02:12:10 | B11: 59.97999954 | C11: 633 | E11: -357.9475098 | F11: 0 | J11: -653 | K11: 7501.65
A12: 2009-10-12T02:12:12 | B12: 59.98199844 | C12: 633 | E12: -357.9475098 | F12: 0 | J12: -653 | K12: 7501.98
A13: 2009-10-12T02:12:14 | B13: 59.98099899 | C13: 633 | E13: -357.9475098 | F13: 0 | J13: -653 | K13: 7502.31
A14: 2009-10-12T02:12:16 | B14: 59.97900009 | C14: 633 | E14: -360.2347412 | F14: 0 | J14: -653 | K14: 7502.64
A15: 2009-10-12T02:12:18 | B15: 59.98099899 | C15: 633 | E15: -360.2347412 | F15: 0 | J15: -653 | K15: 7502.97
A16: 2009-10-12T02:12:20 | B16: 59.98199844 | C16: 633 | E16: -360.2347412 | F16: 0 | J16: -653 | K16: 7503.3
A17: 2009-10-12T02:12:22 | B17: 59.97900009 | C17: 633 | E17: -360.2347412 | F17: 0 | J17: -653 | K17: 7503.63
A18: 2009-10-12T02:12:24 | B18: 59.97900009 | C18: 633 | E18: -360.2347412 | F18: 0 | J18: -653 | K18: 7503.96
A19: 2009-10-12T02:12:26 | B19: 59.97999954 | C19: 633 | E19: -346.5258789 | F19: 0 | J19: -653 | K19: 7504.29
A20: 2009-10-12T02:12:28 | B20: 59.97999954 | C20: 633 | E20: -346.5258789 | F20: 0 | J20: -653 | K20: 7504.62
A21: 2009-10-12T02:12:30 | B21: 59.98300171 | C21: 633 | E21: -346.5258789 | F21: 0 | J21: -653 | K21: 7504.95
A22: 2009-10-12T02:12:32 | B22: 59.98600006 | C22: 633 | E22: -346.5258789 | F22: 0 | J22: -653 | K22: 7505.28
A23: 2009-10-12T02:12:34 | B23: 59.98600006 | C23: 633 | E23: -346.5258789 | F23: 0 | J23: -653 | K23: 7505.61
A24: 2009-10-12T02:12:36 | B24: 59.97999954 | C24: 633 | E24: -296.4433594 | F24: 0 | J24: -653 | K24: 7505.94
A25: 2009-10-12T02:12:38 | B25: 59.97600174 | C25: 633 | E25: -296.4433594 | F25: 0 | J25: -653 | K25: 7506.27
A26: 2009-10-12T02:12:40 | B26: 59.97499847 | C26: 633 | E26: -296.4433594 | F26: 0 | J26: -653 | K26: 7506.6
A27: 2009-10-12T02:12:42 | B27: 59.97900009 | C27: 633 | E27: -296.4433594 | F27: 0 | J27: -653 | K27: 7506.93
A28: 2009-10-12T02:12:44 | B28: 59.98099899 | C28: 633 | E28: -296.4433594 | F28: 0 | J28: -653 | K28: 7507.26
A29: 2009-10-12T02:12:46 | B29: 59.98199844 | C29: 633 | E29: -341.0611572 | F29: 0 | J29: -653 | K29: 7507.59
A30: 2009-10-12T02:12:48 | B30: 59.98699951 | C30: 633 | E30: -341.0611572 | F30: 0 | J30: -653 | K30: 7507.92
A31: 2009-10-12T02:12:50 | B31: 59.99000168 | C31: 633 | E31: -341.0611572 | F31: 0 | J31: -653 | K31: 7508.25
A32: 2009-10-12T02:12:52 | B32: 59.99300003 | C32: 633 | E32: -341.0611572 | F32: 0 | J32: -653 | K32: 7508.58
A33: 2009-10-12T02:12:54 | B33: 59.99399948 | C33: 633 | E33: -341.0611572 | F33: 0 | J33: -653 | K33: 7508.91
A34: 2009-10-12T02:12:56 | B34: 59.99499893 | C34: 633 | E34: -322.8262939 | F34: 0 | J34: -653 | K34: 7509.24
A35: 2009-10-12T02:12:58 | B35: 59.99499893 | C35: 633 | E35: -322.8262939 | F35: 0 | J35: -653 | K35: 7509.57
A36: 2009-10-12T02:13:00 | B36: 59.99499893 | C36: 633 | E36: -322.8262939 | F36: 0 | J36: -653 | K36: 7509.9
A37: 2009-10-12T02:13:02 | B37: 59.99499893 | C37: 633 | E37: -322.8262939 | F37: 0 | J37: -653 | K37: 7510.23
A38: 2009-10-12T02:13:04 | B38: 59.99499893 | C38: 633 | E38: -322.8262939 | F38: 0 | J38: -653 | K38: 7510.56
A39: 2009-10-12T02:13:06 | B39: 59.99399948 | C39: 633 | E39: -321.5444031 | F39: 0 | J39: -653 | K39: 7510.89
A40: 2009-10-12T02:13:08 | B40: 59.99399948 | C40: 633 | E40: -321.5444031 | F40: 0 | J40: -653 | K40: 7511.22
A41: 2009-10-12T02:13:10 | B41: 59.99499893 | C41: 633 | E41: -321.5444031 | F41: 0 | J41: -653 | K41: 7511.55
A42: 2009-10-12T02:13:12 | B42: 59.99700165 | C42: 633 | E42: -321.5444031 | F42: 0 | J42: -653 | K42: 7511.88
A43: 2009-10-12T02:13:14 | B43: 60.00099945 | C43: 633 | E43: -321.5444031 | F43: 0 | J43: -653 | K43: 7512.21
A44: 2009-10-12T02:13:16 | B44: 60.0019989 | C44: 633 | E44: -362.136261 | F44: 0 | J44: -653 | K44: 7512.54
A45: 2009-10-12T02:13:18 | B45: 60.00099945 | C45: 633 | E45: -362.136261 | F45: 0 | J45: -653 | K45: 7512.87
A46: 2009-10-12T02:13:20 | B46: 60.00299835 | C46: 633 | E46: -362.136261 | F46: 0 | J46: -653 | K46: 7513.2
A47: 2009-10-12T02:13:22 | B47: 60.00299835 | C47: 633 | E47: -362.136261 | F47: 0 | J47: -653 | K47: 7513.53
A48: 2009-10-12T02:13:24 | B48: 60.00500107 | C48: 633 | E48: -362.136261 | F48: 0 | J48: -653 | K48: 7513.86
A49: 2009-10-12T02:13:26 | B49: 60.00299835 | C49: 633 | E49: -336.3117981 | F49: 0 | J49: -653 | K49: 7514.19
A50: 2009-10-12T02:13:28 | B50: 60 | C50: 633 | E50: -336.3117981 | F50: 0 | J50: -653 | K50: 7514.52
A51: 2009-10-12T02:13:30 | B51: 60.00099945 | C51: 633 | E51: -336.3117981 | F51: 0 | J51: -653 | K51: 7514.85
A52: 2009-10-12T02:13:32 | B52: 60.00299835 | C52: 633 | E52: -336.3117981 | F52: 0 | J52: -653 | K52: 7515.18
A53: 2009-10-12T02:13:34 | B53: 60.00400162 | C53: 633 | E53: -336.3117981 | F53: 0 | J53: -653 | K53: 7515.51
A54: 2009-10-12T02:13:36 | B54: 60.00500107 | C54: 633 | E54: -316.4430542 | F54: 0 | J54: -653 | K54: 7515.84
A55: 2009-10-12T02:13:38 | B55: 60.00099945 | C55: 633 | E55: -316.4430542 | F55: 0 | J55: -653 | K55: 7516.17
A56: 2009-10-12T02:13:40 | B56: 59.99900055 | C56: 633 | E56: -316.4430542 | F56: 0 | J56: -653 | K56: 7516.5
A57: 2009-10-12T02:13:42 | B57: 60.00099945 | C57: 633 | E57: -316.4430542 | F57: 0 | J57: -653 | K57: 7516.83
A58: 2009-10-12T02:13:44 | B58: 60.00400162 | C58: 633 | E58: -316.4430542 | F58: 0 | J58: -653 | K58: 7517.16
A59: 2009-10-12T02:13:46 | B59: 60.00400162 | C59: 633 | E59: -325.4642944 | F59: 0 | J59: -653 | K59: 7517.49
A60: 2009-10-12T02:13:48 | B60: 60.00400162 | C60: 633 | E60: -325.4642944 | F60: 0 | J60: -653 | K60: 7517.82
A61: 2009-10-12T02:13:50 | B61: 60.00400162 | C61: 633 | E61: -325.4642944 | F61: 0 | J61: -653 | K61: 7518.15
A62: 2009-10-12T02:13:52 | B62: 60.00500107 | C62: 633 | E62: -325.4642944 | F62: 0 | J62: -653 | K62: 7518.48
A63: 2009-10-12T02:13:54 | B63: 60.00299835 | C63: 633 | E63: -325.4642944 | F63: 0 | J63: -653 | K63: 7518.81
A64: 2009-10-12T02:13:56 | B64: 60.0019989 | C64: 633 | E64: -336.6141663 | F64: 0 | J64: -653 | K64: 7519.14
A65: 2009-10-12T02:13:58 | B65: 60.00299835 | C65: 633 | E65: -336.6141663 | F65: 0 | J65: -653 | K65: 7519.47
A66: 2009-10-12T02:14:00 | B66: 60.00099945 | C66: 633 | E66: -336.6141663 | F66: 0 | J66: -653 | K66: 7519.8
A67: 2009-10-12T02:14:02 | B67: 59.99900055 | C67: 633 | E67: -336.6141663 | F67: 0 | J67: -653 | K67: 7520.13
A68: 2009-10-12T02:14:04 | B68: 59.99900055 | C68: 633 | E68: -336.6141663 | F68: 0 | J68: -653 | K68: 7520.46
A69: 2009-10-12T02:14:06 | B69: 59.99700165 | C69: 633 | E69: -316.7261658 | F69: 0 | J69: -653 | K69: 7520.79
A70: 2009-10-12T02:14:08 | B70: 59.9980011 | C70: 633 | E70: -316.7261658 | F70: 0 | J70: -653 | K70: 7521.12
A71: 2009-10-12T02:14:10 | B71: 59.99599838 | C71: 633 | E71: -316.7261658 | F71: 0 | J71: -653 | K71: 7521.45
A72: 2009-10-12T02:14:12 | B72: 59.99499893 | C72: 633 | E72: -316.7261658 | F72: 0 | J72: -653 | K72: 7521.78
A73: 2009-10-12T02:14:14 | B73: 59.99300003 | C73: 633 | E73: -316.7261658 | F73: 0 | J73: -653 | K73: 7522.11
A74: 2009-10-12T02:14:16 | B74: 59.99300003 | C74: 633 | E74: -320.1955261 | F74: 0 | J74: -653 | K74: 7522.44
A75: 2009-10-12T02:14:18 | B75: 59.99599838 | C75: 633 | E75: -320.1955261 | F75: 0 | J75: -653 | K75: 7522.77
A76: 2009-10-12T02:14:20 | B76: 59.99900055 | C76: 633 | E76: -320.1955261 | F76: 0 | J76: -653 | K76: 7523.1
A77: 2009-10-12T02:14:22 | B77: 60.00099945 | C77: 633 | E77: -320.1955261 | F77: 0 | J77: -653 | K77: 7523.43
A78: 2009-10-12T02:14:24 | B78: 60.00500107 | C78: 633 | E78: -320.1955261 | F78: 0 | J78: -653 | K78: 7523.76
A79: 2009-10-12T02:14:26 | B79: 60.00699997 | C79: 633 | E79: -341.8661499 | F79: 0 | J79: -653 | K79: 7524.09
A80: 2009-10-12T02:14:28 | B80: 60.00699997 | C80: 633 | E80: -341.8661499 | F80: 0 | J80: -653 | K80: 7524.42
A81: 2009-10-12T02:14:30 | B81: 60.00500107 | C81: 633 | E81: -341.8661499 | F81: 0 | J81: -653 | K81: 7524.75
A82: 2009-10-12T02:14:32 | B82: 60.0019989 | C82: 633 | E82: -341.8661499 | F82: 0 | J82: -653 | K82: 7525.08
A83: 2009-10-12T02:14:34 | B83: 59.99900055 | C83: 633 | E83: -341.8661499 | F83: 0 | J83: -653 | K83: 7525.41
A84: 2009-10-12T02:14:36 | B84: 59.99700165 | C84: 633 | E84: -348.5978394 | F84: 0 | J84: -653 | K84: 7525.74
A85: 2009-10-12T02:14:38 | B85: 59.99900055 | C85: 633 | E85: -348.5978394 | F85: 0 | J85: -653 | K85: 7526.07
A86: 2009-10-12T02:14:40 | B86: 60.0019989 | C86: 633 | E86: -348.5978394 | F86: 0 | J86: -653 | K86: 7526.4
A87: 2009-10-12T02:14:42 | B87: 60.00699997 | C87: 633 | E87: -348.5978394 | F87: 0 | J87: -653 | K87: 7526.73
A88: 2009-10-12T02:14:44 | B88: 60.00999832 | C88: 633 | E88: -348.5978394 | F88: 0 | J88: -653 | K88: 7527.06
A89: 2009-10-12T02:14:46 | B89: 60.01100159 | C89: 633 | E89: -329.085022 | F89: 0 | J89: -653 | K89: 7527.39
A90: 2009-10-12T02:14:48 | B90: 60.00899887 | C90: 633 | E90: -329.085022 | F90: 0 | J90: -653 | K90: 7527.72
A91: 2009-10-12T02:14:50 | B91: 60.00299835 | C91: 633 | E91: -329.085022 | F91: 0 | J91: -653 | K91: 7528.05
A92: 2009-10-12T02:14:52 | B92: 59.99700165 | C92: 633 | E92: -329.085022 | F92: 0 | J92: -653 | K92: 7528.38
A93: 2009-10-12T02:14:54 | B93: 59.99499893 | C93: 633 | E93: -329.085022 | F93: 0 | J93: -653 | K93: 7528.71
A94: 2009-10-12T02:14:56 | B94: 59.99399948 | C94: 633 | E94: -342.4182434 | F94: 0 | J94: -653 | K94: 7529.04
A95: 2009-10-12T02:14:58 | B95: 59.99399948 | C95: 633 | E95: -342.4182434 | F95: 0 | J95: -653 | K95: 7529.37
A96: 2009-10-12T02:15:00 | B96: 60 | C96: 633 | E96: -342.4182434 | F96: 0 | J96: -653 | K96: 7529.7
A97: 2009-10-12T02:15:02 | B97: 60.00099945 | C97: 633 | E97: -342.4182434 | F97: 0 | J97: -653 | K97: 7530.03
A98: 2009-10-12T02:15:04 | B98: 59.9980011 | C98: 633 | E98: -342.4182434 | F98: 0 | J98: -653 | K98: 7530.36
A99: 2009-10-12T02:15:06 | B99: 59.9980011 | C99: 633 | E99: -338.7946472 | F99: 0 | J99: -653 | K99: 7530.69
A100: 2009-10-12T02:15:08 | B100: 59.99499893 | C100: 633 | E100: -338.7946472 | F100: 0 | J100: -653 | K100: 7531.02
A101: 2009-10-12T02:15:10 | B101: 59.99200058 | C101: 633 | E101: -338.7946472 | F101: 0 | J101: -653 | K101: 7531.35
A102: 2009-10-12T02:15:12 | B102: 59.98600006 | C102: 633 | E102: -338.7946472 | F102: 0 | J102: -653 | K102: 7531.68
A103: 2009-10-12T02:15:14 | B103: 59.98600006 | C103: 633 | E103: -338.7946472 | F103: 0 | J103: -653 | K103: 7532.01
A104: 2009-10-12T02:15:16 | B104: 59.98600006 | C104: 633 | E104: -335.9309998 | F104: 0 | J104: -653 | K104: 7532.34
A105: 2009-10-12T02:15:18 | B105: 59.98799896 | C105: 633 | E105: -335.9309998 | F105: 0 | J105: -653 | K105: 7532.67
A106: 2009-10-12T02:15:20 | B106: 59.98899841 | C106: 633 | E106: -335.9309998 | F106: 0 | J106: -653 | K106: 7533
A107: 2009-10-12T02:15:22 | B107: 59.98799896 | C107: 633 | E107: -335.9309998 | F107: 0 | J107: -653 | K107: 7533.33
A108: 2009-10-12T02:15:24 | B108: 59.98699951 | C108: 633 | E108: -335.9309998 | F108: 0 | J108: -653 | K108: 7533.66
A109: 2009-10-12T02:15:26 | B109: 59.98500061 | C109: 633 | E109: -339.7124023 | F109: 0 | J109: -653 | K109: 7533.99
A110: 2009-10-12T02:15:28 | B110: 59.98400116 | C110: 633 | E110: -339.7124023 | F110: 0 | J110: -653 | K110: 7534.32
A111: 2009-10-12T02:15:30 | B111: 59.98300171 | C111: 633 | E111: -339.7124023 | F111: 0 | J111: -653 | K111: 7534.65
A112: 2009-10-12T02:15:32 | B112: 59.98199844 | C112: 633 | E112: -339.7124023 | F112: 0 | J112: -653 | K112: 7534.98
A113: 2009-10-12T02:15:34 | B113: 59.98400116 | C113: 633 | E113: -339.7124023 | F113: 0 | J113: -653 | K113: 7535.31
A114: 2009-10-12T02:15:36 | B114: 59.98400116 | C114: 633 | E114: -332.0246582 | F114: 0 | J114: -653 | K114: 7535.64
A115: 2009-10-12T02:15:38 | B115: 59.98500061 | C115: 633 | E115: -332.0246582 | F115: 0 | J115: -653 | K115: 7535.97
A116: 2009-10-12T02:15:40 | B116: 59.98600006 | C116: 633 | E116: -332.0246582 | F116: 0 | J116: -653 | K116: 7536.3
A117: 2009-10-12T02:15:42 | B117: 59.98699951 | C117: 633 | E117: -332.0246582 | F117: 0 | J117: -653 | K117: 7536.63
A118: 2009-10-12T02:15:44 | B118: 59.99000168 | C118: 633 | E118: -332.0246582 | F118: 0 | J118: -653 | K118: 7536.96
A119: 2009-10-12T02:15:46 | B119: 59.99000168 | C119: 633 | E119: -330.7590332 | F119: 0 | J119: -653 | K119: 7537.29
A120: 2009-10-12T02:15:48 | B120: 59.98699951 | C120: 633 | E120: -330.7590332 | F120: 0 | J120: -653 | K120: 7537.62
A121: 2009-10-12T02:15:50 | B121: 59.98300171 | C121: 633 | E121: -330.7590332 | F121: 0 | J121: -653 | K121: 7537.95
A122: 2009-10-12T02:15:52 | B122: 59.97999954 | C122: 633 | E122: -330.7590332 | F122: 0 | J122: -653 | K122: 7538.28
A123: 2009-10-12T02:15:54 | B123: 59.97900009 | C123: 633 | E123: -330.7590332 | F123: 0 | J123: -653 | K123: 7538.61
A124: 2009-10-12T02:15:56 | B124: 59.98300171 | C124: 633 | E124: -323.4199524 | F124: 0 | J124: -653 | K124: 7538.94
A125: 2009-10-12T02:15:58 | B125: 59.98699951 | C125: 633 | E125: -323.4199524 | F125: 0 | J125: -653 | K125: 7539.27
A126: 2009-10-12T02:16:00 | B126: 59.98600006 | C126: 633 | E126: -323.4199524 | F126: 0 | J126: -653 | K126: 7539.6
A127: 2009-10-12T02:16:02 | B127: 59.98799896 | C127: 633 | E127: -323.4199524 | F127: 0 | J127: -653 | K127: 7539.93
A128: 2009-10-12T02:16:04 | B128: 59.98699951 | C128: 633 | E128: -323.4199524 | F128: 0 | J128: -653 | K128: 7540.26
A129: 2009-10-12T02:16:06 | B129: 59.98300171 | C129: 633 | E129: -342.3509216 | F129: 0 | J129: -653 | K129: 7540.59
A130: 2009-10-12T02:16:08 | B130: 59.97800064 | C130: 633 | E130: -342.3509216 | F130: 0 | J130: -653 | K130: 7540.92
A131: 2009-10-12T02:16:10 | B131: 59.97900009 | C131: 633 | E131: -342.3509216 | F131: 0 | J131: -653 | K131: 7541.25
A132: 2009-10-12T02:16:12 | B132: 59.97900009 | C132: 633 | E132: -342.3509216 | F132: 0 | J132: -653 | K132: 7541.58
A133: 2009-10-12T02:16:14 | B133: 59.98899841 | C133: 633 | E133: -342.3509216 | F133: 0 | J133: -653 | K133: 7541.91
A134: 2009-10-12T02:16:16 | B134: 59.99100113 | C134: 633 | E134: -345.0818176 | F134: 0 | J134: -653 | K134: 7542.24
A135: 2009-10-12T02:16:18 | B135: 59.98799896 | C135: 633 | E135: -345.0818176 | F135: 0 | J135: -653 | K135: 7542.57
A136: 2009-10-12T02:16:20 | B136: 59.98300171 | C136: 633 | E136: -345.0818176 | F136: 0 | J136: -653 | K136: 7542.9
A137: 2009-10-12T02:16:22 | B137: 59.98899841 | C137: 633 | E137: -345.0818176 | F137: 0 | J137: -653 | K137: 7543.23
A138: 2009-10-12T02:16:24 | B138: 59.99100113 | C138: 633 | E138: -345.0818176 | F138: 0 | J138: -653 | K138: 7543.56
A139: 2009-10-12T02:16:26 | B139: 59.98899841 | C139: 633 | E139: -346.537384 | F139: 0 | J139: -653 | K139: 7543.89
A140: 2009-10-12T02:16:28 | B140: 59.99200058 | C140: 633 | E140: -346.537384 | F140: 0 | J140: -653 | K140: 7544.22
A141: 2009-10-12T02:16:30 | B141: 59.99300003 | C141: 633 | E141: -346.537384 | F141: 0 | J141: -653 | K141: 7544.55
A142: 2009-10-12T02:16:32 | B142: 59.99499893 | C142: 633 | E142: -346.537384 | F142: 0 | J142: -653 | K142: 7544.88
A143: 2009-10-12T02:16:34 | B143: 59.99599838 | C143: 633 | E143: -346.537384 | F143: 0 | J143: -653 | K143: 7545.21
A144: 2009-10-12T02:16:36 | B144: 59.9980011 | C144: 633 | E144: -342.9057617 | F144: 0 | J144: -653 | K144: 7545.54
A145: 2009-10-12T02:16:38 | B145: 59.9980011 | C145: 633 | E145: -342.9057617 | F145: 0 | J145: -653 | K145: 7545.87
A146: 2009-10-12T02:16:40 | B146: 60 | C146: 633 | E146: -342.9057617 | F146: 0 | J146: -653 | K146: 7546.2
A147: 2009-10-12T02:16:42 | B147: 59.99900055 | C147: 633 | E147: -342.9057617 | F147: 0 | J147: -653 | K147: 7546.53
A148: 2009-10-12T02:16:44 | B148: 59.99499893 | C148: 633 | E148: -342.9057617 | F148: 0 | J148: -653 | K148: 7546.86
A149: 2009-10-12T02:16:46 | B149: 59.99100113 | C149: 633 | E149: -340.0943909 | F149: 0 | J149: -653 | K149: 7547.19
A150: 2009-10-12T02:16:48 | B150: 59.99200058 | C150: 633 | E150: -340.0943909 | F150: 0 | J150: -653 | K150: 7547.52
A151: 2009-10-12T02:16:50 | B151: 59.99499893 | C151: 633 | E151: -340.0943909 | F151: 0 | J151: -653 | K151: 7547.85
A152: 2009-10-12T02:16:52 | B152: 59.9980011 | C152: 633 | E152: -340.0943909 | F152: 0 | J152: -653 | K152: 7548.18
A153: 2009-10-12T02:16:54 | B153: 60.00099945 | C153: 633 | E153: -340.0943909 | F153: 0 | J153: -653 | K153: 7548.51
A154: 2009-10-12T02:16:56 | B154: 60.00299835 | C154: 633 | E154: -342.7711792 | F154: 0 | J154: -653 | K154: 7548.84
A155: 2009-10-12T02:16:58 | B155: 60.00600052 | C155: 633 | E155: -342.7711792 | F155: 0 | J155: -653 | K155: 7549.17
A156: 2009-10-12T02:17:00 | B156: 60.00899887 | C156: 633 | E156: -342.7711792 | F156: 0 | J156: -653 | K156: 7549.5
A157: 2009-10-12T02:17:02 | B157: 60.00899887 | C157: 633 | E157: -342.7711792 | F157: 0 | J157: -653 | K157: 7549.83
A158: 2009-10-12T02:17:04 | B158: 60.01100159 | C158: 633 | E158: -342.7711792 | F158: 0 | J158: -653 | K158: 7550.16
A159: 2009-10-12T02:17:06 | B159: 60.01200104 | C159: 633 | E159: -342.9099121 | F159: 0 | J159: -653 | K159: 7550.49
A160: 2009-10-12T02:17:08 | B160: 60.01100159 | C160: 633 | E160: -342.9099121 | F160: 0 | J160: -653 | K160: 7550.82
A161: 2009-10-12T02:17:10 | B161: 60.00999832 | C161: 633 | E161: -342.9099121 | F161: 0 | J161: -653 | K161: 7551.15
A162: 2009-10-12T02:17:12 | B162: 60.00799942 | C162: 633 | E162: -342.9099121 | F162: 0 | J162: -653 | K162: 7551.48
A163: 2009-10-12T02:17:14 | B163: 60.00699997 | C163: 633 | E163: -342.9099121 | F163: 0 | J163: -653 | K163: 7551.81
A164: 2009-10-12T02:17:16 | B164: 60.01100159 | C164: 633 | E164: -343.2860107 | F164: 0 | J164: -653 | K164: 7552.14
A165: 2009-10-12T02:17:18 | B165: 60.01200104 | C165: 633 | E165: -343.2860107 | F165: 0 | J165: -653 | K165: 7552.47
A166: 2009-10-12T02:17:20 | B166: 60.01300049 | C166: 633 | E166: -343.2860107 | F166: 0 | J166: -653 | K166: 7552.8
A167: 2009-10-12T02:17:22 | B167: 60.00999832 | C167: 633 | E167: -343.2860107 | F167: 0 | J167: -653 | K167: 7553.13
A168: 2009-10-12T02:17:24 | B168: 60.00999832 | C168: 633 | E168: -343.2860107 | F168: 0 | J168: -653 | K168: 7553.46
A169: 2009-10-12T02:17:26 | B169: 60.00699997 | C169: 633 | E169: -331.8529663 | F169: 0 | J169: -653 | K169: 7553.79
A170: 2009-10-12T02:17:28 | B170: 60.00899887 | C170: 633 | E170: -331.8529663 | F170: 0 | J170: -653 | K170: 7554.12
A171: 2009-10-12T02:17:30 | B171: 60.00899887 | C171: 633 | E171: -331.8529663 | F171: 0 | J171: -653 | K171: 7554.45
A172: 2009-10-12T02:17:32 | B172: 60.00600052 | C172: 633 | E172: -331.8529663 | F172: 0 | J172: -653 | K172: 7554.78
A173: 2009-10-12T02:17:34 | B173: 60.00600052 | C173: 633 | E173: -331.8529663 | F173: 0 | J173: -653 | K173: 7555.11
A174: 2009-10-12T02:17:36 | B174: 60.00899887 | C174: 633 | E174: -329.9882202 | F174: 0 | J174: -653 | K174: 7555.44
A175: 2009-10-12T02:17:38 | B175: 60.00899887 | C175: 633 | E175: -329.9882202 | F175: 0 | J175: -653 | K175: 7555.77
A176: 2009-10-12T02:17:40 | B176: 60.00799942 | C176: 633 | E176: -329.9882202 | F176: 0 | J176: -653 | K176: 7556.1
A177: 2009-10-12T02:17:42 | B177: 60.00899887 | C177: 633 | E177: -329.9882202 | F177: 0 | J177: -653 | K177: 7556.43
A178: 2009-10-12T02:17:44 | B178: 60.00899887 | C178: 633 | E178: -329.9882202 | F178: 0 | J178: -653 | K178: 7556.76
A179: 2009-10-12T02:17:46 | B179: 60.00500107 | C179: 633 | E179: -255.4441681 | F179: 0 | J179: -653 | K179: 7557.09
A180: 2009-10-12T02:17:48 | B180: 60.00400162 | C180: 633 | E180: -255.4441681 | F180: 0 | J180: -653 | K180: 7557.42
A181: 2009-10-12T02:17:50 | B181: 60.00099945 | C181: 633 | E181: -255.4441681 | F181: 0 | J181: -653 | K181: 7557.75
A182: 2009-10-12T02:17:52 | B182: 59.99900055 | C182: 633 | E182: -255.4441681 | F182: 0 | J182: -653 | K182: 7558.08
A183: 2009-10-12T02:17:54 | B183: 59.99300003 | C183: 633 | E183: -255.4441681 | F183: 0 | J183: -653 | K183: 7558.41
A184: 2009-10-12T02:17:56 | B184: 59.99100113 | C184: 633 | E184: -254.8383026 | F184: 0 | J184: -653 | K184: 7558.74
A185: 2009-10-12T02:17:58 | B185: 59.99399948 | C185: 633 | E185: -254.8383026 | F185: 0 | J185: -653 | K185: 7559.07
A186: 2009-10-12T02:18:00 | B186: 59.99200058 | C186: 633 | E186: -254.8383026 | F186: 0 | J186: -653 | K186: 7559.4
A187: 2009-10-12T02:18:02 | B187: 59.99399948 | C187: 633 | E187: -254.8383026 | F187: 0 | J187: -653 | K187: 7559.73
A188: 2009-10-12T02:18:04 | B188: 59.99200058 | C188: 633 | E188: -254.8383026 | F188: 0 | J188: -653 | K188: 7560.06
A189: 2009-10-12T02:18:06 | B189: 59.99399948 | C189: 633 | E189: -257.1469727 | F189: 0 | J189: -653 | K189: 7560.39
A190: 2009-10-12T02:18:08 | B190: 59.99499893 | C190: 633 | E190: -257.1469727 | F190: 0 | J190: -653 | K190: 7560.72
A191: 2009-10-12T02:18:10 | B191: 59.99300003 | C191: 633 | E191: -257.1469727 | F191: 0 | J191: -653 | K191: 7561.05
A192: 2009-10-12T02:18:12 | B192: 59.99000168 | C192: 633 | E192: -257.1469727 | F192: 0 | J192: -653 | K192: 7561.38
A193: 2009-10-12T02:18:14 | B193: 59.99000168 | C193: 633 | E193: -257.1469727 | F193: 0 | J193: -653 | K193: 7561.71
A194: 2009-10-12T02:18:16 | B194: 59.98699951 | C194: 633 | E194: -262.2893677 | F194: 0 | J194: -653 | K194: 7562.04
A195: 2009-10-12T02:18:18 | B195: 59.98300171 | C195: 633 | E195: -262.2893677 | F195: 0 | J195: -653 | K195: 7562.37
A196: 2009-10-12T02:18:20 | B196: 59.97700119 | C196: 633 | E196: -262.2893677 | F196: 0 | J196: -653 | K196: 7562.7
A197: 2009-10-12T02:18:22 | B197: 59.97700119 | C197: 633 | E197: -262.2893677 | F197: 0 | J197: -653 | K197: 7563.03
A198: 2009-10-12T02:18:24 | B198: 59.98899841 | C198: 633 | E198: -262.2893677 | F198: 0 | J198: -653 | K198: 7563.36
A199: 2009-10-12T02:18:26 | B199: 59.99499893 | C199: 633 | E199: -256.6479492 | F199: 0 | J199: -653 | K199: 7563.69
A200: 2009-10-12T02:18:28 | B200: 59.99900055 | C200: 633 | E200: -256.6479492 | F200: 0 | J200: -653 | K200: 7564.02
... 1606 more rows

Sheet Entry Data
A1: Balancing Authority Name: | B1: My BA
A2: Balancing Authority Frequency Response Obligation (FRO from FRS Form 1) | B2: -400
A4: Note: See "Instruction" tab for more detailed instructions.
A6: Step 1. | B6: Copy and Paste Event Data into the appropriate cells of the "Data" worksheet.
B7: Maintain date and time format of mm/dd/yy hh:mm:ss.
A8: Step 2. | B8: Determine Time of T(0) and edit formula in cell "C8" to reference the correct row of the "Data" worksheet. | C8: =Data!A469 -> 40098.10238
B9: T(0) is the first change in frequency of about 0.010 Hz (10 mHz) which should be the first scan of frequency data of the event.
A11: Step 3. | B11: Time of Frequency Recovery to 60 Hz or Pre-Perturbation Hz | C11: =Data!A633 -> 40098.10618
A18: Step 4. | B18: Hit the big blue button to copy your data for pasting into FRS Form 1 "BA Event Data" worksheet.
A31: Step 5. | B31: Paste data into FRS Form 1 in the appropriate row on the "BA Event Data" worksheet.
A33: Step 6. | B33: Save this workbook using the following file name format:MyBA_yymmdd_hhmm_FRS_Form2.xlsm
B34: =Evaluation!G2 -> 2009-10-12T02:27:26 | C34: Date yymmdd
B35: =Evaluation!G2 -> 40098.10238 | C35: Time hh:ss of T(0)
B36: Where "MyBA" = your BA pneumonic

Sheet IPFR
B41: IPFR = Interconnection Primary Frequency Response

Sheet Evaluation
A1: scan rate | B1: 2 | C1: seconds | F1: Date: | G1: =G2 -> 2009-10-12T02:27:26 | K1: Balancing Authority | L1: ='Entry Data'!B1 -> My BA | W1: A Point | X1: =$B78 -> 40098.10236 | AC1: A Point | AD1: =$B$78 -> 40098.10236 | AR1: Non-Conforming Load sign convention | AS1: - | AT1: (Data is positive for Load then enter "+" else "-" | BF1: Date: | BG1: =$BG$2 -> 2009-10-12T02:27:26 | BT1: Date: | BU1: =BU2 -> 2009-10-12T02:27:26 | CH1: Date: | CI1: =CI2 -> 2009-10-12T02:27:26 | CV1: Date: | CW1: =CW2 -> 2009-10-12T02:27:26 | DJ1: Date: | DK1: =DK2 -> 2009-10-12T02:27:26
F2: Time of T(0) | G2: ='Entry Data'!C8 -> 40098.10238 | K2: Grid Nominal Frequency | L2: 60 | M2: Hz | W2: FPointA | X2: =$C78 -> 60.03900146 | Y2: =$B78 -> 40098.10236 | AC2: FPointA | AD2: =$C$78 -> 60.03900146 | AE2: =$B$78 -> 40098.10236 | BF2: Time of T(0) | BG2: =G2 -> 40098.10238 | BT2: Time of T(0) | BU2: =$G2 -> 40098.10238 | CH2: Time of T(0) | CI2: =$G2 -> 40098.10238 | CV2: Time of T(0) | CW2: =$G2 -> 40098.10238 | DJ2: Time of T(0) | DK2: =$G2 -> 40098.10238
F3: Time of Frequency Recovery to 60 Hz or Pre-Perturbation Hz | G3: ='Entry Data'!C11 -> 40098.10618 | K3: Capacity @ Droop for Minimum Performance | L3: =L7*-M4*10 -> 12000 | M3: MW | W3: A Value | X3: =AVERAGE($C71:$C78) -> 60.04212523 | AC3: A Value | AD3: =AVERAGE($C$71:$C$78) -> 60.04212523 | BF3: Time of Frequency Recovery to 60 Hz or Pre-Perturbation Hz | BG3: =G3 -> 40098.10618 | BT3: Time of Frequency Recovery to 60 Hz or Pre-Perturbation Hz | BU3: =$G3 -> 40098.10618 | CH3: Time of Frequency Recovery to 60 Hz or Pre-Perturbation Hz | CI3: =$G3 -> 40098.10618 | CV3: Time of Frequency Recovery to 60 Hz or Pre-Perturbation Hz | CW3: =$G3 -> 40098.10618 | DJ3: Time of Frequency Recovery to 60 Hz or Pre-Perturbation Hz | DK3: =$G3 -> 40098.10618
F4: Value A Pre-Perturbation Average Frequency [T(-2 ) to T(-16)] | G4: =AVERAGE($C$71:$C$78) -> 60.04212523 | H4: Hz | K4: Droop Setting | L4: 0.05 | M4: =L4*L2 -> 3 | N4: Hz | W4: C Value | X4: =IF($K$16="Low Hz",MIN($C$79:$C$88),MAX($C$79:$C$88)) -> 59.83599854 | Y4: =LOOKUP($X$4,$C$79:$C$88,$B$79:$B$88) ->  | AC4: C Value | AD4: =IF($K$16="Low Hz",MIN($C$79:$C$88),MAX($C$79:$C$88)) -> 59.83599854 | AE4: =LOOKUP($X$6,$C$79:$C$88,$B$79:$B$88) ->  | BF4: Value A Pre-Perturbation Average Frequency [T(-2 ) to T(-16)] | BG4: =AVERAGE($AP$71:$AP$78) -> 60.04212523 | BH4: Hz | BT4: Value A Pre-Perturbation Average Frequency [T(-2 ) to T(-16)] | BU4: =AVERAGE($AP$71:$AP$78) -> 60.04212523 | BV4: Hz | CH4: Value A Pre-Perturbation Average Frequency [T(-2 ) to T(-16)] | CI4: =AVERAGE($AP$71:$AP$78) -> 60.04212523 | CJ4: Hz | CV4: Value A Pre-Perturbation Average Frequency [T(-2 ) to T(-16)] | CW4: =AVERAGE($AP$71:$AP$78) -> 60.04212523 | CX4: Hz | DJ4: Value A Pre-Perturbation Average Frequency [T(-2 ) to T(-16)] | DK4: =AVERAGE($AP$71:$AP$78) -> 60.04212523 | DL4: Hz
F5: Value B Post-Perturbation Average Frequency [T(+20 to T(+52)] | G5: =AVERAGE($C$89:$C$105) -> 59.88911775 | H5: Hz | K5: Deadband Setting | L5: 0 | M5: Hz | W5: Delta FCA | X5: =X4-X3 -> -0.2061266899 | AC5: Delta FC | BF5: Value B Post-Perturbation Average Frequency [T(+12 to T(+24)] | BG5: =AVERAGE($AP$85:$AP$91) -> 59.88257163 | BH5: Hz | BT5: Value B Post-Perturbation Average Frequency [T(+18 to T(+30)] | BU5: =AVERAGE($AP$88:$AP$94) -> 59.88442884 | BV5: Hz | CH5: Value B Post-Perturbation Average Frequency [T(+20 to T(+40)] | CI5: =AVERAGE($AP$89:$AP$99) -> 59.88927321 | CJ5: Hz | CV5: Value B Post-Perturbation Average Frequency [T(+18 to T(+52)] | CW5: =AVERAGE($AP$88:$AP$105) -> 59.88833343 | CX5: Hz | DJ5: Value B Post-Perturbation Average Frequency [T(+20 to T(+52)] | DK5: =AVERAGE($AP$89:$AP$105) -> 59.88911775 | DL5: Hz
F6: Pre to Post Perturbation Delta Frequency Actual | G6: =G5-G4 -> -0.1530074793 | H6: Hz | K6: Hz Span | L6: =M4-L5 -> 3 | M6: Hz | W6: FR C | X6: =X8/(X5*10) -> -307.0926915 | Y6: MW/0.1 Hz | BF6: Pre to Post Perturbation Delta Frequency Actual | BG6: =BG5-BG4 -> -0.159553596 | BH6: Hz | BT6: Pre to Post Perturbation Delta Frequency Actual | BU6: =BU5-BU4 -> -0.1576963833 | BV6: Hz | CH6: Pre to Post Perturbation Delta Frequency Actual | CI6: =CI5-CI4 -> -0.1528520151 | CJ6: Hz | CV6: Pre to Post Perturbation Delta Frequency Actual | CW6: =CW5-CW4 -> -0.1537917985 | CX6: Hz | DJ6: Pre to Post Perturbation Delta Frequency Actual | DK6: =DK5-DK4 -> -0.1530074793 | DL6: Hz
F7: Value A Pre-Perturbation Average Interchange MW [T(-2 ) to T(-16)] | G7: =AVERAGE($D$71:$D$78) -> 633 | H7: MW | K7: Frequency Response Obligation (FRO) | L7: ='Entry Data'!B2 -> -400 | M7: MW/0.1 Hz | W7: Slope A-C dF/dT | X7: =(X4-X2)/(Y4-Y2)/86400 ->  | Y7: Hz/second | AD7: Value B | AE7: FR B | AF7: Value B | AG7: FR B | AH7: Value B | AI7: FR B | AJ7: Value B | AK7: FR B | AL7: Value B | AM7: FR B | BF7: Value A Pre-Perturbation Average Interchange MW [T(-2 ) to T(-16)] | BG7: =AVERAGE($D$71:$D$78) -> 633 | BH7: MW | BT7: Value A Pre-Perturbation Average Interchange MW [T(-2 ) to T(-16)] | BU7: =AVERAGE($D$71:$D$78) -> 633 | BV7: MW | CH7: Value A Pre-Perturbation Average Interchange MW [T(-2 ) to T(-16)] | CI7: =AVERAGE($D$71:$D$78) -> 633 | CJ7: MW | CV7: Value A Pre-Perturbation Average Interchange MW [T(-2 ) to T(-16)] | CW7: =AVERAGE($D$71:$D$78) -> 633 | CX7: MW | DJ7: Value A Pre-Perturbation Average Interchange MW [T(-2 ) to T(-16)] | DK7: =AVERAGE($D$71:$D$78) -> 633 | DL7: MW
F8: Value B Post-Perturbation Average Interchange MW [T(+20 to T(+52)] | G8: =AVERAGE($D$89:$D$105) -> 0 | H8: MW | W8: C Value Maximum Resource Loss | X8: =MAX(Z79:Z88) -> 633 | AD8: 12 to 24 sec | AE8: 12 to 24 sec | AF8: 18 to 30 sec | AG8: 18 to 30 sec | AH8: 20 to 40 sec | AI8: 20 to 40 sec | AJ8: 18 to 52 sec | AK8: 18 to 52 sec | AL8: 20 to 52 sec | AM8: 20 to 52 sec | BF8: Value B Post-Perturbation Average Interchange MW [T(+12 to T(+24)] | BG8: =AVERAGE($D$85:$D$91) -> 0 | BH8: MW | BT8: Value B Post-Perturbation Average Interchange MW [T(+18 to T(+30)] | BU8: =AVERAGE($D$88:$D$94) -> 0 | BV8: MW | CH8: Value B Post-Perturbation Average Interchange MW [T(+20 to T(+40)] | CI8: =AVERAGE($D$89:$D$99) -> 0 | CJ8: MW | CV8: Value B Post-Perturbation Average Interchange MW [T(+18 to T(+52)] | CW8: =AVERAGE($D$88:$D$105) -> 0 | CX8: MW | DJ8: Value B Post-Perturbation Average Interchange MW [T(+20 to T(+52)] | DK8: =AVERAGE($D$89:$D$105) -> 0 | DL8: MW
F9: Pre to Post Perturbation Interchange Delta MW Actual | G9: =G8-G7 -> -633 | H9: MW | W9: Secondary C Value | X9: =IF((MIN(C89:C139)<X4),MIN(C89:C139),"No") -> No | Y9: =IF(X9="No","n/a ",(LOOKUP(X9,C89:C139,B89:B139))) -> n/a | Z9: Time | AC9: B Frequency Value | AD9: =AVERAGE($C$85:$C$91) -> 59.88257163 | AF9: =AVERAGE($C$88:$C$94) -> 59.88442884 | AH9: =AVERAGE($E$89:$E$99) -> 59.88911775 | AJ9: =AVERAGE($C$88:$C$105) -> 59.88833343 | AL9: =AVERAGE($C$89:$C$105) -> 59.88911775 | BF9: Pre to Post Perturbation Interchange Delta MW Actual | BG9: =BG8-BG7 -> -633 | BH9: MW | BT9: Pre to Post Perturbation Interchange Delta MW Actual | BU9: =BU8-BU7 -> -633 | BV9: MW | CH9: Pre to Post Perturbation Interchange Delta MW Actual | CI9: =CI8-CI7 -> -633 | CJ9: MW | CV9: Pre to Post Perturbation Interchange Delta MW Actual | CW9: =CW8-CW7 -> -633 | CX9: MW | DJ9: Pre to Post Perturbation Interchange Delta MW Actual | DK9: =DK8-DK7 -> -633 | DL9: MW
F10: Initial Performance Ramp Magnitude Adjustment | G10: =(D77-D49)*0.59 -> 0 | H10: MW | AC10: Delta FB | AD10: =AD9-$AD$3 -> -0.159553596 | AE10: =AVERAGE($AA$85:$AA$91) -> -397.1996054 | AF10: =AF9-$AD$3 -> -0.1576963833 | AG10: =AVERAGE($AA$88:$AA$94) -> -401.6699921 | AH10: =AH9-$AD$3 -> -0.1530074793 | AI10: =AVERAGE($AA$89:$AA$99) -> -414.4045417 | AJ10: =AJ9-$AD$3 -> -0.1537917985 | AK10: =AVERAGE($AA$88:$AA$105) -> -411.9963314 | AL10: =AL9-$AD$3 -> -0.1530074793 | AM10: =AVERAGE($AA$89:$AA$105) -> -413.951533 | BF10: Net Total Adjustments | BG10: =BG30 -> -46.80320767 | BH10: MW | BT10: Net Total Adjustments | BU10: =BU30 -> -48.12777301 | BV10: MW | CH10: Net Total Adjustments | CI10: =CI30 -> -47.74166818 | CJ10: MW | CV10: Net Total Adjustments | CW10: =CW30 -> -48.63229858 | CX10: MW | DJ10: Net Total Adjustments | DK10: =DK30 -> -48.7918359 | DL10: MW
F11: EPFR Pre-Perturbation Average | G11: =AVERAGE(H71:H78) -> -168.5009003 | H11: MW | AC11: Slope B dF/dT | AD11: =AD10/20 -> -0.007977679798 | AF11: =AF10/20 -> -0.007884819167 | AH11: =AH10/20 -> -0.007650373964 | AJ11: =AJ10/20 -> -0.007689589924 | AL11: =AL10/20 -> -0.007650373964 | BF11: EPFR for FRO Pre-Perturbation Average | BG11: =AVERAGE(AZ71:AZ78) -> -168.5009003 | BH11: MW | BT11: EPFR for FRO Pre-Perturbation Average | BU11: =AVERAGE(BM71:BM78) -> -168.5009003 | BV11: MW | CH11: EPFR for FRO Pre-Perturbation Average | CI11: =AVERAGE(CO71:CO78) -> -168.5009003 | CJ11: MW | CV11: EPFR for FRO Pre-Perturbation Average | CW11: =AVERAGE(DC71:DC78) -> -168.5009003 | CX11: MW | DJ11: EPFR for FRO Pre-Perturbation Average | DK11: =AVERAGE(DQ71:DQ78) -> -168.5009003 | DL11: MW
F12: EPFR Post-Perturbation Average | G12: =AVERAGE(H89:H105) -> 443.5290168 | H12: MW | AC12: RatioB-C | AD12: =(100*(AD10/$X$5)) -> 77.40559751 | AF12: =(100*(AF10/$X$5)) -> 76.50459211 | AH12: =(100*(AH10/$X$5)) -> 74.22982407 | AJ12: =(100*(AJ10/$X$5)) -> 74.61032754 | AL12: =(100*(AL10/$X$5)) -> 74.22982407 | BF12: EPFR for FRO Post-Perturbation Average | BG12: =AVERAGE($AZ85:$AZ91) -> 469.7134835 | BH12: MW | BT12: EPFR for FRO Post-Perturbation Average | BU12: =AVERAGE($AZ88:$AZ94) -> 462.2846331 | BV12: MW | CH12: EPFR for FRO Post-Perturbation Average | CI12: =AVERAGE($AZ89:$AZ99) -> 442.90716 | CJ12: MW | CV12: EPFR for FRO Post-Perturbation Average | CW12: =AVERAGE($AZ88:$AZ105) -> 446.6662937 | CX12: MW | DJ12: EPFR for FRO Post-Perturbation Average | DK12: =AVERAGE($AZ89:$AZ105) -> 443.5290168 | DL12: MW
F13: EPFR Delta | G13: =G12-G11 -> 612.0299171 | H13: MW | K13: TC (frequency response filter constant) | L13: 1 | M13: Time Constant for delayed delivery of PFR during Sustained Measure | AC13: Sustainability Index | AD13: =AVERAGE($C$110:$C$119)-AD9 -> -0.01717131478 | AF13: =AVERAGE($C$110:$C$119)-AF9 -> -0.0190285274 | AH13: =AVERAGE($C$110:$C$119)-AH9 -> -0.02371743146 | AJ13: =AVERAGE($C$110:$C$119)-AJ9 -> -0.02293311225 | AL13: =AVERAGE($C$110:$C$119)-AL9 -> -0.02371743146 | BF13: EPFR for FRO Delta | BG13: =BG12-BG11 -> 638.2143838 | BH13: MW | BT13: EPFR for FRO Delta | BU13: =BU12-BU11 -> 630.7855334 | BV13: MW | CH13: EPFR for FRO Delta | CI13: =CI12-CI11 -> 611.4080602 | CJ13: MW | CV13: EPFR for FRO Delta | CW13: =CW12-CW11 -> 615.1671939 | CX13: MW | DJ13: EPFR for FRO Delta | DK13: =DK12-DK11 -> 612.0299171 | DL13: MW
W14: Tzero | X14: =B78 -> 40098.10236 | BF14: EPFR for FRO Adjusted | BG14: =BG13+BG10 -> 591.4111761 | BH14: MW | BT14: EPFR for FRO Adjusted | BU14: =BU13+BU10 -> 582.6577603 | BV14: MW | CH14: EPFR for FRO Adjusted | CI14: =CI13+CI10 -> 563.6663921 | CJ14: MW | CV14: EPFR for FRO Adjusted | CW14: =CW13+CW10 -> 566.5348954 | CX14: MW | DJ14: EPFR for FRO Adjusted | DK14: =DK13+DK10 -> 563.2380812 | DL14: MW
W15: FT+4 | X15: =C81 -> 59.83599854 | BF15: Pre JOU Dynamic Schedules MW | BG15: =AVERAGE($AR$71:$AR$78) -> 0 | BK15: Pre-Perturbation Bias Setting | BL15: =AVERAGE($AX$71:$AX$78) -> -653 | BM15: MW/0.1 Hz | BT15: Pre JOU Dynamic Schedules MW | BU15: =AVERAGE($AR$71:$AR$78) -> 0 | BY15: Pre-Perturbation Bias Setting | BZ15: =AVERAGE($AX$71:$AX$78) -> -653 | CA15: MW/0.1 Hz | CH15: Pre JOU Dynamic Schedules MW | CI15: =AVERAGE($AR$71:$AR$78) -> 0 | CJ15: MW | CM15: Pre-Perturbation Bias Setting | CN15: =AVERAGE($AX$71:$AX$78) -> -653 | CO15: MW/0.1 Hz | CV15: Pre JOU Dynamic Schedules MW | CW15: =AVERAGE($AR$71:$AR$78) -> 0 | CX15: MW | DA15: Pre-Perturbation Bias Setting | DB15: =AVERAGE($AX$71:$AX$78) -> -653 | DC15: MW/0.1 Hz | DJ15: Pre JOU Dynamic Schedules MW | DK15: =AVERAGE($AR$71:$AR$78) -> 0 | DL15: MW | DO15: Pre-Perturbation Bias Setting | DP15: =AVERAGE($AX$71:$AX$78) -> -653 | DQ15: MW/0.1 Hz
K16: =IF(G6<0,"Low Hz","High Hz") -> Low Hz | L16: Delta Hz Event | W16: FT+10 | X16: =C84 -> 59.89199829 | BF16: Pre Non-Conforming Load MW | BG16: =AVERAGE($AS$71:$AS$78) -> -165.3358784 | BK16: Post-Perturbation Bias Setting | BL16: =AVERAGE($AX$85:$AX$91) -> -653 | BM16: MW/0.1 Hz | BT16: Pre Non-Conforming Load MW | BU16: =AVERAGE($AS$71:$AS$78) -> -165.3358784 | BY16: Post-Perturbation Bias Setting | BZ16: =AVERAGE($AX$88:$AX$94) -> -653 | CA16: MW/0.1 Hz | CH16: Pre Non-Conforming Load MW | CI16: =AVERAGE($AS$71:$AS$78) -> -165.3358784 | CJ16: MW | CM16: Post-Perturbation Bias Setting | CN16: =AVERAGE($AX$89:$AX$99) -> -653 | CO16: MW/0.1 Hz | CV16: Pre Non-Conforming Load MW | CW16: =AVERAGE($AS$71:$AS$78) -> -165.3358784 | CX16: MW | DA16: Post-Perturbation Bias Setting | DB16: =AVERAGE($AX$88:$AX$105) -> -653 | DC16: MW/0.1 Hz | DJ16: Pre Non-Conforming Load MW | DK16: =AVERAGE($AS$71:$AS$78) -> -165.3358784 | DL16: MW | DO16: Post-Perturbation Bias Setting | DP16: =AVERAGE($AX$89:$AX$105) -> -653 | DQ16: MW/0.1 Hz
K17: =LOOKUP(G3,B43:B529,N43:N529) -> 0 | L17: Actual Interchange MW Average during frequency recovery period | W17: FT+20 | X17: =C89 -> 59.88299942 | BF17: Pre Pumped Hydro MW | BG17: =AVERAGE($AT$71:$AT$78) -> 0 | BK17: EPFR for Bias Setting Pre-Perturbation Average | BL17: =(BG4-$L$2)*10*BL15 -> -275.0777197 | BM17: MW | BT17: Pre Pumped Hydro MW | BU17: =AVERAGE($AT$71:$AT$78) -> 0 | BY17: EPFR for Bias Setting Pre-Perturbation Average | BZ17: =(BU4-$L$2)*10*BZ15 -> -275.0777197 | CA17: MW | CH17: Pre Pumped Hydro MW | CI17: =AVERAGE($AT$71:$AT$78) -> 0 | CJ17: MW | CM17: EPFR for Bias Setting Pre-Perturbation Average | CN17: =(CI4-$L$2)*10*CN15 -> -275.0777197 | CO17: MW | CV17: Pre Pumped Hydro MW | CW17: =AVERAGE($AT$71:$AT$78) -> 0 | CX17: MW | DA17: EPFR for Bias Setting Pre-Perturbation Average | DB17: =(CW4-$L$2)*10*DB15 -> -275.0777197 | DC17: MW | DJ17: Pre Pumped Hydro MW | DK17: =AVERAGE($AT$71:$AT$78) -> 0 | DL17: MW | DO17: EPFR for Bias Setting Pre-Perturbation Average | DP17: =(DK4-$L$2)*10*DP15 -> -275.0777197 | DQ17: MW
K18: =LOOKUP(G3,B43:B529,O43:O529) -> 653.113515 | L18: Target Interchange MW Average during frequency recovery period | W18: FT+60 | X18: =C109 -> 59.88999939 | BF18: Pre Ramping Units MW | BG18: =AVERAGE($AU$71:$AU$78) -> 0 | BK18: EPFR for Bias Setting Post-Perturbation Average | BL18: =(BG5-$L$2)*10*BL16 -> 766.8072619 | BM18: MW | BT18: Pre Ramping Units MW | BU18: =AVERAGE($AU$71:$AU$78) -> 0 | BY18: EPFR for Bias Setting Post-Perturbation Average | BZ18: =(BU5-$L$2)*10*BZ16 -> 754.6796635 | CA18: MW | CH18: Pre Ramping Units MW | CI18: =AVERAGE($AU$71:$AU$78) -> 0 | CJ18: MW | CM18: EPFR for Bias Setting Post-Perturbation Average | CN18: =(CI5-$L$2)*10*CN16 -> 723.0459387 | CO18: MW | CV18: Pre Ramping Units MW | CW18: =AVERAGE($AU$71:$AU$78) -> 0 | CX18: MW | DA18: EPFR for Bias Setting Post-Perturbation Average | DB18: =(CW5-$L$2)*10*DB16 -> 729.1827244 | DC18: MW | DJ18: Pre Ramping Units MW | DK18: =AVERAGE($AU$71:$AU$78) -> 0 | DL18: MW | DO18: EPFR for Bias Setting Post-Perturbation Average | DP18: =(DK5-$L$2)*10*DP16 -> 724.06112 | DQ18: MW
D19: EPFR = Expected Primary Frequency Response | F19: EPFR(Final) | G19: =G13+G10 -> 612.0299171 | H19: MW | K19: =LOOKUP(G3,B49:B529,Q49:Q529) -> 389.7773492 | L19: Interchange Average Ramp MW during frequency recovery period | U19: Interconnection Evaluation | BF19: Pre Transferred Frequency Response MW | BG19: =AVERAGE($AV$71:$AV$78)*-10*(BG4-$L$2) -> 0 | BK19: EPFR for Bias Setting Delta | BL19: =BL18-BL17 -> 1041.884982 | BM19: MW | BT19: Pre Transferred Frequency Response MW | BU19: =AVERAGE($AV$71:$AV$78)*-10*(BU4-$L$2) -> 0 | BY19: EPFR for Bias Setting Delta | BZ19: =BZ18-BZ17 -> 1029.757383 | CA19: MW | CH19: Pre Transferred Frequency Response MW | CI19: =AVERAGE($AV$71:$AV$78)*-10*(CI4-$L$2) -> 0 | CJ19: MW | CM19: EPFR for Bias Setting Delta | CN19: =CN18-CN17 -> 998.1236584 | CO19: MW | CV19: Pre Transferred Frequency Response MW | CW19: =AVERAGE($AV$71:$AV$78)*-10*(CW4-$L$2) -> 0 | CX19: MW | DA19: EPFR for Bias Setting Delta | DB19: =DB18-DB17 -> 1004.260444 | DC19: MW | DJ19: Pre Transferred Frequency Response MW | DK19: =AVERAGE($AV$71:$AV$78)*-10*(DK4-$L$2) -> 0 | DL19: MW | DO19: EPFR for Bias Setting Delta | DP19: =DP18-DP17 -> 999.1388397 | DQ19: MW
K20: =D77 -> 633 | L20: Actual MW @ T(-4) | BF20: Pre Contingent BA Lost Generation MW | BG20: =AVERAGE($AW$71:$AW$78) -> 0 | BK20: Primary Frequency Response Delivery of Bias | BL20: =BG9/BL19 -> -0.6075526677 | BT20: Pre Contingent BA Lost Generation MW | BU20: =AVERAGE($AW$71:$AW$78) -> 0 | BY20: Primary Frequency Response Delivery of Bias | BZ20: =BU9/BZ19 -> -0.6147079014 | CH20: Pre Contingent BA Lost Generation MW | CI20: =AVERAGE($AW$71:$AW$78) -> 0 | CJ20: MW | CM20: Primary Frequency Response Delivery of Bias | CN20: =CI9/CN19 -> -0.634189957 | CV20: Pre Contingent BA Lost Generation MW | CW20: =AVERAGE($AW$71:$AW$78) -> 0 | CX20: MW | DA20: Primary Frequency Response Delivery of Bias | DB20: =CW9/DB19 -> -0.63031458 | DJ20: Pre Contingent BA Lost Generation MW | DK20: =AVERAGE($AW$71:$AW$78) -> 0 | DL20: MW | DO20: Primary Frequency Response Delivery of Bias | DP20: =DK9/DP19 -> -0.6335455843
K21: =LOOKUP(G3,B43:B524,D43:D524)-D77+I77-LOOKUP(G3,B43:B524,I43:I524) -> -825.0013428 | L21: Starting and Ending Difference in Interchange MW during frequency recovery period (indicates ramp direction during recovery period) | BF21: Sum of Pre Perturbation Adjustments | BG21: =SUM(BG15:BG20) -> -165.3358784 | BT21: Sum of Pre Perturbation Adjustments | BU21: =SUM(BU15:BU20) -> -165.3358784 | CH21: Sum of Pre Perturbation Adjustments | CI21: =SUM(CI15:CI20) -> -165.3358784 | CJ21: MW | CV21: Sum of Pre Perturbation Adjustments | CW21: =SUM(CW15:CW20) -> -165.3358784 | CX21: MW | DJ21: Sum of Pre Perturbation Adjustments | DK21: =SUM(DK15:DK20) -> -165.3358784 | DL21: MW
K22: =G3-G2 -> 00:05:28 | L22: Event Duration (h:mm:ss)
K23: =IF(K18-K20<0,"Yes","No") -> No | L23: Target MW Average minus MW @ T(-4) less than zero | W23: B Value Average Resource Loss | X23: =AVERAGE(R89:X105) -> 633 | BF23: Post JOU Dynamic Schedules MW | BG23: =AVERAGE($AR$85:$AR$91) -> 0 | BK23: Pre-Perturbation BA Load | BL23: =AVERAGE($AY$71:$AY$78) -> 7651.305 | BM23: MW | BT23: Post JOU Dynamic Schedules MW | BU23: =AVERAGE($AR$88:$AR$94) -> 0 | BY23: Pre-Perturbation BA Load | BZ23: =AVERAGE($AY$71:$AY$78) -> 7651.305 | CA23: MW | CH23: Post JOU Dynamic Schedules MW | CI23: =AVERAGE($AR$89:$AR$99) -> 0 | CJ23: MW | CM23: Pre-Perturbation BA Load | CN23: =AVERAGE($AY$71:$AY$78) -> 7651.305 | CO23: MW | CV23: Post JOU Dynamic Schedules MW | CW23: =AVERAGE($AR$88:$AR$105) -> 0 | CX23: MW | DA23: Pre-Perturbation BA Load | DB23: =AVERAGE($AY$71:$AY$78) -> 7651.305 | DC23: MW | DJ23: Post JOU Dynamic Schedules MW | DK23: =AVERAGE($AR$89:$AR$105) -> 0 | DL23: MW | DO23: Pre-Perturbation BA Load | DP23: =AVERAGE($AY$71:$AY$78) -> 7651.305 | DQ23: MW
K24: =IF(K21>0,K18-K20,K18-(K20+K21)) -> 845.1148577 | L24: Interchange Target Relative Average Change - MW (Low Frequency Event) | W24: B Value Average LaaR Loss | X24: =AVERAGE(Y89:Y105) -> 0 | BF24: Post Non-Conforming Load MW | BG24: =AVERAGE($AS$85:$AS$91) -> -212.139086 | BK24: Post-Perturbation BA Load | BL24: =AVERAGE($AY$85:$AY$91) -> 7632 | BM24: MW | BT24: Post Non-Conforming Load MW | BU24: =AVERAGE($AS$88:$AS$94) -> -213.4636514 | BY24: Post-Perturbation BA Load | BZ24: =AVERAGE($AY$88:$AY$94) -> 7632 | CA24: MW | CH24: Post Non-Conforming Load MW | CI24: =AVERAGE($AS$89:$AS$99) -> -213.0775466 | CJ24: MW | CM24: Post-Perturbation BA Load | CN24: =AVERAGE($AY$89:$AY$99) -> 7632 | CO24: MW | CV24: Post Non-Conforming Load MW | CW24: =AVERAGE($AS$88:$AS$105) -> -213.9681769 | CX24: MW | DA24: Post-Perturbation BA Load | DB24: =AVERAGE($AY$88:$AY$105) -> 7632 | DC24: MW | DJ24: Post Non-Conforming Load MW | DK24: =AVERAGE($AS$89:$AS$105) -> -214.1277143 | DL24: MW | DO24: Post-Perturbation BA Load | DP24: =AVERAGE($AY$89:$AY$105) -> 7632 | DQ24: MW
K25: =IF(K21>0,K17-K20,K17-(K20+K21)) -> 192.0013428 | L25: Interchange Actual Relative Average Change - MW (Low Frequency Event) | W25: B Value Average Net Loss | X25: =X23-X24 -> 633 | BF25: Post Pumped Hydro MW | BG25: =AVERAGE($AT$85:$AT$91) -> 0 | BK25: Pre to Post Perturbation BA Load Change | BL25: =BL24-BL23 -> -19.305 | BM25: MW | BT25: Post Pumped Hydro MW | BU25: =AVERAGE($AT$88:$AT$94) -> 0 | BY25: Pre to Post Perturbation BA Load Change | BZ25: =BZ24-BZ23 -> -19.305 | CA25: MW | CH25: Post Pumped Hydro MW | CI25: =AVERAGE($AT$89:$AT$99) -> 0 | CJ25: MW | CM25: Pre to Post Perturbation BA Load Change | CN25: =CN24-CN23 -> -19.305 | CO25: MW | CV25: Post Pumped Hydro MW | CW25: =AVERAGE($AT$88:$AT$105) -> 0 | CX25: MW | DA25: Pre to Post Perturbation BA Load Change | DB25: =DB24-DB23 -> -19.305 | DC25: MW | DJ25: Post Pumped Hydro MW | DK25: =AVERAGE($AT$89:$AT$105) -> 0 | DL25: MW | DO25: Pre to Post Perturbation BA Load Change | DP25: =DP24-DP23 -> -19.305 | DQ25: MW
K26: =IF(K17-K20<0,"Yes","No") -> Yes | L26: Interchange Actual Average minus MW @ T(-4) less than zero | BF26: Post Ramping Units MW | BG26: =AVERAGE($AU$85:$AU$91) -> 0 | BK26: Load Dampening Frequency Response | BL26: =BL25/(BG6*-10) -> -12.09938258 | BM26: MW/0.1 Hz | BT26: Post Ramping Units MW | BU26: =AVERAGE($AU$88:$AU$94) -> 0 | BY26: Load Dampening Frequency Response | BZ26: =BZ25/(BU6*-10) -> -12.24187872 | CA26: MW/0.1 Hz | CH26: Post Ramping Units MW | CI26: =AVERAGE($AU$89:$AU$99) -> 0 | CJ26: MW | CM26: Load Dampening Frequency Response | CN26: =CN25/(CI6*-10) -> -12.62986294 | CO26: MW/0.1 Hz | CV26: Post Ramping Units MW | CW26: =AVERAGE($AU$88:$AU$105) -> 0 | CX26: MW | DA26: Load Dampening Frequency Response | DB26: =DB25/(CW6*-10) -> -12.55268499 | DC26: MW/0.1 Hz | DJ26: Post Ramping Units MW | DK26: =AVERAGE($AU$89:$AU$105) -> 0 | DL26: MW | DO26: Load Dampening Frequency Response | DP26: =DP25/(DK6*-10) -> -12.61703029 | DQ26: MW/0.1 Hz
K27: =IF(K17-K20>0,"Yes","No") -> No | L27: Interchange Average MW minus MW @ T(-4) greater than zero | Z27: Interconnection Bias Total | BF27: Post Transferred Frequency Response MW | BG27: =AVERAGE($AV$85:$AV$91)*-10*(BG5-$L$2) -> 0 | BK27: Load Dampening % of Total BA Frequency Response | BL27: =BL25/BG9*-1 -> -0.03049763033 | BT27: Post Transferred Frequency Response MW | BU27: =AVERAGE($AV$88:$AV$94)*-10*(BU5-$L$2) -> 0 | BY27: Load Dampening % of Total BA Frequency Response | BZ27: =BZ25/BU9*-1 -> -0.03049763033 | CH27: Post Transferred Frequency Response MW | CI27: =AVERAGE($AV$89:$AV$99)*-10*(CI5-$L$2) -> 0 | CJ27: MW | CM27: Load Dampening % of Total BA Frequency Response | CN27: =CN25/CI9*-1 -> -0.03049763033 | CV27: Post Transferred Frequency Response MW | CW27: =AVERAGE($AV$88:$AV$105)*-10*(CW5-$L$2) -> 0 | CX27: MW | DA27: Load Dampening % of Total BA Frequency Response | DB27: =DB25/CW9*-1 -> -0.03049763033 | DJ27: Post Transferred Frequency Response MW | DK27: =AVERAGE($AV$89:$AV$105)*-10*(DK5-$L$2) -> 0 | DL27: MW | DO27: Load Dampening % of Total BA Frequency Response | DP27: =DP25/DK9*-1 -> -0.03049763033
K28: =IF(K18-K20>0,"Yes","No") -> Yes | L28: Interchange Target MW Average minus MW @ T(-4) greater than zero | Z28: EI | AA28: ERCOT | AB28: WECC | BF28: Post Contingent BA Lost Generation MW | BG28: =AVERAGE($AW$85:$AW$91) -> 0 | BT28: Post Contingent BA Lost Generation MW | BU28: =AVERAGE($AW$88:$AW$94) -> 0 | CH28: Post Contingent BA Lost Generation MW | CI28: =AVERAGE($AW$89:$AW$99) -> 0 | CJ28: MW | CV28: Post Contingent BA Lost Generation MW | CW28: =AVERAGE($AW$88:$AW$105) -> 0 | CX28: MW | DJ28: Post Contingent BA Lost Generation MW | DK28: =AVERAGE($AW$89:$AW$105) -> 0 | DL28: MW
K29: =IF(K21>0,K18-(K20+K21),K18-K20) -> 20.11351496 | L29: Interchange Target Relative Average Change - MW (High Frequency Event) | W29: Interconnection Bias Setting | X29: -660 | Z29: -6349 | AA29: -660 | AB29: -2024 | BF29: Sum of Post Perturbation Adjustments | BG29: =SUM(BG23:BG28) -> -212.139086 | BT29: Sum of Post Perturbation Adjustments | BU29: =SUM(BU23:BU28) -> -213.4636514 | CH29: Sum of Post Perturbation Adjustments | CI29: =SUM(CI23:CI28) -> -213.0775466 | CJ29: MW | CV29: Sum of Post Perturbation Adjustments | CW29: =SUM(CW23:CW28) -> -213.9681769 | CX29: MW | DJ29: Sum of Post Perturbation Adjustments | DK29: =SUM(DK23:DK28) -> -214.1277143 | DL29: MW
K30: =IF(K21>0,K17-(K20+K21),K17-K20) -> -633 | L30: Interchange Actual Relative Average Change - MW (High Frequency Event) | W30: IPFR as a % of Bias Setting | X30: =X28/X29 -> 0 | BF30: Net Total Adjustments MW | BG30: =BG29-BG21 -> -46.80320767 | BT30: Net Total Adjustments MW | BU30: =BU29-BU21 -> -48.12777301 | CH30: Net Total Adjustments MW | CI30: =CI29-CI21 -> -47.74166818 | CJ30: MW | CV30: Net Total Adjustments MW | CW30: =CW29-CW21 -> -48.63229858 | CX30: MW | DJ30: Net Total Adjustments MW | DK30: =DK29-DK21 -> -48.7918359 | DL30: MW
K31: =IF(K21>=0,"Up","Down") -> Down | L31: Ramp Direction during frequency recovery period | W31: Interconnection Total Energy | X31: 37446 | Y31: =X31/X32 -> 0.6006833603
W32: Interconnection Peak Energy | X32: 62339 | AC32: Frequency and Interconnection Frequency Response @ different Average periods of B | AO32: Frequency, Actual Interchange, Adjustment Data, Bias and Load used in the evaluation | BB32: 12 to 24 second Average Period Evaluation | BP32: 18 to 30 second Average Period Evaluation | CD32: 20 to 40 second Average Period Evaluation | CR32: 18 to 52 second Average Period Evaluation | DF32: 20 to 52 second Average Period Evaluation
F33: Initial Response P.U. Performance | G33: =K30/(G6*-10)/L7 -> 1.034263166 | H33: P.U. | K33: No Evaluation | L33: P.U. Sustianed Response P.U. Performance | BF33: Initial P.U. Performance for FRO | BG33: =ABS(BG9)/ABS(BG13) -> 0.99182973 | BH33: P.U. | BT33: Initial P.U. Performance for FRO | BU33: =ABS(BU9)/ABS(BU13) -> 1.003510649 | BV33: P.U. | CH33: Initial P.U. Performance for FRO | CI33: =ABS(CI9)/ABS(CI13) -> 1.035315105 | CJ33: P.U. | CV33: Initial P.U. Performance for FRO | CW33: =ABS(CW9)/ABS(CW13) -> 1.028988552 | CX33: P.U. | DJ33: Initial P.U. Performance for FRO | DK33: =ABS(DK9)/ABS(DK13) -> 1.034263166 | DL33: P.U.
BF34: Initial P.U. Performance Adjusted for FRO | BG34: =ABS(BG9)/ABS(BG14) -> 1.070321336 | BH34: P.U. | BT34: Initial P.U. Performance Adjusted for FRO | BU34: =ABS(BU9)/ABS(BU14) -> 1.086401045 | BV34: P.U. | CH34: Initial P.U. Performance Adjusted for FRO | CI34: =ABS(CI9)/ABS(CI14) -> 1.123004687 | CJ34: P.U. | CV34: Initial P.U. Performance Adjusted for FRO | CW34: =ABS(CW9)/ABS(CW14) -> 1.117318642 | CX34: P.U. | DJ34: Initial P.U. Performance Adjusted for FRO | DK34: =ABS(DK9)/ABS(DK14) -> 1.123858669 | DL34: P.U.
K35: Initial | R35: Generator | S35: Generator | T35: Generator | U35: Generator | V35: Generator | W35: Generator | X35: Generator | Y35: LaaR | Z35: Total | AA35: Interconnection | AB35: FR B | AR35: JOU | AS35: Non- | AV35: Transferred | AW35: Contingent | AZ35: FRO | BE35: JOU | BF35: Non- | BI35: Transferred | BJ35: Contingent | BM35: Frequency | BN35: Expected | BS35: JOU | BT35: Non- | BW35: Transferred | BX35: Contingent | CA35: Frequency | CB35: Expected | CG35: JOU | CH35: Non- | CK35: Transferred | CL35: Contingent | CO35: Frequency | CP35: Expected | CU35: JOU | CV35: Non- | CY35: Transferred | CZ35: Contingent | DC35: Frequency | DD35: Expected | DI35: JOU | DJ35: Non- | DM35: Transferred | DN35: Contingent | DQ35: Frequency | DR35: Expected
H36: FRO | K36: Measure | N36: Average | O36: Average | Q36: Average | R36: Trip | S36: Trip | T36: Trip | U36: Trip | V36: Trip | W36: Trip | X36: Trip | Y36: Trip | Z36: Generation | AA36: Primary | AB36: 20 to 52 sec | AD36: Value B | AE36: FR B | AF36: Value B | AG36: FR B | AH36: Value B | AI36: FR B | AJ36: Value B | AK36: FR B | AL36: Value B | AM36: FR B | AQ36: Net | AR36: Dynamic | AS36: Conforming | AT36: Pumped | AU36: Ramping | AV36: Frequency | AW36: BA | AX36: BA | AY36: BA | AZ36: Expected | BD36: Net | BE36: Dynamic | BF36: Conforming | BG36: Pumped | BH36: Ramping | BI36: Frequency | BJ36: BA | BK36: BA | BL36: BA | BM36: Response | BN36: Net | BR36: Net | BS36: Dynamic | BT36: Conforming | BU36: Pumped | BV36: Ramping | BW36: Frequency | BX36: BA | BY36: BA | BZ36: BA | CA36: Response | CB36: Net | CF36: Net | CG36: Dynamic | CH36: Conforming | CI36: Pumped | CJ36: Ramping | CK36: Frequency | CL36: BA | CM36: BA | CN36: BA | CO36: Response | CP36: Net | CT36: Net | CU36: Dynamic | CV36: Conforming | CW36: Pumped | CX36: Ramping | CY36: Frequency | CZ36: BA | DA36: BA | DB36: BA | DC36: Response | DD36: Net | DH36: Net | DI36: Dynamic | DJ36: Conforming | DK36: Pumped | DL36: Ramping | DM36: Frequency | DN36: BA | DO36: BA | DP36: BA | DQ36: Response | DR36: Net
H37: (EPFR) | I37: (TC) | K37: Final | N37: Output | O37: Target | Q37: Ramp | R37: MW | S37: MW | T37: MW | U37: MW | V37: MW | W37: MW | X37: MW | Y37: MW | Z37: Trip | AA37: Frequency | AB37: Average | AD37: 12 to 24 sec | AE37: 12 to 24 sec | AF37: 18 to 30 sec | AG37: 18 to 30 sec | AH37: 20 to 40 sec | AI37: 20 to 40 sec | AJ37: 18 to 52 sec | AK37: 18 to 52 sec | AL37: 20 to 52 sec | AM37: 20 to 52 sec | AQ37: Actual | AR37: Schedules | AS37: Load | AT37: Hydro | AU37: Units | AV37: Response | AW37: Lost Generation | AX37: Bias | AY37: Load | AZ37: Primary | BD37: Actual | BE37: Schedules | BF37: Load | BG37: Hydro | BH37: Units | BI37: Response | BJ37: Lost Generation | BK37: Bias | BL37: Load | BM37: Obligation | BN37: Actual | BR37: Actual | BS37: Schedules | BT37: Load | BU37: Hydro | BV37: Units | BW37: Response | BX37: Lost Generation | BY37: Bias | BZ37: Load | CA37: Obligation | CB37: Actual | CF37: Actual | CG37: Schedules | CH37: Load | CI37: Hydro | CJ37: Units | CK37: Response | CL37: Lost Generation | CM37: Bias | CN37: Load | CO37: Obligation | CP37: Actual | CT37: Actual | CU37: Schedules | CV37: Load | CW37: Hydro | CX37: Units | CY37: Response | CZ37: Lost Generation | DA37: Bias | DB37: Load | DC37: Obligation | DD37: Actual | DH37: Actual | DI37: Schedules | DJ37: Load | DK37: Hydro | DL37: Units | DM37: Response | DN37: Lost Generation | DO37: Bias | DP37: Load | DQ37: Obligation | DR37: Actual
D38: Total | E38: Value B | H38: Expected | I38: Delayed | K38: Expected | M38: Recovery | N38: During | O38: During | P38: Recovery | Q38: During | Z38: MW | AA38: Response | AB38: MW | AD38: Average | AE38: Average | AF38: Average | AG38: Average | AH38: Average | AI38: Average | AJ38: Average | AK38: Average | AL38: Average | AM38: Average | AP38: Frequency | AQ38: Interchange | AR38: Imp(-) Exp (+) | AS38: Load (-) | AT38: Load (-) Gen (+) | AU38: Gen (+) | AV38: Rec (-) Del (+) | AW38: Load (-) Gen (+) | AX38: Setting | AZ38: Freq Response | BC38: Frequency | BD38: Interchange | BE38: Imp(-) Exp (+) | BF38: Load (-) | BG38: Load (-) Gen (+) | BH38: Gen (+) | BI38: Rec (-) Del (+) | BJ38: Load (-) Gen (+) | BK38: Setting | BM38: EPFR | BN38: Interchange | BQ38: Frequency | BR38: Interchange | BS38: Imp(-) Exp (+) | BT38: Load (-) | BU38: Load (-) Gen (+) | BV38: Gen (+) | BW38: Rec (-) Del (+) | BX38: Load (-) Gen (+) | BY38: Setting | CA38: EPFR | CB38: Interchange | CE38: Frequency | CF38: Interchange | CG38: Imp(-) Exp (+) | CH38: Load (-) | CI38: Load (-) Gen (+) | CJ38: Gen (+) | CK38: Rec (-) Del (+) | CL38: Load (-) Gen (+) | CM38: Setting | CO38: EPFR | CP38: Interchange | CS38: Frequency | CT38: Interchange | CU38: Imp(-) Exp (+) | CV38: Load (-) | CW38: Load (-) Gen (+) | CX38: Gen (+) | CY38: Rec (-) Del (+) | CZ38: Load (-) Gen (+) | DA38: Setting | DC38: EPFR | DD38: Interchange | DG38: Frequency | DH38: Interchange | DI38: Imp(-) Exp (+) | DJ38: Load (-) | DK38: Load (-) Gen (+) | DL38: Gen (+) | DM38: Rec (-) Del (+) | DN38: Load (-) Gen (+) | DO38: Setting | DQ38: EPFR | DR38: Interchange
D39: Generation | E39: 20 to 52 sec | H39: Primary | I39: Delivery | K39: Primary | L39: Average | M39: Period | N39: Recovery | O39: Recovery | P39: Period | Q39: Recovery | AD39: Frequency | AE39: MW | AF39: Frequency | AG39: MW | AH39: Frequency | AI39: MW | AJ39: Frequency | AK39: MW | AL39: Frequency | AM39: MW | AO39: T | AP39: Hz | AQ39: MW | AR39: MW | AS39: MW | AT39: MW | AU39: MW | AV39: MW/0.1 Hz | AW39: MW | AX39: MW/0.1 Hz | AY39: MW | AZ39: MW | BB39: T | BC39: Hz | BD39: MW | BE39: MW | BF39: MW | BG39: MW | BH39: MW | BI39: MW/0.1 Hz | BJ39: MW | BK39: MW/0.1 Hz | BL39: MW | BM39: MW | BN39: MW | BP39: T | BQ39: Hz | BR39: MW | BS39: MW | BT39: MW | BU39: MW | BV39: MW | BW39: MW/0.1 Hz | BX39: MW | BY39: MW/0.1 Hz | BZ39: MW | CA39: MW | CB39: MW | CD39: T | CE39: Hz | CF39: MW | CG39: MW | CH39: MW | CI39: MW | CJ39: MW | CK39: MW/0.1 Hz | CL39: MW | CM39: MW/0.1 Hz | CN39: MW | CO39: MW | CP39: MW | CR39: T | CS39: Hz | CT39: MW | CU39: MW | CV39: MW | CW39: MW | CX39: MW | CY39: MW/0.1 Hz | CZ39: MW | DA39: MW/0.1 Hz | DB39: MW | DC39: MW | DD39: MW | DF39: T | DG39: Hz | DH39: MW | DI39: MW | DJ39: MW | DK39: MW | DL39: MW | DM39: MW/0.1 Hz | DN39: MW | DO39: MW/0.1 Hz | DP39: MW | DQ39: MW | DR39: MW
C40: Frequency | D40: Lost | E40: Average | F40: Average | H40: Frequency | I40: Frequency | K40: Frequency | L40: Ramp | M40: Target | N40: Period | O40: Period | P40: Ramp | Q40: Period
B41: T | C41: Hz | D41: MW | E41: Frequency | F41: MW | H41: Response | I41: Response | K41: Response | L41: MW/scan | M41: MW | N41: MW | O41: MW | P41: MW | Q41: MW | R41: =F74-F93 -> 633 | AA41: MW/0.1 Hz
Z42: =SUM(R42:Y42) -> 0
A43: T-72 sec | B43: =B44-TIME(0,0,$B$1) -> 40098.10155 | C43: =LOOKUP($B43,Data!$A$6:$A$1806,Data!$B$6:$B$1806) -> 60.02700043 | D43: =LOOKUP(B43,Data!$A$6:$A$1806,Data!C$6:C$1806) -> 633 | H43: =(IF((C43-L$2)>0,((C43-L$2-L$5)/((L$4*L$2)-L$5)*L$3*-1),((C43-L$2+L$5)/((L$4*L$2)-L$5)*L$3*-1))) -> -108.001709 | I43: =L$13*H43+(1-L$13)*I42 -> -108.001709 | Z43: =SUM(R43:Y43) -> 0 | AC43: =A43 -> T-72 sec | AN43: T-72 sec | AO43: =AO44-TIME(0,0,$B$1) -> 40098.10155 | AP43: =LOOKUP($AO43,Data!$A$6:$A$1806,Data!$B$6:$B$1806) -> 60.02700043 | AQ43: =LOOKUP($AO43,Data!$A$6:$A$1806,Data!$C$6:$C$1806) -> 633 | AR43: =LOOKUP($AO43,Data!$A$6:$A$1806,Data!$D$6:$D$1806) -> 0 | AS43: =IF($AS$1="+",LOOKUP($AO43,Data!$A$6:$A$1806,Data!$E$6:$E$1806)*-1,LOOKUP($AO43,Data!$A$6:$A$1806,Data!$E$6:$E$1806)) -> -157.6280823 | AT43: =LOOKUP($AO43,Data!$A$6:$A$1806,Data!$F$6:$F$1806) -> 0 | AU43: =LOOKUP($AO43,Data!$A$6:$A$1806,Data!$G$6:$G$1806) -> 0 | AV43: =LOOKUP($AO43,Data!$A$6:$A$1806,Data!$H$6:$H$1806) -> 0 | AW43: =LOOKUP($AO43,Data!$A$6:$A$1806,Data!$I$6:$I$1806) -> 0 | AX43: =LOOKUP($AO43,Data!$A$6:$A$1806,Data!$J$6:$J$1806) -> -653 | AY43: =LOOKUP($AO43,Data!$A$6:$A$1806,Data!$K$6:$K$1806) -> 7640.91 | AZ43: =(IF((AP43-$L$2)>0,((AP43-$L$2-$L$5)/(($L$4*$L$2)-$L$5)*$L$3*-1),((AP43-$L$2+$L$5)/(($L$4*$L$2)-$L$5)*$L$3*-1))) -> -108.001709 | BA43: T-72 sec | BB43: =BB44-TIME(0,0,$B$1) -> 40098.10155 | BO43: T-72 sec | BP43: =BP44-TIME(0,0,$B$1) -> 40098.10155 | CC43: T-72 sec | CD43: =CD44-TIME(0,0,$B$1) -> 40098.10155 | CQ43: T-72 sec | CR43: =CR44-TIME(0,0,$B$1) -> 40098.10155 | DE43: T-72 sec | DF43: =DF44-TIME(0,0,$B$1) -> 40098.10155
A44: T-70 sec | B44: 40098.10157 | C44: =LOOKUP(B44,Data!$A$6:$A$1806,Data!B$6:B$1806) -> 60.02600098 | D44: =LOOKUP(B44,Data!$A$6:$A$1806,Data!C$6:C$1806) -> 633 | H44: =(IF((C44-L$2)>0,((C44-L$2-L$5)/((L$4*L$2)-L$5)*L$3*-1),((C44-L$2+L$5)/((L$4*L$2)-L$5)*L$3*-1))) -> -104.0039062 | I44: -104.0039062 | Z44: 0 | AC44: =A44 -> T-70 sec | AN44: T-70 sec | AO44: 40098.10157 | AP44: =LOOKUP($AO44,Data!$A$6:$A$1806,Data!$B$6:$B$1806) -> 60.02600098 | AQ44: =LOOKUP($AO44,Data!$A$6:$A$1806,Data!$C$6:$C$1806) -> 633 | AR44: =LOOKUP($AO44,Data!$A$6:$A$1806,Data!$D$6:$D$1806) -> 0 | AS44: =IF($AS$1="+",LOOKUP($AO44,Data!$A$6:$A$1806,Data!$E$6:$E$1806)*-1,LOOKUP($AO44,Data!$A$6:$A$1806,Data!$E$6:$E$1806)) -> -155.5317078 | AT44: =LOOKUP($AO44,Data!$A$6:$A$1806,Data!$F$6:$F$1806) -> 0 | AU44: =LOOKUP($AO44,Data!$A$6:$A$1806,Data!$G$6:$G$1806) -> 0 | AV44: =LOOKUP($AO44,Data!$A$6:$A$1806,Data!$H$6:$H$1806) -> 0 | AW44: =LOOKUP($AO44,Data!$A$6:$A$1806,Data!$I$6:$I$1806) -> 0 | AX44: =LOOKUP($AO44,Data!$A$6:$A$1806,Data!$J$6:$J$1806) -> -653 | AY44: =LOOKUP($AO44,Data!$A$6:$A$1806,Data!$K$6:$K$1806) -> 7641.24 | AZ44: =(IF((AP44-$L$2)>0,((AP44-$L$2-$L$5)/(($L$4*$L$2)-$L$5)*$L$3*-1),((AP44-$L$2+$L$5)/(($L$4*$L$2)-$L$5)*$L$3*-1))) -> -104.0039062 | BA44: T-70 sec | BB44: 40098.10157 | BO44: T-70 sec | BP44: 40098.10157 | CC44: T-70 sec | CD44: 40098.10157 | CQ44: T-70 sec | CR44: 40098.10157 | DE44: T-70 sec | DF44: 40098.10157
A45: T-68 sec | B45: 40098.1016 | C45: =LOOKUP(B45,Data!$A$6:$A$1806,Data!B$6:B$1806) -> 60.02600098 | D45: =LOOKUP(B45,Data!$A$6:$A$1806,Data!C$6:C$1806) -> 633 | H45: -104.0039062 | I45: -104.0039062 | Z45: 0 | AC45: T-68 sec | AN45: T-68 sec | AO45: 40098.1016 | AP45: =LOOKUP($AO45,Data!$A$6:$A$1806,Data!$B$6:$B$1806) -> 60.02600098 | AQ45: =LOOKUP($AO45,Data!$A$6:$A$1806,Data!$C$6:$C$1806) -> 633 | AR45: =LOOKUP($AO45,Data!$A$6:$A$1806,Data!$D$6:$D$1806) -> 0 | AS45: =IF($AS$1="+",LOOKUP($AO45,Data!$A$6:$A$1806,Data!$E$6:$E$1806)*-1,LOOKUP($AO45,Data!$A$6:$A$1806,Data!$E$6:$E$1806)) -> -155.5317078 | AT45: =LOOKUP($AO45,Data!$A$6:$A$1806,Data!$F$6:$F$1806) -> 0 | AU45: =LOOKUP($AO45,Data!$A$6:$A$1806,Data!$G$6:$G$1806) -> 0 | AV45: =LOOKUP($AO45,Data!$A$6:$A$1806,Data!$H$6:$H$1806) -> 0 | AW45: =LOOKUP($AO45,Data!$A$6:$A$1806,Data!$I$6:$I$1806) -> 0 | AX45: =LOOKUP($AO45,Data!$A$6:$A$1806,Data!$J$6:$J$1806) -> -653 | AY45: =LOOKUP($AO45,Data!$A$6:$A$1806,Data!$K$6:$K$1806) -> 7641.57 | AZ45: -104.0039062 | BA45: T-68 sec | BB45: 40098.1016 | BO45: T-68 sec | BP45: 40098.1016 | CC45: T-68 sec | CD45: 40098.1016 | CQ45: T-68 sec | CR45: 40098.1016 | DE45: T-68 sec | DF45: 40098.1016
A46: T-66 sec | B46: =B47-TIME(0,0,$B$1) -> 40098.10162 | C46: =LOOKUP(B46,Data!$A$6:$A$1806,Data!B$6:B$1806) -> 60.02199936 | D46: =LOOKUP(B46,Data!$A$6:$A$1806,Data!C$6:C$1806) -> 633 | H46: -87.99743652 | I46: -87.99743652 | Z46: 0 | AC46: T-66 sec | AN46: T-66 sec | AO46: 40098.10162 | AP46: =LOOKUP($AO46,Data!$A$6:$A$1806,Data!$B$6:$B$1806) -> 60.02199936 | AQ46: =LOOKUP($AO46,Data!$A$6:$A$1806,Data!$C$6:$C$1806) -> 633 | AR46: =LOOKUP($AO46,Data!$A$6:$A$1806,Data!$D$6:$D$1806) -> 0 | AS46: =IF($AS$1="+",LOOKUP($AO46,Data!$A$6:$A$1806,Data!$E$6:$E$1806)*-1,LOOKUP($AO46,Data!$A$6:$A$1806,Data!$E$6:$E$1806)) -> -155.5317078 | AT46: =LOOKUP($AO46,Data!$A$6:$A$1806,Data!$F$6:$F$1806) -> 0 | AU46: =LOOKUP($AO46,Data!$A$6:$A$1806,Data!$G$6:$G$1806) -> 0 | AV46: =LOOKUP($AO46,Data!$A$6:$A$1806,Data!$H$6:$H$1806) -> 0 | AW46: =LOOKUP($AO46,Data!$A$6:$A$1806,Data!$I$6:$I$1806) -> 0 | AX46: =LOOKUP($AO46,Data!$A$6:$A$1806,Data!$J$6:$J$1806) -> -653 | AY46: =LOOKUP($AO46,Data!$A$6:$A$1806,Data!$K$6:$K$1806) -> 7641.9 | AZ46: -87.99743652 | BA46: T-66 sec | BB46: 40098.10162 | BO46: T-66 sec | BP46: 40098.10162 | CC46: T-66 sec | CD46: 40098.10162 | CQ46: T-66 sec | CR46: 40098.10162 | DE46: T-66 sec | DF46: 40098.10162
A47: T-64 sec | B47: 40098.10164 | C47: =LOOKUP(B47,Data!$A$6:$A$1806,Data!B$6:B$1806) -> 60.01900101 | D47: =LOOKUP(B47,Data!$A$6:$A$1806,Data!C$6:C$1806) -> 633 | H47: -76.00402832 | I47: -76.00402832 | Z47: 0 | AC47: T-64 sec | AN47: T-64 sec | AO47: 40098.10164 | AP47: =LOOKUP($AO47,Data!$A$6:$A$1806,Data!$B$6:$B$1806) -> 60.01900101 | AQ47: =LOOKUP($AO47,Data!$A$6:$A$1806,Data!$C$6:$C$1806) -> 633 | AR47: =LOOKUP($AO47,Data!$A$6:$A$1806,Data!$D$6:$D$1806) -> 0 | AS47: =IF($AS$1="+",LOOKUP($AO47,Data!$A$6:$A$1806,Data!$E$6:$E$1806)*-1,LOOKUP($AO47,Data!$A$6:$A$1806,Data!$E$6:$E$1806)) -> -155.5317078 | AT47: =LOOKUP($AO47,Data!$A$6:$A$1806,Data!$F$6:$F$1806) -> 0 | AU47: =LOOKUP($AO47,Data!$A$6:$A$1806,Data!$G$6:$G$1806) -> 0 | AV47: =LOOKUP($AO47,Data!$A$6:$A$1806,Data!$H$6:$H$1806) -> 0 | AW47: =LOOKUP($AO47,Data!$A$6:$A$1806,Data!$I$6:$I$1806) -> 0 | AX47: =LOOKUP($AO47,Data!$A$6:$A$1806,Data!$J$6:$J$1806) -> -653 | AY47: =LOOKUP($AO47,Data!$A$6:$A$1806,Data!$K$6:$K$1806) -> 7642.23 | AZ47: -76.00402832 | BA47: T-64 sec | BB47: 40098.10164 | BO47: T-64 sec | BP47: 40098.10164 | CC47: T-64 sec | CD47: 40098.10164 | CQ47: T-64 sec | CR47: 40098.10164 | DE47: T-64 sec | DF47: 40098.10164
A48: T-62 sec | B48: 40098.10167 | C48: =LOOKUP(B48,Data!$A$6:$A$1806,Data!B$6:B$1806) -> 60.01699829 | D48: =LOOKUP(B48,Data!$A$6:$A$1806,Data!C$6:C$1806) -> 633 | H48: -67.99316406 | I48: -67.99316406 | Z48: 0 | AC48: T-62 sec | AN48: T-62 sec | AO48: 40098.10167 | AP48: =LOOKUP($AO48,Data!$A$6:$A$1806,Data!$B$6:$B$1806) -> 60.01699829 | AQ48: =LOOKUP($AO48,Data!$A$6:$A$1806,Data!$C$6:$C$1806) -> 633 | AR48: =LOOKUP($AO48,Data!$A$6:$A$1806,Data!$D$6:$D$1806) -> 0 | AS48: =IF($AS$1="+",LOOKUP($AO48,Data!$A$6:$A$1806,Data!$E$6:$E$1806)*-1,LOOKUP($AO48,Data!$A$6:$A$1806,Data!$E$6:$E$1806)) -> -155.5317078 | AT48: =LOOKUP($AO48,Data!$A$6:$A$1806,Data!$F$6:$F$1806) -> 0 | AU48: =LOOKUP($AO48,Data!$A$6:$A$1806,Data!$G$6:$G$1806) -> 0 | AV48: =LOOKUP($AO48,Data!$A$6:$A$1806,Data!$H$6:$H$1806) -> 0 | AW48: =LOOKUP($AO48,Data!$A$6:$A$1806,Data!$I$6:$I$1806) -> 0 | AX48: =LOOKUP($AO48,Data!$A$6:$A$1806,Data!$J$6:$J$1806) -> -653 | AY48: =LOOKUP($AO48,Data!$A$6:$A$1806,Data!$K$6:$K$1806) -> 7642.56 | AZ48: -67.99316406 | BA48: T-62 sec | BB48: 40098.10167 | BO48: T-62 sec | BP48: 40098.10167 | CC48: T-62 sec | CD48: 40098.10167 | CQ48: T-62 sec | CR48: 40098.10167 | DE48: T-62 sec | DF48: 40098.10167
A49: T-60 sec | B49: 40098.10169 | C49: =LOOKUP(B49,Data!$A$6:$A$1806,Data!B$6:B$1806) -> 60.01900101 | D49: =LOOKUP(B49,Data!$A$6:$A$1806,Data!C$6:C$1806) -> 633 | H49: -76.00402832 | I49: -76.00402832 | L49: =(D$78-D$49-I$78+I$49)/29 -> 2.758683829 | M49: =M50-L49-(I50-I49) -> 633 | Z49: 0 | AC49: T-60 sec | AN49: T-60 sec | AO49: 40098.10169 | AP49: =LOOKUP($AO49,Data!$A$6:$A$1806,Data!$B$6:$B$1806) -> 60.01900101 | AQ49: =LOOKUP($AO49,Data!$A$6:$A$1806,Data!$C$6:$C$1806) -> 633 | AR49: =LOOKUP($AO49,Data!$A$6:$A$1806,Data!$D$6:$D$1806) -> 0 | AS49: =IF($AS$1="+",LOOKUP($AO49,Data!$A$6:$A$1806,Data!$E$6:$E$1806)*-1,LOOKUP($AO49,Data!$A$6:$A$1806,Data!$E$6:$E$1806)) -> -160.4472351 | AT49: =LOOKUP($AO49,Data!$A$6:$A$1806,Data!$F$6:$F$1806) -> 0 | AU49: =LOOKUP($AO49,Data!$A$6:$A$1806,Data!$G$6:$G$1806) -> 0 | AV49: =LOOKUP($AO49,Data!$A$6:$A$1806,Data!$H$6:$H$1806) -> 0 | AW49: =LOOKUP($AO49,Data!$A$6:$A$1806,Data!$I$6:$I$1806) -> 0 | AX49: =LOOKUP($AO49,Data!$A$6:$A$1806,Data!$J$6:$J$1806) -> -653 | AY49: =LOOKUP($AO49,Data!$A$6:$A$1806,Data!$K$6:$K$1806) -> 7642.89 | AZ49: -76.00402832 | BA49: T-60 sec | BB49: 40098.10169 | BO49: T-60 sec | BP49: 40098.10169 | CC49: T-60 sec | CD49: 40098.10169 | CQ49: T-60 sec | CR49: 40098.10169 | DE49: T-60 sec | DF49: 40098.10169
A50: T-58 sec | B50: 40098.10171 | C50: =LOOKUP(B50,Data!$A$6:$A$1806,Data!B$6:B$1806) -> 60.02000046 | D50: =LOOKUP(B50,Data!$A$6:$A$1806,Data!C$6:C$1806) -> 633 | H50: -80.00183105 | I50: -80.00183105 | L50: 2.758683829 | M50: =M51-L50-(I51-I50) -> 631.7608811 | Z50: 0 | AC50: T-58 sec | AN50: T-58 sec | AO50: 40098.10171 | AP50: =LOOKUP($AO50,Data!$A$6:$A$1806,Data!$B$6:$B$1806) -> 60.02000046 | AQ50: =LOOKUP($AO50,Data!$A$6:$A$1806,Data!$C$6:$C$1806) -> 633 | AR50: =LOOKUP($AO50,Data!$A$6:$A$1806,Data!$D$6:$D$1806) -> 0 | AS50: =IF($AS$1="+",LOOKUP($AO50,Data!$A$6:$A$1806,Data!$E$6:$E$1806)*-1,LOOKUP($AO50,Data!$A$6:$A$1806,Data!$E$6:$E$1806)) -> -160.4472351 | AT50: =LOOKUP($AO50,Data!$A$6:$A$1806,Data!$F$6:$F$1806) -> 0 | AU50: =LOOKUP($AO50,Data!$A$6:$A$1806,Data!$G$6:$G$1806) -> 0 | AV50: =LOOKUP($AO50,Data!$A$6:$A$1806,Data!$H$6:$H$1806) -> 0 | AW50: =LOOKUP($AO50,Data!$A$6:$A$1806,Data!$I$6:$I$1806) -> 0 | AX50: =LOOKUP($AO50,Data!$A$6:$A$1806,Data!$J$6:$J$1806) -> -653 | AY50: =LOOKUP($AO50,Data!$A$6:$A$1806,Data!$K$6:$K$1806) -> 7643.22 | AZ50: -80.00183105 | BA50: T-58 sec | BB50: 40098.10171 | BO50: T-58 sec | BP50: 40098.10171 | CC50: T-58 sec | CD50: 40098.10171 | CQ50: T-58 sec | CR50: 40098.10171 | DE50: T-58 sec | DF50: 40098.10171
A51: T-56 sec | B51: 40098.10174 | C51: =LOOKUP(B51,Data!$A$6:$A$1806,Data!B$6:B$1806) -> 60.01900101 | D51: =LOOKUP(B51,Data!$A$6:$A$1806,Data!C$6:C$1806) -> 633 | H51: -76.00402832 | I51: -76.00402832 | L51: 2.758683829 | M51: 638.5173677 | Z51: 0 | AC51: T-56 sec | AN51: T-56 sec | AO51: 40098.10174 | AP51: =LOOKUP($AO51,Data!$A$6:$A$1806,Data!$B$6:$B$1806) -> 60.01900101 | AQ51: =LOOKUP($AO51,Data!$A$6:$A$1806,Data!$C$6:$C$1806) -> 633 | AR51: =LOOKUP($AO51,Data!$A$6:$A$1806,Data!$D$6:$D$1806) -> 0 | AS51: =IF($AS$1="+",LOOKUP($AO51,Data!$A$6:$A$1806,Data!$E$6:$E$1806)*-1,LOOKUP($AO51,Data!$A$6:$A$1806,Data!$E$6:$E$1806)) -> -160.4472351 | AT51: =LOOKUP($AO51,Data!$A$6:$A$1806,Data!$F$6:$F$1806) -> 0 | AU51: =LOOKUP($AO51,Data!$A$6:$A$1806,Data!$G$6:$G$1806) -> 0 | AV51: =LOOKUP($AO51,Data!$A$6:$A$1806,Data!$H$6:$H$1806) -> 0 | AW51: =LOOKUP($AO51,Data!$A$6:$A$1806,Data!$I$6:$I$1806) -> 0 | AX51: =LOOKUP($AO51,Data!$A$6:$A$1806,Data!$J$6:$J$1806) -> -653 | AY51: =LOOKUP($AO51,Data!$A$6:$A$1806,Data!$K$6:$K$1806) -> 7643.55 | AZ51: -76.00402832 | BA51: T-56 sec | BB51: 40098.10174 | BO51: T-56 sec | BP51: 40098.10174 | CC51: T-56 sec | CD51: 40098.10174 | CQ51: T-56 sec | CR51: 40098.10174 | DE51: T-56 sec | DF51: 40098.10174
A52: T-54 sec | B52: 40098.10176 | C52: =LOOKUP(B52,Data!$A$6:$A$1806,Data!B$6:B$1806) -> 60.02099991 | D52: =LOOKUP(B52,Data!$A$6:$A$1806,Data!C$6:C$1806) -> 633 | H52: -83.99963379 | I52: -83.99963379 | L52: 2.758683829 | M52: 633.280446 | Z52: 0 | AC52: T-54 sec | AN52: T-54 sec | AO52: 40098.10176 | AP52: =LOOKUP($AO52,Data!$A$6:$A$1806,Data!$B$6:$B$1806) -> 60.02099991 | AQ52: =LOOKUP($AO52,Data!$A$6:$A$1806,Data!$C$6:$C$1806) -> 633 | AR52: =LOOKUP($AO52,Data!$A$6:$A$1806,Data!$D$6:$D$1806) -> 0 | AS52: =IF($AS$1="+",LOOKUP($AO52,Data!$A$6:$A$1806,Data!$E$6:$E$1806)*-1,LOOKUP($AO52,Data!$A$6:$A$1806,Data!$E$6:$E$1806)) -> -160.4472351 | AT52: =LOOKUP($AO52,Data!$A$6:$A$1806,Data!$F$6:$F$1806) -> 0 | AU52: =LOOKUP($AO52,Data!$A$6:$A$1806,Data!$G$6:$G$1806) -> 0 | AV52: =LOOKUP($AO52,Data!$A$6:$A$1806,Data!$H$6:$H$1806) -> 0 | AW52: =LOOKUP($AO52,Data!$A$6:$A$1806,Data!$I$6:$I$1806) -> 0 | AX52: =LOOKUP($AO52,Data!$A$6:$A$1806,Data!$J$6:$J$1806) -> -653 | AY52: =LOOKUP($AO52,Data!$A$6:$A$1806,Data!$K$6:$K$1806) -> 7643.88 | AZ52: -83.99963379 | BA52: T-54 sec | BB52: 40098.10176 | BO52: T-54 sec | BP52: 40098.10176 | CC52: T-54 sec | CD52: 40098.10176 | CQ52: T-54 sec | CR52: 40098.10176 | DE52: T-54 sec | DF52: 40098.10176
A53: T-52 sec | B53: 40098.10178 | C53: =LOOKUP(B53,Data!$A$6:$A$1806,Data!B$6:B$1806) -> 60.02099991 | D53: =LOOKUP(B53,Data!$A$6:$A$1806,Data!C$6:C$1806) -> 633 | H53: -83.99963379 | I53: -83.99963379 | L53: 2.758683829 | M53: 636.0391298 | Z53: 0 | AC53: T-52 sec | AN53: T-52 sec | AO53: 40098.10178 | AP53: =LOOKUP($AO53,Data!$A$6:$A$1806,Data!$B$6:$B$1806) -> 60.02099991 | AQ53: =LOOKUP($AO53,Data!$A$6:$A$1806,Data!$C$6:$C$1806) -> 633 | AR53: =LOOKUP($AO53,Data!$A$6:$A$1806,Data!$D$6:$D$1806) -> 0 | AS53: =IF($AS$1="+",LOOKUP($AO53,Data!$A$6:$A$1806,Data!$E$6:$E$1806)*-1,LOOKUP($AO53,Data!$A$6:$A$1806,Data!$E$6:$E$1806)) -> -160.4472351 | AT53: =LOOKUP($AO53,Data!$A$6:$A$1806,Data!$F$6:$F$1806) -> 0 | AU53: =LOOKUP($AO53,Data!$A$6:$A$1806,Data!$G$6:$G$1806) -> 0 | AV53: =LOOKUP($AO53,Data!$A$6:$A$1806,Data!$H$6:$H$1806) -> 0 | AW53: =LOOKUP($AO53,Data!$A$6:$A$1806,Data!$I$6:$I$1806) -> 0 | AX53: =LOOKUP($AO53,Data!$A$6:$A$1806,Data!$J$6:$J$1806) -> -653 | AY53: =LOOKUP($AO53,Data!$A$6:$A$1806,Data!$K$6:$K$1806) -> 7644.21 | AZ53: -83.99963379 | BA53: T-52 sec | BB53: 40098.10178 | BO53: T-52 sec | BP53: 40098.10178 | CC53: T-52 sec | CD53: 40098.10178 | CQ53: T-52 sec | CR53: 40098.10178 | DE53: T-52 sec | DF53: 40098.10178
A54: T-50 sec | B54: 40098.10181 | C54: =LOOKUP(B54,Data!$A$6:$A$1806,Data!B$6:B$1806) -> 60.02099991 | D54: =LOOKUP(B54,Data!$A$6:$A$1806,Data!C$6:C$1806) -> 633 | H54: -83.99963379 | I54: -83.99963379 | L54: 2.758683829 | M54: 638.7978137 | Z54: 0 | AC54: T-50 sec | AN54: T-50 sec | AO54: 40098.10181 | AP54: =LOOKUP($AO54,Data!$A$6:$A$1806,Data!$B$6:$B$1806) -> 60.02099991 | AQ54: =LOOKUP($AO54,Data!$A$6:$A$1806,Data!$C$6:$C$1806) -> 633 | AR54: =LOOKUP($AO54,Data!$A$6:$A$1806,Data!$D$6:$D$1806) -> 0 | AS54: =IF($AS$1="+",LOOKUP($AO54,Data!$A$6:$A$1806,Data!$E$6:$E$1806)*-1,LOOKUP($AO54,Data!$A$6:$A$1806,Data!$E$6:$E$1806)) -> -163.9586029 | AT54: =LOOKUP($AO54,Data!$A$6:$A$1806,Data!$F$6:$F$1806) -> 0 | AU54: =LOOKUP($AO54,Data!$A$6:$A$1806,Data!$G$6:$G$1806) -> 0 | AV54: =LOOKUP($AO54,Data!$A$6:$A$1806,Data!$H$6:$H$1806) -> 0 | AW54: =LOOKUP($AO54,Data!$A$6:$A$1806,Data!$I$6:$I$1806) -> 0 | AX54: =LOOKUP($AO54,Data!$A$6:$A$1806,Data!$J$6:$J$1806) -> -653 | AY54: =LOOKUP($AO54,Data!$A$6:$A$1806,Data!$K$6:$K$1806) -> 7644.54 | AZ54: -83.99963379 | BA54: T-50 sec | BB54: 40098.10181 | BO54: T-50 sec | BP54: 40098.10181 | CC54: T-50 sec | CD54: 40098.10181 | CQ54: T-50 sec | CR54: 40098.10181 | DE54: T-50 sec | DF54: 40098.10181
A55: T-48 sec | B55: 40098.10183 | C55: =LOOKUP(B55,Data!$A$6:$A$1806,Data!B$6:B$1806) -> 60.01900101 | D55: =LOOKUP(B55,Data!$A$6:$A$1806,Data!C$6:C$1806) -> 633 | H55: -76.00402832 | I55: -76.00402832 | L55: 2.758683829 | M55: 649.552103 | Z55: 0 | AC55: T-48 sec | AN55: T-48 sec | AO55: 40098.10183 | AP55: =LOOKUP($AO55,Data!$A$6:$A$1806,Data!$B$6:$B$1806) -> 60.01900101 | AQ55: =LOOKUP($AO55,Data!$A$6:$A$1806,Data!$C$6:$C$1806) -> 633 | AR55: =LOOKUP($AO55,Data!$A$6:$A$1806,Data!$D$6:$D$1806) -> 0 | AS55: =IF($AS$1="+",LOOKUP($AO55,Data!$A$6:$A$1806,Data!$E$6:$E$1806)*-1,LOOKUP($AO55,Data!$A$6:$A$1806,Data!$E$6:$E$1806)) -> -163.9586029 | AT55: =LOOKUP($AO55,Data!$A$6:$A$1806,Data!$F$6:$F$1806) -> 0 | AU55: =LOOKUP($AO55,Data!$A$6:$A$1806,Data!$G$6:$G$1806) -> 0 | AV55: =LOOKUP($AO55,Data!$A$6:$A$1806,Data!$H$6:$H$1806) -> 0 | AW55: =LOOKUP($AO55,Data!$A$6:$A$1806,Data!$I$6:$I$1806) -> 0 | AX55: =LOOKUP($AO55,Data!$A$6:$A$1806,Data!$J$6:$J$1806) -> -653 | AY55: =LOOKUP($AO55,Data!$A$6:$A$1806,Data!$K$6:$K$1806) -> 7644.87 | AZ55: -76.00402832 | BA55: T-48 sec | BB55: 40098.10183 | BO55: T-48 sec | BP55: 40098.10183 | CC55: T-48 sec | CD55: 40098.10183 | CQ55: T-48 sec | CR55: 40098.10183 | DE55: T-48 sec | DF55: 40098.10183
A56: T-46 sec | B56: 40098.10185 | C56: =LOOKUP(B56,Data!$A$6:$A$1806,Data!B$6:B$1806) -> 60.01800156 | D56: =LOOKUP(B56,Data!$A$6:$A$1806,Data!C$6:C$1806) -> 633 | H56: -72.00622559 | I56: -72.00622559 | L56: 2.758683829 | M56: 656.3085895 | Z56: 0 | AC56: T-46 sec | AN56: T-46 sec | AO56: 40098.10185 | AP56: =LOOKUP($AO56,Data!$A$6:$A$1806,Data!$B$6:$B$1806) -> 60.01800156 | AQ56: =LOOKUP($AO56,Data!$A$6:$A$1806,Data!$C$6:$C$1806) -> 633 | AR56: =LOOKUP($AO56,Data!$A$6:$A$1806,Data!$D$6:$D$1806) -> 0 | AS56: =IF($AS$1="+",LOOKUP($AO56,Data!$A$6:$A$1806,Data!$E$6:$E$1806)*-1,LOOKUP($AO56,Data!$A$6:$A$1806,Data!$E$6:$E$1806)) -> -163.9586029 | AT56: =LOOKUP($AO56,Data!$A$6:$A$1806,Data!$F$6:$F$1806) -> 0 | AU56: =LOOKUP($AO56,Data!$A$6:$A$1806,Data!$G$6:$G$1806) -> 0 | AV56: =LOOKUP($AO56,Data!$A$6:$A$1806,Data!$H$6:$H$1806) -> 0 | AW56: =LOOKUP($AO56,Data!$A$6:$A$1806,Data!$I$6:$I$1806) -> 0 | AX56: =LOOKUP($AO56,Data!$A$6:$A$1806,Data!$J$6:$J$1806) -> -653 | AY56: =LOOKUP($AO56,Data!$A$6:$A$1806,Data!$K$6:$K$1806) -> 7645.2 | AZ56: -72.00622559 | BA56: T-46 sec | BB56: 40098.10185 | BO56: T-46 sec | BP56: 40098.10185 | CC56: T-46 sec | CD56: 40098.10185 | CQ56: T-46 sec | CR56: 40098.10185 | DE56: T-46 sec | DF56: 40098.10185
A57: T-44 sec | B57: 40098.10188 | C57: =LOOKUP(B57,Data!$A$6:$A$1806,Data!B$6:B$1806) -> 60.02199936 | D57: =LOOKUP(B57,Data!$A$6:$A$1806,Data!C$6:C$1806) -> 633 | H57: -87.99743652 | I57: -87.99743652 | L57: 2.758683829 | M57: 643.0760624 | Z57: 0 | AC57: T-44 sec | AN57: T-44 sec | AO57: 40098.10188 | AP57: =LOOKUP($AO57,Data!$A$6:$A$1806,Data!$B$6:$B$1806) -> 60.02199936 | AQ57: =LOOKUP($AO57,Data!$A$6:$A$1806,Data!$C$6:$C$1806) -> 633 | AR57: =LOOKUP($AO57,Data!$A$6:$A$1806,Data!$D$6:$D$1806) -> 0 | AS57: =IF($AS$1="+",LOOKUP($AO57,Data!$A$6:$A$1806,Data!$E$6:$E$1806)*-1,LOOKUP($AO57,Data!$A$6:$A$1806,Data!$E$6:$E$1806)) -> -163.9586029 | AT57: =LOOKUP($AO57,Data!$A$6:$A$1806,Data!$F$6:$F$1806) -> 0 | AU57: =LOOKUP($AO57,Data!$A$6:$A$1806,Data!$G$6:$G$1806) -> 0 | AV57: =LOOKUP($AO57,Data!$A$6:$A$1806,Data!$H$6:$H$1806) -> 0 | AW57: =LOOKUP($AO57,Data!$A$6:$A$1806,Data!$I$6:$I$1806) -> 0 | AX57: =LOOKUP($AO57,Data!$A$6:$A$1806,Data!$J$6:$J$1806) -> -653 | AY57: =LOOKUP($AO57,Data!$A$6:$A$1806,Data!$K$6:$K$1806) -> 7645.53 | AZ57: -87.99743652 | BA57: T-44 sec | BB57: 40098.10188 | BO57: T-44 sec | BP57: 40098.10188 | CC57: T-44 sec | CD57: 40098.10188 | CQ57: T-44 sec | CR57: 40098.10188 | DE57: T-44 sec | DF57: 40098.10188
A58: T-42 sec | B58: 40098.1019 | C58: =LOOKUP(B58,Data!$A$6:$A$1806,Data!B$6:B$1806) -> 60.03099823 | D58: =LOOKUP(B58,Data!$A$6:$A$1806,Data!C$6:C$1806) -> 633 | H58: -123.9929199 | I58: -123.9929199 | L58: 2.758683829 | M58: 609.8392629 | Z58: 0 | AC58: T-42 sec | AN58: T-42 sec | AO58: 40098.1019 | AP58: =LOOKUP($AO58,Data!$A$6:$A$1806,Data!$B$6:$B$1806) -> 60.03099823 | AQ58: =LOOKUP($AO58,Data!$A$6:$A$1806,Data!$C$6:$C$1806) -> 633 | AR58: =LOOKUP($AO58,Data!$A$6:$A$1806,Data!$D$6:$D$1806) -> 0 | AS58: =IF($AS$1="+",LOOKUP($AO58,Data!$A$6:$A$1806,Data!$E$6:$E$1806)*-1,LOOKUP($AO58,Data!$A$6:$A$1806,Data!$E$6:$E$1806)) -> -163.9586029 | AT58: =LOOKUP($AO58,Data!$A$6:$A$1806,Data!$F$6:$F$1806) -> 0 | AU58: =LOOKUP($AO58,Data!$A$6:$A$1806,Data!$G$6:$G$1806) -> 0 | AV58: =LOOKUP($AO58,Data!$A$6:$A$1806,Data!$H$6:$H$1806) -> 0 | AW58: =LOOKUP($AO58,Data!$A$6:$A$1806,Data!$I$6:$I$1806) -> 0 | AX58: =LOOKUP($AO58,Data!$A$6:$A$1806,Data!$J$6:$J$1806) -> -653 | AY58: =LOOKUP($AO58,Data!$A$6:$A$1806,Data!$K$6:$K$1806) -> 7645.86 | AZ58: -123.9929199 | BA58: T-42 sec | BB58: 40098.1019 | BO58: T-42 sec | BP58: 40098.1019 | CC58: T-42 sec | CD58: 40098.1019 | CQ58: T-42 sec | CR58: 40098.1019 | DE58: T-42 sec | DF58: 40098.1019
A59: T-40 sec | B59: 40098.10192 | C59: =LOOKUP(B59,Data!$A$6:$A$1806,Data!B$6:B$1806) -> 60.03699875 | D59: =LOOKUP(B59,Data!$A$6:$A$1806,Data!C$6:C$1806) -> 633 | H59: -147.9949951 | I59: -147.9949951 | L59: 2.758683829 | M59: 588.5958715 | Z59: 0 | AC59: T-40 sec | AN59: T-40 sec | AO59: 40098.10192 | AP59: =LOOKUP($AO59,Data!$A$6:$A$1806,Data!$B$6:$B$1806) -> 60.03699875 | AQ59: =LOOKUP($AO59,Data!$A$6:$A$1806,Data!$C$6:$C$1806) -> 633 | AR59: =LOOKUP($AO59,Data!$A$6:$A$1806,Data!$D$6:$D$1806) -> 0 | AS59: =IF($AS$1="+",LOOKUP($AO59,Data!$A$6:$A$1806,Data!$E$6:$E$1806)*-1,LOOKUP($AO59,Data!$A$6:$A$1806,Data!$E$6:$E$1806)) -> -166.0724487 | AT59: =LOOKUP($AO59,Data!$A$6:$A$1806,Data!$F$6:$F$1806) -> 0 | AU59: =LOOKUP($AO59,Data!$A$6:$A$1806,Data!$G$6:$G$1806) -> 0 | AV59: =LOOKUP($AO59,Data!$A$6:$A$1806,Data!$H$6:$H$1806) -> 0 | AW59: =LOOKUP($AO59,Data!$A$6:$A$1806,Data!$I$6:$I$1806) -> 0 | AX59: =LOOKUP($AO59,Data!$A$6:$A$1806,Data!$J$6:$J$1806) -> -653 | AY59: =LOOKUP($AO59,Data!$A$6:$A$1806,Data!$K$6:$K$1806) -> 7646.19 | AZ59: -147.9949951 | BA59: T-40 sec | BB59: 40098.10192 | BO59: T-40 sec | BP59: 40098.10192 | CC59: T-40 sec | CD59: 40098.10192 | CQ59: T-40 sec | CR59: 40098.10192 | DE59: T-40 sec | DF59: 40098.10192
A60: T-38 sec | B60: 40098.10194 | C60: =LOOKUP(B60,Data!$A$6:$A$1806,Data!B$6:B$1806) -> 60.03699875 | D60: =LOOKUP(B60,Data!$A$6:$A$1806,Data!C$6:C$1806) -> 633 | H60: -147.9949951 | I60: -147.9949951 | L60: 2.758683829 | M60: 591.3545553 | Z60: 0 | AC60: T-38 sec | AN60: T-38 sec | AO60: 40098.10194 | AP60: =LOOKUP($AO60,Data!$A$6:$A$1806,Data!$B$6:$B$1806) -> 60.03699875 | AQ60: =LOOKUP($AO60,Data!$A$6:$A$1806,Data!$C$6:$C$1806) -> 633 | AR60: =LOOKUP($AO60,Data!$A$6:$A$1806,Data!$D$6:$D$1806) -> 0 | AS60: =IF($AS$1="+",LOOKUP($AO60,Data!$A$6:$A$1806,Data!$E$6:$E$1806)*-1,LOOKUP($AO60,Data!$A$6:$A$1806,Data!$E$6:$E$1806)) -> -166.0724487 | AT60: =LOOKUP($AO60,Data!$A$6:$A$1806,Data!$F$6:$F$1806) -> 0 | AU60: =LOOKUP($AO60,Data!$A$6:$A$1806,Data!$G$6:$G$1806) -> 0 | AV60: =LOOKUP($AO60,Data!$A$6:$A$1806,Data!$H$6:$H$1806) -> 0 | AW60: =LOOKUP($AO60,Data!$A$6:$A$1806,Data!$I$6:$I$1806) -> 0 | AX60: =LOOKUP($AO60,Data!$A$6:$A$1806,Data!$J$6:$J$1806) -> -653 | AY60: =LOOKUP($AO60,Data!$A$6:$A$1806,Data!$K$6:$K$1806) -> 7646.52 | AZ60: -147.9949951 | BA60: T-38 sec | BB60: 40098.10194 | BO60: T-38 sec | BP60: 40098.10194 | CC60: T-38 sec | CD60: 40098.10194 | CQ60: T-38 sec | CR60: 40098.10194 | DE60: T-38 sec | DF60: 40098.10194
A61: T-36 sec | B61: 40098.10197 | C61: =LOOKUP(B61,Data!$A$6:$A$1806,Data!B$6:B$1806) -> 60.0359993 | D61: =LOOKUP(B61,Data!$A$6:$A$1806,Data!C$6:C$1806) -> 633 | H61: -143.9971924 | I61: -143.9971924 | L61: 2.758683829 | M61: 598.1110419 | Z61: 0 | AC61: T-36 sec | AN61: T-36 sec | AO61: 40098.10197 | AP61: =LOOKUP($AO61,Data!$A$6:$A$1806,Data!$B$6:$B$1806) -> 60.0359993 | AQ61: =LOOKUP($AO61,Data!$A$6:$A$1806,Data!$C$6:$C$1806) -> 633 | AR61: =LOOKUP($AO61,Data!$A$6:$A$1806,Data!$D$6:$D$1806) -> 0 | AS61: =IF($AS$1="+",LOOKUP($AO61,Data!$A$6:$A$1806,Data!$E$6:$E$1806)*-1,LOOKUP($AO61,Data!$A$6:$A$1806,Data!$E$6:$E$1806)) -> -166.0724487 | AT61: =LOOKUP($AO61,Data!$A$6:$A$1806,Data!$F$6:$F$1806) -> 0 | AU61: =LOOKUP($AO61,Data!$A$6:$A$1806,Data!$G$6:$G$1806) -> 0 | AV61: =LOOKUP($AO61,Data!$A$6:$A$1806,Data!$H$6:$H$1806) -> 0 | AW61: =LOOKUP($AO61,Data!$A$6:$A$1806,Data!$I$6:$I$1806) -> 0 | AX61: =LOOKUP($AO61,Data!$A$6:$A$1806,Data!$J$6:$J$1806) -> -653 | AY61: =LOOKUP($AO61,Data!$A$6:$A$1806,Data!$K$6:$K$1806) -> 7646.85 | AZ61: -143.9971924 | BA61: T-36 sec | BB61: 40098.10197 | BO61: T-36 sec | BP61: 40098.10197 | CC61: T-36 sec | CD61: 40098.10197 | CQ61: T-36 sec | CR61: 40098.10197 | DE61: T-36 sec | DF61: 40098.10197
A62: T-34 sec | B62: 40098.10199 | C62: =LOOKUP(B62,Data!$A$6:$A$1806,Data!B$6:B$1806) -> 60.03699875 | D62: =LOOKUP(B62,Data!$A$6:$A$1806,Data!C$6:C$1806) -> 633 | H62: -147.9949951 | I62: -147.9949951 | L62: 2.758683829 | M62: 596.871923 | Z62: 0 | AC62: T-34 sec | AN62: T-34 sec | AO62: 40098.10199 | AP62: =LOOKUP($AO62,Data!$A$6:$A$1806,Data!$B$6:$B$1806) -> 60.03699875 | AQ62: =LOOKUP($AO62,Data!$A$6:$A$1806,Data!$C$6:$C$1806) -> 633 | AR62: =LOOKUP($AO62,Data!$A$6:$A$1806,Data!$D$6:$D$1806) -> 0 | AS62: =IF($AS$1="+",LOOKUP($AO62,Data!$A$6:$A$1806,Data!$E$6:$E$1806)*-1,LOOKUP($AO62,Data!$A$6:$A$1806,Data!$E$6:$E$1806)) -> -166.0724487 | AT62: =LOOKUP($AO62,Data!$A$6:$A$1806,Data!$F$6:$F$1806) -> 0 | AU62: =LOOKUP($AO62,Data!$A$6:$A$1806,Data!$G$6:$G$1806) -> 0 | AV62: =LOOKUP($AO62,Data!$A$6:$A$1806,Data!$H$6:$H$1806) -> 0 | AW62: =LOOKUP($AO62,Data!$A$6:$A$1806,Data!$I$6:$I$1806) -> 0 | AX62: =LOOKUP($AO62,Data!$A$6:$A$1806,Data!$J$6:$J$1806) -> -653 | AY62: =LOOKUP($AO62,Data!$A$6:$A$1806,Data!$K$6:$K$1806) -> 7647.18 | AZ62: -147.9949951 | BA62: T-34 sec | BB62: 40098.10199 | BO62: T-34 sec | BP62: 40098.10199 | CC62: T-34 sec | CD62: 40098.10199 | CQ62: T-34 sec | CR62: 40098.10199 | DE62: T-34 sec | DF62: 40098.10199
A63: T-32 sec | B63: 40098.10201 | C63: =LOOKUP(B63,Data!$A$6:$A$1806,Data!B$6:B$1806) -> 60.04600143 | D63: =LOOKUP(B63,Data!$A$6:$A$1806,Data!C$6:C$1806) -> 633 | H63: -184.0057373 | I63: -184.0057373 | L63: 2.758683829 | M63: 563.6198646 | Z63: 0 | AC63: T-32 sec | AN63: T-32 sec | AO63: 40098.10201 | AP63: =LOOKUP($AO63,Data!$A$6:$A$1806,Data!$B$6:$B$1806) -> 60.04600143 | AQ63: =LOOKUP($AO63,Data!$A$6:$A$1806,Data!$C$6:$C$1806) -> 633 | AR63: =LOOKUP($AO63,Data!$A$6:$A$1806,Data!$D$6:$D$1806) -> 0 | AS63: =IF($AS$1="+",LOOKUP($AO63,Data!$A$6:$A$1806,Data!$E$6:$E$1806)*-1,LOOKUP($AO63,Data!$A$6:$A$1806,Data!$E$6:$E$1806)) -> -166.0724487 | AT63: =LOOKUP($AO63,Data!$A$6:$A$1806,Data!$F$6:$F$1806) -> 0 | AU63: =LOOKUP($AO63,Data!$A$6:$A$1806,Data!$G$6:$G$1806) -> 0 | AV63: =LOOKUP($AO63,Data!$A$6:$A$1806,Data!$H$6:$H$1806) -> 0 | AW63: =LOOKUP($AO63,Data!$A$6:$A$1806,Data!$I$6:$I$1806) -> 0 | AX63: =LOOKUP($AO63,Data!$A$6:$A$1806,Data!$J$6:$J$1806) -> -653 | AY63: =LOOKUP($AO63,Data!$A$6:$A$1806,Data!$K$6:$K$1806) -> 7647.51 | AZ63: -184.0057373 | BA63: T-32 sec | BB63: 40098.10201 | BO63: T-32 sec | BP63: 40098.10201 | CC63: T-32 sec | CD63: 40098.10201 | CQ63: T-32 sec | CR63: 40098.10201 | DE63: T-32 sec | DF63: 40098.10201
A64: T-30 sec | B64: 40098.10204 | C64: =LOOKUP(B64,Data!$A$6:$A$1806,Data!B$6:B$1806) -> 60.04800034 | D64: =LOOKUP(B64,Data!$A$6:$A$1806,Data!C$6:C$1806) -> 633 | H64: -192.0013428 | I64: -192.0013428 | L64: 2.758683829 | M64: 558.382943 | Z64: 0 | AC64: T-30 sec | AN64: T-30 sec | AO64: 40098.10204 | AP64: =LOOKUP($AO64,Data!$A$6:$A$1806,Data!$B$6:$B$1806) -> 60.04800034 | AQ64: =LOOKUP($AO64,Data!$A$6:$A$1806,Data!$C$6:$C$1806) -> 633 | AR64: =LOOKUP($AO64,Data!$A$6:$A$1806,Data!$D$6:$D$1806) -> 0 | AS64: =IF($AS$1="+",LOOKUP($AO64,Data!$A$6:$A$1806,Data!$E$6:$E$1806)*-1,LOOKUP($AO64,Data!$A$6:$A$1806,Data!$E$6:$E$1806)) -> -163.7665863 | AT64: =LOOKUP($AO64,Data!$A$6:$A$1806,Data!$F$6:$F$1806) -> 0 | AU64: =LOOKUP($AO64,Data!$A$6:$A$1806,Data!$G$6:$G$1806) -> 0 | AV64: =LOOKUP($AO64,Data!$A$6:$A$1806,Data!$H$6:$H$1806) -> 0 | AW64: =LOOKUP($AO64,Data!$A$6:$A$1806,Data!$I$6:$I$1806) -> 0 | AX64: =LOOKUP($AO64,Data!$A$6:$A$1806,Data!$J$6:$J$1806) -> -653 | AY64: =LOOKUP($AO64,Data!$A$6:$A$1806,Data!$K$6:$K$1806) -> 7647.84 | AZ64: -192.0013428 | BA64: T-30 sec | BB64: 40098.10204 | BO64: T-30 sec | BP64: 40098.10204 | CC64: T-30 sec | CD64: 40098.10204 | CQ64: T-30 sec | CR64: 40098.10204 | DE64: T-30 sec | DF64: 40098.10204
A65: T-28 sec | B65: 40098.10206 | C65: =LOOKUP(B65,Data!$A$6:$A$1806,Data!B$6:B$1806) -> 60.04800034 | D65: =LOOKUP(B65,Data!$A$6:$A$1806,Data!C$6:C$1806) -> 633 | H65: -192.0013428 | I65: -192.0013428 | L65: 2.758683829 | M65: 561.1416268 | Z65: 0 | AC65: T-28 sec | AN65: T-28 sec | AO65: 40098.10206 | AP65: =LOOKUP($AO65,Data!$A$6:$A$1806,Data!$B$6:$B$1806) -> 60.04800034 | AQ65: =LOOKUP($AO65,Data!$A$6:$A$1806,Data!$C$6:$C$1806) -> 633 | AR65: =LOOKUP($AO65,Data!$A$6:$A$1806,Data!$D$6:$D$1806) -> 0 | AS65: =IF($AS$1="+",LOOKUP($AO65,Data!$A$6:$A$1806,Data!$E$6:$E$1806)*-1,LOOKUP($AO65,Data!$A$6:$A$1806,Data!$E$6:$E$1806)) -> -163.7665863 | AT65: =LOOKUP($AO65,Data!$A$6:$A$1806,Data!$F$6:$F$1806) -> 0 | AU65: =LOOKUP($AO65,Data!$A$6:$A$1806,Data!$G$6:$G$1806) -> 0 | AV65: =LOOKUP($AO65,Data!$A$6:$A$1806,Data!$H$6:$H$1806) -> 0 | AW65: =LOOKUP($AO65,Data!$A$6:$A$1806,Data!$I$6:$I$1806) -> 0 | AX65: =LOOKUP($AO65,Data!$A$6:$A$1806,Data!$J$6:$J$1806) -> -653 | AY65: =LOOKUP($AO65,Data!$A$6:$A$1806,Data!$K$6:$K$1806) -> 7648.17 | AZ65: -192.0013428 | BA65: T-28 sec | BB65: 40098.10206 | BO65: T-28 sec | BP65: 40098.10206 | CC65: T-28 sec | CD65: 40098.10206 | CQ65: T-28 sec | CR65: 40098.10206 | DE65: T-28 sec | DF65: 40098.10206
A66: T-26 sec | B66: 40098.10208 | C66: =LOOKUP(B66,Data!$A$6:$A$1806,Data!B$6:B$1806) -> 60.04299927 | D66: =LOOKUP(B66,Data!$A$6:$A$1806,Data!C$6:C$1806) -> 633 | H66: -171.9970703 | I66: -171.9970703 | L66: 2.758683829 | M66: 583.9045831 | Z66: 0 | AC66: T-26 sec | AN66: T-26 sec | AO66: 40098.10208 | AP66: =LOOKUP($AO66,Data!$A$6:$A$1806,Data!$B$6:$B$1806) -> 60.04299927 | AQ66: =LOOKUP($AO66,Data!$A$6:$A$1806,Data!$C$6:$C$1806) -> 633 | AR66: =LOOKUP($AO66,Data!$A$6:$A$1806,Data!$D$6:$D$1806) -> 0 | AS66: =IF($AS$1="+",LOOKUP($AO66,Data!$A$6:$A$1806,Data!$E$6:$E$1806)*-1,LOOKUP($AO66,Data!$A$6:$A$1806,Data!$E$6:$E$1806)) -> -163.7665863 | AT66: =LOOKUP($AO66,Data!$A$6:$A$1806,Data!$F$6:$F$1806) -> 0 | AU66: =LOOKUP($AO66,Data!$A$6:$A$1806,Data!$G$6:$G$1806) -> 0 | AV66: =LOOKUP($AO66,Data!$A$6:$A$1806,Data!$H$6:$H$1806) -> 0 | AW66: =LOOKUP($AO66,Data!$A$6:$A$1806,Data!$I$6:$I$1806) -> 0 | AX66: =LOOKUP($AO66,Data!$A$6:$A$1806,Data!$J$6:$J$1806) -> -653 | AY66: =LOOKUP($AO66,Data!$A$6:$A$1806,Data!$K$6:$K$1806) -> 7648.5 | AZ66: -171.9970703 | BA66: T-26 sec | BB66: 40098.10208 | BO66: T-26 sec | BP66: 40098.10208 | CC66: T-26 sec | CD66: 40098.10208 | CQ66: T-26 sec | CR66: 40098.10208 | DE66: T-26 sec | DF66: 40098.10208
A67: T-24 sec | B67: 40098.10211 | C67: =LOOKUP(B67,Data!$A$6:$A$1806,Data!B$6:B$1806) -> 60.04100037 | D67: =LOOKUP(B67,Data!$A$6:$A$1806,Data!C$6:C$1806) -> 633 | H67: -164.0014648 | I67: -164.0014648 | L67: 2.758683829 | M67: 594.6588724 | Z67: 0 | AC67: T-24 sec | AN67: T-24 sec | AO67: 40098.10211 | AP67: =LOOKUP($AO67,Data!$A$6:$A$1806,Data!$B$6:$B$1806) -> 60.04100037 | AQ67: =LOOKUP($AO67,Data!$A$6:$A$1806,Data!$C$6:$C$1806) -> 633 | AR67: =LOOKUP($AO67,Data!$A$6:$A$1806,Data!$D$6:$D$1806) -> 0 | AS67: =IF($AS$1="+",LOOKUP($AO67,Data!$A$6:$A$1806,Data!$E$6:$E$1806)*-1,LOOKUP($AO67,Data!$A$6:$A$1806,Data!$E$6:$E$1806)) -> -163.7665863 | AT67: =LOOKUP($AO67,Data!$A$6:$A$1806,Data!$F$6:$F$1806) -> 0 | AU67: =LOOKUP($AO67,Data!$A$6:$A$1806,Data!$G$6:$G$1806) -> 0 | AV67: =LOOKUP($AO67,Data!$A$6:$A$1806,Data!$H$6:$H$1806) -> 0 | AW67: =LOOKUP($AO67,Data!$A$6:$A$1806,Data!$I$6:$I$1806) -> 0 | AX67: =LOOKUP($AO67,Data!$A$6:$A$1806,Data!$J$6:$J$1806) -> -653 | AY67: =LOOKUP($AO67,Data!$A$6:$A$1806,Data!$K$6:$K$1806) -> 7648.83 | AZ67: -164.0014648 | BA67: T-24 sec | BB67: 40098.10211 | BO67: T-24 sec | BP67: 40098.10211 | CC67: T-24 sec | CD67: 40098.10211 | CQ67: T-24 sec | CR67: 40098.10211 | DE67: T-24 sec | DF67: 40098.10211
A68: T-22 sec | B68: 40098.10213 | C68: =LOOKUP(B68,Data!$A$6:$A$1806,Data!B$6:B$1806) -> 60.04100037 | D68: =LOOKUP(B68,Data!$A$6:$A$1806,Data!C$6:C$1806) -> 633 | H68: -164.0014648 | I68: -164.0014648 | L68: 2.758683829 | M68: 597.4175562 | Z68: 0 | AC68: T-22 sec | AN68: T-22 sec | AO68: 40098.10213 | AP68: =LOOKUP($AO68,Data!$A$6:$A$1806,Data!$B$6:$B$1806) -> 60.04100037 | AQ68: =LOOKUP($AO68,Data!$A$6:$A$1806,Data!$C$6:$C$1806) -> 633 | AR68: =LOOKUP($AO68,Data!$A$6:$A$1806,Data!$D$6:$D$1806) -> 0 | AS68: =IF($AS$1="+",LOOKUP($AO68,Data!$A$6:$A$1806,Data!$E$6:$E$1806)*-1,LOOKUP($AO68,Data!$A$6:$A$1806,Data!$E$6:$E$1806)) -> -163.7665863 | AT68: =LOOKUP($AO68,Data!$A$6:$A$1806,Data!$F$6:$F$1806) -> 0 | AU68: =LOOKUP($AO68,Data!$A$6:$A$1806,Data!$G$6:$G$1806) -> 0 | AV68: =LOOKUP($AO68,Data!$A$6:$A$1806,Data!$H$6:$H$1806) -> 0 | AW68: =LOOKUP($AO68,Data!$A$6:$A$1806,Data!$I$6:$I$1806) -> 0 | AX68: =LOOKUP($AO68,Data!$A$6:$A$1806,Data!$J$6:$J$1806) -> -653 | AY68: =LOOKUP($AO68,Data!$A$6:$A$1806,Data!$K$6:$K$1806) -> 7649.16 | AZ68: -164.0014648 | BA68: T-22 sec | BB68: 40098.10213 | BO68: T-22 sec | BP68: 40098.10213 | CC68: T-22 sec | CD68: 40098.10213 | CQ68: T-22 sec | CR68: 40098.10213 | DE68: T-22 sec | DF68: 40098.10213
A69: T-20 sec | B69: 40098.10215 | C69: =LOOKUP(B69,Data!$A$6:$A$1806,Data!B$6:B$1806) -> 60.04100037 | D69: =LOOKUP(B69,Data!$A$6:$A$1806,Data!C$6:C$1806) -> 633 | H69: -164.0014648 | I69: -164.0014648 | L69: 2.758683829 | M69: 600.1762401 | Z69: 0 | AC69: T-20 sec | AN69: T-20 sec | AO69: 40098.10215 | AP69: =LOOKUP($AO69,Data!$A$6:$A$1806,Data!$B$6:$B$1806) -> 60.04100037 | AQ69: =LOOKUP($AO69,Data!$A$6:$A$1806,Data!$C$6:$C$1806) -> 633 | AR69: =LOOKUP($AO69,Data!$A$6:$A$1806,Data!$D$6:$D$1806) -> 0 | AS69: =IF($AS$1="+",LOOKUP($AO69,Data!$A$6:$A$1806,Data!$E$6:$E$1806)*-1,LOOKUP($AO69,Data!$A$6:$A$1806,Data!$E$6:$E$1806)) -> -165.1016846 | AT69: =LOOKUP($AO69,Data!$A$6:$A$1806,Data!$F$6:$F$1806) -> 0 | AU69: =LOOKUP($AO69,Data!$A$6:$A$1806,Data!$G$6:$G$1806) -> 0 | AV69: =LOOKUP($AO69,Data!$A$6:$A$1806,Data!$H$6:$H$1806) -> 0 | AW69: =LOOKUP($AO69,Data!$A$6:$A$1806,Data!$I$6:$I$1806) -> 0 | AX69: =LOOKUP($AO69,Data!$A$6:$A$1806,Data!$J$6:$J$1806) -> -653 | AY69: =LOOKUP($AO69,Data!$A$6:$A$1806,Data!$K$6:$K$1806) -> 7649.49 | AZ69: -164.0014648 | BA69: T-20 sec | BB69: 40098.10215 | BO69: T-20 sec | BP69: 40098.10215 | CC69: T-20 sec | CD69: 40098.10215 | CQ69: T-20 sec | CR69: 40098.10215 | DE69: T-20 sec | DF69: 40098.10215
A70: T-18 sec | B70: 40098.10218 | C70: =LOOKUP(B70,Data!$A$6:$A$1806,Data!B$6:B$1806) -> 60.03900146 | D70: =LOOKUP(B70,Data!$A$6:$A$1806,Data!C$6:C$1806) -> 633 | H70: -156.0058594 | I70: -156.0058594 | L70: 2.758683829 | M70: 610.9305294 | Z70: 0 | AC70: T-18 sec | AN70: T-18 sec | AO70: 40098.10218 | AP70: =LOOKUP($AO70,Data!$A$6:$A$1806,Data!$B$6:$B$1806) -> 60.03900146 | AQ70: =LOOKUP($AO70,Data!$A$6:$A$1806,Data!$C$6:$C$1806) -> 633 | AR70: =LOOKUP($AO70,Data!$A$6:$A$1806,Data!$D$6:$D$1806) -> 0 | AS70: =IF($AS$1="+",LOOKUP($AO70,Data!$A$6:$A$1806,Data!$E$6:$E$1806)*-1,LOOKUP($AO70,Data!$A$6:$A$1806,Data!$E$6:$E$1806)) -> -165.1016846 | AT70: =LOOKUP($AO70,Data!$A$6:$A$1806,Data!$F$6:$F$1806) -> 0 | AU70: =LOOKUP($AO70,Data!$A$6:$A$1806,Data!$G$6:$G$1806) -> 0 | AV70: =LOOKUP($AO70,Data!$A$6:$A$1806,Data!$H$6:$H$1806) -> 0 | AW70: =LOOKUP($AO70,Data!$A$6:$A$1806,Data!$I$6:$I$1806) -> 0 | AX70: =LOOKUP($AO70,Data!$A$6:$A$1806,Data!$J$6:$J$1806) -> -653 | AY70: =LOOKUP($AO70,Data!$A$6:$A$1806,Data!$K$6:$K$1806) -> 7649.82 | AZ70: -156.0058594 | BA70: T-18 sec | BB70: 40098.10218 | BO70: T-18 sec | BP70: 40098.10218 | CC70: T-18 sec | CD70: 40098.10218 | CQ70: T-18 sec | CR70: 40098.10218 | DE70: T-18 sec | DF70: 40098.10218
A71: T-16 sec | B71: 40098.1022 | C71: =LOOKUP(B71,Data!$A$6:$A$1806,Data!B$6:B$1806) -> 60.04100037 | D71: =LOOKUP(B71,Data!$A$6:$A$1806,Data!C$6:C$1806) -> 633 | E71: =AVERAGE($C$71:$C$78) -> 60.04212523 | F71: =AVERAGE($D$71:$D$78) -> 633 | H71: =(IF((C71-$L$2)>0,((C71-$L$2-$L$5)/(($L$4*$L$2)-$L$5)*$L$3*-1),((C71-$L$2+$L$5)/(($L$4*$L$2)-$L$5)*$L$3*-1))) -> -164.0014648 | I71: -164.0014648 | L71: 2.758683829 | M71: 605.6936077 | Z71: 0 | AC71: T-16 sec | AD71: =AVERAGE($C$71:$C$78) -> 60.04212523 | AN71: T-16 sec | AO71: 40098.1022 | AP71: =LOOKUP($AO71,Data!$A$6:$A$1806,Data!$B$6:$B$1806) -> 60.04100037 | AQ71: =LOOKUP($AO71,Data!$A$6:$A$1806,Data!$C$6:$C$1806) -> 633 | AR71: =LOOKUP($AO71,Data!$A$6:$A$1806,Data!$D$6:$D$1806) -> 0 | AS71: =IF($AS$1="+",LOOKUP($AO71,Data!$A$6:$A$1806,Data!$E$6:$E$1806)*-1,LOOKUP($AO71,Data!$A$6:$A$1806,Data!$E$6:$E$1806)) -> -165.1016846 | AT71: =LOOKUP($AO71,Data!$A$6:$A$1806,Data!$F$6:$F$1806) -> 0 | AU71: =LOOKUP($AO71,Data!$A$6:$A$1806,Data!$G$6:$G$1806) -> 0 | AV71: =LOOKUP($AO71,Data!$A$6:$A$1806,Data!$H$6:$H$1806) -> 0 | AW71: =LOOKUP($AO71,Data!$A$6:$A$1806,Data!$I$6:$I$1806) -> 0 | AX71: =LOOKUP($AO71,Data!$A$6:$A$1806,Data!$J$6:$J$1806) -> -653 | AY71: =LOOKUP($AO71,Data!$A$6:$A$1806,Data!$K$6:$K$1806) -> 7650.15 | AZ71: -164.0014648 | BA71: T-16 sec | BB71: 40098.1022 | BC71: =AVERAGE($AP$71:$AP$78) -> 60.04212523 | BD71: =AVERAGE($AQ$71:$AQ$78) -> 633 | BE71: =AVERAGE($AR$71:$AR$78) -> 0 | BF71: =AVERAGE($AS$71:$AS$78) -> -165.3358784 | BG71: =AVERAGE($AT$71:$AT$78) -> 0 | BH71: =AVERAGE($AU$71:$AU$78) -> 0 | BI71: =AVERAGE($AV$71:$AV$78) -> 0 | BJ71: =AVERAGE($AW$71:$AW$78) -> 0 | BK71: =AVERAGE($AX$71:$AX$78) -> -653 | BL71: =AVERAGE($AY$71:$AY$78) -> 7651.305 | BM71: =AVERAGE($AZ$71:$AZ$78) -> -168.5009003 | BO71: T-16 sec | BP71: 40098.1022 | BQ71: =AVERAGE($AP$71:$AP$78) -> 60.04212523 | BR71: =AVERAGE($AQ$71:$AQ$78) -> 633 | BS71: =AVERAGE($AR$71:$AR$78) -> 0 | BT71: =AVERAGE($AS$71:$AS$78) -> -165.3358784 | BU71: =AVERAGE($AT$71:$AT$78) -> 0 | BV71: =AVERAGE($AU$71:$AU$78) -> 0 | BW71: =AVERAGE($AV$71:$AV$78) -> 0 | BX71: =AVERAGE($AW$71:$AW$78) -> 0 | BY71: =AVERAGE($AX$71:$AX$78) -> -653 | BZ71: =AVERAGE($AY$71:$AY$78) -> 7651.305 | CA71: =AVERAGE($AZ$71:$AZ$78) -> -168.5009003 | CC71: T-16 sec | CD71: 40098.1022 | CE71: =AVERAGE($AP$71:$AP$78) -> 60.04212523 | CF71: =AVERAGE($AQ$71:$AQ$78) -> 633 | CG71: =AVERAGE($AR$71:$AR$78) -> 0 | CH71: =AVERAGE($AS$71:$AS$78) -> -165.3358784 | CI71: =AVERAGE($AT$71:$AT$78) -> 0 | CJ71: =AVERAGE($AU$71:$AU$78) -> 0 | CK71: =AVERAGE($AV$71:$AV$78) -> 0 | CL71: =AVERAGE($AW$71:$AW$78) -> 0 | CM71: =AVERAGE($AX$71:$AX$78) -> -653 | CN71: =AVERAGE($AY$71:$AY$78) -> 7651.305 | CO71: =AVERAGE($AZ$71:$AZ$78) -> -168.5009003 | CQ71: T-16 sec | CR71: 40098.1022 | CS71: =AVERAGE($AP$71:$AP$78) -> 60.04212523 | CT71: =AVERAGE($AQ$71:$AQ$78) -> 633 | CU71: =AVERAGE($AR$71:$AR$78) -> 0 | CV71: =AVERAGE($AS$71:$AS$78) -> -165.3358784 | CW71: =AVERAGE($AT$71:$AT$78) -> 0 | CX71: =AVERAGE($AU$71:$AU$78) -> 0 | CY71: =AVERAGE($AV$71:$AV$78) -> 0 | CZ71: =AVERAGE($AW$71:$AW$78) -> 0 | DA71: =AVERAGE($AX$71:$AX$78) -> -653 | DB71: =AVERAGE($AY$71:$AY$78) -> 7651.305 | DC71: =AVERAGE($AZ$71:$AZ$78) -> -168.5009003 | DE71: T-16 sec | DF71: 40098.1022 | DG71: =AVERAGE($AP$71:$AP$78) -> 60.04212523 | DH71: =AVERAGE($AQ$71:$AQ$78) -> 633 | DI71: =AVERAGE($AR$71:$AR$78) -> 0 | DJ71: =AVERAGE($AS$71:$AS$78) -> -165.3358784 | DK71: =AVERAGE($AT$71:$AT$78) -> 0 | DL71: =AVERAGE($AU$71:$AU$78) -> 0 | DM71: =AVERAGE($AV$71:$AV$78) -> 0 | DN71: =AVERAGE($AW$71:$AW$78) -> 0 | DO71: =AVERAGE($AX$71:$AX$78) -> -653 | DP71: =AVERAGE($AY$71:$AY$78) -> 7651.305 | DQ71: =AVERAGE($AZ$71:$AZ$78) -> -168.5009003
A72: T-14 sec | B72: 40098.10222 | C72: =LOOKUP(B72,Data!$A$6:$A$1806,Data!B$6:B$1806) -> 60.04299927 | D72: =LOOKUP(B72,Data!$A$6:$A$1806,Data!C$6:C$1806) -> 633 | E72: =AVERAGE($C$71:$C$78) -> 60.04212523 | F72: =AVERAGE($D$71:$D$78) -> 633 | H72: -171.9970703 | I72: -171.9970703 | L72: 2.758683829 | M72: 600.4566861 | Z72: 0 | AC72: T-14 sec | AD72: =AVERAGE($C$71:$C$78) -> 60.04212523 | AN72: T-14 sec | AO72: 40098.10222 | AP72: =LOOKUP($AO72,Data!$A$6:$A$1806,Data!$B$6:$B$1806) -> 60.04299927 | AQ72: =LOOKUP($AO72,Data!$A$6:$A$1806,Data!$C$6:$C$1806) -> 633 | AR72: =LOOKUP($AO72,Data!$A$6:$A$1806,Data!$D$6:$D$1806) -> 0 | AS72: =IF($AS$1="+",LOOKUP($AO72,Data!$A$6:$A$1806,Data!$E$6:$E$1806)*-1,LOOKUP($AO72,Data!$A$6:$A$1806,Data!$E$6:$E$1806)) -> -165.1016846 | AT72: =LOOKUP($AO72,Data!$A$6:$A$1806,Data!$F$6:$F$1806) -> 0 | AU72: =LOOKUP($AO72,Data!$A$6:$A$1806,Data!$G$6:$G$1806) -> 0 | AV72: =LOOKUP($AO72,Data!$A$6:$A$1806,Data!$H$6:$H$1806) -> 0 | AW72: =LOOKUP($AO72,Data!$A$6:$A$1806,Data!$I$6:$I$1806) -> 0 | AX72: =LOOKUP($AO72,Data!$A$6:$A$1806,Data!$J$6:$J$1806) -> -653 | AY72: =LOOKUP($AO72,Data!$A$6:$A$1806,Data!$K$6:$K$1806) -> 7650.48 | AZ72: -171.9970703 | BA72: T-14 sec | BB72: 40098.10222 | BC72: =AVERAGE($AP$71:$AP$78) -> 60.04212523 | BD72: =AVERAGE($AQ$71:$AQ$78) -> 633 | BE72: =AVERAGE($AR$71:$AR$78) -> 0 | BF72: =AVERAGE($AS$71:$AS$78) -> -165.3358784 | BG72: =AVERAGE($AT$71:$AT$78) -> 0 | BH72: =AVERAGE($AU$71:$AU$78) -> 0 | BI72: =AVERAGE($AV$71:$AV$78) -> 0 | BJ72: =AVERAGE($AW$71:$AW$78) -> 0 | BK72: =AVERAGE($AX$71:$AX$78) -> -653 | BL72: =AVERAGE($AY$71:$AY$78) -> 7651.305 | BM72: =AVERAGE($AZ$71:$AZ$78) -> -168.5009003 | BO72: T-14 sec | BP72: 40098.10222 | BQ72: =AVERAGE($AP$71:$AP$78) -> 60.04212523 | BR72: =AVERAGE($AQ$71:$AQ$78) -> 633 | BS72: =AVERAGE($AR$71:$AR$78) -> 0 | BT72: =AVERAGE($AS$71:$AS$78) -> -165.3358784 | BU72: =AVERAGE($AT$71:$AT$78) -> 0 | BV72: =AVERAGE($AU$71:$AU$78) -> 0 | BW72: =AVERAGE($AV$71:$AV$78) -> 0 | BX72: =AVERAGE($AW$71:$AW$78) -> 0 | BY72: =AVERAGE($AX$71:$AX$78) -> -653 | BZ72: =AVERAGE($AY$71:$AY$78) -> 7651.305 | CA72: =AVERAGE($AZ$71:$AZ$78) -> -168.5009003 | CC72: T-14 sec | CD72: 40098.10222 | CE72: =AVERAGE($AP$71:$AP$78) -> 60.04212523 | CF72: =AVERAGE($AQ$71:$AQ$78) -> 633 | CG72: =AVERAGE($AR$71:$AR$78) -> 0 | CH72: =AVERAGE($AS$71:$AS$78) -> -165.3358784 | CI72: =AVERAGE($AT$71:$AT$78) -> 0 | CJ72: =AVERAGE($AU$71:$AU$78) -> 0 | CK72: =AVERAGE($AV$71:$AV$78) -> 0 | CL72: =AVERAGE($AW$71:$AW$78) -> 0 | CM72: =AVERAGE($AX$71:$AX$78) -> -653 | CN72: =AVERAGE($AY$71:$AY$78) -> 7651.305 | CO72: =AVERAGE($AZ$71:$AZ$78) -> -168.5009003 | CQ72: T-14 sec | CR72: 40098.10222 | CS72: =AVERAGE($AP$71:$AP$78) -> 60.04212523 | CT72: =AVERAGE($AQ$71:$AQ$78) -> 633 | CU72: =AVERAGE($AR$71:$AR$78) -> 0 | CV72: =AVERAGE($AS$71:$AS$78) -> -165.3358784 | CW72: =AVERAGE($AT$71:$AT$78) -> 0 | CX72: =AVERAGE($AU$71:$AU$78) -> 0 | CY72: =AVERAGE($AV$71:$AV$78) -> 0 | CZ72: =AVERAGE($AW$71:$AW$78) -> 0 | DA72: =AVERAGE($AX$71:$AX$78) -> -653 | DB72: =AVERAGE($AY$71:$AY$78) -> 7651.305 | DC72: =AVERAGE($AZ$71:$AZ$78) -> -168.5009003 | DE72: T-14 sec | DF72: 40098.10222 | DG72: =AVERAGE($AP$71:$AP$78) -> 60.04212523 | DH72: =AVERAGE($AQ$71:$AQ$78) -> 633 | DI72: =AVERAGE($AR$71:$AR$78) -> 0 | DJ72: =AVERAGE($AS$71:$AS$78) -> -165.3358784 | DK72: =AVERAGE($AT$71:$AT$78) -> 0 | DL72: =AVERAGE($AU$71:$AU$78) -> 0 | DM72: =AVERAGE($AV$71:$AV$78) -> 0 | DN72: =AVERAGE($AW$71:$AW$78) -> 0 | DO72: =AVERAGE($AX$71:$AX$78) -> -653 | DP72: =AVERAGE($AY$71:$AY$78) -> 7651.305 | DQ72: =AVERAGE($AZ$71:$AZ$78) -> -168.5009003
A73: T-12 sec | B73: 40098.10225 | C73: =LOOKUP(B73,Data!$A$6:$A$1806,Data!B$6:B$1806) -> 60.04499817 | D73: =LOOKUP(B73,Data!$A$6:$A$1806,Data!C$6:C$1806) -> 633 | E73: 60.04212523 | F73: 633 | H73: -179.9926758 | I73: -179.9926758 | L73: 2.758683829 | M73: 595.2197644 | Z73: 0 | AC73: T-12 sec | AD73: 60.04212523 | AN73: T-12 sec | AO73: 40098.10225 | AP73: =LOOKUP($AO73,Data!$A$6:$A$1806,Data!$B$6:$B$1806) -> 60.04499817 | AQ73: =LOOKUP($AO73,Data!$A$6:$A$1806,Data!$C$6:$C$1806) -> 633 | AR73: =LOOKUP($AO73,Data!$A$6:$A$1806,Data!$D$6:$D$1806) -> 0 | AS73: =IF($AS$1="+",LOOKUP($AO73,Data!$A$6:$A$1806,Data!$E$6:$E$1806)*-1,LOOKUP($AO73,Data!$A$6:$A$1806,Data!$E$6:$E$1806)) -> -165.1016846 | AT73: =LOOKUP($AO73,Data!$A$6:$A$1806,Data!$F$6:$F$1806) -> 0 | AU73: =LOOKUP($AO73,Data!$A$6:$A$1806,Data!$G$6:$G$1806) -> 0 | AV73: =LOOKUP($AO73,Data!$A$6:$A$1806,Data!$H$6:$H$1806) -> 0 | AW73: =LOOKUP($AO73,Data!$A$6:$A$1806,Data!$I$6:$I$1806) -> 0 | AX73: =LOOKUP($AO73,Data!$A$6:$A$1806,Data!$J$6:$J$1806) -> -653 | AY73: =LOOKUP($AO73,Data!$A$6:$A$1806,Data!$K$6:$K$1806) -> 7650.81 | AZ73: -179.9926758 | BA73: T-12 sec | BB73: 40098.10225 | BC73: 60.04212523 | BD73: 633 | BE73: 0 | BF73: -165.3358784 | BG73: 0 | BH73: 0 | BI73: 0 | BJ73: 0 | BK73: -653 | BL73: 7651.305 | BM73: -168.5009003 | BO73: T-12 sec | BP73: 40098.10225 | BQ73: 60.04212523 | BR73: 633 | BS73: 0 | BT73: -165.3358784 | BU73: 0 | BV73: 0 | BW73: 0 | BX73: 0 | BY73: -653 | BZ73: 7651.305 | CA73: -168.5009003 | CC73: T-12 sec | CD73: 40098.10225 | CE73: 60.04212523 | CF73: 633 | CG73: 0 | CH73: -165.3358784 | CI73: 0 | CJ73: 0 | CK73: 0 | CL73: 0 | CM73: -653 | CN73: 7651.305 | CO73: -168.5009003 | CQ73: T-12 sec | CR73: 40098.10225 | CS73: 60.04212523 | CT73: 633 | CU73: 0 | CV73: -165.3358784 | CW73: 0 | CX73: 0 | CY73: 0 | CZ73: 0 | DA73: -653 | DB73: 7651.305 | DC73: -168.5009003 | DE73: T-12 sec | DF73: 40098.10225 | DG73: 60.04212523 | DH73: 633 | DI73: 0 | DJ73: -165.3358784 | DK73: 0 | DL73: 0 | DM73: 0 | DN73: 0 | DO73: -653 | DP73: 7651.305 | DQ73: -168.5009003
A74: T-10 sec | B74: 40098.10227 | C74: =LOOKUP(B74,Data!$A$6:$A$1806,Data!B$6:B$1806) -> 60.04600143 | D74: =LOOKUP(B74,Data!$A$6:$A$1806,Data!C$6:C$1806) -> 633 | E74: 60.04212523 | F74: 633 | H74: -184.0057373 | I74: -184.0057373 | L74: 2.758683829 | M74: 593.9653868 | Z74: 0 | AC74: T-10 sec | AD74: 60.04212523 | AN74: T-10 sec | AO74: 40098.10227 | AP74: =LOOKUP($AO74,Data!$A$6:$A$1806,Data!$B$6:$B$1806) -> 60.04600143 | AQ74: =LOOKUP($AO74,Data!$A$6:$A$1806,Data!$C$6:$C$1806) -> 633 | AR74: =LOOKUP($AO74,Data!$A$6:$A$1806,Data!$D$6:$D$1806) -> 0 | AS74: =IF($AS$1="+",LOOKUP($AO74,Data!$A$6:$A$1806,Data!$E$6:$E$1806)*-1,LOOKUP($AO74,Data!$A$6:$A$1806,Data!$E$6:$E$1806)) -> -165.4763947 | AT74: =LOOKUP($AO74,Data!$A$6:$A$1806,Data!$F$6:$F$1806) -> 0 | AU74: =LOOKUP($AO74,Data!$A$6:$A$1806,Data!$G$6:$G$1806) -> 0 | AV74: =LOOKUP($AO74,Data!$A$6:$A$1806,Data!$H$6:$H$1806) -> 0 | AW74: =LOOKUP($AO74,Data!$A$6:$A$1806,Data!$I$6:$I$1806) -> 0 | AX74: =LOOKUP($AO74,Data!$A$6:$A$1806,Data!$J$6:$J$1806) -> -653 | AY74: =LOOKUP($AO74,Data!$A$6:$A$1806,Data!$K$6:$K$1806) -> 7651.14 | AZ74: -184.0057373 | BA74: T-10 sec | BB74: 40098.10227 | BC74: 60.04212523 | BD74: 633 | BE74: 0 | BF74: -165.3358784 | BG74: 0 | BH74: 0 | BI74: 0 | BJ74: 0 | BK74: -653 | BL74: 7651.305 | BM74: -168.5009003 | BO74: T-10 sec | BP74: 40098.10227 | BQ74: 60.04212523 | BR74: 633 | BS74: 0 | BT74: -165.3358784 | BU74: 0 | BV74: 0 | BW74: 0 | BX74: 0 | BY74: -653 | BZ74: 7651.305 | CA74: -168.5009003 | CC74: T-10 sec | CD74: 40098.10227 | CE74: 60.04212523 | CF74: 633 | CG74: 0 | CH74: -165.3358784 | CI74: 0 | CJ74: 0 | CK74: 0 | CL74: 0 | CM74: -653 | CN74: 7651.305 | CO74: -168.5009003 | CQ74: T-10 sec | CR74: 40098.10227 | CS74: 60.04212523 | CT74: 633 | CU74: 0 | CV74: -165.3358784 | CW74: 0 | CX74: 0 | CY74: 0 | CZ74: 0 | DA74: -653 | DB74: 7651.305 | DC74: -168.5009003 | DE74: T-10 sec | DF74: 40098.10227 | DG74: 60.04212523 | DH74: 633 | DI74: 0 | DJ74: -165.3358784 | DK74: 0 | DL74: 0 | DM74: 0 | DN74: 0 | DO74: -653 | DP74: 7651.305 | DQ74: -168.5009003
A75: T-08 sec | B75: 40098.10229 | C75: =LOOKUP(B75,Data!$A$6:$A$1806,Data!B$6:B$1806) -> 60.04100037 | D75: =LOOKUP(B75,Data!$A$6:$A$1806,Data!C$6:C$1806) -> 633 | E75: 60.04212523 | F75: 633 | H75: -164.0014648 | I75: -164.0014648 | L75: 2.758683829 | M75: 616.728343 | Z75: 0 | AC75: T-08 sec | AD75: 60.04212523 | AN75: T-08 sec | AO75: 40098.10229 | AP75: =LOOKUP($AO75,Data!$A$6:$A$1806,Data!$B$6:$B$1806) -> 60.04100037 | AQ75: =LOOKUP($AO75,Data!$A$6:$A$1806,Data!$C$6:$C$1806) -> 633 | AR75: =LOOKUP($AO75,Data!$A$6:$A$1806,Data!$D$6:$D$1806) -> 0 | AS75: =IF($AS$1="+",LOOKUP($AO75,Data!$A$6:$A$1806,Data!$E$6:$E$1806)*-1,LOOKUP($AO75,Data!$A$6:$A$1806,Data!$E$6:$E$1806)) -> -165.4763947 | AT75: =LOOKUP($AO75,Data!$A$6:$A$1806,Data!$F$6:$F$1806) -> 0 | AU75: =LOOKUP($AO75,Data!$A$6:$A$1806,Data!$G$6:$G$1806) -> 0 | AV75: =LOOKUP($AO75,Data!$A$6:$A$1806,Data!$H$6:$H$1806) -> 0 | AW75: =LOOKUP($AO75,Data!$A$6:$A$1806,Data!$I$6:$I$1806) -> 0 | AX75: =LOOKUP($AO75,Data!$A$6:$A$1806,Data!$J$6:$J$1806) -> -653 | AY75: =LOOKUP($AO75,Data!$A$6:$A$1806,Data!$K$6:$K$1806) -> 7651.47 | AZ75: -164.0014648 | BA75: T-08 sec | BB75: 40098.10229 | BC75: 60.04212523 | BD75: 633 | BE75: 0 | BF75: -165.3358784 | BG75: 0 | BH75: 0 | BI75: 0 | BJ75: 0 | BK75: -653 | BL75: 7651.305 | BM75: -168.5009003 | BO75: T-08 sec | BP75: 40098.10229 | BQ75: 60.04212523 | BR75: 633 | BS75: 0 | BT75: -165.3358784 | BU75: 0 | BV75: 0 | BW75: 0 | BX75: 0 | BY75: -653 | BZ75: 7651.305 | CA75: -168.5009003 | CC75: T-08 sec | CD75: 40098.10229 | CE75: 60.04212523 | CF75: 633 | CG75: 0 | CH75: -165.3358784 | CI75: 0 | CJ75: 0 | CK75: 0 | CL75: 0 | CM75: -653 | CN75: 7651.305 | CO75: -168.5009003 | CQ75: T-08 sec | CR75: 40098.10229 | CS75: 60.04212523 | CT75: 633 | CU75: 0 | CV75: -165.3358784 | CW75: 0 | CX75: 0 | CY75: 0 | CZ75: 0 | DA75: -653 | DB75: 7651.305 | DC75: -168.5009003 | DE75: T-08 sec | DF75: 40098.10229 | DG75: 60.04212523 | DH75: 633 | DI75: 0 | DJ75: -165.3358784 | DK75: 0 | DL75: 0 | DM75: 0 | DN75: 0 | DO75: -653 | DP75: 7651.305 | DQ75: -168.5009003
A76: T-06 sec | B76: 40098.10231 | C76: =LOOKUP(B76,Data!$A$6:$A$1806,Data!B$6:B$1806) -> 60.04100037 | D76: =LOOKUP(B76,Data!$A$6:$A$1806,Data!C$6:C$1806) -> 633 | E76: 60.04212523 | F76: 633 | H76: -164.0014648 | I76: -164.0014648 | L76: 2.758683829 | M76: 619.4870269 | Z76: 0 | AC76: T-06 sec | AD76: 60.04212523 | AN76: T-06 sec | AO76: 40098.10231 | AP76: =LOOKUP($AO76,Data!$A$6:$A$1806,Data!$B$6:$B$1806) -> 60.04100037 | AQ76: =LOOKUP($AO76,Data!$A$6:$A$1806,Data!$C$6:$C$1806) -> 633 | AR76: =LOOKUP($AO76,Data!$A$6:$A$1806,Data!$D$6:$D$1806) -> 0 | AS76: =IF($AS$1="+",LOOKUP($AO76,Data!$A$6:$A$1806,Data!$E$6:$E$1806)*-1,LOOKUP($AO76,Data!$A$6:$A$1806,Data!$E$6:$E$1806)) -> -165.4763947 | AT76: =LOOKUP($AO76,Data!$A$6:$A$1806,Data!$F$6:$F$1806) -> 0 | AU76: =LOOKUP($AO76,Data!$A$6:$A$1806,Data!$G$6:$G$1806) -> 0 | AV76: =LOOKUP($AO76,Data!$A$6:$A$1806,Data!$H$6:$H$1806) -> 0 | AW76: =LOOKUP($AO76,Data!$A$6:$A$1806,Data!$I$6:$I$1806) -> 0 | AX76: =LOOKUP($AO76,Data!$A$6:$A$1806,Data!$J$6:$J$1806) -> -653 | AY76: =LOOKUP($AO76,Data!$A$6:$A$1806,Data!$K$6:$K$1806) -> 7651.8 | AZ76: -164.0014648 | BA76: T-06 sec | BB76: 40098.10231 | BC76: 60.04212523 | BD76: 633 | BE76: 0 | BF76: -165.3358784 | BG76: 0 | BH76: 0 | BI76: 0 | BJ76: 0 | BK76: -653 | BL76: 7651.305 | BM76: -168.5009003 | BO76: T-06 sec | BP76: 40098.10231 | BQ76: 60.04212523 | BR76: 633 | BS76: 0 | BT76: -165.3358784 | BU76: 0 | BV76: 0 | BW76: 0 | BX76: 0 | BY76: -653 | BZ76: 7651.305 | CA76: -168.5009003 | CC76: T-06 sec | CD76: 40098.10231 | CE76: 60.04212523 | CF76: 633 | CG76: 0 | CH76: -165.3358784 | CI76: 0 | CJ76: 0 | CK76: 0 | CL76: 0 | CM76: -653 | CN76: 7651.305 | CO76: -168.5009003 | CQ76: T-06 sec | CR76: 40098.10231 | CS76: 60.04212523 | CT76: 633 | CU76: 0 | CV76: -165.3358784 | CW76: 0 | CX76: 0 | CY76: 0 | CZ76: 0 | DA76: -653 | DB76: 7651.305 | DC76: -168.5009003 | DE76: T-06 sec | DF76: 40098.10231 | DG76: 60.04212523 | DH76: 633 | DI76: 0 | DJ76: -165.3358784 | DK76: 0 | DL76: 0 | DM76: 0 | DN76: 0 | DO76: -653 | DP76: 7651.305 | DQ76: -168.5009003
A77: T-04 sec | B77: 40098.10234 | C77: =LOOKUP(B77,Data!$A$6:$A$1806,Data!B$6:B$1806) -> 60.04100037 | D77: =LOOKUP(B77,Data!$A$6:$A$1806,Data!C$6:C$1806) -> 633 | E77: 60.04212523 | F77: 633 | H77: -164.0014648 | I77: -164.0014648 | L77: 2.758683829 | M77: 622.2457107 | Z77: 0 | AC77: T-04 sec | AD77: 60.04212523 | AN77: T-04 sec | AO77: 40098.10234 | AP77: =LOOKUP($AO77,Data!$A$6:$A$1806,Data!$B$6:$B$1806) -> 60.04100037 | AQ77: =LOOKUP($AO77,Data!$A$6:$A$1806,Data!$C$6:$C$1806) -> 633 | AR77: =LOOKUP($AO77,Data!$A$6:$A$1806,Data!$D$6:$D$1806) -> 0 | AS77: =IF($AS$1="+",LOOKUP($AO77,Data!$A$6:$A$1806,Data!$E$6:$E$1806)*-1,LOOKUP($AO77,Data!$A$6:$A$1806,Data!$E$6:$E$1806)) -> -165.4763947 | AT77: =LOOKUP($AO77,Data!$A$6:$A$1806,Data!$F$6:$F$1806) -> 0 | AU77: =LOOKUP($AO77,Data!$A$6:$A$1806,Data!$G$6:$G$1806) -> 0 | AV77: =LOOKUP($AO77,Data!$A$6:$A$1806,Data!$H$6:$H$1806) -> 0 | AW77: =LOOKUP($AO77,Data!$A$6:$A$1806,Data!$I$6:$I$1806) -> 0 | AX77: =LOOKUP($AO77,Data!$A$6:$A$1806,Data!$J$6:$J$1806) -> -653 | AY77: =LOOKUP($AO77,Data!$A$6:$A$1806,Data!$K$6:$K$1806) -> 7652.13 | AZ77: -164.0014648 | BA77: T-04 sec | BB77: 40098.10234 | BC77: 60.04212523 | BD77: 633 | BE77: 0 | BF77: -165.3358784 | BG77: 0 | BH77: 0 | BI77: 0 | BJ77: 0 | BK77: -653 | BL77: 7651.305 | BM77: -168.5009003 | BO77: T-04 sec | BP77: 40098.10234 | BQ77: 60.04212523 | BR77: 633 | BS77: 0 | BT77: -165.3358784 | BU77: 0 | BV77: 0 | BW77: 0 | BX77: 0 | BY77: -653 | BZ77: 7651.305 | CA77: -168.5009003 | CC77: T-04 sec | CD77: 40098.10234 | CE77: 60.04212523 | CF77: 633 | CG77: 0 | CH77: -165.3358784 | CI77: 0 | CJ77: 0 | CK77: 0 | CL77: 0 | CM77: -653 | CN77: 7651.305 | CO77: -168.5009003 | CQ77: T-04 sec | CR77: 40098.10234 | CS77: 60.04212523 | CT77: 633 | CU77: 0 | CV77: -165.3358784 | CW77: 0 | CX77: 0 | CY77: 0 | CZ77: 0 | DA77: -653 | DB77: 7651.305 | DC77: -168.5009003 | DE77: T-04 sec | DF77: 40098.10234 | DG77: 60.04212523 | DH77: 633 | DI77: 0 | DJ77: -165.3358784 | DK77: 0 | DL77: 0 | DM77: 0 | DN77: 0 | DO77: -653 | DP77: 7651.305 | DQ77: -168.5009003
A78: T-02 sec | B78: =B79-TIME(0,0,$B$1) -> 40098.10236 | C78: =LOOKUP(B78,Data!$A$6:$A$1806,Data!B$6:B$1806) -> 60.03900146 | D78: =LOOKUP(B78,Data!$A$6:$A$1806,Data!C$6:C$1806) -> 633 | E78: 60.04212523 | F78: 633 | H78: -156.0058594 | I78: -156.0058594 | L78: 2.758683829 | M78: =D78 -> 633 | Z78: 0 | AC78: T-02 sec | AD78: 60.04212523 | AN78: T-02 sec | AO78: =AO79-TIME(0,0,$B$1) -> 40098.10236 | AP78: =LOOKUP($AO78,Data!$A$6:$A$1806,Data!$B$6:$B$1806) -> 60.03900146 | AQ78: =LOOKUP($AO78,Data!$A$6:$A$1806,Data!$C$6:$C$1806) -> 633 | AR78: =LOOKUP($AO78,Data!$A$6:$A$1806,Data!$D$6:$D$1806) -> 0 | AS78: =IF($AS$1="+",LOOKUP($AO78,Data!$A$6:$A$1806,Data!$E$6:$E$1806)*-1,LOOKUP($AO78,Data!$A$6:$A$1806,Data!$E$6:$E$1806)) -> -165.4763947 | AT78: =LOOKUP($AO78,Data!$A$6:$A$1806,Data!$F$6:$F$1806) -> 0 | AU78: =LOOKUP($AO78,Data!$A$6:$A$1806,Data!$G$6:$G$1806) -> 0 | AV78: =LOOKUP($AO78,Data!$A$6:$A$1806,Data!$H$6:$H$1806) -> 0 | AW78: =LOOKUP($AO78,Data!$A$6:$A$1806,Data!$I$6:$I$1806) -> 0 | AX78: =LOOKUP($AO78,Data!$A$6:$A$1806,Data!$J$6:$J$1806) -> -653 | AY78: =LOOKUP($AO78,Data!$A$6:$A$1806,Data!$K$6:$K$1806) -> 7652.46 | AZ78: -156.0058594 | BA78: T-02 sec | BB78: =BB79-TIME(0,0,$B$1) -> 40098.10236 | BC78: 60.04212523 | BD78: 633 | BE78: 0 | BF78: -165.3358784 | BG78: 0 | BH78: 0 | BI78: 0 | BJ78: 0 | BK78: -653 | BL78: 7651.305 | BM78: -168.5009003 | BO78: T-02 sec | BP78: =BP79-TIME(0,0,$B$1) -> 40098.10236 | BQ78: 60.04212523 | BR78: 633 | BS78: 0 | BT78: -165.3358784 | BU78: 0 | BV78: 0 | BW78: 0 | BX78: 0 | BY78: -653 | BZ78: 7651.305 | CA78: -168.5009003 | CC78: T-02 sec | CD78: =CD79-TIME(0,0,$B$1) -> 40098.10236 | CE78: 60.04212523 | CF78: 633 | CG78: 0 | CH78: -165.3358784 | CI78: 0 | CJ78: 0 | CK78: 0 | CL78: 0 | CM78: -653 | CN78: 7651.305 | CO78: -168.5009003 | CQ78: T-02 sec | CR78: =CR79-TIME(0,0,$B$1) -> 40098.10236 | CS78: 60.04212523 | CT78: 633 | CU78: 0 | CV78: -165.3358784 | CW78: 0 | CX78: 0 | CY78: 0 | CZ78: 0 | DA78: -653 | DB78: 7651.305 | DC78: -168.5009003 | DE78: T-02 sec | DF78: =DF79-TIME(0,0,$B$1) -> 40098.10236 | DG78: 60.04212523 | DH78: 633 | DI78: 0 | DJ78: -165.3358784 | DK78: 0 | DL78: 0 | DM78: 0 | DN78: 0 | DO78: -653 | DP78: 7651.305 | DQ78: -168.5009003
A79: T+0 sec | B79: =G2 -> 40098.10238 | C79: =LOOKUP(B79,Data!$A$6:$A$1806,Data!B$6:B$1806) -> 59.97800064 | D79: =LOOKUP(B79,Data!$A$6:$A$1806,Data!C$6:C$1806) -> 0 | H79: 87.99743652 | I79: 87.99743652 | L79: 0 | M79: =M78+L79+(I79-I78) -> 877.0032959 | R79: =R$41 -> 633 | Z79: 633 | AA79: =Z79/((C79-G$4)*10) -> -987.1409038 | AC79: T+0 sec | AN79: T+0 sec | AO79: =$G2 -> 40098.10238 | AP79: =LOOKUP($AO79,Data!$A$6:$A$1806,Data!$B$6:$B$1806) -> 59.97800064 | AQ79: =LOOKUP($AO79,Data!$A$6:$A$1806,Data!$C$6:$C$1806) -> 0 | AR79: =LOOKUP($AO79,Data!$A$6:$A$1806,Data!$D$6:$D$1806) -> 0 | AS79: =IF($AS$1="+",LOOKUP($AO79,Data!$A$6:$A$1806,Data!$E$6:$E$1806)*-1,LOOKUP($AO79,Data!$A$6:$A$1806,Data!$E$6:$E$1806)) -> -206.4591064 | AT79: =LOOKUP($AO79,Data!$A$6:$A$1806,Data!$F$6:$F$1806) -> 0 | AU79: =LOOKUP($AO79,Data!$A$6:$A$1806,Data!$G$6:$G$1806) -> 0 | AV79: =LOOKUP($AO79,Data!$A$6:$A$1806,Data!$H$6:$H$1806) -> 0 | AW79: =LOOKUP($AO79,Data!$A$6:$A$1806,Data!$I$6:$I$1806) -> 0 | AX79: =LOOKUP($AO79,Data!$A$6:$A$1806,Data!$J$6:$J$1806) -> -653 | AY79: =LOOKUP($AO79,Data!$A$6:$A$1806,Data!$K$6:$K$1806) -> 7652.79 | AZ79: 87.99743652 | BA79: T+0 sec | BB79: =$G2 -> 40098.10238 | BO79: T+0 sec | BP79: =$G2 -> 40098.10238 | CC79: T+0 sec | CD79: =$G2 -> 40098.10238 | CQ79: T+0 sec | CR79: =$G2 -> 40098.10238 | DE79: T+0 sec | DF79: =$G2 -> 40098.10238
A80: T+02 sec | B80: =B79+TIME(0,0,$B$1) -> 40098.10241 | C80: =LOOKUP(B80,Data!$A$6:$A$1806,Data!B$6:B$1806) -> 59.85200119 | D80: =LOOKUP(B80,Data!$A$6:$A$1806,Data!C$6:C$1806) -> 0 | H80: 591.9952393 | I80: 591.9952393 | L80: =IF(B80>G$3,0,(K$21*0.000023148/K$22)) -> -5.030463798 | M80: =M79+L80+(I80-I79) -> 1375.970635 | N80: =AVERAGE(D$79:D80) -> 0 | O80: =AVERAGE(M$79:M80) -> 1126.486965 | P80: =K20+L78-I77 -> 799.7601487 | Q80: =AVERAGE(P$79:P80) -> 799.7601487 | R80: =R$41 -> 633 | Z80: 633 | AA80: =Z80/((C80-G$4)*10) -> -332.9405461 | AC80: T+02 sec | AN80: T+02 sec | AO80: =AO79+TIME(0,0,$B$1) -> 40098.10241 | AP80: =LOOKUP($AO80,Data!$A$6:$A$1806,Data!$B$6:$B$1806) -> 59.85200119 | AQ80: =LOOKUP($AO80,Data!$A$6:$A$1806,Data!$C$6:$C$1806) -> 0 | AR80: =LOOKUP($AO80,Data!$A$6:$A$1806,Data!$D$6:$D$1806) -> 0 | AS80: =IF($AS$1="+",LOOKUP($AO80,Data!$A$6:$A$1806,Data!$E$6:$E$1806)*-1,LOOKUP($AO80,Data!$A$6:$A$1806,Data!$E$6:$E$1806)) -> -206.4591064 | AT80: =LOOKUP($AO80,Data!$A$6:$A$1806,Data!$F$6:$F$1806) -> 0 | AU80: =LOOKUP($AO80,Data!$A$6:$A$1806,Data!$G$6:$G$1806) -> 0 | AV80: =LOOKUP($AO80,Data!$A$6:$A$1806,Data!$H$6:$H$1806) -> 0 | AW80: =LOOKUP($AO80,Data!$A$6:$A$1806,Data!$I$6:$I$1806) -> 0 | AX80: =LOOKUP($AO80,Data!$A$6:$A$1806,Data!$J$6:$J$1806) -> -653 | AY80: =LOOKUP($AO80,Data!$A$6:$A$1806,Data!$K$6:$K$1806) -> 7616 | AZ80: 591.9952393 | BA80: T+02 sec | BB80: =BB79+TIME(0,0,$B$1) -> 40098.10241 | BO80: T+02 sec | BP80: =BP79+TIME(0,0,$B$1) -> 40098.10241 | CC80: T+02 sec | CD80: =CD79+TIME(0,0,$B$1) -> 40098.10241 | CQ80: T+02 sec | CR80: =CR79+TIME(0,0,$B$1) -> 40098.10241 | DE80: T+02 sec | DF80: =DF79+TIME(0,0,$B$1) -> 40098.10241
A81: T+04 sec | B81: =B80+TIME(0,0,$B$1) -> 40098.10243 | C81: =LOOKUP(B81,Data!$A$6:$A$1806,Data!B$6:B$1806) -> 59.83599854 | D81: =LOOKUP(B81,Data!$A$6:$A$1806,Data!C$6:C$1806) -> 0 | H81: 656.0058594 | I81: 656.0058594 | L81: -5.030463798 | M81: 1434.950791 | N81: =AVERAGE(D$79:D81) -> 0 | O81: =AVERAGE(M$79:M81) -> 1229.308241 | P81: =P80+L81 -> 794.7296849 | Q81: =AVERAGE(P$79:P81) -> 797.2449168 | R81: =R$41 -> 633 | Z81: 633 | AA81: -307.0926915 | AC81: T+04 sec | AN81: T+04 sec | AO81: =AO80+TIME(0,0,$B$1) -> 40098.10243 | AP81: =LOOKUP($AO81,Data!$A$6:$A$1806,Data!$B$6:$B$1806) -> 59.83599854 | AQ81: =LOOKUP($AO81,Data!$A$6:$A$1806,Data!$C$6:$C$1806) -> 0 | AR81: =LOOKUP($AO81,Data!$A$6:$A$1806,Data!$D$6:$D$1806) -> 0 | AS81: =IF($AS$1="+",LOOKUP($AO81,Data!$A$6:$A$1806,Data!$E$6:$E$1806)*-1,LOOKUP($AO81,Data!$A$6:$A$1806,Data!$E$6:$E$1806)) -> -206.4591064 | AT81: =LOOKUP($AO81,Data!$A$6:$A$1806,Data!$F$6:$F$1806) -> 0 | AU81: =LOOKUP($AO81,Data!$A$6:$A$1806,Data!$G$6:$G$1806) -> 0 | AV81: =LOOKUP($AO81,Data!$A$6:$A$1806,Data!$H$6:$H$1806) -> 0 | AW81: =LOOKUP($AO81,Data!$A$6:$A$1806,Data!$I$6:$I$1806) -> 0 | AX81: =LOOKUP($AO81,Data!$A$6:$A$1806,Data!$J$6:$J$1806) -> -653 | AY81: =LOOKUP($AO81,Data!$A$6:$A$1806,Data!$K$6:$K$1806) -> 7626 | AZ81: 656.0058594 | BA81: T+04 sec | BB81: =BB80+TIME(0,0,$B$1) -> 40098.10243 | BO81: T+04 sec | BP81: =BP80+TIME(0,0,$B$1) -> 40098.10243 | CC81: T+04 sec | CD81: =CD80+TIME(0,0,$B$1) -> 40098.10243 | CQ81: T+04 sec | CR81: =CR80+TIME(0,0,$B$1) -> 40098.10243 | DE81: T+04 sec | DF81: =DF80+TIME(0,0,$B$1) -> 40098.10243
A82: T+06 sec | B82: 40098.10245 | C82: =LOOKUP(B82,Data!$A$6:$A$1806,Data!B$6:B$1806) -> 59.86899948 | D82: =LOOKUP(B82,Data!$A$6:$A$1806,Data!C$6:C$1806) -> 0 | H82: 524.0020752 | I82: 524.0020752 | L82: -5.030463798 | M82: 1297.916543 | N82: =AVERAGE(D$79:D82) -> 0 | O82: =AVERAGE(M$79:M82) -> 1246.460316 | P82: =P81+L82 -> 789.6992211 | Q82: =AVERAGE(P$79:P82) -> 794.7296849 | R82: 633 | Y82: 0 | Z82: 633 | AA82: -365.630198 | AC82: T+06 sec | AN82: T+06 sec | AO82: 40098.10245 | AP82: =LOOKUP($AO82,Data!$A$6:$A$1806,Data!$B$6:$B$1806) -> 59.86899948 | AQ82: =LOOKUP($AO82,Data!$A$6:$A$1806,Data!$C$6:$C$1806) -> 0 | AR82: =LOOKUP($AO82,Data!$A$6:$A$1806,Data!$D$6:$D$1806) -> 0 | AS82: =IF($AS$1="+",LOOKUP($AO82,Data!$A$6:$A$1806,Data!$E$6:$E$1806)*-1,LOOKUP($AO82,Data!$A$6:$A$1806,Data!$E$6:$E$1806)) -> -206.4591064 | AT82: =LOOKUP($AO82,Data!$A$6:$A$1806,Data!$F$6:$F$1806) -> 0 | AU82: =LOOKUP($AO82,Data!$A$6:$A$1806,Data!$G$6:$G$1806) -> 0 | AV82: =LOOKUP($AO82,Data!$A$6:$A$1806,Data!$H$6:$H$1806) -> 0 | AW82: =LOOKUP($AO82,Data!$A$6:$A$1806,Data!$I$6:$I$1806) -> 0 | AX82: =LOOKUP($AO82,Data!$A$6:$A$1806,Data!$J$6:$J$1806) -> -653 | AY82: =LOOKUP($AO82,Data!$A$6:$A$1806,Data!$K$6:$K$1806) -> 7632 | AZ82: 524.0020752 | BA82: T+06 sec | BB82: 40098.10245 | BO82: T+06 sec | BP82: 40098.10245 | CC82: T+06 sec | CD82: 40098.10245 | CQ82: T+06 sec | CR82: 40098.10245 | DE82: T+06 sec | DF82: 40098.10245
A83: T+08 sec | B83: 40098.10248 | C83: =LOOKUP(B83,Data!$A$6:$A$1806,Data!B$6:B$1806) -> 59.86899948 | D83: =LOOKUP(B83,Data!$A$6:$A$1806,Data!C$6:C$1806) -> 0 | H83: 524.0020752 | I83: 524.0020752 | L83: -5.030463798 | M83: 1292.886079 | N83: =AVERAGE(D$79:D83) -> 0 | O83: =AVERAGE(M$79:M83) -> 1255.745469 | P83: 784.6687573 | Q83: =AVERAGE(P$79:P83) -> 792.214453 | R83: 633 | Y83: 0 | Z83: 633 | AA83: -365.630198 | AC83: T+08 sec | AN83: T+08 sec | AO83: 40098.10248 | AP83: =LOOKUP($AO83,Data!$A$6:$A$1806,Data!$B$6:$B$1806) -> 59.86899948 | AQ83: =LOOKUP($AO83,Data!$A$6:$A$1806,Data!$C$6:$C$1806) -> 0 | AR83: =LOOKUP($AO83,Data!$A$6:$A$1806,Data!$D$6:$D$1806) -> 0 | AS83: =IF($AS$1="+",LOOKUP($AO83,Data!$A$6:$A$1806,Data!$E$6:$E$1806)*-1,LOOKUP($AO83,Data!$A$6:$A$1806,Data!$E$6:$E$1806)) -> -206.4591064 | AT83: =LOOKUP($AO83,Data!$A$6:$A$1806,Data!$F$6:$F$1806) -> 0 | AU83: =LOOKUP($AO83,Data!$A$6:$A$1806,Data!$G$6:$G$1806) -> 0 | AV83: =LOOKUP($AO83,Data!$A$6:$A$1806,Data!$H$6:$H$1806) -> 0 | AW83: =LOOKUP($AO83,Data!$A$6:$A$1806,Data!$I$6:$I$1806) -> 0 | AX83: =LOOKUP($AO83,Data!$A$6:$A$1806,Data!$J$6:$J$1806) -> -653 | AY83: =LOOKUP($AO83,Data!$A$6:$A$1806,Data!$K$6:$K$1806) -> 7632 | AZ83: 524.0020752 | BA83: T+08 sec | BB83: 40098.10248 | BO83: T+08 sec | BP83: 40098.10248 | CC83: T+08 sec | CD83: 40098.10248 | CQ83: T+08 sec | CR83: 40098.10248 | DE83: T+08 sec | DF83: 40098.10248
A84: T+10 sec | B84: 40098.1025 | C84: =LOOKUP(B84,Data!$A$6:$A$1806,Data!B$6:B$1806) -> 59.89199829 | D84: =LOOKUP(B84,Data!$A$6:$A$1806,Data!C$6:C$1806) -> 0 | H84: 432.0068359 | I84: 432.0068359 | L84: -5.030463798 | M84: 1195.860376 | N84: =AVERAGE(D$79:D84) -> 0 | O84: =AVERAGE(M$79:M84) -> 1245.76462 | P84: 779.6382935 | Q84: =AVERAGE(P$79:P84) -> 789.6992211 | R84: 633 | Y84: 0 | Z84: 633 | AA84: -421.6431941 | AC84: T+10 sec | AN84: T+10 sec | AO84: 40098.1025 | AP84: =LOOKUP($AO84,Data!$A$6:$A$1806,Data!$B$6:$B$1806) -> 59.89199829 | AQ84: =LOOKUP($AO84,Data!$A$6:$A$1806,Data!$C$6:$C$1806) -> 0 | AR84: =LOOKUP($AO84,Data!$A$6:$A$1806,Data!$D$6:$D$1806) -> 0 | AS84: =IF($AS$1="+",LOOKUP($AO84,Data!$A$6:$A$1806,Data!$E$6:$E$1806)*-1,LOOKUP($AO84,Data!$A$6:$A$1806,Data!$E$6:$E$1806)) -> -206.4591064 | AT84: =LOOKUP($AO84,Data!$A$6:$A$1806,Data!$F$6:$F$1806) -> 0 | AU84: =LOOKUP($AO84,Data!$A$6:$A$1806,Data!$G$6:$G$1806) -> 0 | AV84: =LOOKUP($AO84,Data!$A$6:$A$1806,Data!$H$6:$H$1806) -> 0 | AW84: =LOOKUP($AO84,Data!$A$6:$A$1806,Data!$I$6:$I$1806) -> 0 | AX84: =LOOKUP($AO84,Data!$A$6:$A$1806,Data!$J$6:$J$1806) -> -653 | AY84: =LOOKUP($AO84,Data!$A$6:$A$1806,Data!$K$6:$K$1806) -> 7632 | AZ84: 432.0068359 | BA84: T+10 sec | BB84: 40098.1025 | BO84: T+10 sec | BP84: 40098.1025 | CC84: T+10 sec | CD84: 40098.1025 | CQ84: T+10 sec | CR84: 40098.1025 | DE84: T+10 sec | DF84: 40098.1025
A85: T+12 sec | B85: 40098.10252 | C85: =LOOKUP(B85,Data!$A$6:$A$1806,Data!B$6:B$1806) -> 59.89099884 | D85: =LOOKUP(B85,Data!$A$6:$A$1806,Data!C$6:C$1806) -> 0 | H85: 436.0046387 | I85: 436.0046387 | L85: -5.030463798 | M85: 1194.827715 | N85: =AVERAGE(D$79:D85) -> 0 | O85: =AVERAGE(M$79:M85) -> 1238.487919 | P85: 774.6078297 | Q85: =AVERAGE(P$79:P85) -> 787.1839892 | R85: 633 | Y85: 0 | Z85: 633 | AA85: -418.8547229 | AC85: T+12 sec | AD85: =AVERAGE($C$85:$C$91) -> 59.88257163 | AE85: =AVERAGE($AA$85:$AA$91) -> -397.1996054 | AN85: T+12 sec | AO85: 40098.10252 | AP85: =LOOKUP($AO85,Data!$A$6:$A$1806,Data!$B$6:$B$1806) -> 59.89099884 | AQ85: =LOOKUP($AO85,Data!$A$6:$A$1806,Data!$C$6:$C$1806) -> 0 | AR85: =LOOKUP($AO85,Data!$A$6:$A$1806,Data!$D$6:$D$1806) -> 0 | AS85: =IF($AS$1="+",LOOKUP($AO85,Data!$A$6:$A$1806,Data!$E$6:$E$1806)*-1,LOOKUP($AO85,Data!$A$6:$A$1806,Data!$E$6:$E$1806)) -> -211.2560425 | AT85: =LOOKUP($AO85,Data!$A$6:$A$1806,Data!$F$6:$F$1806) -> 0 | AU85: =LOOKUP($AO85,Data!$A$6:$A$1806,Data!$G$6:$G$1806) -> 0 | AV85: =LOOKUP($AO85,Data!$A$6:$A$1806,Data!$H$6:$H$1806) -> 0 | AW85: =LOOKUP($AO85,Data!$A$6:$A$1806,Data!$I$6:$I$1806) -> 0 | AX85: =LOOKUP($AO85,Data!$A$6:$A$1806,Data!$J$6:$J$1806) -> -653 | AY85: =LOOKUP($AO85,Data!$A$6:$A$1806,Data!$K$6:$K$1806) -> 7632 | AZ85: 436.0046387 | BA85: T+12 sec | BB85: 40098.10252 | BC85: =AVERAGE($AP$85:$AP$91) -> 59.88257163 | BD85: =AVERAGE($AQ$85:$AQ$91) -> 0 | BE85: =AVERAGE($AR$85:$AR$91) -> 0 | BF85: =AVERAGE($AS$85:$AS$91) -> -212.139086 | BG85: =AVERAGE($AT$85:$AT$91) -> 0 | BH85: =AVERAGE($AU$85:$AU$91) -> 0 | BI85: =AVERAGE($AV$85:$AV$91) -> 0 | BJ85: =AVERAGE($AW$85:$AW$91) -> 0 | BK85: =AVERAGE($AX$85:$AX$91) -> -653 | BL85: =AVERAGE($AY$85:$AY$91) -> 7632 | BM85: =AVERAGE($AZ$85:$AZ$91) -> 469.7134835 | BN85: =BG$7+BG$14 -> 1224.411176 | BO85: T+12 sec | BP85: 40098.10252 | CC85: T+12 sec | CD85: 40098.10252 | CQ85: T+12 sec | CR85: 40098.10252 | DE85: T+12 sec | DF85: 40098.10252
A86: T+14 sec | B86: 40098.10255 | C86: =LOOKUP(B86,Data!$A$6:$A$1806,Data!B$6:B$1806) -> 59.88000107 | D86: =LOOKUP(B86,Data!$A$6:$A$1806,Data!C$6:C$1806) -> 0 | H86: 479.9957275 | I86: 479.9957275 | L86: -5.030463798 | M86: 1233.78834 | N86: =AVERAGE(D$79:D86) -> 0 | O86: =AVERAGE(M$79:M86) -> 1237.900472 | P86: 769.5773659 | Q86: =AVERAGE(P$79:P86) -> 784.6687573 | R86: 633 | Y86: 0 | Z86: 633 | AA86: -390.441506 | AC86: T+14 sec | AD86: =AVERAGE($C$85:$C$91) -> 59.88257163 | AE86: =AVERAGE($AA$85:$AA$91) -> -397.1996054 | AN86: T+14 sec | AO86: 40098.10255 | AP86: =LOOKUP($AO86,Data!$A$6:$A$1806,Data!$B$6:$B$1806) -> 59.88000107 | AQ86: =LOOKUP($AO86,Data!$A$6:$A$1806,Data!$C$6:$C$1806) -> 0 | AR86: =LOOKUP($AO86,Data!$A$6:$A$1806,Data!$D$6:$D$1806) -> 0 | AS86: =IF($AS$1="+",LOOKUP($AO86,Data!$A$6:$A$1806,Data!$E$6:$E$1806)*-1,LOOKUP($AO86,Data!$A$6:$A$1806,Data!$E$6:$E$1806)) -> -211.2560425 | AT86: =LOOKUP($AO86,Data!$A$6:$A$1806,Data!$F$6:$F$1806) -> 0 | AU86: =LOOKUP($AO86,Data!$A$6:$A$1806,Data!$G$6:$G$1806) -> 0 | AV86: =LOOKUP($AO86,Data!$A$6:$A$1806,Data!$H$6:$H$1806) -> 0 | AW86: =LOOKUP($AO86,Data!$A$6:$A$1806,Data!$I$6:$I$1806) -> 0 | AX86: =LOOKUP($AO86,Data!$A$6:$A$1806,Data!$J$6:$J$1806) -> -653 | AY86: =LOOKUP($AO86,Data!$A$6:$A$1806,Data!$K$6:$K$1806) -> 7632 | AZ86: 479.9957275 | BA86: T+14 sec | BB86: 40098.10255 | BC86: =AVERAGE($AP$85:$AP$91) -> 59.88257163 | BD86: =AVERAGE($AQ$85:$AQ$91) -> 0 | BE86: =AVERAGE($AR$85:$AR$91) -> 0 | BF86: =AVERAGE($AS$85:$AS$91) -> -212.139086 | BG86: =AVERAGE($AT$85:$AT$91) -> 0 | BH86: =AVERAGE($AU$85:$AU$91) -> 0 | BI86: =AVERAGE($AV$85:$AV$91) -> 0 | BJ86: =AVERAGE($AW$85:$AW$91) -> 0 | BK86: =AVERAGE($AX$85:$AX$91) -> -653 | BL86: =AVERAGE($AY$85:$AY$91) -> 7632 | BM86: =AVERAGE($AZ$85:$AZ$91) -> 469.7134835 | BN86: =BG$7+BG$14 -> 1224.411176 | BO86: T+14 sec | BP86: 40098.10255 | CC86: T+14 sec | CD86: 40098.10255 | CQ86: T+14 sec | CR86: 40098.10255 | DE86: T+14 sec | DF86: 40098.10255
A87: T+16 sec | B87: 40098.10257 | C87: =LOOKUP(B87,Data!$A$6:$A$1806,Data!B$6:B$1806) -> 59.87599945 | D87: =LOOKUP(B87,Data!$A$6:$A$1806,Data!C$6:C$1806) -> 0 | H87: 496.0021973 | I87: 496.0021973 | L87: -5.030463798 | M87: 1244.764346 | N87: =AVERAGE(D$79:D87) -> 0 | O87: =AVERAGE(M$79:M87) -> 1238.663125 | P87: 764.5469021 | Q87: =AVERAGE(P$79:P87) -> 782.1535254 | R87: 633 | Y87: 0 | Z87: 633 | AA87: -381.0365985 | AC87: T+16 sec | AD87: 59.88257163 | AE87: -397.1996054 | AN87: T+16 sec | AO87: 40098.10257 | AP87: =LOOKUP($AO87,Data!$A$6:$A$1806,Data!$B$6:$B$1806) -> 59.87599945 | AQ87: =LOOKUP($AO87,Data!$A$6:$A$1806,Data!$C$6:$C$1806) -> 0 | AR87: =LOOKUP($AO87,Data!$A$6:$A$1806,Data!$D$6:$D$1806) -> 0 | AS87: =IF($AS$1="+",LOOKUP($AO87,Data!$A$6:$A$1806,Data!$E$6:$E$1806)*-1,LOOKUP($AO87,Data!$A$6:$A$1806,Data!$E$6:$E$1806)) -> -211.2560425 | AT87: =LOOKUP($AO87,Data!$A$6:$A$1806,Data!$F$6:$F$1806) -> 0 | AU87: =LOOKUP($AO87,Data!$A$6:$A$1806,Data!$G$6:$G$1806) -> 0 | AV87: =LOOKUP($AO87,Data!$A$6:$A$1806,Data!$H$6:$H$1806) -> 0 | AW87: =LOOKUP($AO87,Data!$A$6:$A$1806,Data!$I$6:$I$1806) -> 0 | AX87: =LOOKUP($AO87,Data!$A$6:$A$1806,Data!$J$6:$J$1806) -> -653 | AY87: =LOOKUP($AO87,Data!$A$6:$A$1806,Data!$K$6:$K$1806) -> 7632 | AZ87: 496.0021973 | BA87: T+16 sec | BB87: 40098.10257 | BC87: 59.88257163 | BD87: 0 | BE87: 0 | BF87: -212.139086 | BG87: 0 | BH87: 0 | BI87: 0 | BJ87: 0 | BK87: -653 | BL87: 7632 | BM87: 469.7134835 | BN87: 1224.411176 | BO87: T+16 sec | BP87: 40098.10257 | CC87: T+16 sec | CD87: 40098.10257 | CQ87: T+16 sec | CR87: 40098.10257 | DE87: T+16 sec | DF87: 40098.10257
A88: T+18 sec | B88: 40098.10259 | C88: =LOOKUP(B88,Data!$A$6:$A$1806,Data!B$6:B$1806) -> 59.875 | D88: =LOOKUP(B88,Data!$A$6:$A$1806,Data!C$6:C$1806) -> 0 | H88: 500 | I88: 500 | L88: -5.030463798 | M88: 1243.731685 | N88: =AVERAGE(D$79:D88) -> 0 | O88: =AVERAGE(M$79:M88) -> 1239.169981 | P88: 759.5164383 | Q88: =AVERAGE(P$79:P88) -> 779.6382935 | R88: 633 | Y88: 0 | Z88: 633 | AA88: -378.7579043 | AC88: T+18 sec | AD88: 59.88257163 | AE88: -397.1996054 | AF88: =AVERAGE($C$88:$C$94) -> 59.88442884 | AG88: =AVERAGE($AA$88:$AA$94) -> -401.6699921 | AJ88: =AVERAGE($C$88:$C$105) -> 59.88833343 | AK88: =AVERAGE($AA$88:$AA$105) -> -411.9963314 | AN88: T+18 sec | AO88: 40098.10259 | AP88: =LOOKUP($AO88,Data!$A$6:$A$1806,Data!$B$6:$B$1806) -> 59.875 | AQ88: =LOOKUP($AO88,Data!$A$6:$A$1806,Data!$C$6:$C$1806) -> 0 | AR88: =LOOKUP($AO88,Data!$A$6:$A$1806,Data!$D$6:$D$1806) -> 0 | AS88: =IF($AS$1="+",LOOKUP($AO88,Data!$A$6:$A$1806,Data!$E$6:$E$1806)*-1,LOOKUP($AO88,Data!$A$6:$A$1806,Data!$E$6:$E$1806)) -> -211.2560425 | AT88: =LOOKUP($AO88,Data!$A$6:$A$1806,Data!$F$6:$F$1806) -> 0 | AU88: =LOOKUP($AO88,Data!$A$6:$A$1806,Data!$G$6:$G$1806) -> 0 | AV88: =LOOKUP($AO88,Data!$A$6:$A$1806,Data!$H$6:$H$1806) -> 0 | AW88: =LOOKUP($AO88,Data!$A$6:$A$1806,Data!$I$6:$I$1806) -> 0 | AX88: =LOOKUP($AO88,Data!$A$6:$A$1806,Data!$J$6:$J$1806) -> -653 | AY88: =LOOKUP($AO88,Data!$A$6:$A$1806,Data!$K$6:$K$1806) -> 7632 | AZ88: 500 | BA88: T+18 sec | BB88: 40098.10259 | BC88: 59.88257163 | BD88: 0 | BE88: 0 | BF88: -212.139086 | BG88: 0 | BH88: 0 | BI88: 0 | BJ88: 0 | BK88: -653 | BL88: 7632 | BM88: 469.7134835 | BN88: 1224.411176 | BO88: T+18 sec | BP88: 40098.10259 | BQ88: =AVERAGE($AP$88:$AP$94) -> 59.88442884 | BR88: =AVERAGE($AQ$88:$AQ$94) -> 0 | BS88: =AVERAGE($AR$88:$AR$94) -> 0 | BT88: =AVERAGE($AS$88:$AS$94) -> -213.4636514 | BU88: =AVERAGE($AT$88:$AT$94) -> 0 | BV88: =AVERAGE($AU$88:$AU$94) -> 0 | BW88: =AVERAGE($AV$88:$AV$94) -> 0 | BX88: =AVERAGE($AW$88:$AW$94) -> 0 | BY88: =AVERAGE($AX$88:$AX$94) -> -653 | BZ88: =AVERAGE($AY$88:$AY$94) -> 7632 | CA88: =AVERAGE($AZ$88:$AZ$94) -> 462.2846331 | CB88: =BU$7+BU$14 -> 1215.65776 | CC88: T+18 sec | CD88: 40098.10259 | CQ88: T+18 sec | CR88: 40098.10259 | CS88: =AVERAGE($AP$88:$AP$105) -> 59.88833343 | CT88: =AVERAGE($AQ$88:$AQ$105) -> 0 | CU88: =AVERAGE($AR$88:$AR$105) -> 0 | CV88: =AVERAGE($AS$88:$AS$105) -> -213.9681769 | CW88: =AVERAGE($AT$88:$AT$105) -> 0 | CX88: =AVERAGE($AU$88:$AU$105) -> 0 | CY88: =AVERAGE($AV$88:$AV$105) -> 0 | CZ88: =AVERAGE($AW$88:$AW$105) -> 0 | DA88: =AVERAGE($AX$88:$AX$105) -> -653 | DB88: =AVERAGE($AY$88:$AY$105) -> 7632 | DC88: =AVERAGE($AZ$88:$AZ$105) -> 446.6662937 | DD88: =CW$7+CW$14 -> 1199.534895 | DE88: T+18 sec | DF88: 40098.10259
A89: T+20 sec | B89: 40098.10262 | C89: =LOOKUP(B89,Data!$A$6:$A$1806,Data!B$6:B$1806) -> 59.88299942 | D89: =LOOKUP(B89,Data!$A$6:$A$1806,Data!C$6:C$1806) -> 0 | E89: =AVERAGE($C$89:$C$105) -> 59.88911775 | F89: =AVERAGE($D$89:$D$105) -> 0 | H89: 468.0023193 | I89: 468.0023193 | K89: =G$19+G$7 -> 1245.029917 | L89: -5.030463798 | M89: 1206.703541 | N89: =AVERAGE(D$79:D89) -> 0 | O89: =AVERAGE(M$79:M89) -> 1236.218486 | P89: 754.4859745 | Q89: =AVERAGE(P$79:P89) -> 777.1230616 | R89: 633 | Y89: 0 | Z89: 633 | AA89: -397.7984591 | AB89: =AVERAGE(AA$89:AA$105) -> -413.951533 | AC89: T+20 sec | AD89: 59.88257163 | AE89: -397.1996054 | AF89: =AVERAGE($C$88:$C$94) -> 59.88442884 | AG89: =AVERAGE($AA$88:$AA$94) -> -401.6699921 | AH89: =AVERAGE($E$89:$E$99) -> 59.88911775 | AI89: =AVERAGE($AA$89:$AA$99) -> -414.4045417 | AJ89: =AVERAGE($C$88:$C$105) -> 59.88833343 | AK89: =AVERAGE($AA$88:$AA$105) -> -411.9963314 | AL89: =AVERAGE($C$89:$C$105) -> 59.88911775 | AM89: =AVERAGE($AA$89:$AA$105) -> -413.951533 | AN89: T+20 sec | AO89: 40098.10262 | AP89: =LOOKUP($AO89,Data!$A$6:$A$1806,Data!$B$6:$B$1806) -> 59.88299942 | AQ89: =LOOKUP($AO89,Data!$A$6:$A$1806,Data!$C$6:$C$1806) -> 0 | AR89: =LOOKUP($AO89,Data!$A$6:$A$1806,Data!$D$6:$D$1806) -> 0 | AS89: =IF($AS$1="+",LOOKUP($AO89,Data!$A$6:$A$1806,Data!$E$6:$E$1806)*-1,LOOKUP($AO89,Data!$A$6:$A$1806,Data!$E$6:$E$1806)) -> -211.2560425 | AT89: =LOOKUP($AO89,Data!$A$6:$A$1806,Data!$F$6:$F$1806) -> 0 | AU89: =LOOKUP($AO89,Data!$A$6:$A$1806,Data!$G$6:$G$1806) -> 0 | AV89: =LOOKUP($AO89,Data!$A$6:$A$1806,Data!$H$6:$H$1806) -> 0 | AW89: =LOOKUP($AO89,Data!$A$6:$A$1806,Data!$I$6:$I$1806) -> 0 | AX89: =LOOKUP($AO89,Data!$A$6:$A$1806,Data!$J$6:$J$1806) -> -653 | AY89: =LOOKUP($AO89,Data!$A$6:$A$1806,Data!$K$6:$K$1806) -> 7632 | AZ89: 468.0023193 | BA89: T+20 sec | BB89: 40098.10262 | BC89: 59.88257163 | BD89: 0 | BE89: 0 | BF89: -212.139086 | BG89: 0 | BH89: 0 | BI89: 0 | BJ89: 0 | BK89: -653 | BL89: 7632 | BM89: 469.7134835 | BN89: 1224.411176 | BO89: T+20 sec | BP89: 40098.10262 | BQ89: =AVERAGE($AP$88:$AP$94) -> 59.88442884 | BR89: =AVERAGE($AQ$88:$AQ$94) -> 0 | BS89: =AVERAGE($AR$88:$AR$94) -> 0 | BT89: =AVERAGE($AS$88:$AS$94) -> -213.4636514 | BU89: =AVERAGE($AT$88:$AT$94) -> 0 | BV89: =AVERAGE($AU$88:$AU$94) -> 0 | BW89: =AVERAGE($AV$88:$AV$94) -> 0 | BX89: =AVERAGE($AW$88:$AW$94) -> 0 | BY89: =AVERAGE($AX$88:$AX$94) -> -653 | BZ89: =AVERAGE($AY$88:$AY$94) -> 7632 | CA89: =AVERAGE($AZ$88:$AZ$94) -> 462.2846331 | CB89: =BU$7+BU$14 -> 1215.65776 | CC89: T+20 sec | CD89: 40098.10262 | CE89: =AVERAGE($AP$89:$AP$99) -> 59.88927321 | CF89: =AVERAGE($AQ$89:$AQ$99) -> 0 | CG89: =AVERAGE($AR$89:$AR$99) -> 0 | CH89: =AVERAGE($AS$89:$AS$99) -> -213.0775466 | CI89: =AVERAGE($AT$89:$AT$99) -> 0 | CJ89: =AVERAGE($AU$89:$AU$99) -> 0 | CK89: =AVERAGE($AV$89:$AV$99) -> 0 | CL89: =AVERAGE($AW$89:$AW$99) -> 0 | CM89: =AVERAGE($AX$89:$AX$99) -> -653 | CN89: =AVERAGE($AY$89:$AY$99) -> 7632 | CO89: =AVERAGE($AZ$89:$AZ$99) -> 442.90716 | CP89: =CI$7+CI$14 -> 1196.666392 | CQ89: T+20 sec | CR89: 40098.10262 | CS89: =AVERAGE($AP$88:$AP$105) -> 59.88833343 | CT89: =AVERAGE($AQ$88:$AQ$105) -> 0 | CU89: =AVERAGE($AR$88:$AR$105) -> 0 | CV89: =AVERAGE($AS$88:$AS$105) -> -213.9681769 | CW89: =AVERAGE($AT$88:$AT$105) -> 0 | CX89: =AVERAGE($AU$88:$AU$105) -> 0 | CY89: =AVERAGE($AV$88:$AV$105) -> 0 | CZ89: =AVERAGE($AW$88:$AW$105) -> 0 | DA89: =AVERAGE($AX$88:$AX$105) -> -653 | DB89: =AVERAGE($AY$88:$AY$105) -> 7632 | DC89: =AVERAGE($AZ$88:$AZ$105) -> 446.6662937 | DD89: =CW$7+CW$14 -> 1199.534895 | DE89: T+20 sec | DF89: 40098.10262 | DG89: =AVERAGE($AP$89:$AP$105) -> 59.88911775 | DH89: =AVERAGE($AQ$89:$AQ$105) -> 0 | DI89: =AVERAGE($AR$89:$AR$105) -> 0 | DJ89: =AVERAGE($AS$89:$AS$105) -> -214.1277143 | DK89: =AVERAGE($AT$89:$AT$105) -> 0 | DL89: =AVERAGE($AU$89:$AU$105) -> 0 | DM89: =AVERAGE($AV$89:$AV$105) -> 0 | DN89: =AVERAGE($AW$89:$AW$105) -> 0 | DO89: =AVERAGE($AX$89:$AX$105) -> -653 | DP89: =AVERAGE($AY$89:$AY$105) -> 7632 | DQ89: =AVERAGE($AZ$89:$AZ$105) -> 443.5290168 | DR89: =DK$7+DK$14 -> 1196.238081
A90: T+22 sec | B90: 40098.10264 | C90: =LOOKUP(B90,Data!$A$6:$A$1806,Data!B$6:B$1806) -> 59.88700104 | D90: =LOOKUP(B90,Data!$A$6:$A$1806,Data!C$6:C$1806) -> 0 | E90: =AVERAGE($C$89:$C$105) -> 59.88911775 | F90: =AVERAGE($D$89:$D$105) -> 0 | H90: 451.9958496 | I90: 451.9958496 | K90: =G$19+G$7 -> 1245.029917 | L90: -5.030463798 | M90: 1185.666607 | N90: =AVERAGE(D$79:D90) -> 0 | O90: =AVERAGE(M$79:M90) -> 1232.00583 | P90: 749.4555107 | Q90: =AVERAGE(P$79:P90) -> 774.6078297 | R90: 633 | Y90: 0 | Z90: 633 | AA90: -408.0601551 | AB90: =AVERAGE(AA$89:AA$105) -> -413.951533 | AC90: T+22 sec | AD90: 59.88257163 | AE90: -397.1996054 | AF90: =AVERAGE($C$88:$C$94) -> 59.88442884 | AG90: -401.6699921 | AH90: =AVERAGE($E$89:$E$99) -> 59.88911775 | AI90: =AVERAGE($AA$89:$AA$99) -> -414.4045417 | AJ90: 59.88833343 | AK90: -411.9963314 | AL90: =AVERAGE($C$89:$C$105) -> 59.88911775 | AM90: =AVERAGE($AA$89:$AA$105) -> -413.951533 | AN90: T+22 sec | AO90: 40098.10264 | AP90: =LOOKUP($AO90,Data!$A$6:$A$1806,Data!$B$6:$B$1806) -> 59.88700104 | AQ90: =LOOKUP($AO90,Data!$A$6:$A$1806,Data!$C$6:$C$1806) -> 0 | AR90: =LOOKUP($AO90,Data!$A$6:$A$1806,Data!$D$6:$D$1806) -> 0 | AS90: =IF($AS$1="+",LOOKUP($AO90,Data!$A$6:$A$1806,Data!$E$6:$E$1806)*-1,LOOKUP($AO90,Data!$A$6:$A$1806,Data!$E$6:$E$1806)) -> -214.3466949 | AT90: =LOOKUP($AO90,Data!$A$6:$A$1806,Data!$F$6:$F$1806) -> 0 | AU90: =LOOKUP($AO90,Data!$A$6:$A$1806,Data!$G$6:$G$1806) -> 0 | AV90: =LOOKUP($AO90,Data!$A$6:$A$1806,Data!$H$6:$H$1806) -> 0 | AW90: =LOOKUP($AO90,Data!$A$6:$A$1806,Data!$I$6:$I$1806) -> 0 | AX90: =LOOKUP($AO90,Data!$A$6:$A$1806,Data!$J$6:$J$1806) -> -653 | AY90: =LOOKUP($AO90,Data!$A$6:$A$1806,Data!$K$6:$K$1806) -> 7632 | AZ90: 451.9958496 | BA90: T+22 sec | BB90: 40098.10264 | BC90: 59.88257163 | BD90: 0 | BE90: 0 | BF90: -212.139086 | BG90: 0 | BH90: 0 | BI90: 0 | BJ90: 0 | BK90: -653 | BL90: 7632 | BM90: 469.7134835 | BN90: 1224.411176 | BO90: T+22 sec | BP90: 40098.10264 | BQ90: 59.88442884 | BR90: 0 | BS90: 0 | BT90: -213.4636514 | BU90: 0 | BV90: 0 | BW90: 0 | BX90: 0 | BY90: -653 | BZ90: 7632 | CA90: 462.2846331 | CB90: 1215.65776 | CC90: T+22 sec | CD90: 40098.10264 | CE90: =AVERAGE($AP$89:$AP$99) -> 59.88927321 | CF90: =AVERAGE($AQ$89:$AQ$99) -> 0 | CG90: =AVERAGE($AR$89:$AR$99) -> 0 | CH90: =AVERAGE($AS$89:$AS$99) -> -213.0775466 | CI90: =AVERAGE($AT$89:$AT$99) -> 0 | CJ90: =AVERAGE($AU$89:$AU$99) -> 0 | CK90: =AVERAGE($AV$89:$AV$99) -> 0 | CL90: =AVERAGE($AW$89:$AW$99) -> 0 | CM90: =AVERAGE($AX$89:$AX$99) -> -653 | CN90: =AVERAGE($AY$89:$AY$99) -> 7632 | CO90: =AVERAGE($AZ$89:$AZ$99) -> 442.90716 | CP90: =CI$7+CI$14 -> 1196.666392 | CQ90: T+22 sec | CR90: 40098.10264 | CS90: 59.88833343 | CT90: 0 | CU90: 0 | CV90: -213.9681769 | CW90: 0 | CX90: 0 | CY90: 0 | CZ90: 0 | DA90: -653 | DB90: 7632 | DC90: 446.6662937 | DD90: 1199.534895 | DE90: T+22 sec | DF90: 40098.10264 | DG90: =AVERAGE($AP$89:$AP$105) -> 59.88911775 | DH90: =AVERAGE($AQ$89:$AQ$105) -> 0 | DI90: =AVERAGE($AR$89:$AR$105) -> 0 | DJ90: =AVERAGE($AS$89:$AS$105) -> -214.1277143 | DK90: =AVERAGE($AT$89:$AT$105) -> 0 | DL90: =AVERAGE($AU$89:$AU$105) -> 0 | DM90: =AVERAGE($AV$89:$AV$105) -> 0 | DN90: =AVERAGE($AW$89:$AW$105) -> 0 | DO90: =AVERAGE($AX$89:$AX$105) -> -653 | DP90: =AVERAGE($AY$89:$AY$105) -> 7632 | DQ90: =AVERAGE($AZ$89:$AZ$105) -> 443.5290168 | DR90: =DK$7+DK$14 -> 1196.238081
A91: T+24 sec | B91: 40098.10266 | C91: =LOOKUP(B91,Data!$A$6:$A$1806,Data!B$6:B$1806) -> 59.88600159 | D91: =LOOKUP(B91,Data!$A$6:$A$1806,Data!C$6:C$1806) -> 0 | E91: 59.88911775 | F91: 0 | H91: 455.9936523 | I91: 455.9936523 | K91: 1245.029917 | L91: -5.030463798 | M91: 1184.633946 | N91: =AVERAGE(D$79:D91) -> 0 | O91: =AVERAGE(M$79:M91) -> 1228.361839 | P91: 744.4250469 | Q91: =AVERAGE(P$79:P91) -> 772.0925978 | R91: 633 | Y91: 0 | Z91: 633 | AA91: -405.4478921 | AB91: -413.951533 | AC91: T+24 sec | AD91: 59.88257163 | AE91: -397.1996054 | AF91: 59.88442884 | AG91: -401.6699921 | AH91: 59.88911775 | AI91: -414.4045417 | AJ91: 59.88833343 | AK91: -411.9963314 | AL91: 59.88911775 | AM91: -413.951533 | AN91: T+24 sec | AO91: 40098.10266 | AP91: =LOOKUP($AO91,Data!$A$6:$A$1806,Data!$B$6:$B$1806) -> 59.88600159 | AQ91: =LOOKUP($AO91,Data!$A$6:$A$1806,Data!$C$6:$C$1806) -> 0 | AR91: =LOOKUP($AO91,Data!$A$6:$A$1806,Data!$D$6:$D$1806) -> 0 | AS91: =IF($AS$1="+",LOOKUP($AO91,Data!$A$6:$A$1806,Data!$E$6:$E$1806)*-1,LOOKUP($AO91,Data!$A$6:$A$1806,Data!$E$6:$E$1806)) -> -214.3466949 | AT91: =LOOKUP($AO91,Data!$A$6:$A$1806,Data!$F$6:$F$1806) -> 0 | AU91: =LOOKUP($AO91,Data!$A$6:$A$1806,Data!$G$6:$G$1806) -> 0 | AV91: =LOOKUP($AO91,Data!$A$6:$A$1806,Data!$H$6:$H$1806) -> 0 | AW91: =LOOKUP($AO91,Data!$A$6:$A$1806,Data!$I$6:$I$1806) -> 0 | AX91: =LOOKUP($AO91,Data!$A$6:$A$1806,Data!$J$6:$J$1806) -> -653 | AY91: =LOOKUP($AO91,Data!$A$6:$A$1806,Data!$K$6:$K$1806) -> 7632 | AZ91: 455.9936523 | BA91: T+24 sec | BB91: 40098.10266 | BC91: 59.88257163 | BD91: 0 | BE91: 0 | BF91: -212.139086 | BG91: 0 | BH91: 0 | BI91: 0 | BJ91: 0 | BK91: -653 | BL91: 7632 | BM91: 469.7134835 | BN91: 1224.411176 | BO91: T+24 sec | BP91: 40098.10266 | BQ91: 59.88442884 | BR91: 0 | BS91: 0 | BT91: -213.4636514 | BU91: 0 | BV91: 0 | BW91: 0 | BX91: 0 | BY91: -653 | BZ91: 7632 | CA91: 462.2846331 | CB91: 1215.65776 | CC91: T+24 sec | CD91: 40098.10266 | CE91: 59.88927321 | CF91: 0 | CG91: 0 | CH91: -213.0775466 | CI91: 0 | CJ91: 0 | CK91: 0 | CL91: 0 | CM91: -653 | CN91: 7632 | CO91: 442.90716 | CP91: 1196.666392 | CQ91: T+24 sec | CR91: 40098.10266 | CS91: 59.88833343 | CT91: 0 | CU91: 0 | CV91: -213.9681769 | CW91: 0 | CX91: 0 | CY91: 0 | CZ91: 0 | DA91: -653 | DB91: 7632 | DC91: 446.6662937 | DD91: 1199.534895 | DE91: T+24 sec | DF91: 40098.10266 | DG91: 59.88911775 | DH91: 0 | DI91: 0 | DJ91: -214.1277143 | DK91: 0 | DL91: 0 | DM91: 0 | DN91: 0 | DO91: -653 | DP91: 7632 | DQ91: 443.5290168 | DR91: 1196.238081
A92: T+26 sec | B92: 40098.10269 | C92: =LOOKUP(B92,Data!$A$6:$A$1806,Data!B$6:B$1806) -> 59.88499832 | D92: =LOOKUP(B92,Data!$A$6:$A$1806,Data!C$6:C$1806) -> 0 | E92: 59.88911775 | F92: 0 | H92: 460.0067139 | I92: 460.0067139 | K92: 1245.029917 | L92: -5.030463798 | M92: 1183.616544 | N92: =AVERAGE(D$79:D92) -> 0 | O92: =AVERAGE(M$79:M92) -> 1225.165746 | P92: 739.3945831 | Q92: =AVERAGE(P$79:P92) -> 769.5773659 | R92: 633 | Y92: 0 | Z92: 633 | AA92: -402.8590813 | AB92: -413.951533 | AC92: T+26 sec | AF92: 59.88442884 | AG92: -401.6699921 | AH92: 59.88911775 | AI92: -414.4045417 | AJ92: 59.88833343 | AK92: -411.9963314 | AL92: 59.88911775 | AM92: -413.951533 | AN92: T+26 sec | AO92: 40098.10269 | AP92: =LOOKUP($AO92,Data!$A$6:$A$1806,Data!$B$6:$B$1806) -> 59.88499832 | AQ92: =LOOKUP($AO92,Data!$A$6:$A$1806,Data!$C$6:$C$1806) -> 0 | AR92: =LOOKUP($AO92,Data!$A$6:$A$1806,Data!$D$6:$D$1806) -> 0 | AS92: =IF($AS$1="+",LOOKUP($AO92,Data!$A$6:$A$1806,Data!$E$6:$E$1806)*-1,LOOKUP($AO92,Data!$A$6:$A$1806,Data!$E$6:$E$1806)) -> -214.3466949 | AT92: =LOOKUP($AO92,Data!$A$6:$A$1806,Data!$F$6:$F$1806) -> 0 | AU92: =LOOKUP($AO92,Data!$A$6:$A$1806,Data!$G$6:$G$1806) -> 0 | AV92: =LOOKUP($AO92,Data!$A$6:$A$1806,Data!$H$6:$H$1806) -> 0 | AW92: =LOOKUP($AO92,Data!$A$6:$A$1806,Data!$I$6:$I$1806) -> 0 | AX92: =LOOKUP($AO92,Data!$A$6:$A$1806,Data!$J$6:$J$1806) -> -653 | AY92: =LOOKUP($AO92,Data!$A$6:$A$1806,Data!$K$6:$K$1806) -> 7632 | AZ92: 460.0067139 | BA92: T+26 sec | BB92: 40098.10269 | BO92: T+26 sec | BP92: 40098.10269 | BQ92: 59.88442884 | BR92: 0 | BS92: 0 | BT92: -213.4636514 | BU92: 0 | BV92: 0 | BW92: 0 | BX92: 0 | BY92: -653 | BZ92: 7632 | CA92: 462.2846331 | CB92: 1215.65776 | CC92: T+26 sec | CD92: 40098.10269 | CE92: 59.88927321 | CF92: 0 | CG92: 0 | CH92: -213.0775466 | CI92: 0 | CJ92: 0 | CK92: 0 | CL92: 0 | CM92: -653 | CN92: 7632 | CO92: 442.90716 | CP92: 1196.666392 | CQ92: T+26 sec | CR92: 40098.10269 | CS92: 59.88833343 | CT92: 0 | CU92: 0 | CV92: -213.9681769 | CW92: 0 | CX92: 0 | CY92: 0 | CZ92: 0 | DA92: -653 | DB92: 7632 | DC92: 446.6662937 | DD92: 1199.534895 | DE92: T+26 sec | DF92: 40098.10269 | DG92: 59.88911775 | DH92: 0 | DI92: 0 | DJ92: -214.1277143 | DK92: 0 | DL92: 0 | DM92: 0 | DN92: 0 | DO92: -653 | DP92: 7632 | DQ92: 443.5290168 | DR92: 1196.238081
A93: T+28 sec | B93: 40098.10271 | C93: =LOOKUP(B93,Data!$A$6:$A$1806,Data!B$6:B$1806) -> 59.88700104 | D93: =LOOKUP(B93,Data!$A$6:$A$1806,Data!C$6:C$1806) -> 0 | E93: 59.88911775 | F93: 0 | H93: 451.9958496 | I93: 451.9958496 | K93: 1245.029917 | L93: -5.030463798 | M93: 1170.575216 | N93: =AVERAGE(D$79:D93) -> 0 | O93: =AVERAGE(M$79:M93) -> 1221.526377 | P93: 734.3641193 | Q93: =AVERAGE(P$79:P93) -> 767.062134 | R93: 633 | Y93: 0 | Z93: 633 | AA93: -408.0601551 | AB93: -413.951533 | AC93: T+28 sec | AF93: 59.88442884 | AG93: -401.6699921 | AH93: 59.88911775 | AI93: -414.4045417 | AJ93: 59.88833343 | AK93: -411.9963314 | AL93: 59.88911775 | AM93: -413.951533 | AN93: T+28 sec | AO93: 40098.10271 | AP93: =LOOKUP($AO93,Data!$A$6:$A$1806,Data!$B$6:$B$1806) -> 59.88700104 | AQ93: =LOOKUP($AO93,Data!$A$6:$A$1806,Data!$C$6:$C$1806) -> 0 | AR93: =LOOKUP($AO93,Data!$A$6:$A$1806,Data!$D$6:$D$1806) -> 0 | AS93: =IF($AS$1="+",LOOKUP($AO93,Data!$A$6:$A$1806,Data!$E$6:$E$1806)*-1,LOOKUP($AO93,Data!$A$6:$A$1806,Data!$E$6:$E$1806)) -> -214.3466949 | AT93: =LOOKUP($AO93,Data!$A$6:$A$1806,Data!$F$6:$F$1806) -> 0 | AU93: =LOOKUP($AO93,Data!$A$6:$A$1806,Data!$G$6:$G$1806) -> 0 | AV93: =LOOKUP($AO93,Data!$A$6:$A$1806,Data!$H$6:$H$1806) -> 0 | AW93: =LOOKUP($AO93,Data!$A$6:$A$1806,Data!$I$6:$I$1806) -> 0 | AX93: =LOOKUP($AO93,Data!$A$6:$A$1806,Data!$J$6:$J$1806) -> -653 | AY93: =LOOKUP($AO93,Data!$A$6:$A$1806,Data!$K$6:$K$1806) -> 7632 | AZ93: 451.9958496 | BA93: T+28 sec | BB93: 40098.10271 | BO93: T+28 sec | BP93: 40098.10271 | BQ93: 59.88442884 | BR93: 0 | BS93: 0 | BT93: -213.4636514 | BU93: 0 | BV93: 0 | BW93: 0 | BX93: 0 | BY93: -653 | BZ93: 7632 | CA93: 462.2846331 | CB93: 1215.65776 | CC93: T+28 sec | CD93: 40098.10271 | CE93: 59.88927321 | CF93: 0 | CG93: 0 | CH93: -213.0775466 | CI93: 0 | CJ93: 0 | CK93: 0 | CL93: 0 | CM93: -653 | CN93: 7632 | CO93: 442.90716 | CP93: 1196.666392 | CQ93: T+28 sec | CR93: 40098.10271 | CS93: 59.88833343 | CT93: 0 | CU93: 0 | CV93: -213.9681769 | CW93: 0 | CX93: 0 | CY93: 0 | CZ93: 0 | DA93: -653 | DB93: 7632 | DC93: 446.6662937 | DD93: 1199.534895 | DE93: T+28 sec | DF93: 40098.10271 | DG93: 59.88911775 | DH93: 0 | DI93: 0 | DJ93: -214.1277143 | DK93: 0 | DL93: 0 | DM93: 0 | DN93: 0 | DO93: -653 | DP93: 7632 | DQ93: 443.5290168 | DR93: 1196.238081
A94: T+30 sec | B94: 40098.10273 | C94: =LOOKUP(B94,Data!$A$6:$A$1806,Data!B$6:B$1806) -> 59.88800049 | D94: =LOOKUP(B94,Data!$A$6:$A$1806,Data!C$6:C$1806) -> 0 | E94: 59.88911775 | F94: 0 | H94: 447.9980469 | I94: 447.9980469 | K94: 1245.029917 | L94: -5.030463798 | M94: 1161.546949 | N94: =AVERAGE(D$79:D94) -> 0 | O94: =AVERAGE(M$79:M94) -> 1217.777663 | P94: 729.3336555 | Q94: =AVERAGE(P$79:P94) -> 764.5469021 | R94: 633 | Y94: 0 | Z94: 633 | AA94: -410.7062975 | AB94: -413.951533 | AC94: T+30 sec | AF94: 59.88442884 | AG94: -401.6699921 | AH94: 59.88911775 | AI94: -414.4045417 | AJ94: 59.88833343 | AK94: -411.9963314 | AL94: 59.88911775 | AM94: -413.951533 | AN94: T+30 sec | AO94: 40098.10273 | AP94: =LOOKUP($AO94,Data!$A$6:$A$1806,Data!$B$6:$B$1806) -> 59.88800049 | AQ94: =LOOKUP($AO94,Data!$A$6:$A$1806,Data!$C$6:$C$1806) -> 0 | AR94: =LOOKUP($AO94,Data!$A$6:$A$1806,Data!$D$6:$D$1806) -> 0 | AS94: =IF($AS$1="+",LOOKUP($AO94,Data!$A$6:$A$1806,Data!$E$6:$E$1806)*-1,LOOKUP($AO94,Data!$A$6:$A$1806,Data!$E$6:$E$1806)) -> -214.3466949 | AT94: =LOOKUP($AO94,Data!$A$6:$A$1806,Data!$F$6:$F$1806) -> 0 | AU94: =LOOKUP($AO94,Data!$A$6:$A$1806,Data!$G$6:$G$1806) -> 0 | AV94: =LOOKUP($AO94,Data!$A$6:$A$1806,Data!$H$6:$H$1806) -> 0 | AW94: =LOOKUP($AO94,Data!$A$6:$A$1806,Data!$I$6:$I$1806) -> 0 | AX94: =LOOKUP($AO94,Data!$A$6:$A$1806,Data!$J$6:$J$1806) -> -653 | AY94: =LOOKUP($AO94,Data!$A$6:$A$1806,Data!$K$6:$K$1806) -> 7632 | AZ94: 447.9980469 | BA94: T+30 sec | BB94: 40098.10273 | BO94: T+30 sec | BP94: 40098.10273 | BQ94: 59.88442884 | BR94: 0 | BS94: 0 | BT94: -213.4636514 | BU94: 0 | BV94: 0 | BW94: 0 | BX94: 0 | BY94: -653 | BZ94: 7632 | CA94: 462.2846331 | CB94: 1215.65776 | CC94: T+30 sec | CD94: 40098.10273 | CE94: 59.88927321 | CF94: 0 | CG94: 0 | CH94: -213.0775466 | CI94: 0 | CJ94: 0 | CK94: 0 | CL94: 0 | CM94: -653 | CN94: 7632 | CO94: 442.90716 | CP94: 1196.666392 | CQ94: T+30 sec | CR94: 40098.10273 | CS94: 59.88833343 | CT94: 0 | CU94: 0 | CV94: -213.9681769 | CW94: 0 | CX94: 0 | CY94: 0 | CZ94: 0 | DA94: -653 | DB94: 7632 | DC94: 446.6662937 | DD94: 1199.534895 | DE94: T+30 sec | DF94: 40098.10273 | DG94: 59.88911775 | DH94: 0 | DI94: 0 | DJ94: -214.1277143 | DK94: 0 | DL94: 0 | DM94: 0 | DN94: 0 | DO94: -653 | DP94: 7632 | DQ94: 443.5290168 | DR94: 1196.238081
A95: T+32 sec | B95: 40098.10275 | C95: =LOOKUP(B95,Data!$A$6:$A$1806,Data!B$6:B$1806) -> 59.88999939 | D95: =LOOKUP(B95,Data!$A$6:$A$1806,Data!C$6:C$1806) -> 0 | E95: 59.88911775 | F95: 0 | H95: 440.0024414 | I95: 440.0024414 | K95: 1245.029917 | L95: -5.030463798 | M95: 1148.52088 | N95: =AVERAGE(D$79:D95) -> 0 | O95: =AVERAGE(M$79:M95) -> 1213.703735 | P95: 724.3031917 | Q95: =AVERAGE(P$79:P95) -> 762.0316702 | R95: 633 | Y95: 0 | Z95: 633 | AA95: -416.1028916 | AB95: -413.951533 | AC95: T+32 sec | AH95: 59.88911775 | AI95: -414.4045417 | AJ95: 59.88833343 | AK95: -411.9963314 | AL95: 59.88911775 | AM95: -413.951533 | AN95: T+32 sec | AO95: 40098.10275 | AP95: =LOOKUP($AO95,Data!$A$6:$A$1806,Data!$B$6:$B$1806) -> 59.88999939 | AQ95: =LOOKUP($AO95,Data!$A$6:$A$1806,Data!$C$6:$C$1806) -> 0 | AR95: =LOOKUP($AO95,Data!$A$6:$A$1806,Data!$D$6:$D$1806) -> 0 | AS95: =IF($AS$1="+",LOOKUP($AO95,Data!$A$6:$A$1806,Data!$E$6:$E$1806)*-1,LOOKUP($AO95,Data!$A$6:$A$1806,Data!$E$6:$E$1806)) -> -212.172699 | AT95: =LOOKUP($AO95,Data!$A$6:$A$1806,Data!$F$6:$F$1806) -> 0 | AU95: =LOOKUP($AO95,Data!$A$6:$A$1806,Data!$G$6:$G$1806) -> 0 | AV95: =LOOKUP($AO95,Data!$A$6:$A$1806,Data!$H$6:$H$1806) -> 0 | AW95: =LOOKUP($AO95,Data!$A$6:$A$1806,Data!$I$6:$I$1806) -> 0 | AX95: =LOOKUP($AO95,Data!$A$6:$A$1806,Data!$J$6:$J$1806) -> -653 | AY95: =LOOKUP($AO95,Data!$A$6:$A$1806,Data!$K$6:$K$1806) -> 7632 | AZ95: 440.0024414 | BA95: T+32 sec | BB95: 40098.10275 | BO95: T+32 sec | BP95: 40098.10275 | CC95: T+32 sec | CD95: 40098.10275 | CE95: 59.88927321 | CF95: 0 | CG95: 0 | CH95: -213.0775466 | CI95: 0 | CJ95: 0 | CK95: 0 | CL95: 0 | CM95: -653 | CN95: 7632 | CO95: 442.90716 | CP95: 1196.666392 | CQ95: T+32 sec | CR95: 40098.10275 | CS95: 59.88833343 | CT95: 0 | CU95: 0 | CV95: -213.9681769 | CW95: 0 | CX95: 0 | CY95: 0 | CZ95: 0 | DA95: -653 | DB95: 7632 | DC95: 446.6662937 | DD95: 1199.534895 | DE95: T+32 sec | DF95: 40098.10275 | DG95: 59.88911775 | DH95: 0 | DI95: 0 | DJ95: -214.1277143 | DK95: 0 | DL95: 0 | DM95: 0 | DN95: 0 | DO95: -653 | DP95: 7632 | DQ95: 443.5290168 | DR95: 1196.238081
A96: T+34 sec | B96: 40098.10278 | C96: =LOOKUP(B96,Data!$A$6:$A$1806,Data!B$6:B$1806) -> 59.89500046 | D96: =LOOKUP(B96,Data!$A$6:$A$1806,Data!C$6:C$1806) -> 0 | E96: 59.88911775 | F96: 0 | H96: 419.9981689 | I96: 419.9981689 | K96: 1245.029917 | L96: -5.030463798 | M96: 1123.486144 | N96: =AVERAGE(D$79:D96) -> 0 | O96: =AVERAGE(M$79:M96) -> 1208.691646 | P96: 719.2727279 | Q96: =AVERAGE(P$79:P96) -> 759.5164383 | R96: 633 | Y96: 0 | Z96: 633 | AA96: -430.2470696 | AB96: -413.951533 | AC96: T+34 sec | AH96: 59.88911775 | AI96: -414.4045417 | AJ96: 59.88833343 | AK96: -411.9963314 | AL96: 59.88911775 | AM96: -413.951533 | AN96: T+34 sec | AO96: 40098.10278 | AP96: =LOOKUP($AO96,Data!$A$6:$A$1806,Data!$B$6:$B$1806) -> 59.89500046 | AQ96: =LOOKUP($AO96,Data!$A$6:$A$1806,Data!$C$6:$C$1806) -> 0 | AR96: =LOOKUP($AO96,Data!$A$6:$A$1806,Data!$D$6:$D$1806) -> 0 | AS96: =IF($AS$1="+",LOOKUP($AO96,Data!$A$6:$A$1806,Data!$E$6:$E$1806)*-1,LOOKUP($AO96,Data!$A$6:$A$1806,Data!$E$6:$E$1806)) -> -212.172699 | AT96: =LOOKUP($AO96,Data!$A$6:$A$1806,Data!$F$6:$F$1806) -> 0 | AU96: =LOOKUP($AO96,Data!$A$6:$A$1806,Data!$G$6:$G$1806) -> 0 | AV96: =LOOKUP($AO96,Data!$A$6:$A$1806,Data!$H$6:$H$1806) -> 0 | AW96: =LOOKUP($AO96,Data!$A$6:$A$1806,Data!$I$6:$I$1806) -> 0 | AX96: =LOOKUP($AO96,Data!$A$6:$A$1806,Data!$J$6:$J$1806) -> -653 | AY96: =LOOKUP($AO96,Data!$A$6:$A$1806,Data!$K$6:$K$1806) -> 7632 | AZ96: 419.9981689 | BA96: T+34 sec | BB96: 40098.10278 | BO96: T+34 sec | BP96: 40098.10278 | CC96: T+34 sec | CD96: 40098.10278 | CE96: 59.88927321 | CF96: 0 | CG96: 0 | CH96: -213.0775466 | CI96: 0 | CJ96: 0 | CK96: 0 | CL96: 0 | CM96: -653 | CN96: 7632 | CO96: 442.90716 | CP96: 1196.666392 | CQ96: T+34 sec | CR96: 40098.10278 | CS96: 59.88833343 | CT96: 0 | CU96: 0 | CV96: -213.9681769 | CW96: 0 | CX96: 0 | CY96: 0 | CZ96: 0 | DA96: -653 | DB96: 7632 | DC96: 446.6662937 | DD96: 1199.534895 | DE96: T+34 sec | DF96: 40098.10278 | DG96: 59.88911775 | DH96: 0 | DI96: 0 | DJ96: -214.1277143 | DK96: 0 | DL96: 0 | DM96: 0 | DN96: 0 | DO96: -653 | DP96: 7632 | DQ96: 443.5290168 | DR96: 1196.238081
A97: T+36 sec | B97: 40098.1028 | C97: =LOOKUP(B97,Data!$A$6:$A$1806,Data!B$6:B$1806) -> 59.89400101 | D97: =LOOKUP(B97,Data!$A$6:$A$1806,Data!C$6:C$1806) -> 0 | E97: 59.88911775 | F97: 0 | H97: 423.9959717 | I97: 423.9959717 | K97: 1245.029917 | L97: -5.030463798 | M97: 1122.453483 | N97: =AVERAGE(D$79:D97) -> 0 | O97: =AVERAGE(M$79:M97) -> 1204.152796 | P97: 714.2422641 | Q97: =AVERAGE(P$79:P97) -> 757.0012064 | R97: 633 | Y97: 0 | Z97: 633 | AA97: -427.3440283 | AB97: -413.951533 | AC97: T+36 sec | AH97: 59.88911775 | AI97: -414.4045417 | AJ97: 59.88833343 | AK97: -411.9963314 | AL97: 59.88911775 | AM97: -413.951533 | AN97: T+36 sec | AO97: 40098.1028 | AP97: =LOOKUP($AO97,Data!$A$6:$A$1806,Data!$B$6:$B$1806) -> 59.89400101 | AQ97: =LOOKUP($AO97,Data!$A$6:$A$1806,Data!$C$6:$C$1806) -> 0 | AR97: =LOOKUP($AO97,Data!$A$6:$A$1806,Data!$D$6:$D$1806) -> 0 | AS97: =IF($AS$1="+",LOOKUP($AO97,Data!$A$6:$A$1806,Data!$E$6:$E$1806)*-1,LOOKUP($AO97,Data!$A$6:$A$1806,Data!$E$6:$E$1806)) -> -212.172699 | AT97: =LOOKUP($AO97,Data!$A$6:$A$1806,Data!$F$6:$F$1806) -> 0 | AU97: =LOOKUP($AO97,Data!$A$6:$A$1806,Data!$G$6:$G$1806) -> 0 | AV97: =LOOKUP($AO97,Data!$A$6:$A$1806,Data!$H$6:$H$1806) -> 0 | AW97: =LOOKUP($AO97,Data!$A$6:$A$1806,Data!$I$6:$I$1806) -> 0 | AX97: =LOOKUP($AO97,Data!$A$6:$A$1806,Data!$J$6:$J$1806) -> -653 | AY97: =LOOKUP($AO97,Data!$A$6:$A$1806,Data!$K$6:$K$1806) -> 7632 | AZ97: 423.9959717 | BA97: T+36 sec | BB97: 40098.1028 | BO97: T+36 sec | BP97: 40098.1028 | CC97: T+36 sec | CD97: 40098.1028 | CE97: 59.88927321 | CF97: 0 | CG97: 0 | CH97: -213.0775466 | CI97: 0 | CJ97: 0 | CK97: 0 | CL97: 0 | CM97: -653 | CN97: 7632 | CO97: 442.90716 | CP97: 1196.666392 | CQ97: T+36 sec | CR97: 40098.1028 | CS97: 59.88833343 | CT97: 0 | CU97: 0 | CV97: -213.9681769 | CW97: 0 | CX97: 0 | CY97: 0 | CZ97: 0 | DA97: -653 | DB97: 7632 | DC97: 446.6662937 | DD97: 1199.534895 | DE97: T+36 sec | DF97: 40098.1028 | DG97: 59.88911775 | DH97: 0 | DI97: 0 | DJ97: -214.1277143 | DK97: 0 | DL97: 0 | DM97: 0 | DN97: 0 | DO97: -653 | DP97: 7632 | DQ97: 443.5290168 | DR97: 1196.238081
A98: T+38 sec | B98: 40098.10282 | C98: =LOOKUP(B98,Data!$A$6:$A$1806,Data!B$6:B$1806) -> 59.89300156 | D98: =LOOKUP(B98,Data!$A$6:$A$1806,Data!C$6:C$1806) -> 0 | E98: 59.88911775 | F98: 0 | H98: 427.9937744 | I98: 427.9937744 | K98: 1245.029917 | L98: -5.030463798 | M98: 1121.420822 | N98: =AVERAGE(D$79:D98) -> 0 | O98: =AVERAGE(M$79:M98) -> 1200.016197 | P98: 709.2118003 | Q98: =AVERAGE(P$79:P98) -> 754.4859745 | R98: 633 | Y98: 0 | Z98: 633 | AA98: -424.4799002 | AB98: -413.951533 | AC98: T+38 sec | AH98: 59.88911775 | AI98: -414.4045417 | AJ98: 59.88833343 | AK98: -411.9963314 | AL98: 59.88911775 | AM98: -413.951533 | AN98: T+38 sec | AO98: 40098.10282 | AP98: =LOOKUP($AO98,Data!$A$6:$A$1806,Data!$B$6:$B$1806) -> 59.89300156 | AQ98: =LOOKUP($AO98,Data!$A$6:$A$1806,Data!$C$6:$C$1806) -> 0 | AR98: =LOOKUP($AO98,Data!$A$6:$A$1806,Data!$D$6:$D$1806) -> 0 | AS98: =IF($AS$1="+",LOOKUP($AO98,Data!$A$6:$A$1806,Data!$E$6:$E$1806)*-1,LOOKUP($AO98,Data!$A$6:$A$1806,Data!$E$6:$E$1806)) -> -212.172699 | AT98: =LOOKUP($AO98,Data!$A$6:$A$1806,Data!$F$6:$F$1806) -> 0 | AU98: =LOOKUP($AO98,Data!$A$6:$A$1806,Data!$G$6:$G$1806) -> 0 | AV98: =LOOKUP($AO98,Data!$A$6:$A$1806,Data!$H$6:$H$1806) -> 0 | AW98: =LOOKUP($AO98,Data!$A$6:$A$1806,Data!$I$6:$I$1806) -> 0 | AX98: =LOOKUP($AO98,Data!$A$6:$A$1806,Data!$J$6:$J$1806) -> -653 | AY98: =LOOKUP($AO98,Data!$A$6:$A$1806,Data!$K$6:$K$1806) -> 7632 | AZ98: 427.9937744 | BA98: T+38 sec | BB98: 40098.10282 | BO98: T+38 sec | BP98: 40098.10282 | CC98: T+38 sec | CD98: 40098.10282 | CE98: 59.88927321 | CF98: 0 | CG98: 0 | CH98: -213.0775466 | CI98: 0 | CJ98: 0 | CK98: 0 | CL98: 0 | CM98: -653 | CN98: 7632 | CO98: 442.90716 | CP98: 1196.666392 | CQ98: T+38 sec | CR98: 40098.10282 | CS98: 59.88833343 | CT98: 0 | CU98: 0 | CV98: -213.9681769 | CW98: 0 | CX98: 0 | CY98: 0 | CZ98: 0 | DA98: -653 | DB98: 7632 | DC98: 446.6662937 | DD98: 1199.534895 | DE98: T+38 sec | DF98: 40098.10282 | DG98: 59.88911775 | DH98: 0 | DI98: 0 | DJ98: -214.1277143 | DK98: 0 | DL98: 0 | DM98: 0 | DN98: 0 | DO98: -653 | DP98: 7632 | DQ98: 443.5290168 | DR98: 1196.238081
A99: T+40 sec | B99: 40098.10285 | C99: =LOOKUP(B99,Data!$A$6:$A$1806,Data!B$6:B$1806) -> 59.89400101 | D99: =LOOKUP(B99,Data!$A$6:$A$1806,Data!C$6:C$1806) -> 0 | E99: 59.88911775 | F99: 0 | H99: 423.9959717 | I99: 423.9959717 | K99: 1245.029917 | L99: -5.030463798 | M99: 1112.392555 | N99: =AVERAGE(D$79:D99) -> 0 | O99: =AVERAGE(M$79:M99) -> 1195.843643 | P99: 704.1813365 | Q99: =AVERAGE(P$79:P99) -> 751.9707426 | R99: 633 | Y99: 0 | Z99: 633 | AA99: -427.3440283 | AB99: -413.951533 | AC99: T+40 sec | AH99: 59.88911775 | AI99: -414.4045417 | AJ99: 59.88833343 | AK99: -411.9963314 | AL99: 59.88911775 | AM99: -413.951533 | AN99: T+40 sec | AO99: 40098.10285 | AP99: =LOOKUP($AO99,Data!$A$6:$A$1806,Data!$B$6:$B$1806) -> 59.89400101 | AQ99: =LOOKUP($AO99,Data!$A$6:$A$1806,Data!$C$6:$C$1806) -> 0 | AR99: =LOOKUP($AO99,Data!$A$6:$A$1806,Data!$D$6:$D$1806) -> 0 | AS99: =IF($AS$1="+",LOOKUP($AO99,Data!$A$6:$A$1806,Data!$E$6:$E$1806)*-1,LOOKUP($AO99,Data!$A$6:$A$1806,Data!$E$6:$E$1806)) -> -212.172699 | AT99: =LOOKUP($AO99,Data!$A$6:$A$1806,Data!$F$6:$F$1806) -> 0 | AU99: =LOOKUP($AO99,Data!$A$6:$A$1806,Data!$G$6:$G$1806) -> 0 | AV99: =LOOKUP($AO99,Data!$A$6:$A$1806,Data!$H$6:$H$1806) -> 0 | AW99: =LOOKUP($AO99,Data!$A$6:$A$1806,Data!$I$6:$I$1806) -> 0 | AX99: =LOOKUP($AO99,Data!$A$6:$A$1806,Data!$J$6:$J$1806) -> -653 | AY99: =LOOKUP($AO99,Data!$A$6:$A$1806,Data!$K$6:$K$1806) -> 7632 | AZ99: 423.9959717 | BA99: T+40 sec | BB99: 40098.10285 | BO99: T+40 sec | BP99: 40098.10285 | CC99: T+40 sec | CD99: 40098.10285 | CE99: 59.88927321 | CF99: 0 | CG99: 0 | CH99: -213.0775466 | CI99: 0 | CJ99: 0 | CK99: 0 | CL99: 0 | CM99: -653 | CN99: 7632 | CO99: 442.90716 | CP99: 1196.666392 | CQ99: T+40 sec | CR99: 40098.10285 | CS99: 59.88833343 | CT99: 0 | CU99: 0 | CV99: -213.9681769 | CW99: 0 | CX99: 0 | CY99: 0 | CZ99: 0 | DA99: -653 | DB99: 7632 | DC99: 446.6662937 | DD99: 1199.534895 | DE99: T+40 sec | DF99: 40098.10285 | DG99: 59.88911775 | DH99: 0 | DI99: 0 | DJ99: -214.1277143 | DK99: 0 | DL99: 0 | DM99: 0 | DN99: 0 | DO99: -653 | DP99: 7632 | DQ99: 443.5290168 | DR99: 1196.238081
A100: T+42 sec | B100: 40098.10287 | C100: =LOOKUP(B100,Data!$A$6:$A$1806,Data!B$6:B$1806) -> 59.89400101 | D100: =LOOKUP(B100,Data!$A$6:$A$1806,Data!C$6:C$1806) -> 0 | E100: 59.88911775 | F100: 0 | H100: 423.9959717 | I100: 423.9959717 | K100: 1245.029917 | L100: -5.030463798 | M100: 1107.362091 | N100: =AVERAGE(D$79:D100) -> 0 | O100: =AVERAGE(M$79:M100) -> 1191.821754 | P100: 699.1508727 | Q100: =AVERAGE(P$79:P100) -> 749.4555107 | R100: 633 | Y100: 0 | Z100: 633 | AA100: -427.3440283 | AB100: -413.951533 | AC100: T+42 sec | AJ100: 59.88833343 | AK100: -411.9963314 | AL100: 59.88911775 | AM100: -413.951533 | AN100: T+42 sec | AO100: 40098.10287 | AP100: =LOOKUP($AO100,Data!$A$6:$A$1806,Data!$B$6:$B$1806) -> 59.89400101 | AQ100: =LOOKUP($AO100,Data!$A$6:$A$1806,Data!$C$6:$C$1806) -> 0 | AR100: =LOOKUP($AO100,Data!$A$6:$A$1806,Data!$D$6:$D$1806) -> 0 | AS100: =IF($AS$1="+",LOOKUP($AO100,Data!$A$6:$A$1806,Data!$E$6:$E$1806)*-1,LOOKUP($AO100,Data!$A$6:$A$1806,Data!$E$6:$E$1806)) -> -215.598175 | AT100: =LOOKUP($AO100,Data!$A$6:$A$1806,Data!$F$6:$F$1806) -> 0 | AU100: =LOOKUP($AO100,Data!$A$6:$A$1806,Data!$G$6:$G$1806) -> 0 | AV100: =LOOKUP($AO100,Data!$A$6:$A$1806,Data!$H$6:$H$1806) -> 0 | AW100: =LOOKUP($AO100,Data!$A$6:$A$1806,Data!$I$6:$I$1806) -> 0 | AX100: =LOOKUP($AO100,Data!$A$6:$A$1806,Data!$J$6:$J$1806) -> -653 | AY100: =LOOKUP($AO100,Data!$A$6:$A$1806,Data!$K$6:$K$1806) -> 7632 | AZ100: 423.9959717 | BA100: T+42 sec | BB100: 40098.10287 | BO100: T+42 sec | BP100: 40098.10287 | CC100: T+42 sec | CD100: 40098.10287 | CQ100: T+42 sec | CR100: 40098.10287 | CS100: 59.88833343 | CT100: 0 | CU100: 0 | CV100: -213.9681769 | CW100: 0 | CX100: 0 | CY100: 0 | CZ100: 0 | DA100: -653 | DB100: 7632 | DC100: 446.6662937 | DD100: 1199.534895 | DE100: T+42 sec | DF100: 40098.10287 | DG100: 59.88911775 | DH100: 0 | DI100: 0 | DJ100: -214.1277143 | DK100: 0 | DL100: 0 | DM100: 0 | DN100: 0 | DO100: -653 | DP100: 7632 | DQ100: 443.5290168 | DR100: 1196.238081
A101: T+44 sec | B101: 40098.10289 | C101: =LOOKUP(B101,Data!$A$6:$A$1806,Data!B$6:B$1806) -> 59.89099884 | D101: =LOOKUP(B101,Data!$A$6:$A$1806,Data!C$6:C$1806) -> 0 | E101: 59.88911775 | F101: 0 | H101: 436.0046387 | I101: 436.0046387 | K101: 1245.029917 | L101: -5.030463798 | M101: 1114.340294 | N101: =AVERAGE(D$79:D101) -> 0 | O101: =AVERAGE(M$79:M101) -> 1188.452995 | P101: 694.1204089 | Q101: =AVERAGE(P$79:P101) -> 746.9402788 | R101: 633 | Y101: 0 | Z101: 633 | AA101: -418.8547229 | AB101: -413.951533 | AC101: T+44 sec | AJ101: 59.88833343 | AK101: -411.9963314 | AL101: 59.88911775 | AM101: -413.951533 | AN101: T+44 sec | AO101: 40098.10289 | AP101: =LOOKUP($AO101,Data!$A$6:$A$1806,Data!$B$6:$B$1806) -> 59.89099884 | AQ101: =LOOKUP($AO101,Data!$A$6:$A$1806,Data!$C$6:$C$1806) -> 0 | AR101: =LOOKUP($AO101,Data!$A$6:$A$1806,Data!$D$6:$D$1806) -> 0 | AS101: =IF($AS$1="+",LOOKUP($AO101,Data!$A$6:$A$1806,Data!$E$6:$E$1806)*-1,LOOKUP($AO101,Data!$A$6:$A$1806,Data!$E$6:$E$1806)) -> -215.598175 | AT101: =LOOKUP($AO101,Data!$A$6:$A$1806,Data!$F$6:$F$1806) -> 0 | AU101: =LOOKUP($AO101,Data!$A$6:$A$1806,Data!$G$6:$G$1806) -> 0 | AV101: =LOOKUP($AO101,Data!$A$6:$A$1806,Data!$H$6:$H$1806) -> 0 | AW101: =LOOKUP($AO101,Data!$A$6:$A$1806,Data!$I$6:$I$1806) -> 0 | AX101: =LOOKUP($AO101,Data!$A$6:$A$1806,Data!$J$6:$J$1806) -> -653 | AY101: =LOOKUP($AO101,Data!$A$6:$A$1806,Data!$K$6:$K$1806) -> 7632 | AZ101: 436.0046387 | BA101: T+44 sec | BB101: 40098.10289 | BO101: T+44 sec | BP101: 40098.10289 | CC101: T+44 sec | CD101: 40098.10289 | CQ101: T+44 sec | CR101: 40098.10289 | CS101: 59.88833343 | CT101: 0 | CU101: 0 | CV101: -213.9681769 | CW101: 0 | CX101: 0 | CY101: 0 | CZ101: 0 | DA101: -653 | DB101: 7632 | DC101: 446.6662937 | DD101: 1199.534895 | DE101: T+44 sec | DF101: 40098.10289 | DG101: 59.88911775 | DH101: 0 | DI101: 0 | DJ101: -214.1277143 | DK101: 0 | DL101: 0 | DM101: 0 | DN101: 0 | DO101: -653 | DP101: 7632 | DQ101: 443.5290168 | DR101: 1196.238081
A102: T+46 sec | B102: 40098.10292 | C102: =LOOKUP(B102,Data!$A$6:$A$1806,Data!B$6:B$1806) -> 59.88999939 | D102: =LOOKUP(B102,Data!$A$6:$A$1806,Data!C$6:C$1806) -> 0 | E102: 59.88911775 | F102: 0 | H102: 440.0024414 | I102: 440.0024414 | K102: 1245.029917 | L102: -5.030463798 | M102: 1113.307633 | N102: =AVERAGE(D$79:D102) -> 0 | O102: =AVERAGE(M$79:M102) -> 1185.321938 | P102: 689.0899451 | Q102: =AVERAGE(P$79:P102) -> 744.4250469 | R102: 633 | Y102: 0 | Z102: 633 | AA102: -416.1028916 | AB102: -413.951533 | AC102: T+46 sec | AJ102: 59.88833343 | AK102: -411.9963314 | AL102: 59.88911775 | AM102: -413.951533 | AN102: T+46 sec | AO102: 40098.10292 | AP102: =LOOKUP($AO102,Data!$A$6:$A$1806,Data!$B$6:$B$1806) -> 59.88999939 | AQ102: =LOOKUP($AO102,Data!$A$6:$A$1806,Data!$C$6:$C$1806) -> 0 | AR102: =LOOKUP($AO102,Data!$A$6:$A$1806,Data!$D$6:$D$1806) -> 0 | AS102: =IF($AS$1="+",LOOKUP($AO102,Data!$A$6:$A$1806,Data!$E$6:$E$1806)*-1,LOOKUP($AO102,Data!$A$6:$A$1806,Data!$E$6:$E$1806)) -> -215.598175 | AT102: =LOOKUP($AO102,Data!$A$6:$A$1806,Data!$F$6:$F$1806) -> 0 | AU102: =LOOKUP($AO102,Data!$A$6:$A$1806,Data!$G$6:$G$1806) -> 0 | AV102: =LOOKUP($AO102,Data!$A$6:$A$1806,Data!$H$6:$H$1806) -> 0 | AW102: =LOOKUP($AO102,Data!$A$6:$A$1806,Data!$I$6:$I$1806) -> 0 | AX102: =LOOKUP($AO102,Data!$A$6:$A$1806,Data!$J$6:$J$1806) -> -653 | AY102: =LOOKUP($AO102,Data!$A$6:$A$1806,Data!$K$6:$K$1806) -> 7632 | AZ102: 440.0024414 | BA102: T+46 sec | BB102: 40098.10292 | BO102: T+46 sec | BP102: 40098.10292 | CC102: T+46 sec | CD102: 40098.10292 | CQ102: T+46 sec | CR102: 40098.10292 | CS102: 59.88833343 | CT102: 0 | CU102: 0 | CV102: -213.9681769 | CW102: 0 | CX102: 0 | CY102: 0 | CZ102: 0 | DA102: -653 | DB102: 7632 | DC102: 446.6662937 | DD102: 1199.534895 | DE102: T+46 sec | DF102: 40098.10292 | DG102: 59.88911775 | DH102: 0 | DI102: 0 | DJ102: -214.1277143 | DK102: 0 | DL102: 0 | DM102: 0 | DN102: 0 | DO102: -653 | DP102: 7632 | DQ102: 443.5290168 | DR102: 1196.238081
A103: T+48 sec | B103: 40098.10294 | C103: =LOOKUP(B103,Data!$A$6:$A$1806,Data!B$6:B$1806) -> 59.88499832 | D103: =LOOKUP(B103,Data!$A$6:$A$1806,Data!C$6:C$1806) -> 0 | E103: 59.88911775 | F103: 0 | H103: 460.0067139 | I103: 460.0067139 | K103: 1245.029917 | L103: -5.030463798 | M103: 1128.281442 | N103: =AVERAGE(D$79:D103) -> 0 | O103: =AVERAGE(M$79:M103) -> 1183.040318 | P103: 684.0594813 | Q103: =AVERAGE(P$79:P103) -> 741.909815 | R103: 633 | Y103: 0 | Z103: 633 | AA103: -402.8590813 | AB103: -413.951533 | AC103: T+48 sec | AJ103: 59.88833343 | AK103: -411.9963314 | AL103: 59.88911775 | AM103: -413.951533 | AN103: T+48 sec | AO103: 40098.10294 | AP103: =LOOKUP($AO103,Data!$A$6:$A$1806,Data!$B$6:$B$1806) -> 59.88499832 | AQ103: =LOOKUP($AO103,Data!$A$6:$A$1806,Data!$C$6:$C$1806) -> 0 | AR103: =LOOKUP($AO103,Data!$A$6:$A$1806,Data!$D$6:$D$1806) -> 0 | AS103: =IF($AS$1="+",LOOKUP($AO103,Data!$A$6:$A$1806,Data!$E$6:$E$1806)*-1,LOOKUP($AO103,Data!$A$6:$A$1806,Data!$E$6:$E$1806)) -> -215.598175 | AT103: =LOOKUP($AO103,Data!$A$6:$A$1806,Data!$F$6:$F$1806) -> 0 | AU103: =LOOKUP($AO103,Data!$A$6:$A$1806,Data!$G$6:$G$1806) -> 0 | AV103: =LOOKUP($AO103,Data!$A$6:$A$1806,Data!$H$6:$H$1806) -> 0 | AW103: =LOOKUP($AO103,Data!$A$6:$A$1806,Data!$I$6:$I$1806) -> 0 | AX103: =LOOKUP($AO103,Data!$A$6:$A$1806,Data!$J$6:$J$1806) -> -653 | AY103: =LOOKUP($AO103,Data!$A$6:$A$1806,Data!$K$6:$K$1806) -> 7632 | AZ103: 460.0067139 | BA103: T+48 sec | BB103: 40098.10294 | BO103: T+48 sec | BP103: 40098.10294 | CC103: T+48 sec | CD103: 40098.10294 | CQ103: T+48 sec | CR103: 40098.10294 | CS103: 59.88833343 | CT103: 0 | CU103: 0 | CV103: -213.9681769 | CW103: 0 | CX103: 0 | CY103: 0 | CZ103: 0 | DA103: -653 | DB103: 7632 | DC103: 446.6662937 | DD103: 1199.534895 | DE103: T+48 sec | DF103: 40098.10294 | DG103: 59.88911775 | DH103: 0 | DI103: 0 | DJ103: -214.1277143 | DK103: 0 | DL103: 0 | DM103: 0 | DN103: 0 | DO103: -653 | DP103: 7632 | DQ103: 443.5290168 | DR103: 1196.238081
A104: T+50 sec | B104: 40098.10296 | C104: =LOOKUP(B104,Data!$A$6:$A$1806,Data!B$6:B$1806) -> 59.88499832 | D104: =LOOKUP(B104,Data!$A$6:$A$1806,Data!C$6:C$1806) -> 0 | E104: 59.88911775 | F104: 0 | H104: 460.0067139 | I104: 460.0067139 | K104: 1245.029917 | L104: -5.030463798 | M104: 1123.250978 | N104: =AVERAGE(D$79:D104) -> 0 | O104: =AVERAGE(M$79:M104) -> 1180.740728 | P104: 679.0290175 | Q104: =AVERAGE(P$79:P104) -> 739.3945831 | R104: 633 | Y104: 0 | Z104: 633 | AA104: -402.8590813 | AB104: -413.951533 | AC104: T+50 sec | AJ104: 59.88833343 | AK104: -411.9963314 | AL104: 59.88911775 | AM104: -413.951533 | AN104: T+50 sec | AO104: 40098.10296 | AP104: =LOOKUP($AO104,Data!$A$6:$A$1806,Data!$B$6:$B$1806) -> 59.88499832 | AQ104: =LOOKUP($AO104,Data!$A$6:$A$1806,Data!$C$6:$C$1806) -> 0 | AR104: =LOOKUP($AO104,Data!$A$6:$A$1806,Data!$D$6:$D$1806) -> 0 | AS104: =IF($AS$1="+",LOOKUP($AO104,Data!$A$6:$A$1806,Data!$E$6:$E$1806)*-1,LOOKUP($AO104,Data!$A$6:$A$1806,Data!$E$6:$E$1806)) -> -215.598175 | AT104: =LOOKUP($AO104,Data!$A$6:$A$1806,Data!$F$6:$F$1806) -> 0 | AU104: =LOOKUP($AO104,Data!$A$6:$A$1806,Data!$G$6:$G$1806) -> 0 | AV104: =LOOKUP($AO104,Data!$A$6:$A$1806,Data!$H$6:$H$1806) -> 0 | AW104: =LOOKUP($AO104,Data!$A$6:$A$1806,Data!$I$6:$I$1806) -> 0 | AX104: =LOOKUP($AO104,Data!$A$6:$A$1806,Data!$J$6:$J$1806) -> -653 | AY104: =LOOKUP($AO104,Data!$A$6:$A$1806,Data!$K$6:$K$1806) -> 7632 | AZ104: 460.0067139 | BA104: T+50 sec | BB104: 40098.10296 | BO104: T+50 sec | BP104: 40098.10296 | CC104: T+50 sec | CD104: 40098.10296 | CQ104: T+50 sec | CR104: 40098.10296 | CS104: 59.88833343 | CT104: 0 | CU104: 0 | CV104: -213.9681769 | CW104: 0 | CX104: 0 | CY104: 0 | CZ104: 0 | DA104: -653 | DB104: 7632 | DC104: 446.6662937 | DD104: 1199.534895 | DE104: T+50 sec | DF104: 40098.10296 | DG104: 59.88911775 | DH104: 0 | DI104: 0 | DJ104: -214.1277143 | DK104: 0 | DL104: 0 | DM104: 0 | DN104: 0 | DO104: -653 | DP104: 7632 | DQ104: 443.5290168 | DR104: 1196.238081
A105: T+52 sec | B105: 40098.10299 | C105: =LOOKUP(B105,Data!$A$6:$A$1806,Data!B$6:B$1806) -> 59.88800049 | D105: =LOOKUP(B105,Data!$A$6:$A$1806,Data!C$6:C$1806) -> 0 | E105: 59.88911775 | F105: 0 | H105: 447.9980469 | I105: 447.9980469 | K105: 1245.029917 | L105: -5.030463798 | M105: 1106.211848 | N105: =AVERAGE(D$79:D105) -> 0 | O105: =AVERAGE(M$79:M105) -> 1177.980399 | P105: 673.9985537 | Q105: =AVERAGE(P$79:P105) -> 736.8793512 | R105: 633 | Y105: 0 | Z105: 633 | AA105: -410.7062975 | AB105: -413.951533 | AC105: T+52 sec | AJ105: 59.88833343 | AK105: -411.9963314 | AL105: 59.88911775 | AM105: -413.951533 | AN105: T+52 sec | AO105: 40098.10299 | AP105: =LOOKUP($AO105,Data!$A$6:$A$1806,Data!$B$6:$B$1806) -> 59.88800049 | AQ105: =LOOKUP($AO105,Data!$A$6:$A$1806,Data!$C$6:$C$1806) -> 0 | AR105: =LOOKUP($AO105,Data!$A$6:$A$1806,Data!$D$6:$D$1806) -> 0 | AS105: =IF($AS$1="+",LOOKUP($AO105,Data!$A$6:$A$1806,Data!$E$6:$E$1806)*-1,LOOKUP($AO105,Data!$A$6:$A$1806,Data!$E$6:$E$1806)) -> -218.3272552 | AT105: =LOOKUP($AO105,Data!$A$6:$A$1806,Data!$F$6:$F$1806) -> 0 | AU105: =LOOKUP($AO105,Data!$A$6:$A$1806,Data!$G$6:$G$1806) -> 0 | AV105: =LOOKUP($AO105,Data!$A$6:$A$1806,Data!$H$6:$H$1806) -> 0 | AW105: =LOOKUP($AO105,Data!$A$6:$A$1806,Data!$I$6:$I$1806) -> 0 | AX105: =LOOKUP($AO105,Data!$A$6:$A$1806,Data!$J$6:$J$1806) -> -653 | AY105: =LOOKUP($AO105,Data!$A$6:$A$1806,Data!$K$6:$K$1806) -> 7632 | AZ105: 447.9980469 | BA105: T+52 sec | BB105: 40098.10299 | BO105: T+52 sec | BP105: 40098.10299 | CC105: T+52 sec | CD105: 40098.10299 | CQ105: T+52 sec | CR105: 40098.10299 | CS105: 59.88833343 | CT105: 0 | CU105: 0 | CV105: -213.9681769 | CW105: 0 | CX105: 0 | CY105: 0 | CZ105: 0 | DA105: -653 | DB105: 7632 | DC105: 446.6662937 | DD105: 1199.534895 | DE105: T+52 sec | DF105: 40098.10299 | DG105: 59.88911775 | DH105: 0 | DI105: 0 | DJ105: -214.1277143 | DK105: 0 | DL105: 0 | DM105: 0 | DN105: 0 | DO105: -653 | DP105: 7632 | DQ105: 443.5290168 | DR105: 1196.238081
A106: T+54 sec | B106: 40098.10301 | C106: =LOOKUP(B106,Data!$A$6:$A$1806,Data!B$6:B$1806) -> 59.88700104 | D106: =LOOKUP(B106,Data!$A$6:$A$1806,Data!C$6:C$1806) -> 0 | H106: 451.9958496 | I106: 451.9958496 | L106: -5.030463798 | M106: 1105.179186 | N106: =AVERAGE(D$79:D106) -> 0 | O106: =AVERAGE(M$79:M106) -> 1175.380356 | P106: 668.9680899 | Q106: =AVERAGE(P$79:P106) -> 734.3641193 | R106: 633 | Y106: 0 | Z106: 633 | AA106: -408.0601551 | AC106: T+54 sec | AN106: T+54 sec | AO106: 40098.10301 | AP106: =LOOKUP($AO106,Data!$A$6:$A$1806,Data!$B$6:$B$1806) -> 59.88700104 | AQ106: =LOOKUP($AO106,Data!$A$6:$A$1806,Data!$C$6:$C$1806) -> 0 | AR106: =LOOKUP($AO106,Data!$A$6:$A$1806,Data!$D$6:$D$1806) -> 0 | AS106: =IF($AS$1="+",LOOKUP($AO106,Data!$A$6:$A$1806,Data!$E$6:$E$1806)*-1,LOOKUP($AO106,Data!$A$6:$A$1806,Data!$E$6:$E$1806)) -> -218.3272552 | AT106: =LOOKUP($AO106,Data!$A$6:$A$1806,Data!$F$6:$F$1806) -> 0 | AU106: =LOOKUP($AO106,Data!$A$6:$A$1806,Data!$G$6:$G$1806) -> 0 | AV106: =LOOKUP($AO106,Data!$A$6:$A$1806,Data!$H$6:$H$1806) -> 0 | AW106: =LOOKUP($AO106,Data!$A$6:$A$1806,Data!$I$6:$I$1806) -> 0 | AX106: =LOOKUP($AO106,Data!$A$6:$A$1806,Data!$J$6:$J$1806) -> -653 | AY106: =LOOKUP($AO106,Data!$A$6:$A$1806,Data!$K$6:$K$1806) -> 7632 | AZ106: 451.9958496 | BA106: T+54 sec | BB106: 40098.10301 | BO106: T+54 sec | BP106: 40098.10301 | CC106: T+54 sec | CD106: 40098.10301 | CQ106: T+54 sec | CR106: 40098.10301 | DE106: T+54 sec | DF106: 40098.10301
A107: T+56 sec | B107: 40098.10303 | C107: =LOOKUP(B107,Data!$A$6:$A$1806,Data!B$6:B$1806) -> 59.88800049 | D107: =LOOKUP(B107,Data!$A$6:$A$1806,Data!C$6:C$1806) -> 0 | H107: 447.9980469 | I107: =L$13*H107+(1-L$13)*I106 -> 447.9980469 | L107: -5.030463798 | M107: 1096.15092 | N107: =AVERAGE(D$79:D107) -> 0 | O107: =AVERAGE(M$79:M107) -> 1172.648306 | P107: 663.9376261 | Q107: =AVERAGE(P$79:P107) -> 731.8488874 | R107: 633 | Y107: 0 | Z107: =SUM(R107:Y107) -> 633 | AA107: -410.7062975 | AC107: T+56 sec | AN107: T+56 sec | AO107: 40098.10303 | AP107: =LOOKUP($AO107,Data!$A$6:$A$1806,Data!$B$6:$B$1806) -> 59.88800049 | AQ107: =LOOKUP($AO107,Data!$A$6:$A$1806,Data!$C$6:$C$1806) -> 0 | AR107: =LOOKUP($AO107,Data!$A$6:$A$1806,Data!$D$6:$D$1806) -> 0 | AS107: =IF($AS$1="+",LOOKUP($AO107,Data!$A$6:$A$1806,Data!$E$6:$E$1806)*-1,LOOKUP($AO107,Data!$A$6:$A$1806,Data!$E$6:$E$1806)) -> -218.3272552 | AT107: =LOOKUP($AO107,Data!$A$6:$A$1806,Data!$F$6:$F$1806) -> 0 | AU107: =LOOKUP($AO107,Data!$A$6:$A$1806,Data!$G$6:$G$1806) -> 0 | AV107: =LOOKUP($AO107,Data!$A$6:$A$1806,Data!$H$6:$H$1806) -> 0 | AW107: =LOOKUP($AO107,Data!$A$6:$A$1806,Data!$I$6:$I$1806) -> 0 | AX107: =LOOKUP($AO107,Data!$A$6:$A$1806,Data!$J$6:$J$1806) -> -653 | AY107: =LOOKUP($AO107,Data!$A$6:$A$1806,Data!$K$6:$K$1806) -> 7632 | AZ107: 447.9980469 | BA107: T+56 sec | BB107: 40098.10303 | BO107: T+56 sec | BP107: 40098.10303 | CC107: T+56 sec | CD107: 40098.10303 | CQ107: T+56 sec | CR107: 40098.10303 | DE107: T+56 sec | DF107: 40098.10303
A108: T+58 sec | B108: 40098.10306 | C108: =LOOKUP(B108,Data!$A$6:$A$1806,Data!B$6:B$1806) -> 59.88800049 | D108: =LOOKUP(B108,Data!$A$6:$A$1806,Data!C$6:C$1806) -> 0 | H108: =(IF((C108-L$2)>0,((C108-L$2-L$5)/((L$4*L$2)-L$5)*L$3*-1),((C108-L$2+L$5)/((L$4*L$2)-L$5)*L$3*-1))) -> 447.9980469 | I108: 447.9980469 | L108: -5.030463798 | M108: 1091.120456 | N108: =AVERAGE(D$79:D108) -> 0 | O108: =AVERAGE(M$79:M108) -> 1169.930711 | P108: 658.9071623 | Q108: =AVERAGE(P$79:P108) -> 729.3336555 | R108: 633 | Y108: 0 | Z108: 633 | AA108: -410.7062975 | AC108: =A108 -> T+58 sec | AN108: T+58 sec | AO108: 40098.10306 | AP108: =LOOKUP($AO108,Data!$A$6:$A$1806,Data!$B$6:$B$1806) -> 59.88800049 | AQ108: =LOOKUP($AO108,Data!$A$6:$A$1806,Data!$C$6:$C$1806) -> 0 | AR108: =LOOKUP($AO108,Data!$A$6:$A$1806,Data!$D$6:$D$1806) -> 0 | AS108: =IF($AS$1="+",LOOKUP($AO108,Data!$A$6:$A$1806,Data!$E$6:$E$1806)*-1,LOOKUP($AO108,Data!$A$6:$A$1806,Data!$E$6:$E$1806)) -> -218.3272552 | AT108: =LOOKUP($AO108,Data!$A$6:$A$1806,Data!$F$6:$F$1806) -> 0 | AU108: =LOOKUP($AO108,Data!$A$6:$A$1806,Data!$G$6:$G$1806) -> 0 | AV108: =LOOKUP($AO108,Data!$A$6:$A$1806,Data!$H$6:$H$1806) -> 0 | AW108: =LOOKUP($AO108,Data!$A$6:$A$1806,Data!$I$6:$I$1806) -> 0 | AX108: =LOOKUP($AO108,Data!$A$6:$A$1806,Data!$J$6:$J$1806) -> -653 | AY108: =LOOKUP($AO108,Data!$A$6:$A$1806,Data!$K$6:$K$1806) -> 7632 | AZ108: =(IF((AP108-$L$2)>0,((AP108-$L$2-$L$5)/(($L$4*$L$2)-$L$5)*$L$3*-1),((AP108-$L$2+$L$5)/(($L$4*$L$2)-$L$5)*$L$3*-1))) -> 447.9980469 | BA108: T+58 sec | BB108: 40098.10306 | BO108: T+58 sec | BP108: 40098.10306 | CC108: T+58 sec | CD108: 40098.10306 | CQ108: T+58 sec | CR108: 40098.10306 | DE108: T+58 sec | DF108: 40098.10306
A109: T+60 sec | B109: 40098.10308 | C109: =LOOKUP(B109,Data!$A$6:$A$1806,Data!B$6:B$1806) -> 59.88999939 | D109: =LOOKUP(B109,Data!$A$6:$A$1806,Data!C$6:C$1806) -> 0 | H109: 440.0024414 | I109: 440.0024414 | L109: -5.030463798 | M109: 1078.094387 | N109: =AVERAGE(D$79:D109) -> 0 | O109: =AVERAGE(M$79:M109) -> 1166.968249 | P109: 653.8766985 | Q109: =AVERAGE(P$79:P109) -> 726.8184236 | R109: 633 | Y109: 0 | Z109: 633 | AA109: -416.1028916 | AC109: T+60 sec | AN109: T+60 sec | AO109: 40098.10308 | AP109: =LOOKUP($AO109,Data!$A$6:$A$1806,Data!$B$6:$B$1806) -> 59.88999939 | AQ109: =LOOKUP($AO109,Data!$A$6:$A$1806,Data!$C$6:$C$1806) -> 0 | AR109: =LOOKUP($AO109,Data!$A$6:$A$1806,Data!$D$6:$D$1806) -> 0 | AS109: =IF($AS$1="+",LOOKUP($AO109,Data!$A$6:$A$1806,Data!$E$6:$E$1806)*-1,LOOKUP($AO109,Data!$A$6:$A$1806,Data!$E$6:$E$1806)) -> -218.3272552 | AT109: =LOOKUP($AO109,Data!$A$6:$A$1806,Data!$F$6:$F$1806) -> 0 | AU109: =LOOKUP($AO109,Data!$A$6:$A$1806,Data!$G$6:$G$1806) -> 0 | AV109: =LOOKUP($AO109,Data!$A$6:$A$1806,Data!$H$6:$H$1806) -> 0 | AW109: =LOOKUP($AO109,Data!$A$6:$A$1806,Data!$I$6:$I$1806) -> 0 | AX109: =LOOKUP($AO109,Data!$A$6:$A$1806,Data!$J$6:$J$1806) -> -653 | AY109: =LOOKUP($AO109,Data!$A$6:$A$1806,Data!$K$6:$K$1806) -> 7632 | AZ109: 440.0024414 | BA109: T+60 sec | BB109: 40098.10308 | BO109: T+60 sec | BP109: 40098.10308 | CC109: T+60 sec | CD109: 40098.10308 | CQ109: T+60 sec | CR109: 40098.10308 | DE109: T+60 sec | DF109: 40098.10308
A110: T+62 sec | B110: =B109+TIME(0,0,$B$1) -> 40098.1031 | C110: =LOOKUP(B110,Data!$A$6:$A$1806,Data!B$6:B$1806) -> 59.88899994 | D110: =LOOKUP(B110,Data!$A$6:$A$1806,Data!C$6:C$1806) -> 0 | H110: 444.0002441 | I110: 444.0002441 | L110: -5.030463798 | M110: 1077.061726 | N110: =AVERAGE(D$79:D110) -> 0 | O110: =AVERAGE(M$79:M110) -> 1164.158671 | P110: 648.8462347 | Q110: =AVERAGE(P$79:P110) -> 724.3031917 | R110: 633 | Y110: 0 | Z110: 633 | AA110: -413.3869827 | AC110: T+62 sec | AN110: T+62 sec | AO110: 40098.1031 | AP110: =LOOKUP($AO110,Data!$A$6:$A$1806,Data!$B$6:$B$1806) -> 59.88899994 | AQ110: =LOOKUP($AO110,Data!$A$6:$A$1806,Data!$C$6:$C$1806) -> 0 | AR110: =LOOKUP($AO110,Data!$A$6:$A$1806,Data!$D$6:$D$1806) -> 0 | AS110: =IF($AS$1="+",LOOKUP($AO110,Data!$A$6:$A$1806,Data!$E$6:$E$1806)*-1,LOOKUP($AO110,Data!$A$6:$A$1806,Data!$E$6:$E$1806)) -> -217.379425 | AT110: =LOOKUP($AO110,Data!$A$6:$A$1806,Data!$F$6:$F$1806) -> 0 | AU110: =LOOKUP($AO110,Data!$A$6:$A$1806,Data!$G$6:$G$1806) -> 0 | AV110: =LOOKUP($AO110,Data!$A$6:$A$1806,Data!$H$6:$H$1806) -> 0 | AW110: =LOOKUP($AO110,Data!$A$6:$A$1806,Data!$I$6:$I$1806) -> 0 | AX110: =LOOKUP($AO110,Data!$A$6:$A$1806,Data!$J$6:$J$1806) -> -653 | AY110: =LOOKUP($AO110,Data!$A$6:$A$1806,Data!$K$6:$K$1806) -> 7632 | AZ110: 444.0002441 | BA110: T+62 sec | BB110: 40098.1031 | BO110: T+62 sec | BP110: 40098.1031 | CC110: T+62 sec | CD110: 40098.1031 | CQ110: T+62 sec | CR110: 40098.1031 | DE110: T+62 sec | DF110: 40098.1031
A111: T+64 sec | B111: 40098.10312 | C111: =LOOKUP(B111,Data!$A$6:$A$1806,Data!B$6:B$1806) -> 59.88199997 | D111: =LOOKUP(B111,Data!$A$6:$A$1806,Data!C$6:C$1806) -> 0 | H111: 472.0001221 | I111: 472.0001221 | L111: -5.030463798 | M111: 1100.03114 | N111: =AVERAGE(D$79:D111) -> 0 | O111: =AVERAGE(M$79:M111) -> 1162.215412 | P111: 643.8157709 | Q111: =AVERAGE(P$79:P111) -> 721.7879598 | R111: 633 | Y111: 0 | Z111: 633 | AA111: -395.3155283 | AC111: T+64 sec | AN111: T+64 sec | AO111: 40098.10312 | AP111: =LOOKUP($AO111,Data!$A$6:$A$1806,Data!$B$6:$B$1806) -> 59.88199997 | AQ111: =LOOKUP($AO111,Data!$A$6:$A$1806,Data!$C$6:$C$1806) -> 0 | AR111: =LOOKUP($AO111,Data!$A$6:$A$1806,Data!$D$6:$D$1806) -> 0 | AS111: =IF($AS$1="+",LOOKUP($AO111,Data!$A$6:$A$1806,Data!$E$6:$E$1806)*-1,LOOKUP($AO111,Data!$A$6:$A$1806,Data!$E$6:$E$1806)) -> -217.379425 | AT111: =LOOKUP($AO111,Data!$A$6:$A$1806,Data!$F$6:$F$1806) -> 0 | AU111: =LOOKUP($AO111,Data!$A$6:$A$1806,Data!$G$6:$G$1806) -> 0 | AV111: =LOOKUP($AO111,Data!$A$6:$A$1806,Data!$H$6:$H$1806) -> 0 | AW111: =LOOKUP($AO111,Data!$A$6:$A$1806,Data!$I$6:$I$1806) -> 0 | AX111: =LOOKUP($AO111,Data!$A$6:$A$1806,Data!$J$6:$J$1806) -> -653 | AY111: =LOOKUP($AO111,Data!$A$6:$A$1806,Data!$K$6:$K$1806) -> 7632 | AZ111: 472.0001221 | BA111: T+64 sec | BB111: 40098.10312 | BO111: T+64 sec | BP111: 40098.10312 | CC111: T+64 sec | CD111: 40098.10312 | CQ111: T+64 sec | CR111: 40098.10312 | DE111: T+64 sec | DF111: 40098.10312
A112: T+66 sec | B112: 40098.10315 | C112: =LOOKUP(B112,Data!$A$6:$A$1806,Data!B$6:B$1806) -> 59.8730011 | D112: =LOOKUP(B112,Data!$A$6:$A$1806,Data!C$6:C$1806) -> 0 | H112: 507.9956055 | I112: 507.9956055 | L112: -5.030463798 | M112: 1130.99616 | N112: =AVERAGE(D$79:D112) -> 0 | O112: =AVERAGE(M$79:M112) -> 1161.297199 | P112: 638.7853071 | Q112: =AVERAGE(P$79:P112) -> 719.2727279 | R112: 633 | Y112: 0 | Z112: 633 | AA112: -374.2813124 | AC112: T+66 sec | AN112: T+66 sec | AO112: 40098.10315 | AP112: =LOOKUP($AO112,Data!$A$6:$A$1806,Data!$B$6:$B$1806) -> 59.8730011 | AQ112: =LOOKUP($AO112,Data!$A$6:$A$1806,Data!$C$6:$C$1806) -> 0 | AR112: =LOOKUP($AO112,Data!$A$6:$A$1806,Data!$D$6:$D$1806) -> 0 | AS112: =IF($AS$1="+",LOOKUP($AO112,Data!$A$6:$A$1806,Data!$E$6:$E$1806)*-1,LOOKUP($AO112,Data!$A$6:$A$1806,Data!$E$6:$E$1806)) -> -217.379425 | AT112: =LOOKUP($AO112,Data!$A$6:$A$1806,Data!$F$6:$F$1806) -> 0 | AU112: =LOOKUP($AO112,Data!$A$6:$A$1806,Data!$G$6:$G$1806) -> 0 | AV112: =LOOKUP($AO112,Data!$A$6:$A$1806,Data!$H$6:$H$1806) -> 0 | AW112: =LOOKUP($AO112,Data!$A$6:$A$1806,Data!$I$6:$I$1806) -> 0 | AX112: =LOOKUP($AO112,Data!$A$6:$A$1806,Data!$J$6:$J$1806) -> -653 | AY112: =LOOKUP($AO112,Data!$A$6:$A$1806,Data!$K$6:$K$1806) -> 7631 | AZ112: 507.9956055 | BA112: T+66 sec | BB112: 40098.10315 | BO112: T+66 sec | BP112: 40098.10315 | CC112: T+66 sec | CD112: 40098.10315 | CQ112: T+66 sec | CR112: 40098.10315 | DE112: T+66 sec | DF112: 40098.10315
A113: T+68 sec | B113: 40098.10317 | C113: =LOOKUP(B113,Data!$A$6:$A$1806,Data!B$6:B$1806) -> 59.85699844 | D113: =LOOKUP(B113,Data!$A$6:$A$1806,Data!C$6:C$1806) -> 0 | H113: 572.0062256 | I113: 572.0062256 | L113: -5.030463798 | M113: 1189.976316 | N113: =AVERAGE(D$79:D113) -> 0 | O113: =AVERAGE(M$79:M113) -> 1162.116602 | P113: 633.7548434 | Q113: =AVERAGE(P$79:P113) -> 716.757496 | R113: 633 | Y113: 0 | Z113: 633 | AA113: -341.9278372 | AC113: T+68 sec | AN113: T+68 sec | AO113: 40098.10317 | AP113: =LOOKUP($AO113,Data!$A$6:$A$1806,Data!$B$6:$B$1806) -> 59.85699844 | AQ113: =LOOKUP($AO113,Data!$A$6:$A$1806,Data!$C$6:$C$1806) -> 0 | AR113: =LOOKUP($AO113,Data!$A$6:$A$1806,Data!$D$6:$D$1806) -> 0 | AS113: =IF($AS$1="+",LOOKUP($AO113,Data!$A$6:$A$1806,Data!$E$6:$E$1806)*-1,LOOKUP($AO113,Data!$A$6:$A$1806,Data!$E$6:$E$1806)) -> -217.379425 | AT113: =LOOKUP($AO113,Data!$A$6:$A$1806,Data!$F$6:$F$1806) -> 0 | AU113: =LOOKUP($AO113,Data!$A$6:$A$1806,Data!$G$6:$G$1806) -> 0 | AV113: =LOOKUP($AO113,Data!$A$6:$A$1806,Data!$H$6:$H$1806) -> 0 | AW113: =LOOKUP($AO113,Data!$A$6:$A$1806,Data!$I$6:$I$1806) -> 0 | AX113: =LOOKUP($AO113,Data!$A$6:$A$1806,Data!$J$6:$J$1806) -> -653 | AY113: =LOOKUP($AO113,Data!$A$6:$A$1806,Data!$K$6:$K$1806) -> 7625 | AZ113: 572.0062256 | BA113: T+68 sec | BB113: 40098.10317 | BO113: T+68 sec | BP113: 40098.10317 | CC113: T+68 sec | CD113: 40098.10317 | CQ113: T+68 sec | CR113: 40098.10317 | DE113: T+68 sec | DF113: 40098.10317
A114: T+70 sec | B114: 40098.10319 | C114: =LOOKUP(B114,Data!$A$6:$A$1806,Data!B$6:B$1806) -> 59.84899902 | D114: =LOOKUP(B114,Data!$A$6:$A$1806,Data!C$6:C$1806) -> 0 | H114: 604.0039062 | I114: 604.0039062 | L114: -5.030463798 | M114: 1216.943533 | N114: =AVERAGE(D$79:D114) -> 0 | O114: =AVERAGE(M$79:M114) -> 1163.639572 | P114: 628.7243796 | Q114: =AVERAGE(P$79:P114) -> 714.2422641 | R114: 633 | Y114: 0 | Z114: 633 | AA114: -327.7649509 | AC114: T+70 sec | AN114: T+70 sec | AO114: 40098.10319 | AP114: =LOOKUP($AO114,Data!$A$6:$A$1806,Data!$B$6:$B$1806) -> 59.84899902 | AQ114: =LOOKUP($AO114,Data!$A$6:$A$1806,Data!$C$6:$C$1806) -> 0 | AR114: =LOOKUP($AO114,Data!$A$6:$A$1806,Data!$D$6:$D$1806) -> 0 | AS114: =IF($AS$1="+",LOOKUP($AO114,Data!$A$6:$A$1806,Data!$E$6:$E$1806)*-1,LOOKUP($AO114,Data!$A$6:$A$1806,Data!$E$6:$E$1806)) -> -217.379425 | AT114: =LOOKUP($AO114,Data!$A$6:$A$1806,Data!$F$6:$F$1806) -> 0 | AU114: =LOOKUP($AO114,Data!$A$6:$A$1806,Data!$G$6:$G$1806) -> 0 | AV114: =LOOKUP($AO114,Data!$A$6:$A$1806,Data!$H$6:$H$1806) -> 0 | AW114: =LOOKUP($AO114,Data!$A$6:$A$1806,Data!$I$6:$I$1806) -> 0 | AX114: =LOOKUP($AO114,Data!$A$6:$A$1806,Data!$J$6:$J$1806) -> -653 | AY114: =LOOKUP($AO114,Data!$A$6:$A$1806,Data!$K$6:$K$1806) -> 7623 | AZ114: 604.0039062 | BA114: T+70 sec | BB114: 40098.10319 | BO114: T+70 sec | BP114: 40098.10319 | CC114: T+70 sec | CD114: 40098.10319 | CQ114: T+70 sec | CR114: 40098.10319 | DE114: T+70 sec | DF114: 40098.10319
A115: T+72 sec | B115: 40098.10322 | C115: =LOOKUP(B115,Data!$A$6:$A$1806,Data!B$6:B$1806) -> 59.85200119 | D115: =LOOKUP(B115,Data!$A$6:$A$1806,Data!C$6:C$1806) -> 0 | H115: 591.9952393 | I115: 591.9952393 | L115: -5.030463798 | M115: 1199.904402 | N115: =AVERAGE(D$79:D115) -> 0 | O115: =AVERAGE(M$79:M115) -> 1164.619703 | P115: 623.6939158 | Q115: =AVERAGE(P$79:P115) -> 711.7270322 | R115: 633 | Y115: 0 | Z115: 633 | AA115: -332.9405461 | AC115: T+72 sec | AN115: T+72 sec | AO115: 40098.10322 | AP115: =LOOKUP($AO115,Data!$A$6:$A$1806,Data!$B$6:$B$1806) -> 59.85200119 | AQ115: =LOOKUP($AO115,Data!$A$6:$A$1806,Data!$C$6:$C$1806) -> 0 | AR115: =LOOKUP($AO115,Data!$A$6:$A$1806,Data!$D$6:$D$1806) -> 0 | AS115: =IF($AS$1="+",LOOKUP($AO115,Data!$A$6:$A$1806,Data!$E$6:$E$1806)*-1,LOOKUP($AO115,Data!$A$6:$A$1806,Data!$E$6:$E$1806)) -> -214.8303528 | AT115: =LOOKUP($AO115,Data!$A$6:$A$1806,Data!$F$6:$F$1806) -> 0 | AU115: =LOOKUP($AO115,Data!$A$6:$A$1806,Data!$G$6:$G$1806) -> 0 | AV115: =LOOKUP($AO115,Data!$A$6:$A$1806,Data!$H$6:$H$1806) -> 0 | AW115: =LOOKUP($AO115,Data!$A$6:$A$1806,Data!$I$6:$I$1806) -> 0 | AX115: =LOOKUP($AO115,Data!$A$6:$A$1806,Data!$J$6:$J$1806) -> -653 | AY115: =LOOKUP($AO115,Data!$A$6:$A$1806,Data!$K$6:$K$1806) -> 7621 | AZ115: 591.9952393 | BA115: T+72 sec | BB115: 40098.10322 | BO115: T+72 sec | BP115: 40098.10322 | CC115: T+72 sec | CD115: 40098.10322 | CQ115: T+72 sec | CR115: 40098.10322 | DE115: T+72 sec | DF115: 40098.10322
A116: T+74 sec | B116: 40098.10324 | C116: =LOOKUP(B116,Data!$A$6:$A$1806,Data!B$6:B$1806) -> 59.85800171 | D116: =LOOKUP(B116,Data!$A$6:$A$1806,Data!C$6:C$1806) -> 0 | H116: 567.9931641 | I116: 567.9931641 | L116: -5.030463798 | M116: 1170.871863 | N116: =AVERAGE(D$79:D116) -> 0 | O116: =AVERAGE(M$79:M116) -> 1164.784233 | P116: 618.663452 | Q116: =AVERAGE(P$79:P116) -> 709.2118003 | R116: 633 | Y116: 0 | Z116: 633 | AA116: -343.7909581 | AC116: T+74 sec | AN116: T+74 sec | AO116: 40098.10324 | AP116: =LOOKUP($AO116,Data!$A$6:$A$1806,Data!$B$6:$B$1806) -> 59.85800171 | AQ116: =LOOKUP($AO116,Data!$A$6:$A$1806,Data!$C$6:$C$1806) -> 0 | AR116: =LOOKUP($AO116,Data!$A$6:$A$1806,Data!$D$6:$D$1806) -> 0 | AS116: =IF($AS$1="+",LOOKUP($AO116,Data!$A$6:$A$1806,Data!$E$6:$E$1806)*-1,LOOKUP($AO116,Data!$A$6:$A$1806,Data!$E$6:$E$1806)) -> -214.8303528 | AT116: =LOOKUP($AO116,Data!$A$6:$A$1806,Data!$F$6:$F$1806) -> 0 | AU116: =LOOKUP($AO116,Data!$A$6:$A$1806,Data!$G$6:$G$1806) -> 0 | AV116: =LOOKUP($AO116,Data!$A$6:$A$1806,Data!$H$6:$H$1806) -> 0 | AW116: =LOOKUP($AO116,Data!$A$6:$A$1806,Data!$I$6:$I$1806) -> 0 | AX116: =LOOKUP($AO116,Data!$A$6:$A$1806,Data!$J$6:$J$1806) -> -653 | AY116: =LOOKUP($AO116,Data!$A$6:$A$1806,Data!$K$6:$K$1806) -> 7623 | AZ116: 567.9931641 | BA116: T+74 sec | BB116: 40098.10324 | BO116: T+74 sec | BP116: 40098.10324 | CC116: T+74 sec | CD116: 40098.10324 | CQ116: T+74 sec | CR116: 40098.10324 | DE116: T+74 sec | DF116: 40098.10324
A117: T+76 sec | B117: 40098.10326 | C117: =LOOKUP(B117,Data!$A$6:$A$1806,Data!B$6:B$1806) -> 59.86299896 | D117: =LOOKUP(B117,Data!$A$6:$A$1806,Data!C$6:C$1806) -> 0 | H117: 548.0041504 | I117: 548.0041504 | L117: -5.030463798 | M117: 1145.852385 | N117: =AVERAGE(D$79:D117) -> 0 | O117: =AVERAGE(M$79:M117) -> 1164.298801 | P117: 613.6329882 | Q117: =AVERAGE(P$79:P117) -> 706.6965684 | R117: 633 | Y117: 0 | Z117: 633 | AA117: -353.382017 | AC117: T+76 sec | AN117: T+76 sec | AO117: 40098.10326 | AP117: =LOOKUP($AO117,Data!$A$6:$A$1806,Data!$B$6:$B$1806) -> 59.86299896 | AQ117: =LOOKUP($AO117,Data!$A$6:$A$1806,Data!$C$6:$C$1806) -> 0 | AR117: =LOOKUP($AO117,Data!$A$6:$A$1806,Data!$D$6:$D$1806) -> 0 | AS117: =IF($AS$1="+",LOOKUP($AO117,Data!$A$6:$A$1806,Data!$E$6:$E$1806)*-1,LOOKUP($AO117,Data!$A$6:$A$1806,Data!$E$6:$E$1806)) -> -214.8303528 | AT117: =LOOKUP($AO117,Data!$A$6:$A$1806,Data!$F$6:$F$1806) -> 0 | AU117: =LOOKUP($AO117,Data!$A$6:$A$1806,Data!$G$6:$G$1806) -> 0 | AV117: =LOOKUP($AO117,Data!$A$6:$A$1806,Data!$H$6:$H$1806) -> 0 | AW117: =LOOKUP($AO117,Data!$A$6:$A$1806,Data!$I$6:$I$1806) -> 0 | AX117: =LOOKUP($AO117,Data!$A$6:$A$1806,Data!$J$6:$J$1806) -> -653 | AY117: =LOOKUP($AO117,Data!$A$6:$A$1806,Data!$K$6:$K$1806) -> 7625 | AZ117: 548.0041504 | BA117: T+76 sec | BB117: 40098.10326 | BO117: T+76 sec | BP117: 40098.10326 | CC117: T+76 sec | CD117: 40098.10326 | CQ117: T+76 sec | CR117: 40098.10326 | DE117: T+76 sec | DF117: 40098.10326
A118: T+78 sec | B118: 40098.10329 | C118: =LOOKUP(B118,Data!$A$6:$A$1806,Data!B$6:B$1806) -> 59.86600113 | D118: =LOOKUP(B118,Data!$A$6:$A$1806,Data!C$6:C$1806) -> 0 | H118: 535.9954834 | I118: 535.9954834 | L118: -5.030463798 | M118: 1128.813255 | N118: =AVERAGE(D$79:D118) -> 0 | O118: =AVERAGE(M$79:M118) -> 1163.411663 | P118: 608.6025244 | Q118: =AVERAGE(P$79:P118) -> 704.1813365 | R118: 633 | Y118: 0 | Z118: 633 | AA118: -359.4056774 | AC118: T+78 sec | AN118: T+78 sec | AO118: 40098.10329 | AP118: =LOOKUP($AO118,Data!$A$6:$A$1806,Data!$B$6:$B$1806) -> 59.86600113 | AQ118: =LOOKUP($AO118,Data!$A$6:$A$1806,Data!$C$6:$C$1806) -> 0 | AR118: =LOOKUP($AO118,Data!$A$6:$A$1806,Data!$D$6:$D$1806) -> 0 | AS118: =IF($AS$1="+",LOOKUP($AO118,Data!$A$6:$A$1806,Data!$E$6:$E$1806)*-1,LOOKUP($AO118,Data!$A$6:$A$1806,Data!$E$6:$E$1806)) -> -214.8303528 | AT118: =LOOKUP($AO118,Data!$A$6:$A$1806,Data!$F$6:$F$1806) -> 0 | AU118: =LOOKUP($AO118,Data!$A$6:$A$1806,Data!$G$6:$G$1806) -> 0 | AV118: =LOOKUP($AO118,Data!$A$6:$A$1806,Data!$H$6:$H$1806) -> 0 | AW118: =LOOKUP($AO118,Data!$A$6:$A$1806,Data!$I$6:$I$1806) -> 0 | AX118: =LOOKUP($AO118,Data!$A$6:$A$1806,Data!$J$6:$J$1806) -> -653 | AY118: =LOOKUP($AO118,Data!$A$6:$A$1806,Data!$K$6:$K$1806) -> 7627 | AZ118: 535.9954834 | BA118: T+78 sec | BB118: 40098.10329 | BO118: T+78 sec | BP118: 40098.10329 | CC118: T+78 sec | CD118: 40098.10329 | CQ118: T+78 sec | CR118: 40098.10329 | DE118: T+78 sec | DF118: 40098.10329
A119: T+80 sec | B119: 40098.10331 | C119: =LOOKUP(B119,Data!$A$6:$A$1806,Data!B$6:B$1806) -> 59.86500168 | D119: =LOOKUP(B119,Data!$A$6:$A$1806,Data!C$6:C$1806) -> 0 | H119: 539.9932861 | I119: 539.9932861 | L119: -5.030463798 | M119: 1127.780594 | N119: =AVERAGE(D$79:D119) -> 0 | O119: =AVERAGE(M$79:M119) -> 1162.542612 | P119: 603.5720606 | Q119: =AVERAGE(P$79:P119) -> 701.6661046 | R119: 633 | Y119: 0 | Z119: 633 | AA119: -357.3776678 | AC119: T+80 sec | AN119: T+80 sec | AO119: 40098.10331 | AP119: =LOOKUP($AO119,Data!$A$6:$A$1806,Data!$B$6:$B$1806) -> 59.86500168 | AQ119: =LOOKUP($AO119,Data!$A$6:$A$1806,Data!$C$6:$C$1806) -> 0 | AR119: =LOOKUP($AO119,Data!$A$6:$A$1806,Data!$D$6:$D$1806) -> 0 | AS119: =IF($AS$1="+",LOOKUP($AO119,Data!$A$6:$A$1806,Data!$E$6:$E$1806)*-1,LOOKUP($AO119,Data!$A$6:$A$1806,Data!$E$6:$E$1806)) -> -214.8303528 | AT119: =LOOKUP($AO119,Data!$A$6:$A$1806,Data!$F$6:$F$1806) -> 0 | AU119: =LOOKUP($AO119,Data!$A$6:$A$1806,Data!$G$6:$G$1806) -> 0 | AV119: =LOOKUP($AO119,Data!$A$6:$A$1806,Data!$H$6:$H$1806) -> 0 | AW119: =LOOKUP($AO119,Data!$A$6:$A$1806,Data!$I$6:$I$1806) -> 0 | AX119: =LOOKUP($AO119,Data!$A$6:$A$1806,Data!$J$6:$J$1806) -> -653 | AY119: =LOOKUP($AO119,Data!$A$6:$A$1806,Data!$K$6:$K$1806) -> 7628 | AZ119: 539.9932861 | BA119: T+80 sec | BB119: 40098.10331 | BO119: T+80 sec | BP119: 40098.10331 | CC119: T+80 sec | CD119: 40098.10331 | CQ119: T+80 sec | CR119: 40098.10331 | DE119: T+80 sec | DF119: 40098.10331
B120: 40098.10333 | C120: =LOOKUP(B120,Data!$A$6:$A$1806,Data!B$6:B$1806) -> 59.86700058 | D120: =LOOKUP(B120,Data!$A$6:$A$1806,Data!C$6:C$1806) -> 0 | H120: 531.9976807 | I120: 531.9976807 | L120: -5.030463798 | M120: 1114.754524 | N120: =AVERAGE(D$79:D120) -> 0 | O120: =AVERAGE(M$79:M120) -> 1161.404801 | P120: 598.5415968 | Q120: =AVERAGE(P$79:P120) -> 699.1508727 | R120: 633 | Y120: 0 | Z120: 633 | AA120: -361.456835 | AO120: 40098.10333 | AP120: =LOOKUP($AO120,Data!$A$6:$A$1806,Data!$B$6:$B$1806) -> 59.86700058 | AQ120: =LOOKUP($AO120,Data!$A$6:$A$1806,Data!$C$6:$C$1806) -> 0 | AR120: =LOOKUP($AO120,Data!$A$6:$A$1806,Data!$D$6:$D$1806) -> 0 | AS120: =IF($AS$1="+",LOOKUP($AO120,Data!$A$6:$A$1806,Data!$E$6:$E$1806)*-1,LOOKUP($AO120,Data!$A$6:$A$1806,Data!$E$6:$E$1806)) -> -227.6559143 | AT120: =LOOKUP($AO120,Data!$A$6:$A$1806,Data!$F$6:$F$1806) -> 0 | AU120: =LOOKUP($AO120,Data!$A$6:$A$1806,Data!$G$6:$G$1806) -> 0 | AV120: =LOOKUP($AO120,Data!$A$6:$A$1806,Data!$H$6:$H$1806) -> 0 | AW120: =LOOKUP($AO120,Data!$A$6:$A$1806,Data!$I$6:$I$1806) -> 0 | AX120: =LOOKUP($AO120,Data!$A$6:$A$1806,Data!$J$6:$J$1806) -> -653 | AY120: =LOOKUP($AO120,Data!$A$6:$A$1806,Data!$K$6:$K$1806) -> 7628 | AZ120: 531.9976807
B121: 40098.10336 | C121: =LOOKUP(B121,Data!$A$6:$A$1806,Data!B$6:B$1806) -> 59.86600113 | D121: =LOOKUP(B121,Data!$A$6:$A$1806,Data!C$6:C$1806) -> 0 | H121: 535.9954834 | I121: 535.9954834 | L121: -5.030463798 | M121: 1113.721863 | N121: =AVERAGE(D$79:D121) -> 0 | O121: =AVERAGE(M$79:M121) -> 1160.295895 | P121: 593.511133 | Q121: =AVERAGE(P$79:P121) -> 696.6356408 | R121: 633 | Y121: 0 | Z121: 633 | AA121: -359.4056774 | AO121: 40098.10336 | AP121: =LOOKUP($AO121,Data!$A$6:$A$1806,Data!$B$6:$B$1806) -> 59.86600113 | AQ121: =LOOKUP($AO121,Data!$A$6:$A$1806,Data!$C$6:$C$1806) -> 0 | AR121: =LOOKUP($AO121,Data!$A$6:$A$1806,Data!$D$6:$D$1806) -> 0 | AS121: =IF($AS$1="+",LOOKUP($AO121,Data!$A$6:$A$1806,Data!$E$6:$E$1806)*-1,LOOKUP($AO121,Data!$A$6:$A$1806,Data!$E$6:$E$1806)) -> -227.6559143 | AT121: =LOOKUP($AO121,Data!$A$6:$A$1806,Data!$F$6:$F$1806) -> 0 | AU121: =LOOKUP($AO121,Data!$A$6:$A$1806,Data!$G$6:$G$1806) -> 0 | AV121: =LOOKUP($AO121,Data!$A$6:$A$1806,Data!$H$6:$H$1806) -> 0 | AW121: =LOOKUP($AO121,Data!$A$6:$A$1806,Data!$I$6:$I$1806) -> 0 | AX121: =LOOKUP($AO121,Data!$A$6:$A$1806,Data!$J$6:$J$1806) -> -653 | AY121: =LOOKUP($AO121,Data!$A$6:$A$1806,Data!$K$6:$K$1806) -> 7629 | AZ121: 535.9954834
B122: 40098.10338 | C122: =LOOKUP(B122,Data!$A$6:$A$1806,Data!B$6:B$1806) -> 59.87099838 | D122: =LOOKUP(B122,Data!$A$6:$A$1806,Data!C$6:C$1806) -> 0 | H122: 516.0064697 | I122: 516.0064697 | L122: -5.030463798 | M122: 1088.702386 | N122: =AVERAGE(D$79:D122) -> 0 | O122: =AVERAGE(M$79:M122) -> 1158.66877 | P122: 588.4806692 | Q122: =AVERAGE(P$79:P122) -> 694.1204089 | R122: 633 | Y122: 0 | Z122: 633 | AA122: -369.9010575 | AO122: 40098.10338 | AP122: =LOOKUP($AO122,Data!$A$6:$A$1806,Data!$B$6:$B$1806) -> 59.87099838 | AQ122: =LOOKUP($AO122,Data!$A$6:$A$1806,Data!$C$6:$C$1806) -> 0 | AR122: =LOOKUP($AO122,Data!$A$6:$A$1806,Data!$D$6:$D$1806) -> 0 | AS122: =IF($AS$1="+",LOOKUP($AO122,Data!$A$6:$A$1806,Data!$E$6:$E$1806)*-1,LOOKUP($AO122,Data!$A$6:$A$1806,Data!$E$6:$E$1806)) -> -227.6559143 | AT122: =LOOKUP($AO122,Data!$A$6:$A$1806,Data!$F$6:$F$1806) -> 0 | AU122: =LOOKUP($AO122,Data!$A$6:$A$1806,Data!$G$6:$G$1806) -> 0 | AV122: =LOOKUP($AO122,Data!$A$6:$A$1806,Data!$H$6:$H$1806) -> 0 | AW122: =LOOKUP($AO122,Data!$A$6:$A$1806,Data!$I$6:$I$1806) -> 0 | AX122: =LOOKUP($AO122,Data!$A$6:$A$1806,Data!$J$6:$J$1806) -> -653 | AY122: =LOOKUP($AO122,Data!$A$6:$A$1806,Data!$K$6:$K$1806) -> 7630 | AZ122: 516.0064697
B123: 40098.1034 | C123: =LOOKUP(B123,Data!$A$6:$A$1806,Data!B$6:B$1806) -> 59.87400055 | D123: =LOOKUP(B123,Data!$A$6:$A$1806,Data!C$6:C$1806) -> 0 | H123: 503.9978027 | I123: 503.9978027 | L123: -5.030463798 | M123: 1071.663255 | N123: =AVERAGE(D$79:D123) -> 0 | O123: =AVERAGE(M$79:M123) -> 1156.735314 | P123: 583.4502054 | Q123: =AVERAGE(P$79:P123) -> 691.605177 | R123: 633 | Y123: 0 | Z123: 633 | AA123: -376.5063023 | AO123: 40098.1034 | AP123: =LOOKUP($AO123,Data!$A$6:$A$1806,Data!$B$6:$B$1806) -> 59.87400055 | AQ123: =LOOKUP($AO123,Data!$A$6:$A$1806,Data!$C$6:$C$1806) -> 0 | AR123: =LOOKUP($AO123,Data!$A$6:$A$1806,Data!$D$6:$D$1806) -> 0 | AS123: =IF($AS$1="+",LOOKUP($AO123,Data!$A$6:$A$1806,Data!$E$6:$E$1806)*-1,LOOKUP($AO123,Data!$A$6:$A$1806,Data!$E$6:$E$1806)) -> -227.6559143 | AT123: =LOOKUP($AO123,Data!$A$6:$A$1806,Data!$F$6:$F$1806) -> 0 | AU123: =LOOKUP($AO123,Data!$A$6:$A$1806,Data!$G$6:$G$1806) -> 0 | AV123: =LOOKUP($AO123,Data!$A$6:$A$1806,Data!$H$6:$H$1806) -> 0 | AW123: =LOOKUP($AO123,Data!$A$6:$A$1806,Data!$I$6:$I$1806) -> 0 | AX123: =LOOKUP($AO123,Data!$A$6:$A$1806,Data!$J$6:$J$1806) -> -653 | AY123: =LOOKUP($AO123,Data!$A$6:$A$1806,Data!$K$6:$K$1806) -> 7631 | AZ123: 503.9978027
B124: 40098.10343 | C124: =LOOKUP(B124,Data!$A$6:$A$1806,Data!B$6:B$1806) -> 59.87900162 | D124: =LOOKUP(B124,Data!$A$6:$A$1806,Data!C$6:C$1806) -> 0 | H124: 483.9935303 | I124: 483.9935303 | L124: -5.030463798 | M124: 1046.628519 | N124: =AVERAGE(D$79:D124) -> 0 | O124: =AVERAGE(M$79:M124) -> 1154.341688 | P124: 578.4197416 | Q124: =AVERAGE(P$79:P124) -> 689.0899451 | R124: 633 | Y124: 0 | Z124: 633 | AA124: -388.0492892 | AO124: 40098.10343 | AP124: =LOOKUP($AO124,Data!$A$6:$A$1806,Data!$B$6:$B$1806) -> 59.87900162 | AQ124: =LOOKUP($AO124,Data!$A$6:$A$1806,Data!$C$6:$C$1806) -> 0 | AR124: =LOOKUP($AO124,Data!$A$6:$A$1806,Data!$D$6:$D$1806) -> 0 | AS124: =IF($AS$1="+",LOOKUP($AO124,Data!$A$6:$A$1806,Data!$E$6:$E$1806)*-1,LOOKUP($AO124,Data!$A$6:$A$1806,Data!$E$6:$E$1806)) -> -227.6559143 | AT124: =LOOKUP($AO124,Data!$A$6:$A$1806,Data!$F$6:$F$1806) -> 0 | AU124: =LOOKUP($AO124,Data!$A$6:$A$1806,Data!$G$6:$G$1806) -> 0 | AV124: =LOOKUP($AO124,Data!$A$6:$A$1806,Data!$H$6:$H$1806) -> 0 | AW124: =LOOKUP($AO124,Data!$A$6:$A$1806,Data!$I$6:$I$1806) -> 0 | AX124: =LOOKUP($AO124,Data!$A$6:$A$1806,Data!$J$6:$J$1806) -> -653 | AY124: =LOOKUP($AO124,Data!$A$6:$A$1806,Data!$K$6:$K$1806) -> 7635 | AZ124: 483.9935303
B125: 40098.10345 | C125: =LOOKUP(B125,Data!$A$6:$A$1806,Data!B$6:B$1806) -> 59.88000107 | D125: =LOOKUP(B125,Data!$A$6:$A$1806,Data!C$6:C$1806) -> 0 | H125: 479.9957275 | I125: 479.9957275 | L125: -5.030463798 | M125: 1037.600252 | N125: =AVERAGE(D$79:D125) -> 0 | O125: =AVERAGE(M$79:M125) -> 1151.857828 | P125: 573.3892778 | Q125: =AVERAGE(P$79:P125) -> 686.5747132 | R125: 633 | Y125: 0 | Z125: 633 | AA125: -390.441506 | AO125: 40098.10345 | AP125: =LOOKUP($AO125,Data!$A$6:$A$1806,Data!$B$6:$B$1806) -> 59.88000107 | AQ125: =LOOKUP($AO125,Data!$A$6:$A$1806,Data!$C$6:$C$1806) -> 0 | AR125: =LOOKUP($AO125,Data!$A$6:$A$1806,Data!$D$6:$D$1806) -> 0 | AS125: =IF($AS$1="+",LOOKUP($AO125,Data!$A$6:$A$1806,Data!$E$6:$E$1806)*-1,LOOKUP($AO125,Data!$A$6:$A$1806,Data!$E$6:$E$1806)) -> -225.0180817 | AT125: =LOOKUP($AO125,Data!$A$6:$A$1806,Data!$F$6:$F$1806) -> 0 | AU125: =LOOKUP($AO125,Data!$A$6:$A$1806,Data!$G$6:$G$1806) -> 0 | AV125: =LOOKUP($AO125,Data!$A$6:$A$1806,Data!$H$6:$H$1806) -> 0 | AW125: =LOOKUP($AO125,Data!$A$6:$A$1806,Data!$I$6:$I$1806) -> 0 | AX125: =LOOKUP($AO125,Data!$A$6:$A$1806,Data!$J$6:$J$1806) -> -653 | AY125: =LOOKUP($AO125,Data!$A$6:$A$1806,Data!$K$6:$K$1806) -> 7638 | AZ125: 479.9957275
B126: 40098.10347 | C126: =LOOKUP(B126,Data!$A$6:$A$1806,Data!B$6:B$1806) -> 59.88299942 | D126: =LOOKUP(B126,Data!$A$6:$A$1806,Data!C$6:C$1806) -> 0 | H126: 468.0023193 | I126: 468.0023193 | L126: -5.030463798 | M126: 1020.57638 | N126: =AVERAGE(D$79:D126) -> 0 | O126: =AVERAGE(M$79:M126) -> 1149.122798 | P126: 568.358814 | Q126: =AVERAGE(P$79:P126) -> 684.0594813 | R126: 633 | Y126: 0 | Z126: 633 | AA126: -397.7984591 | AO126: 40098.10347 | AP126: =LOOKUP($AO126,Data!$A$6:$A$1806,Data!$B$6:$B$1806) -> 59.88299942 | AQ126: =LOOKUP($AO126,Data!$A$6:$A$1806,Data!$C$6:$C$1806) -> 0 | AR126: =LOOKUP($AO126,Data!$A$6:$A$1806,Data!$D$6:$D$1806) -> 0 | AS126: =IF($AS$1="+",LOOKUP($AO126,Data!$A$6:$A$1806,Data!$E$6:$E$1806)*-1,LOOKUP($AO126,Data!$A$6:$A$1806,Data!$E$6:$E$1806)) -> -225.0180817 | AT126: =LOOKUP($AO126,Data!$A$6:$A$1806,Data!$F$6:$F$1806) -> 0 | AU126: =LOOKUP($AO126,Data!$A$6:$A$1806,Data!$G$6:$G$1806) -> 0 | AV126: =LOOKUP($AO126,Data!$A$6:$A$1806,Data!$H$6:$H$1806) -> 0 | AW126: =LOOKUP($AO126,Data!$A$6:$A$1806,Data!$I$6:$I$1806) -> 0 | AX126: =LOOKUP($AO126,Data!$A$6:$A$1806,Data!$J$6:$J$1806) -> -653 | AY126: =LOOKUP($AO126,Data!$A$6:$A$1806,Data!$K$6:$K$1806) -> 7639 | AZ126: 468.0023193
B127: 40098.1035 | C127: =LOOKUP(B127,Data!$A$6:$A$1806,Data!B$6:B$1806) -> 59.88600159 | D127: =LOOKUP(B127,Data!$A$6:$A$1806,Data!C$6:C$1806) -> 0 | H127: 455.9936523 | I127: 455.9936523 | L127: -5.030463798 | M127: 1003.537249 | N127: =AVERAGE(D$79:D127) -> 0 | O127: =AVERAGE(M$79:M127) -> 1146.151664 | P127: 563.3283502 | Q127: =AVERAGE(P$79:P127) -> 681.5442494 | R127: 633 | Y127: 0 | Z127: 633 | AA127: -405.4478921 | AO127: 40098.1035 | AP127: =LOOKUP($AO127,Data!$A$6:$A$1806,Data!$B$6:$B$1806) -> 59.88600159 | AQ127: =LOOKUP($AO127,Data!$A$6:$A$1806,Data!$C$6:$C$1806) -> 0 | AR127: =LOOKUP($AO127,Data!$A$6:$A$1806,Data!$D$6:$D$1806) -> 0 | AS127: =IF($AS$1="+",LOOKUP($AO127,Data!$A$6:$A$1806,Data!$E$6:$E$1806)*-1,LOOKUP($AO127,Data!$A$6:$A$1806,Data!$E$6:$E$1806)) -> -225.0180817 | AT127: =LOOKUP($AO127,Data!$A$6:$A$1806,Data!$F$6:$F$1806) -> 0 | AU127: =LOOKUP($AO127,Data!$A$6:$A$1806,Data!$G$6:$G$1806) -> 0 | AV127: =LOOKUP($AO127,Data!$A$6:$A$1806,Data!$H$6:$H$1806) -> 0 | AW127: =LOOKUP($AO127,Data!$A$6:$A$1806,Data!$I$6:$I$1806) -> 0 | AX127: =LOOKUP($AO127,Data!$A$6:$A$1806,Data!$J$6:$J$1806) -> -653 | AY127: =LOOKUP($AO127,Data!$A$6:$A$1806,Data!$K$6:$K$1806) -> 7642 | AZ127: 455.9936523
B128: 40098.10352 | C128: =LOOKUP(B128,Data!$A$6:$A$1806,Data!B$6:B$1806) -> 59.88999939 | D128: =LOOKUP(B128,Data!$A$6:$A$1806,Data!C$6:C$1806) -> 0 | H128: 440.0024414 | I128: 440.0024414 | L128: -5.030463798 | M128: 982.5155747 | N128: =AVERAGE(D$79:D128) -> 0 | O128: =AVERAGE(M$79:M128) -> 1142.878942 | P128: 558.2978864 | Q128: =AVERAGE(P$79:P128) -> 679.0290175 | R128: 633 | Y128: 0 | Z128: 633 | AA128: -416.1028916 | AO128: 40098.10352 | AP128: =LOOKUP($AO128,Data!$A$6:$A$1806,Data!$B$6:$B$1806) -> 59.88999939 | AQ128: =LOOKUP($AO128,Data!$A$6:$A$1806,Data!$C$6:$C$1806) -> 0 | AR128: =LOOKUP($AO128,Data!$A$6:$A$1806,Data!$D$6:$D$1806) -> 0 | AS128: =IF($AS$1="+",LOOKUP($AO128,Data!$A$6:$A$1806,Data!$E$6:$E$1806)*-1,LOOKUP($AO128,Data!$A$6:$A$1806,Data!$E$6:$E$1806)) -> -225.0180817 | AT128: =LOOKUP($AO128,Data!$A$6:$A$1806,Data!$F$6:$F$1806) -> 0 | AU128: =LOOKUP($AO128,Data!$A$6:$A$1806,Data!$G$6:$G$1806) -> 0 | AV128: =LOOKUP($AO128,Data!$A$6:$A$1806,Data!$H$6:$H$1806) -> 0 | AW128: =LOOKUP($AO128,Data!$A$6:$A$1806,Data!$I$6:$I$1806) -> 0 | AX128: =LOOKUP($AO128,Data!$A$6:$A$1806,Data!$J$6:$J$1806) -> -653 | AY128: =LOOKUP($AO128,Data!$A$6:$A$1806,Data!$K$6:$K$1806) -> 7644 | AZ128: 440.0024414
B129: 40098.10354 | C129: =LOOKUP(B129,Data!$A$6:$A$1806,Data!B$6:B$1806) -> 59.89199829 | D129: =LOOKUP(B129,Data!$A$6:$A$1806,Data!C$6:C$1806) -> 0 | H129: 432.0068359 | I129: 432.0068359 | L129: -5.030463798 | M129: 969.4895054 | N129: =AVERAGE(D$79:D129) -> 0 | O129: =AVERAGE(M$79:M129) -> 1139.479149 | P129: 553.2674226 | Q129: =AVERAGE(P$79:P129) -> 676.5137856 | R129: 633 | Y129: 0 | Z129: 633 | AA129: -421.6431941 | AO129: 40098.10354 | AP129: =LOOKUP($AO129,Data!$A$6:$A$1806,Data!$B$6:$B$1806) -> 59.89199829 | AQ129: =LOOKUP($AO129,Data!$A$6:$A$1806,Data!$C$6:$C$1806) -> 0 | AR129: =LOOKUP($AO129,Data!$A$6:$A$1806,Data!$D$6:$D$1806) -> 0 | AS129: =IF($AS$1="+",LOOKUP($AO129,Data!$A$6:$A$1806,Data!$E$6:$E$1806)*-1,LOOKUP($AO129,Data!$A$6:$A$1806,Data!$E$6:$E$1806)) -> -225.0180817 | AT129: =LOOKUP($AO129,Data!$A$6:$A$1806,Data!$F$6:$F$1806) -> 0 | AU129: =LOOKUP($AO129,Data!$A$6:$A$1806,Data!$G$6:$G$1806) -> 0 | AV129: =LOOKUP($AO129,Data!$A$6:$A$1806,Data!$H$6:$H$1806) -> 0 | AW129: =LOOKUP($AO129,Data!$A$6:$A$1806,Data!$I$6:$I$1806) -> 0 | AX129: =LOOKUP($AO129,Data!$A$6:$A$1806,Data!$J$6:$J$1806) -> -653 | AY129: =LOOKUP($AO129,Data!$A$6:$A$1806,Data!$K$6:$K$1806) -> 7645 | AZ129: 432.0068359
B130: 40098.10356 | C130: =LOOKUP(B130,Data!$A$6:$A$1806,Data!B$6:B$1806) -> 59.88899994 | D130: =LOOKUP(B130,Data!$A$6:$A$1806,Data!C$6:C$1806) -> 0 | H130: 444.0002441 | I130: 444.0002441 | L130: -5.030463798 | M130: 976.4524498 | N130: =AVERAGE(D$79:D130) -> 0 | O130: =AVERAGE(M$79:M130) -> 1136.34402 | P130: 548.2369588 | Q130: =AVERAGE(P$79:P130) -> 673.9985537 | R130: 633 | Y130: 0 | Z130: 633 | AA130: -413.3869827 | AO130: 40098.10356 | AP130: =LOOKUP($AO130,Data!$A$6:$A$1806,Data!$B$6:$B$1806) -> 59.88899994 | AQ130: =LOOKUP($AO130,Data!$A$6:$A$1806,Data!$C$6:$C$1806) -> 0 | AR130: =LOOKUP($AO130,Data!$A$6:$A$1806,Data!$D$6:$D$1806) -> 0 | AS130: =IF($AS$1="+",LOOKUP($AO130,Data!$A$6:$A$1806,Data!$E$6:$E$1806)*-1,LOOKUP($AO130,Data!$A$6:$A$1806,Data!$E$6:$E$1806)) -> -228.3651581 | AT130: =LOOKUP($AO130,Data!$A$6:$A$1806,Data!$F$6:$F$1806) -> 0 | AU130: =LOOKUP($AO130,Data!$A$6:$A$1806,Data!$G$6:$G$1806) -> 0 | AV130: =LOOKUP($AO130,Data!$A$6:$A$1806,Data!$H$6:$H$1806) -> 0 | AW130: =LOOKUP($AO130,Data!$A$6:$A$1806,Data!$I$6:$I$1806) -> 0 | AX130: =LOOKUP($AO130,Data!$A$6:$A$1806,Data!$J$6:$J$1806) -> -653 | AY130: =LOOKUP($AO130,Data!$A$6:$A$1806,Data!$K$6:$K$1806) -> 7647 | AZ130: 444.0002441
B131: 40098.10359 | C131: =LOOKUP(B131,Data!$A$6:$A$1806,Data!B$6:B$1806) -> 59.89300156 | D131: =LOOKUP(B131,Data!$A$6:$A$1806,Data!C$6:C$1806) -> 0 | H131: 427.9937744 | I131: 427.9937744 | L131: -5.030463798 | M131: 955.4155163 | N131: =AVERAGE(D$79:D131) -> 0 | O131: =AVERAGE(M$79:M131) -> 1132.930275 | P131: 543.206495 | Q131: =AVERAGE(P$79:P131) -> 671.4833218 | R131: 633 | Y131: 0 | Z131: 633 | AA131: -424.4799002 | AO131: 40098.10359 | AP131: =LOOKUP($AO131,Data!$A$6:$A$1806,Data!$B$6:$B$1806) -> 59.89300156 | AQ131: =LOOKUP($AO131,Data!$A$6:$A$1806,Data!$C$6:$C$1806) -> 0 | AR131: =LOOKUP($AO131,Data!$A$6:$A$1806,Data!$D$6:$D$1806) -> 0 | AS131: =IF($AS$1="+",LOOKUP($AO131,Data!$A$6:$A$1806,Data!$E$6:$E$1806)*-1,LOOKUP($AO131,Data!$A$6:$A$1806,Data!$E$6:$E$1806)) -> -228.3651581 | AT131: =LOOKUP($AO131,Data!$A$6:$A$1806,Data!$F$6:$F$1806) -> 0 | AU131: =LOOKUP($AO131,Data!$A$6:$A$1806,Data!$G$6:$G$1806) -> 0 | AV131: =LOOKUP($AO131,Data!$A$6:$A$1806,Data!$H$6:$H$1806) -> 0 | AW131: =LOOKUP($AO131,Data!$A$6:$A$1806,Data!$I$6:$I$1806) -> 0 | AX131: =LOOKUP($AO131,Data!$A$6:$A$1806,Data!$J$6:$J$1806) -> -653 | AY131: =LOOKUP($AO131,Data!$A$6:$A$1806,Data!$K$6:$K$1806) -> 7648 | AZ131: 427.9937744
B132: 40098.10361 | C132: =LOOKUP(B132,Data!$A$6:$A$1806,Data!B$6:B$1806) -> 59.89899826 | D132: =LOOKUP(B132,Data!$A$6:$A$1806,Data!C$6:C$1806) -> 0 | H132: 404.006958 | I132: 404.006958 | L132: -5.030463798 | M132: 926.3982361 | N132: =AVERAGE(D$79:D132) -> 0 | O132: =AVERAGE(M$79:M132) -> 1129.105608 | P132: 538.1760312 | Q132: =AVERAGE(P$79:P132) -> 668.9680899 | R132: 633 | Y132: 0 | Z132: 633 | AA132: -442.2646717 | AO132: 40098.10361 | AP132: =LOOKUP($AO132,Data!$A$6:$A$1806,Data!$B$6:$B$1806) -> 59.89899826 | AQ132: =LOOKUP($AO132,Data!$A$6:$A$1806,Data!$C$6:$C$1806) -> 0 | AR132: =LOOKUP($AO132,Data!$A$6:$A$1806,Data!$D$6:$D$1806) -> 0 | AS132: =IF($AS$1="+",LOOKUP($AO132,Data!$A$6:$A$1806,Data!$E$6:$E$1806)*-1,LOOKUP($AO132,Data!$A$6:$A$1806,Data!$E$6:$E$1806)) -> -228.3651581 | AT132: =LOOKUP($AO132,Data!$A$6:$A$1806,Data!$F$6:$F$1806) -> 0 | AU132: =LOOKUP($AO132,Data!$A$6:$A$1806,Data!$G$6:$G$1806) -> 0 | AV132: =LOOKUP($AO132,Data!$A$6:$A$1806,Data!$H$6:$H$1806) -> 0 | AW132: =LOOKUP($AO132,Data!$A$6:$A$1806,Data!$I$6:$I$1806) -> 0 | AX132: =LOOKUP($AO132,Data!$A$6:$A$1806,Data!$J$6:$J$1806) -> -653 | AY132: =LOOKUP($AO132,Data!$A$6:$A$1806,Data!$K$6:$K$1806) -> 7649 | AZ132: 404.006958
B133: 40098.10363 | C133: =LOOKUP(B133,Data!$A$6:$A$1806,Data!B$6:B$1806) -> 59.90299988 | D133: =LOOKUP(B133,Data!$A$6:$A$1806,Data!C$6:C$1806) -> 0 | H133: 388.0004883 | I133: 388.0004883 | L133: -5.030463798 | M133: 905.3613026 | N133: =AVERAGE(D$79:D133) -> 0 | O133: =AVERAGE(M$79:M133) -> 1125.037529 | P133: 533.1455674 | Q133: =AVERAGE(P$79:P133) -> 666.452858 | R133: 633 | Y133: 0 | Z133: 633 | AA133: -454.9853877 | AO133: 40098.10363 | AP133: =LOOKUP($AO133,Data!$A$6:$A$1806,Data!$B$6:$B$1806) -> 59.90299988 | AQ133: =LOOKUP($AO133,Data!$A$6:$A$1806,Data!$C$6:$C$1806) -> 0 | AR133: =LOOKUP($AO133,Data!$A$6:$A$1806,Data!$D$6:$D$1806) -> 0 | AS133: =IF($AS$1="+",LOOKUP($AO133,Data!$A$6:$A$1806,Data!$E$6:$E$1806)*-1,LOOKUP($AO133,Data!$A$6:$A$1806,Data!$E$6:$E$1806)) -> -228.3651581 | AT133: =LOOKUP($AO133,Data!$A$6:$A$1806,Data!$F$6:$F$1806) -> 0 | AU133: =LOOKUP($AO133,Data!$A$6:$A$1806,Data!$G$6:$G$1806) -> 0 | AV133: =LOOKUP($AO133,Data!$A$6:$A$1806,Data!$H$6:$H$1806) -> 0 | AW133: =LOOKUP($AO133,Data!$A$6:$A$1806,Data!$I$6:$I$1806) -> 0 | AX133: =LOOKUP($AO133,Data!$A$6:$A$1806,Data!$J$6:$J$1806) -> -653 | AY133: =LOOKUP($AO133,Data!$A$6:$A$1806,Data!$K$6:$K$1806) -> 7650 | AZ133: 388.0004883
B134: 40098.10366 | C134: =LOOKUP(B134,Data!$A$6:$A$1806,Data!B$6:B$1806) -> 59.90200043 | D134: =LOOKUP(B134,Data!$A$6:$A$1806,Data!C$6:C$1806) -> 0 | H134: 391.998291 | I134: 391.998291 | L134: -5.030463798 | M134: 904.3286415 | N134: =AVERAGE(D$79:D134) -> 0 | O134: =AVERAGE(M$79:M134) -> 1121.096299 | P134: 528.1151036 | Q134: =AVERAGE(P$79:P134) -> 663.9376261 | R134: 633 | Y134: 0 | Z134: 633 | AA134: -451.7401701 | AO134: 40098.10366 | AP134: =LOOKUP($AO134,Data!$A$6:$A$1806,Data!$B$6:$B$1806) -> 59.90200043 | AQ134: =LOOKUP($AO134,Data!$A$6:$A$1806,Data!$C$6:$C$1806) -> 0 | AR134: =LOOKUP($AO134,Data!$A$6:$A$1806,Data!$D$6:$D$1806) -> 0 | AS134: =IF($AS$1="+",LOOKUP($AO134,Data!$A$6:$A$1806,Data!$E$6:$E$1806)*-1,LOOKUP($AO134,Data!$A$6:$A$1806,Data!$E$6:$E$1806)) -> -228.3651581 | AT134: =LOOKUP($AO134,Data!$A$6:$A$1806,Data!$F$6:$F$1806) -> 0 | AU134: =LOOKUP($AO134,Data!$A$6:$A$1806,Data!$G$6:$G$1806) -> 0 | AV134: =LOOKUP($AO134,Data!$A$6:$A$1806,Data!$H$6:$H$1806) -> 0 | AW134: =LOOKUP($AO134,Data!$A$6:$A$1806,Data!$I$6:$I$1806) -> 0 | AX134: =LOOKUP($AO134,Data!$A$6:$A$1806,Data!$J$6:$J$1806) -> -653 | AY134: =LOOKUP($AO134,Data!$A$6:$A$1806,Data!$K$6:$K$1806) -> 7651 | AZ134: 391.998291
B135: 40098.10368 | C135: =LOOKUP(B135,Data!$A$6:$A$1806,Data!B$6:B$1806) -> 59.90200043 | D135: =LOOKUP(B135,Data!$A$6:$A$1806,Data!C$6:C$1806) -> 0 | H135: 391.998291 | I135: 391.998291 | L135: -5.030463798 | M135: 899.2981777 | N135: =AVERAGE(D$79:D135) -> 0 | O135: =AVERAGE(M$79:M135) -> 1117.205104 | P135: 523.0846398 | Q135: =AVERAGE(P$79:P135) -> 661.4223942 | R135: 633 | Y135: 0 | Z135: 633 | AA135: -451.7401701 | AO135: 40098.10368 | AP135: =LOOKUP($AO135,Data!$A$6:$A$1806,Data!$B$6:$B$1806) -> 59.90200043 | AQ135: =LOOKUP($AO135,Data!$A$6:$A$1806,Data!$C$6:$C$1806) -> 0 | AR135: =LOOKUP($AO135,Data!$A$6:$A$1806,Data!$D$6:$D$1806) -> 0 | AS135: =IF($AS$1="+",LOOKUP($AO135,Data!$A$6:$A$1806,Data!$E$6:$E$1806)*-1,LOOKUP($AO135,Data!$A$6:$A$1806,Data!$E$6:$E$1806)) -> -234.0753326 | AT135: =LOOKUP($AO135,Data!$A$6:$A$1806,Data!$F$6:$F$1806) -> 0 | AU135: =LOOKUP($AO135,Data!$A$6:$A$1806,Data!$G$6:$G$1806) -> 0 | AV135: =LOOKUP($AO135,Data!$A$6:$A$1806,Data!$H$6:$H$1806) -> 0 | AW135: =LOOKUP($AO135,Data!$A$6:$A$1806,Data!$I$6:$I$1806) -> 0 | AX135: =LOOKUP($AO135,Data!$A$6:$A$1806,Data!$J$6:$J$1806) -> -653 | AY135: =LOOKUP($AO135,Data!$A$6:$A$1806,Data!$K$6:$K$1806) -> 7652 | AZ135: 391.998291
B136: 40098.1037 | C136: =LOOKUP(B136,Data!$A$6:$A$1806,Data!B$6:B$1806) -> 59.90399933 | D136: =LOOKUP(B136,Data!$A$6:$A$1806,Data!C$6:C$1806) -> 0 | H136: 384.0026855 | I136: 384.0026855 | L136: -5.030463798 | M136: 886.2721085 | N136: =AVERAGE(D$79:D136) -> 0 | O136: =AVERAGE(M$79:M136) -> 1113.223501 | P136: 518.054176 | Q136: =AVERAGE(P$79:P136) -> 658.9071623 | R136: 633 | Y136: 0 | Z136: 633 | AA136: -458.2775687 | AO136: 40098.1037 | AP136: =LOOKUP($AO136,Data!$A$6:$A$1806,Data!$B$6:$B$1806) -> 59.90399933 | AQ136: =LOOKUP($AO136,Data!$A$6:$A$1806,Data!$C$6:$C$1806) -> 0 | AR136: =LOOKUP($AO136,Data!$A$6:$A$1806,Data!$D$6:$D$1806) -> 0 | AS136: =IF($AS$1="+",LOOKUP($AO136,Data!$A$6:$A$1806,Data!$E$6:$E$1806)*-1,LOOKUP($AO136,Data!$A$6:$A$1806,Data!$E$6:$E$1806)) -> -234.0753326 | AT136: =LOOKUP($AO136,Data!$A$6:$A$1806,Data!$F$6:$F$1806) -> 0 | AU136: =LOOKUP($AO136,Data!$A$6:$A$1806,Data!$G$6:$G$1806) -> 0 | AV136: =LOOKUP($AO136,Data!$A$6:$A$1806,Data!$H$6:$H$1806) -> 0 | AW136: =LOOKUP($AO136,Data!$A$6:$A$1806,Data!$I$6:$I$1806) -> 0 | AX136: =LOOKUP($AO136,Data!$A$6:$A$1806,Data!$J$6:$J$1806) -> -653 | AY136: =LOOKUP($AO136,Data!$A$6:$A$1806,Data!$K$6:$K$1806) -> 7653 | AZ136: 384.0026855
B137: 40098.10373 | C137: =LOOKUP(B137,Data!$A$6:$A$1806,Data!B$6:B$1806) -> 59.9070015 | D137: =LOOKUP(B137,Data!$A$6:$A$1806,Data!C$6:C$1806) -> 0 | H137: 371.9940186 | I137: 371.9940186 | L137: -5.030463798 | M137: 869.2329777 | N137: =AVERAGE(D$79:D137) -> 0 | O137: =AVERAGE(M$79:M137) -> 1109.088068 | P137: 513.0237122 | Q137: =AVERAGE(P$79:P137) -> 656.3919304 | R137: 633 | Y137: 0 | Z137: 633 | AA137: -468.4595381 | AO137: 40098.10373 | AP137: =LOOKUP($AO137,Data!$A$6:$A$1806,Data!$B$6:$B$1806) -> 59.9070015 | AQ137: =LOOKUP($AO137,Data!$A$6:$A$1806,Data!$C$6:$C$1806) -> 0 | AR137: =LOOKUP($AO137,Data!$A$6:$A$1806,Data!$D$6:$D$1806) -> 0 | AS137: =IF($AS$1="+",LOOKUP($AO137,Data!$A$6:$A$1806,Data!$E$6:$E$1806)*-1,LOOKUP($AO137,Data!$A$6:$A$1806,Data!$E$6:$E$1806)) -> -234.0753326 | AT137: =LOOKUP($AO137,Data!$A$6:$A$1806,Data!$F$6:$F$1806) -> 0 | AU137: =LOOKUP($AO137,Data!$A$6:$A$1806,Data!$G$6:$G$1806) -> 0 | AV137: =LOOKUP($AO137,Data!$A$6:$A$1806,Data!$H$6:$H$1806) -> 0 | AW137: =LOOKUP($AO137,Data!$A$6:$A$1806,Data!$I$6:$I$1806) -> 0 | AX137: =LOOKUP($AO137,Data!$A$6:$A$1806,Data!$J$6:$J$1806) -> -653 | AY137: =LOOKUP($AO137,Data!$A$6:$A$1806,Data!$K$6:$K$1806) -> 7654 | AZ137: 371.9940186
B138: 40098.10375 | C138: =LOOKUP(B138,Data!$A$6:$A$1806,Data!B$6:B$1806) -> 59.9109993 | D138: =LOOKUP(B138,Data!$A$6:$A$1806,Data!C$6:C$1806) -> 0 | H138: 356.0028076 | I138: 356.0028076 | L138: -5.030463798 | M138: 848.2113029 | N138: =AVERAGE(D$79:D138) -> 0 | O138: =AVERAGE(M$79:M138) -> 1104.740122 | P138: 507.9932484 | Q138: =AVERAGE(P$79:P138) -> 653.8766985 | R138: 633 | Y138: 0 | Z138: 633 | AA138: -482.7420592 | AO138: 40098.10375 | AP138: =LOOKUP($AO138,Data!$A$6:$A$1806,Data!$B$6:$B$1806) -> 59.9109993 | AQ138: =LOOKUP($AO138,Data!$A$6:$A$1806,Data!$C$6:$C$1806) -> 0 | AR138: =LOOKUP($AO138,Data!$A$6:$A$1806,Data!$D$6:$D$1806) -> 0 | AS138: =IF($AS$1="+",LOOKUP($AO138,Data!$A$6:$A$1806,Data!$E$6:$E$1806)*-1,LOOKUP($AO138,Data!$A$6:$A$1806,Data!$E$6:$E$1806)) -> -234.0753326 | AT138: =LOOKUP($AO138,Data!$A$6:$A$1806,Data!$F$6:$F$1806) -> 0 | AU138: =LOOKUP($AO138,Data!$A$6:$A$1806,Data!$G$6:$G$1806) -> 0 | AV138: =LOOKUP($AO138,Data!$A$6:$A$1806,Data!$H$6:$H$1806) -> 0 | AW138: =LOOKUP($AO138,Data!$A$6:$A$1806,Data!$I$6:$I$1806) -> 0 | AX138: =LOOKUP($AO138,Data!$A$6:$A$1806,Data!$J$6:$J$1806) -> -653 | AY138: =LOOKUP($AO138,Data!$A$6:$A$1806,Data!$K$6:$K$1806) -> 7655 | AZ138: 356.0028076
B139: 40098.10377 | C139: =LOOKUP(B139,Data!$A$6:$A$1806,Data!B$6:B$1806) -> 59.91600037 | D139: =LOOKUP(B139,Data!$A$6:$A$1806,Data!C$6:C$1806) -> 0 | H139: 335.9985352 | I139: 335.9985352 | L139: -5.030463798 | M139: 823.1765667 | N139: =AVERAGE(D$79:D139) -> 0 | O139: =AVERAGE(M$79:M139) -> 1100.124326 | P139: 502.9627846 | Q139: =AVERAGE(P$79:P139) -> 651.3614666 | R139: 633 | Y139: 0 | Z139: 633 | AA139: -501.8836142 | AO139: 40098.10377 | AP139: =LOOKUP($AO139,Data!$A$6:$A$1806,Data!$B$6:$B$1806) -> 59.91600037 | AQ139: =LOOKUP($AO139,Data!$A$6:$A$1806,Data!$C$6:$C$1806) -> 0 | AR139: =LOOKUP($AO139,Data!$A$6:$A$1806,Data!$D$6:$D$1806) -> 0 | AS139: =IF($AS$1="+",LOOKUP($AO139,Data!$A$6:$A$1806,Data!$E$6:$E$1806)*-1,LOOKUP($AO139,Data!$A$6:$A$1806,Data!$E$6:$E$1806)) -> -234.0753326 | AT139: =LOOKUP($AO139,Data!$A$6:$A$1806,Data!$F$6:$F$1806) -> 0 | AU139: =LOOKUP($AO139,Data!$A$6:$A$1806,Data!$G$6:$G$1806) -> 0 | AV139: =LOOKUP($AO139,Data!$A$6:$A$1806,Data!$H$6:$H$1806) -> 0 | AW139: =LOOKUP($AO139,Data!$A$6:$A$1806,Data!$I$6:$I$1806) -> 0 | AX139: =LOOKUP($AO139,Data!$A$6:$A$1806,Data!$J$6:$J$1806) -> -653 | AY139: =LOOKUP($AO139,Data!$A$6:$A$1806,Data!$K$6:$K$1806) -> 7655 | AZ139: 335.9985352
B140: 40098.1038 | C140: =LOOKUP(B140,Data!$A$6:$A$1806,Data!B$6:B$1806) -> 59.91600037 | D140: =LOOKUP(B140,Data!$A$6:$A$1806,Data!C$6:C$1806) -> 0 | H140: 335.9985352 | I140: 335.9985352 | L140: -5.030463798 | M140: 818.1461029 | N140: =AVERAGE(D$79:D140) -> 0 | O140: =AVERAGE(M$79:M140) -> 1095.57629 | P140: 497.9323208 | Q140: =AVERAGE(P$79:P140) -> 648.8462347 | R140: 633 | Y140: 0 | Z140: 633 | AA140: -501.8836142 | AO140: 40098.1038 | AP140: =LOOKUP($AO140,Data!$A$6:$A$1806,Data!$B$6:$B$1806) -> 59.91600037 | AQ140: =LOOKUP($AO140,Data!$A$6:$A$1806,Data!$C$6:$C$1806) -> 0 | AR140: =LOOKUP($AO140,Data!$A$6:$A$1806,Data!$D$6:$D$1806) -> 0 | AS140: =IF($AS$1="+",LOOKUP($AO140,Data!$A$6:$A$1806,Data!$E$6:$E$1806)*-1,LOOKUP($AO140,Data!$A$6:$A$1806,Data!$E$6:$E$1806)) -> -228.7981567 | AT140: =LOOKUP($AO140,Data!$A$6:$A$1806,Data!$F$6:$F$1806) -> 0 | AU140: =LOOKUP($AO140,Data!$A$6:$A$1806,Data!$G$6:$G$1806) -> 0 | AV140: =LOOKUP($AO140,Data!$A$6:$A$1806,Data!$H$6:$H$1806) -> 0 | AW140: =LOOKUP($AO140,Data!$A$6:$A$1806,Data!$I$6:$I$1806) -> 0 | AX140: =LOOKUP($AO140,Data!$A$6:$A$1806,Data!$J$6:$J$1806) -> -653 | AY140: =LOOKUP($AO140,Data!$A$6:$A$1806,Data!$K$6:$K$1806) -> 7656 | AZ140: 335.9985352
B141: 40098.10382 | C141: =LOOKUP(B141,Data!$A$6:$A$1806,Data!B$6:B$1806) -> 59.91699982 | D141: =LOOKUP(B141,Data!$A$6:$A$1806,Data!C$6:C$1806) -> 0 | H141: 332.0007324 | I141: 332.0007324 | L141: -5.030463798 | M141: 809.1178363 | N141: =AVERAGE(D$79:D141) -> 0 | O141: =AVERAGE(M$79:M141) -> 1091.029331 | P141: 492.901857 | Q141: =AVERAGE(P$79:P141) -> 646.3310028 | R141: 633 | Y141: 0 | Z141: 633 | AA141: -505.8924556 | AO141: 40098.10382 | AP141: =LOOKUP($AO141,Data!$A$6:$A$1806,Data!$B$6:$B$1806) -> 59.91699982 | AQ141: =LOOKUP($AO141,Data!$A$6:$A$1806,Data!$C$6:$C$1806) -> 0 | AR141: =LOOKUP($AO141,Data!$A$6:$A$1806,Data!$D$6:$D$1806) -> 0 | AS141: =IF($AS$1="+",LOOKUP($AO141,Data!$A$6:$A$1806,Data!$E$6:$E$1806)*-1,LOOKUP($AO141,Data!$A$6:$A$1806,Data!$E$6:$E$1806)) -> -228.7981567 | AT141: =LOOKUP($AO141,Data!$A$6:$A$1806,Data!$F$6:$F$1806) -> 0 | AU141: =LOOKUP($AO141,Data!$A$6:$A$1806,Data!$G$6:$G$1806) -> 0 | AV141: =LOOKUP($AO141,Data!$A$6:$A$1806,Data!$H$6:$H$1806) -> 0 | AW141: =LOOKUP($AO141,Data!$A$6:$A$1806,Data!$I$6:$I$1806) -> 0 | AX141: =LOOKUP($AO141,Data!$A$6:$A$1806,Data!$J$6:$J$1806) -> -653 | AY141: =LOOKUP($AO141,Data!$A$6:$A$1806,Data!$K$6:$K$1806) -> 7656 | AZ141: 332.0007324
B142: 40098.10384 | C142: =LOOKUP(B142,Data!$A$6:$A$1806,Data!B$6:B$1806) -> 59.91799927 | D142: =LOOKUP(B142,Data!$A$6:$A$1806,Data!C$6:C$1806) -> 0 | H142: 328.0029297 | I142: 328.0029297 | L142: -5.030463798 | M142: 800.0895698 | N142: =AVERAGE(D$79:D142) -> 0 | O142: =AVERAGE(M$79:M142) -> 1086.483397 | P142: 487.8713932 | Q142: =AVERAGE(P$79:P142) -> 643.8157709 | R142: 633 | Y142: 0 | Z142: 633 | AA142: -509.9658547 | AO142: 40098.10384 | AP142: =LOOKUP($AO142,Data!$A$6:$A$1806,Data!$B$6:$B$1806) -> 59.91799927 | AQ142: =LOOKUP($AO142,Data!$A$6:$A$1806,Data!$C$6:$C$1806) -> 0 | AR142: =LOOKUP($AO142,Data!$A$6:$A$1806,Data!$D$6:$D$1806) -> 0 | AS142: =IF($AS$1="+",LOOKUP($AO142,Data!$A$6:$A$1806,Data!$E$6:$E$1806)*-1,LOOKUP($AO142,Data!$A$6:$A$1806,Data!$E$6:$E$1806)) -> -228.7981567 | AT142: =LOOKUP($AO142,Data!$A$6:$A$1806,Data!$F$6:$F$1806) -> 0 | AU142: =LOOKUP($AO142,Data!$A$6:$A$1806,Data!$G$6:$G$1806) -> 0 | AV142: =LOOKUP($AO142,Data!$A$6:$A$1806,Data!$H$6:$H$1806) -> 0 | AW142: =LOOKUP($AO142,Data!$A$6:$A$1806,Data!$I$6:$I$1806) -> 0 | AX142: =LOOKUP($AO142,Data!$A$6:$A$1806,Data!$J$6:$J$1806) -> -653 | AY142: =LOOKUP($AO142,Data!$A$6:$A$1806,Data!$K$6:$K$1806) -> 7657 | AZ142: 328.0029297
B143: 40098.10387 | C143: =LOOKUP(B143,Data!$A$6:$A$1806,Data!B$6:B$1806) -> 59.91999817 | D143: =LOOKUP(B143,Data!$A$6:$A$1806,Data!C$6:C$1806) -> 0 | H143: 320.0073242 | I143: 320.0073242 | L143: -5.030463798 | M143: 787.0635005 | N143: =AVERAGE(D$79:D143) -> 0 | O143: =AVERAGE(M$79:M143) -> 1081.876937 | P143: 482.8409294 | Q143: =AVERAGE(P$79:P143) -> 641.300539 | R143: 633 | Y143: 0 | Z143: 633 | AA143: -518.3126656 | AO143: 40098.10387 | AP143: =LOOKUP($AO143,Data!$A$6:$A$1806,Data!$B$6:$B$1806) -> 59.91999817 | AQ143: =LOOKUP($AO143,Data!$A$6:$A$1806,Data!$C$6:$C$1806) -> 0 | AR143: =LOOKUP($AO143,Data!$A$6:$A$1806,Data!$D$6:$D$1806) -> 0 | AS143: =IF($AS$1="+",LOOKUP($AO143,Data!$A$6:$A$1806,Data!$E$6:$E$1806)*-1,LOOKUP($AO143,Data!$A$6:$A$1806,Data!$E$6:$E$1806)) -> -228.7981567 | AT143: =LOOKUP($AO143,Data!$A$6:$A$1806,Data!$F$6:$F$1806) -> 0 | AU143: =LOOKUP($AO143,Data!$A$6:$A$1806,Data!$G$6:$G$1806) -> 0 | AV143: =LOOKUP($AO143,Data!$A$6:$A$1806,Data!$H$6:$H$1806) -> 0 | AW143: =LOOKUP($AO143,Data!$A$6:$A$1806,Data!$I$6:$I$1806) -> 0 | AX143: =LOOKUP($AO143,Data!$A$6:$A$1806,Data!$J$6:$J$1806) -> -653 | AY143: =LOOKUP($AO143,Data!$A$6:$A$1806,Data!$K$6:$K$1806) -> 7657 | AZ143: 320.0073242
B144: 40098.10389 | C144: =LOOKUP(B144,Data!$A$6:$A$1806,Data!B$6:B$1806) -> 59.92100143 | D144: =LOOKUP(B144,Data!$A$6:$A$1806,Data!C$6:C$1806) -> 0 | H144: 315.9942627 | I144: 315.9942627 | L144: =IF(B144>G$3,0,(K$21*0.000023148/K$22)) -> -5.030463798 | M144: =M143+L144+(I144-I143) -> 778.0199752 | N144: =AVERAGE(D$79:D144) -> 0 | O144: =AVERAGE(M$79:M144) -> 1077.273044 | P144: 477.8104656 | Q144: =AVERAGE(P$79:P144) -> 638.7853071 | R144: 633 | Y144: 0 | Z144: 633 | AA144: =Z144/((C144-G$4)*10) -> -522.6058367 | AO144: 40098.10389 | AP144: =LOOKUP($AO144,Data!$A$6:$A$1806,Data!$B$6:$B$1806) -> 59.92100143 | AQ144: =LOOKUP($AO144,Data!$A$6:$A$1806,Data!$C$6:$C$1806) -> 0 | AR144: =LOOKUP($AO144,Data!$A$6:$A$1806,Data!$D$6:$D$1806) -> 0 | AS144: =IF($AS$1="+",LOOKUP($AO144,Data!$A$6:$A$1806,Data!$E$6:$E$1806)*-1,LOOKUP($AO144,Data!$A$6:$A$1806,Data!$E$6:$E$1806)) -> -228.7981567 | AT144: =LOOKUP($AO144,Data!$A$6:$A$1806,Data!$F$6:$F$1806) -> 0 | AU144: =LOOKUP($AO144,Data!$A$6:$A$1806,Data!$G$6:$G$1806) -> 0 | AV144: =LOOKUP($AO144,Data!$A$6:$A$1806,Data!$H$6:$H$1806) -> 0 | AW144: =LOOKUP($AO144,Data!$A$6:$A$1806,Data!$I$6:$I$1806) -> 0 | AX144: =LOOKUP($AO144,Data!$A$6:$A$1806,Data!$J$6:$J$1806) -> -653 | AY144: =LOOKUP($AO144,Data!$A$6:$A$1806,Data!$K$6:$K$1806) -> 7658 | AZ144: 315.9942627
B145: 40098.10391 | C145: =LOOKUP(B145,Data!$A$6:$A$1806,Data!B$6:B$1806) -> 59.91999817 | D145: =LOOKUP(B145,Data!$A$6:$A$1806,Data!C$6:C$1806) -> 0 | H145: 320.0073242 | I145: 320.0073242 | L145: -5.030463798 | M145: 777.0025729 | N145: =AVERAGE(D$79:D145) -> 0 | O145: =AVERAGE(M$79:M145) -> 1072.791395 | P145: 472.7800018 | Q145: =AVERAGE(P$79:P145) -> 636.2700752 | R145: =R$41 -> 633 | Y145: 0 | Z145: 633 | AA145: -518.3126656 | AO145: =AO144+TIME(0,0,$B$1) -> 40098.10391 | AP145: =LOOKUP($AO145,Data!$A$6:$A$1806,Data!$B$6:$B$1806) -> 59.91999817 | AQ145: =LOOKUP($AO145,Data!$A$6:$A$1806,Data!$C$6:$C$1806) -> 0 | AR145: =LOOKUP($AO145,Data!$A$6:$A$1806,Data!$D$6:$D$1806) -> 0 | AS145: =IF($AS$1="+",LOOKUP($AO145,Data!$A$6:$A$1806,Data!$E$6:$E$1806)*-1,LOOKUP($AO145,Data!$A$6:$A$1806,Data!$E$6:$E$1806)) -> -229.4669647 | AT145: =LOOKUP($AO145,Data!$A$6:$A$1806,Data!$F$6:$F$1806) -> 0 | AU145: =LOOKUP($AO145,Data!$A$6:$A$1806,Data!$G$6:$G$1806) -> 0 | AV145: =LOOKUP($AO145,Data!$A$6:$A$1806,Data!$H$6:$H$1806) -> 0 | AW145: =LOOKUP($AO145,Data!$A$6:$A$1806,Data!$I$6:$I$1806) -> 0 | AX145: =LOOKUP($AO145,Data!$A$6:$A$1806,Data!$J$6:$J$1806) -> -653 | AY145: =LOOKUP($AO145,Data!$A$6:$A$1806,Data!$K$6:$K$1806) -> 7658 | AZ145: 320.0073242
B146: 40098.10394 | C146: =LOOKUP(B146,Data!$A$6:$A$1806,Data!B$6:B$1806) -> 59.91699982 | D146: =LOOKUP(B146,Data!$A$6:$A$1806,Data!C$6:C$1806) -> 0 | H146: 332.0007324 | I146: 332.0007324 | L146: -5.030463798 | M146: 783.9655174 | N146: =AVERAGE(D$79:D146) -> 0 | O146: =AVERAGE(M$79:M146) -> 1068.543955 | P146: =P145+L146 -> 467.749538 | Q146: =AVERAGE(P$79:P146) -> 633.7548434 | R146: 633 | Y146: 0 | Z146: 633 | AA146: -505.8924556 | AO146: 40098.10394 | AP146: =LOOKUP($AO146,Data!$A$6:$A$1806,Data!$B$6:$B$1806) -> 59.91699982 | AQ146: =LOOKUP($AO146,Data!$A$6:$A$1806,Data!$C$6:$C$1806) -> 0 | AR146: =LOOKUP($AO146,Data!$A$6:$A$1806,Data!$D$6:$D$1806) -> 0 | AS146: =IF($AS$1="+",LOOKUP($AO146,Data!$A$6:$A$1806,Data!$E$6:$E$1806)*-1,LOOKUP($AO146,Data!$A$6:$A$1806,Data!$E$6:$E$1806)) -> -229.4669647 | AT146: =LOOKUP($AO146,Data!$A$6:$A$1806,Data!$F$6:$F$1806) -> 0 | AU146: =LOOKUP($AO146,Data!$A$6:$A$1806,Data!$G$6:$G$1806) -> 0 | AV146: =LOOKUP($AO146,Data!$A$6:$A$1806,Data!$H$6:$H$1806) -> 0 | AW146: =LOOKUP($AO146,Data!$A$6:$A$1806,Data!$I$6:$I$1806) -> 0 | AX146: =LOOKUP($AO146,Data!$A$6:$A$1806,Data!$J$6:$J$1806) -> -653 | AY146: =LOOKUP($AO146,Data!$A$6:$A$1806,Data!$K$6:$K$1806) -> 7659 | AZ146: 332.0007324
B147: 40098.10396 | C147: =LOOKUP(B147,Data!$A$6:$A$1806,Data!B$6:B$1806) -> 59.91999817 | D147: =LOOKUP(B147,Data!$A$6:$A$1806,Data!C$6:C$1806) -> 0 | H147: 320.0073242 | I147: 320.0073242 | L147: -5.030463798 | M147: 766.9416454 | N147: =AVERAGE(D$79:D147) -> 0 | O147: =AVERAGE(M$79:M147) -> 1064.172907 | P147: 462.7190742 | Q147: =AVERAGE(P$79:P147) -> 631.2396115 | R147: 633 | Y147: 0 | Z147: 633 | AA147: -518.3126656 | AO147: 40098.10396 | AP147: =LOOKUP($AO147,Data!$A$6:$A$1806,Data!$B$6:$B$1806) -> 59.91999817 | AQ147: =LOOKUP($AO147,Data!$A$6:$A$1806,Data!$C$6:$C$1806) -> 0 | AR147: =LOOKUP($AO147,Data!$A$6:$A$1806,Data!$D$6:$D$1806) -> 0 | AS147: =IF($AS$1="+",LOOKUP($AO147,Data!$A$6:$A$1806,Data!$E$6:$E$1806)*-1,LOOKUP($AO147,Data!$A$6:$A$1806,Data!$E$6:$E$1806)) -> -229.4669647 | AT147: =LOOKUP($AO147,Data!$A$6:$A$1806,Data!$F$6:$F$1806) -> 0 | AU147: =LOOKUP($AO147,Data!$A$6:$A$1806,Data!$G$6:$G$1806) -> 0 | AV147: =LOOKUP($AO147,Data!$A$6:$A$1806,Data!$H$6:$H$1806) -> 0 | AW147: =LOOKUP($AO147,Data!$A$6:$A$1806,Data!$I$6:$I$1806) -> 0 | AX147: =LOOKUP($AO147,Data!$A$6:$A$1806,Data!$J$6:$J$1806) -> -653 | AY147: =LOOKUP($AO147,Data!$A$6:$A$1806,Data!$K$6:$K$1806) -> 7659 | AZ147: 320.0073242
B148: 40098.10398 | C148: =LOOKUP(B148,Data!$A$6:$A$1806,Data!B$6:B$1806) -> 59.92100143 | D148: =LOOKUP(B148,Data!$A$6:$A$1806,Data!C$6:C$1806) -> 0 | H148: 315.9942627 | I148: 315.9942627 | L148: -5.030463798 | M148: 757.89812 | N148: =AVERAGE(D$79:D148) -> 0 | O148: =AVERAGE(M$79:M148) -> 1059.797553 | P148: 457.6886104 | Q148: =AVERAGE(P$79:P148) -> 628.7243796 | R148: 633 | Y148: 0 | Z148: 633 | AA148: -522.6058367 | AO148: 40098.10398 | AP148: =LOOKUP($AO148,Data!$A$6:$A$1806,Data!$B$6:$B$1806) -> 59.92100143 | AQ148: =LOOKUP($AO148,Data!$A$6:$A$1806,Data!$C$6:$C$1806) -> 0 | AR148: =LOOKUP($AO148,Data!$A$6:$A$1806,Data!$D$6:$D$1806) -> 0 | AS148: =IF($AS$1="+",LOOKUP($AO148,Data!$A$6:$A$1806,Data!$E$6:$E$1806)*-1,LOOKUP($AO148,Data!$A$6:$A$1806,Data!$E$6:$E$1806)) -> -229.4669647 | AT148: =LOOKUP($AO148,Data!$A$6:$A$1806,Data!$F$6:$F$1806) -> 0 | AU148: =LOOKUP($AO148,Data!$A$6:$A$1806,Data!$G$6:$G$1806) -> 0 | AV148: =LOOKUP($AO148,Data!$A$6:$A$1806,Data!$H$6:$H$1806) -> 0 | AW148: =LOOKUP($AO148,Data!$A$6:$A$1806,Data!$I$6:$I$1806) -> 0 | AX148: =LOOKUP($AO148,Data!$A$6:$A$1806,Data!$J$6:$J$1806) -> -653 | AY148: =LOOKUP($AO148,Data!$A$6:$A$1806,Data!$K$6:$K$1806) -> 7659 | AZ148: 315.9942627
B149: 40098.104 | C149: =LOOKUP(B149,Data!$A$6:$A$1806,Data!B$6:B$1806) -> 59.92300034 | D149: =LOOKUP(B149,Data!$A$6:$A$1806,Data!C$6:C$1806) -> 0 | H149: 307.9986572 | I149: 307.9986572 | L149: -5.030463798 | M149: 744.8720508 | N149: =AVERAGE(D$79:D149) -> 0 | O149: =AVERAGE(M$79:M149) -> 1055.361983 | P149: 452.6581466 | Q149: =AVERAGE(P$79:P149) -> 626.2091477 | R149: 633 | Y149: 0 | Z149: 633 | AA149: -531.3751 | AO149: 40098.104 | AP149: =LOOKUP($AO149,Data!$A$6:$A$1806,Data!$B$6:$B$1806) -> 59.92300034 | AQ149: =LOOKUP($AO149,Data!$A$6:$A$1806,Data!$C$6:$C$1806) -> 0 | AR149: =LOOKUP($AO149,Data!$A$6:$A$1806,Data!$D$6:$D$1806) -> 0 | AS149: =IF($AS$1="+",LOOKUP($AO149,Data!$A$6:$A$1806,Data!$E$6:$E$1806)*-1,LOOKUP($AO149,Data!$A$6:$A$1806,Data!$E$6:$E$1806)) -> -229.4669647 | AT149: =LOOKUP($AO149,Data!$A$6:$A$1806,Data!$F$6:$F$1806) -> 0 | AU149: =LOOKUP($AO149,Data!$A$6:$A$1806,Data!$G$6:$G$1806) -> 0 | AV149: =LOOKUP($AO149,Data!$A$6:$A$1806,Data!$H$6:$H$1806) -> 0 | AW149: =LOOKUP($AO149,Data!$A$6:$A$1806,Data!$I$6:$I$1806) -> 0 | AX149: =LOOKUP($AO149,Data!$A$6:$A$1806,Data!$J$6:$J$1806) -> -653 | AY149: =LOOKUP($AO149,Data!$A$6:$A$1806,Data!$K$6:$K$1806) -> 7660 | AZ149: 307.9986572
B150: 40098.10403 | C150: =LOOKUP(B150,Data!$A$6:$A$1806,Data!B$6:B$1806) -> 59.92599869 | D150: =LOOKUP(B150,Data!$A$6:$A$1806,Data!C$6:C$1806) -> 0 | H150: 296.005249 | I150: 296.005249 | L150: -5.030463798 | M150: 727.8481788 | N150: =AVERAGE(D$79:D150) -> 0 | O150: =AVERAGE(M$79:M150) -> 1050.81318 | P150: 447.6276828 | Q150: =AVERAGE(P$79:P150) -> 623.6939158 | R150: 633 | Y150: 0 | Z150: 633 | AA150: -545.0950442 | AO150: 40098.10403 | AP150: =LOOKUP($AO150,Data!$A$6:$A$1806,Data!$B$6:$B$1806) -> 59.92599869 | AQ150: =LOOKUP($AO150,Data!$A$6:$A$1806,Data!$C$6:$C$1806) -> 0 | AR150: =LOOKUP($AO150,Data!$A$6:$A$1806,Data!$D$6:$D$1806) -> 0 | AS150: =IF($AS$1="+",LOOKUP($AO150,Data!$A$6:$A$1806,Data!$E$6:$E$1806)*-1,LOOKUP($AO150,Data!$A$6:$A$1806,Data!$E$6:$E$1806)) -> -228.9801636 | AT150: =LOOKUP($AO150,Data!$A$6:$A$1806,Data!$F$6:$F$1806) -> 0 | AU150: =LOOKUP($AO150,Data!$A$6:$A$1806,Data!$G$6:$G$1806) -> 0 | AV150: =LOOKUP($AO150,Data!$A$6:$A$1806,Data!$H$6:$H$1806) -> 0 | AW150: =LOOKUP($AO150,Data!$A$6:$A$1806,Data!$I$6:$I$1806) -> 0 | AX150: =LOOKUP($AO150,Data!$A$6:$A$1806,Data!$J$6:$J$1806) -> -653 | AY150: =LOOKUP($AO150,Data!$A$6:$A$1806,Data!$K$6:$K$1806) -> 7660 | AZ150: 296.005249
B151: 40098.10405 | C151: =LOOKUP(B151,Data!$A$6:$A$1806,Data!B$6:B$1806) -> 59.92499924 | D151: =LOOKUP(B151,Data!$A$6:$A$1806,Data!C$6:C$1806) -> 0 | H151: 300.0030518 | I151: 300.0030518 | L151: -5.030463798 | M151: 726.8155177 | N151: =AVERAGE(D$79:D151) -> 0 | O151: =AVERAGE(M$79:M151) -> 1046.374856 | P151: 442.597219 | Q151: =AVERAGE(P$79:P151) -> 621.1786839 | R151: 633 | Y151: 0 | Z151: 633 | AA151: -540.4436802 | AO151: 40098.10405 | AP151: =LOOKUP($AO151,Data!$A$6:$A$1806,Data!$B$6:$B$1806) -> 59.92499924 | AQ151: =LOOKUP($AO151,Data!$A$6:$A$1806,Data!$C$6:$C$1806) -> 0 | AR151: =LOOKUP($AO151,Data!$A$6:$A$1806,Data!$D$6:$D$1806) -> 0 | AS151: =IF($AS$1="+",LOOKUP($AO151,Data!$A$6:$A$1806,Data!$E$6:$E$1806)*-1,LOOKUP($AO151,Data!$A$6:$A$1806,Data!$E$6:$E$1806)) -> -228.9801636 | AT151: =LOOKUP($AO151,Data!$A$6:$A$1806,Data!$F$6:$F$1806) -> 0 | AU151: =LOOKUP($AO151,Data!$A$6:$A$1806,Data!$G$6:$G$1806) -> 0 | AV151: =LOOKUP($AO151,Data!$A$6:$A$1806,Data!$H$6:$H$1806) -> 0 | AW151: =LOOKUP($AO151,Data!$A$6:$A$1806,Data!$I$6:$I$1806) -> 0 | AX151: =LOOKUP($AO151,Data!$A$6:$A$1806,Data!$J$6:$J$1806) -> -653 | AY151: =LOOKUP($AO151,Data!$A$6:$A$1806,Data!$K$6:$K$1806) -> 7661 | AZ151: 300.0030518
B152: 40098.10407 | C152: =LOOKUP(B152,Data!$A$6:$A$1806,Data!B$6:B$1806) -> 59.9280014 | D152: =LOOKUP(B152,Data!$A$6:$A$1806,Data!C$6:C$1806) -> 0 | H152: 287.9943848 | I152: 287.9943848 | L152: -5.030463798 | M152: 709.7763869 | N152: =AVERAGE(D$79:D152) -> 0 | O152: =AVERAGE(M$79:M152) -> 1041.826228 | P152: 437.5667552 | Q152: =AVERAGE(P$79:P152) -> 618.663452 | R152: 633 | Y152: 0 | Z152: 633 | AA152: -554.6607124 | AO152: 40098.10407 | AP152: =LOOKUP($AO152,Data!$A$6:$A$1806,Data!$B$6:$B$1806) -> 59.9280014 | AQ152: =LOOKUP($AO152,Data!$A$6:$A$1806,Data!$C$6:$C$1806) -> 0 | AR152: =LOOKUP($AO152,Data!$A$6:$A$1806,Data!$D$6:$D$1806) -> 0 | AS152: =IF($AS$1="+",LOOKUP($AO152,Data!$A$6:$A$1806,Data!$E$6:$E$1806)*-1,LOOKUP($AO152,Data!$A$6:$A$1806,Data!$E$6:$E$1806)) -> -228.9801636 | AT152: =LOOKUP($AO152,Data!$A$6:$A$1806,Data!$F$6:$F$1806) -> 0 | AU152: =LOOKUP($AO152,Data!$A$6:$A$1806,Data!$G$6:$G$1806) -> 0 | AV152: =LOOKUP($AO152,Data!$A$6:$A$1806,Data!$H$6:$H$1806) -> 0 | AW152: =LOOKUP($AO152,Data!$A$6:$A$1806,Data!$I$6:$I$1806) -> 0 | AX152: =LOOKUP($AO152,Data!$A$6:$A$1806,Data!$J$6:$J$1806) -> -653 | AY152: =LOOKUP($AO152,Data!$A$6:$A$1806,Data!$K$6:$K$1806) -> 7661 | AZ152: 287.9943848
B153: 40098.1041 | C153: =LOOKUP(B153,Data!$A$6:$A$1806,Data!B$6:B$1806) -> 59.92699814 | D153: =LOOKUP(B153,Data!$A$6:$A$1806,Data!C$6:C$1806) -> 0 | H153: 292.0074463 | I153: 292.0074463 | L153: -5.030463798 | M153: 708.7589846 | N153: =AVERAGE(D$79:D153) -> 0 | O153: =AVERAGE(M$79:M153) -> 1037.385331 | P153: 432.5362914 | Q153: =AVERAGE(P$79:P153) -> 616.1482201 | R153: 633 | Y153: 0 | Z153: 633 | AA153: -549.8271679 | AO153: 40098.1041 | AP153: =LOOKUP($AO153,Data!$A$6:$A$1806,Data!$B$6:$B$1806) -> 59.92699814 | AQ153: =LOOKUP($AO153,Data!$A$6:$A$1806,Data!$C$6:$C$1806) -> 0 | AR153: =LOOKUP($AO153,Data!$A$6:$A$1806,Data!$D$6:$D$1806) -> 0 | AS153: =IF($AS$1="+",LOOKUP($AO153,Data!$A$6:$A$1806,Data!$E$6:$E$1806)*-1,LOOKUP($AO153,Data!$A$6:$A$1806,Data!$E$6:$E$1806)) -> -228.9801636 | AT153: =LOOKUP($AO153,Data!$A$6:$A$1806,Data!$F$6:$F$1806) -> 0 | AU153: =LOOKUP($AO153,Data!$A$6:$A$1806,Data!$G$6:$G$1806) -> 0 | AV153: =LOOKUP($AO153,Data!$A$6:$A$1806,Data!$H$6:$H$1806) -> 0 | AW153: =LOOKUP($AO153,Data!$A$6:$A$1806,Data!$I$6:$I$1806) -> 0 | AX153: =LOOKUP($AO153,Data!$A$6:$A$1806,Data!$J$6:$J$1806) -> -653 | AY153: =LOOKUP($AO153,Data!$A$6:$A$1806,Data!$K$6:$K$1806) -> 7662 | AZ153: 292.0074463
B154: 40098.10412 | C154: =LOOKUP(B154,Data!$A$6:$A$1806,Data!B$6:B$1806) -> 59.93199921 | D154: =LOOKUP(B154,Data!$A$6:$A$1806,Data!C$6:C$1806) -> 0 | H154: 272.0031738 | I154: 272.0031738 | L154: -5.030463798 | M154: 683.7242484 | N154: =AVERAGE(D$79:D154) -> 0 | O154: =AVERAGE(M$79:M154) -> 1032.731896 | P154: 427.5058276 | Q154: =AVERAGE(P$79:P154) -> 613.6329882 | R154: 633 | Y154: 0 | Z154: 633 | AA154: -574.7960459 | AO154: 40098.10412 | AP154: =LOOKUP($AO154,Data!$A$6:$A$1806,Data!$B$6:$B$1806) -> 59.93199921 | AQ154: =LOOKUP($AO154,Data!$A$6:$A$1806,Data!$C$6:$C$1806) -> 0 | AR154: =LOOKUP($AO154,Data!$A$6:$A$1806,Data!$D$6:$D$1806) -> 0 | AS154: =IF($AS$1="+",LOOKUP($AO154,Data!$A$6:$A$1806,Data!$E$6:$E$1806)*-1,LOOKUP($AO154,Data!$A$6:$A$1806,Data!$E$6:$E$1806)) -> -228.9801636 | AT154: =LOOKUP($AO154,Data!$A$6:$A$1806,Data!$F$6:$F$1806) -> 0 | AU154: =LOOKUP($AO154,Data!$A$6:$A$1806,Data!$G$6:$G$1806) -> 0 | AV154: =LOOKUP($AO154,Data!$A$6:$A$1806,Data!$H$6:$H$1806) -> 0 | AW154: =LOOKUP($AO154,Data!$A$6:$A$1806,Data!$I$6:$I$1806) -> 0 | AX154: =LOOKUP($AO154,Data!$A$6:$A$1806,Data!$J$6:$J$1806) -> -653 | AY154: =LOOKUP($AO154,Data!$A$6:$A$1806,Data!$K$6:$K$1806) -> 7662 | AZ154: 272.0031738
B155: 40098.10414 | C155: =LOOKUP(B155,Data!$A$6:$A$1806,Data!B$6:B$1806) -> 59.92699814 | D155: =LOOKUP(B155,Data!$A$6:$A$1806,Data!C$6:C$1806) -> 0 | H155: 292.0074463 | I155: 292.0074463 | L155: -5.030463798 | M155: 698.698057 | N155: =AVERAGE(D$79:D155) -> 0 | O155: =AVERAGE(M$79:M155) -> 1028.393794 | P155: 422.4753638 | Q155: =AVERAGE(P$79:P155) -> 611.1177563 | R155: 633 | Y155: 0 | Z155: 633 | AA155: -549.8271679 | AO155: 40098.10414 | AP155: =LOOKUP($AO155,Data!$A$6:$A$1806,Data!$B$6:$B$1806) -> 59.92699814 | AQ155: =LOOKUP($AO155,Data!$A$6:$A$1806,Data!$C$6:$C$1806) -> 0 | AR155: =LOOKUP($AO155,Data!$A$6:$A$1806,Data!$D$6:$D$1806) -> 0 | AS155: =IF($AS$1="+",LOOKUP($AO155,Data!$A$6:$A$1806,Data!$E$6:$E$1806)*-1,LOOKUP($AO155,Data!$A$6:$A$1806,Data!$E$6:$E$1806)) -> -219.9755554 | AT155: =LOOKUP($AO155,Data!$A$6:$A$1806,Data!$F$6:$F$1806) -> 0 | AU155: =LOOKUP($AO155,Data!$A$6:$A$1806,Data!$G$6:$G$1806) -> 0 | AV155: =LOOKUP($AO155,Data!$A$6:$A$1806,Data!$H$6:$H$1806) -> 0 | AW155: =LOOKUP($AO155,Data!$A$6:$A$1806,Data!$I$6:$I$1806) -> 0 | AX155: =LOOKUP($AO155,Data!$A$6:$A$1806,Data!$J$6:$J$1806) -> -653 | AY155: =LOOKUP($AO155,Data!$A$6:$A$1806,Data!$K$6:$K$1806) -> 7663 | AZ155: 292.0074463
B156: 40098.10417 | C156: =LOOKUP(B156,Data!$A$6:$A$1806,Data!B$6:B$1806) -> 59.9280014 | D156: =LOOKUP(B156,Data!$A$6:$A$1806,Data!C$6:C$1806) -> 0 | H156: 287.9943848 | I156: 287.9943848 | L156: -5.030463798 | M156: 689.6545317 | N156: =AVERAGE(D$79:D156) -> 0 | O156: =AVERAGE(M$79:M156) -> 1024.050983 | P156: 417.4449001 | Q156: =AVERAGE(P$79:P156) -> 608.6025244 | R156: 633 | Y156: 0 | Z156: 633 | AA156: -554.6607124 | AO156: 40098.10417 | AP156: =LOOKUP($AO156,Data!$A$6:$A$1806,Data!$B$6:$B$1806) -> 59.9280014 | AQ156: =LOOKUP($AO156,Data!$A$6:$A$1806,Data!$C$6:$C$1806) -> 0 | AR156: =LOOKUP($AO156,Data!$A$6:$A$1806,Data!$D$6:$D$1806) -> 0 | AS156: =IF($AS$1="+",LOOKUP($AO156,Data!$A$6:$A$1806,Data!$E$6:$E$1806)*-1,LOOKUP($AO156,Data!$A$6:$A$1806,Data!$E$6:$E$1806)) -> -219.9755554 | AT156: =LOOKUP($AO156,Data!$A$6:$A$1806,Data!$F$6:$F$1806) -> 0 | AU156: =LOOKUP($AO156,Data!$A$6:$A$1806,Data!$G$6:$G$1806) -> 0 | AV156: =LOOKUP($AO156,Data!$A$6:$A$1806,Data!$H$6:$H$1806) -> 0 | AW156: =LOOKUP($AO156,Data!$A$6:$A$1806,Data!$I$6:$I$1806) -> 0 | AX156: =LOOKUP($AO156,Data!$A$6:$A$1806,Data!$J$6:$J$1806) -> -653 | AY156: =LOOKUP($AO156,Data!$A$6:$A$1806,Data!$K$6:$K$1806) -> 7663 | AZ156: 287.9943848
B157: 40098.10419 | C157: =LOOKUP(B157,Data!$A$6:$A$1806,Data!B$6:B$1806) -> 59.93099976 | D157: =LOOKUP(B157,Data!$A$6:$A$1806,Data!C$6:C$1806) -> 0 | H157: 276.0009766 | I157: 276.0009766 | L157: -5.030463798 | M157: 672.6306597 | N157: =AVERAGE(D$79:D157) -> 0 | O157: =AVERAGE(M$79:M157) -> 1019.602625 | P157: 412.4144363 | Q157: =AVERAGE(P$79:P157) -> 606.0872925 | R157: 633 | Y157: 0 | Z157: 633 | AA157: -569.6263912 | AO157: 40098.10419 | AP157: =LOOKUP($AO157,Data!$A$6:$A$1806,Data!$B$6:$B$1806) -> 59.93099976 | AQ157: =LOOKUP($AO157,Data!$A$6:$A$1806,Data!$C$6:$C$1806) -> 0 | AR157: =LOOKUP($AO157,Data!$A$6:$A$1806,Data!$D$6:$D$1806) -> 0 | AS157: =IF($AS$1="+",LOOKUP($AO157,Data!$A$6:$A$1806,Data!$E$6:$E$1806)*-1,LOOKUP($AO157,Data!$A$6:$A$1806,Data!$E$6:$E$1806)) -> -219.9755554 | AT157: =LOOKUP($AO157,Data!$A$6:$A$1806,Data!$F$6:$F$1806) -> 0 | AU157: =LOOKUP($AO157,Data!$A$6:$A$1806,Data!$G$6:$G$1806) -> 0 | AV157: =LOOKUP($AO157,Data!$A$6:$A$1806,Data!$H$6:$H$1806) -> 0 | AW157: =LOOKUP($AO157,Data!$A$6:$A$1806,Data!$I$6:$I$1806) -> 0 | AX157: =LOOKUP($AO157,Data!$A$6:$A$1806,Data!$J$6:$J$1806) -> -653 | AY157: =LOOKUP($AO157,Data!$A$6:$A$1806,Data!$K$6:$K$1806) -> 7664 | AZ157: 276.0009766
B158: 40098.10421 | C158: =LOOKUP(B158,Data!$A$6:$A$1806,Data!B$6:B$1806) -> 59.92900085 | D158: =LOOKUP(B158,Data!$A$6:$A$1806,Data!C$6:C$1806) -> 0 | H158: 283.996582 | I158: 283.996582 | L158: -5.030463798 | M158: 675.5958014 | N158: =AVERAGE(D$79:D158) -> 0 | O158: =AVERAGE(M$79:M158) -> 1015.302539 | P158: 407.3839725 | Q158: =AVERAGE(P$79:P158) -> 603.5720606 | R158: 633 | Y158: 0 | Z158: 633 | AA158: -559.5611244 | AO158: 40098.10421 | AP158: =LOOKUP($AO158,Data!$A$6:$A$1806,Data!$B$6:$B$1806) -> 59.92900085 | AQ158: =LOOKUP($AO158,Data!$A$6:$A$1806,Data!$C$6:$C$1806) -> 0 | AR158: =LOOKUP($AO158,Data!$A$6:$A$1806,Data!$D$6:$D$1806) -> 0 | AS158: =IF($AS$1="+",LOOKUP($AO158,Data!$A$6:$A$1806,Data!$E$6:$E$1806)*-1,LOOKUP($AO158,Data!$A$6:$A$1806,Data!$E$6:$E$1806)) -> -219.9755554 | AT158: =LOOKUP($AO158,Data!$A$6:$A$1806,Data!$F$6:$F$1806) -> 0 | AU158: =LOOKUP($AO158,Data!$A$6:$A$1806,Data!$G$6:$G$1806) -> 0 | AV158: =LOOKUP($AO158,Data!$A$6:$A$1806,Data!$H$6:$H$1806) -> 0 | AW158: =LOOKUP($AO158,Data!$A$6:$A$1806,Data!$I$6:$I$1806) -> 0 | AX158: =LOOKUP($AO158,Data!$A$6:$A$1806,Data!$J$6:$J$1806) -> -653 | AY158: =LOOKUP($AO158,Data!$A$6:$A$1806,Data!$K$6:$K$1806) -> 7664 | AZ158: 283.996582
B159: 40098.10424 | C159: =LOOKUP(B159,Data!$A$6:$A$1806,Data!B$6:B$1806) -> 59.93099976 | D159: =LOOKUP(B159,Data!$A$6:$A$1806,Data!C$6:C$1806) -> 0 | H159: 276.0009766 | I159: 276.0009766 | L159: -5.030463798 | M159: 662.5697321 | N159: =AVERAGE(D$79:D159) -> 0 | O159: =AVERAGE(M$79:M159) -> 1010.947813 | P159: 402.3535087 | Q159: =AVERAGE(P$79:P159) -> 601.0568287 | R159: 633 | Y159: 0 | Z159: 633 | AA159: -569.6263912 | AO159: 40098.10424 | AP159: =LOOKUP($AO159,Data!$A$6:$A$1806,Data!$B$6:$B$1806) -> 59.93099976 | AQ159: =LOOKUP($AO159,Data!$A$6:$A$1806,Data!$C$6:$C$1806) -> 0 | AR159: =LOOKUP($AO159,Data!$A$6:$A$1806,Data!$D$6:$D$1806) -> 0 | AS159: =IF($AS$1="+",LOOKUP($AO159,Data!$A$6:$A$1806,Data!$E$6:$E$1806)*-1,LOOKUP($AO159,Data!$A$6:$A$1806,Data!$E$6:$E$1806)) -> -219.9755554 | AT159: =LOOKUP($AO159,Data!$A$6:$A$1806,Data!$F$6:$F$1806) -> 0 | AU159: =LOOKUP($AO159,Data!$A$6:$A$1806,Data!$G$6:$G$1806) -> 0 | AV159: =LOOKUP($AO159,Data!$A$6:$A$1806,Data!$H$6:$H$1806) -> 0 | AW159: =LOOKUP($AO159,Data!$A$6:$A$1806,Data!$I$6:$I$1806) -> 0 | AX159: =LOOKUP($AO159,Data!$A$6:$A$1806,Data!$J$6:$J$1806) -> -653 | AY159: =LOOKUP($AO159,Data!$A$6:$A$1806,Data!$K$6:$K$1806) -> 7665 | AZ159: 276.0009766
B160: 40098.10426 | C160: =LOOKUP(B160,Data!$A$6:$A$1806,Data!B$6:B$1806) -> 59.93299866 | D160: =LOOKUP(B160,Data!$A$6:$A$1806,Data!C$6:C$1806) -> 0 | H160: 268.0053711 | I160: 268.0053711 | L160: -5.030463798 | M160: 649.5436629 | N160: =AVERAGE(D$79:D160) -> 0 | O160: =AVERAGE(M$79:M160) -> 1006.540446 | P160: 397.3230449 | Q160: =AVERAGE(P$79:P160) -> 598.5415968 | R160: 633 | Y160: 0 | Z160: 633 | AA160: -580.0603946 | AO160: 40098.10426 | AP160: =LOOKUP($AO160,Data!$A$6:$A$1806,Data!$B$6:$B$1806) -> 59.93299866 | AQ160: =LOOKUP($AO160,Data!$A$6:$A$1806,Data!$C$6:$C$1806) -> 0 | AR160: =LOOKUP($AO160,Data!$A$6:$A$1806,Data!$D$6:$D$1806) -> 0 | AS160: =IF($AS$1="+",LOOKUP($AO160,Data!$A$6:$A$1806,Data!$E$6:$E$1806)*-1,LOOKUP($AO160,Data!$A$6:$A$1806,Data!$E$6:$E$1806)) -> -229.0892487 | AT160: =LOOKUP($AO160,Data!$A$6:$A$1806,Data!$F$6:$F$1806) -> 0 | AU160: =LOOKUP($AO160,Data!$A$6:$A$1806,Data!$G$6:$G$1806) -> 0 | AV160: =LOOKUP($AO160,Data!$A$6:$A$1806,Data!$H$6:$H$1806) -> 0 | AW160: =LOOKUP($AO160,Data!$A$6:$A$1806,Data!$I$6:$I$1806) -> 0 | AX160: =LOOKUP($AO160,Data!$A$6:$A$1806,Data!$J$6:$J$1806) -> -653 | AY160: =LOOKUP($AO160,Data!$A$6:$A$1806,Data!$K$6:$K$1806) -> 7666 | AZ160: 268.0053711
B161: 40098.10428 | C161: =LOOKUP(B161,Data!$A$6:$A$1806,Data!B$6:B$1806) -> 59.93700027 | D161: =LOOKUP(B161,Data!$A$6:$A$1806,Data!C$6:C$1806) -> 0 | H161: 251.9989014 | I161: 251.9989014 | L161: -5.030463798 | M161: 628.5067293 | N161: =AVERAGE(D$79:D161) -> 0 | O161: =AVERAGE(M$79:M161) -> 1001.985823 | P161: 392.2925811 | Q161: =AVERAGE(P$79:P161) -> 596.0263649 | R161: 633 | Y161: 0 | Z161: 633 | AA161: -602.1405932 | AO161: 40098.10428 | AP161: =LOOKUP($AO161,Data!$A$6:$A$1806,Data!$B$6:$B$1806) -> 59.93700027 | AQ161: =LOOKUP($AO161,Data!$A$6:$A$1806,Data!$C$6:$C$1806) -> 0 | AR161: =LOOKUP($AO161,Data!$A$6:$A$1806,Data!$D$6:$D$1806) -> 0 | AS161: =IF($AS$1="+",LOOKUP($AO161,Data!$A$6:$A$1806,Data!$E$6:$E$1806)*-1,LOOKUP($AO161,Data!$A$6:$A$1806,Data!$E$6:$E$1806)) -> -229.0892487 | AT161: =LOOKUP($AO161,Data!$A$6:$A$1806,Data!$F$6:$F$1806) -> 0 | AU161: =LOOKUP($AO161,Data!$A$6:$A$1806,Data!$G$6:$G$1806) -> 0 | AV161: =LOOKUP($AO161,Data!$A$6:$A$1806,Data!$H$6:$H$1806) -> 0 | AW161: =LOOKUP($AO161,Data!$A$6:$A$1806,Data!$I$6:$I$1806) -> 0 | AX161: =LOOKUP($AO161,Data!$A$6:$A$1806,Data!$J$6:$J$1806) -> -653 | AY161: =LOOKUP($AO161,Data!$A$6:$A$1806,Data!$K$6:$K$1806) -> 7666 | AZ161: 251.9989014
B162: 40098.10431 | C162: =LOOKUP(B162,Data!$A$6:$A$1806,Data!B$6:B$1806) -> 59.93700027 | D162: =LOOKUP(B162,Data!$A$6:$A$1806,Data!C$6:C$1806) -> 0 | H162: 251.9989014 | I162: 251.9989014 | L162: -5.030463798 | M162: 623.4762655 | N162: =AVERAGE(D$79:D162) -> 0 | O162: =AVERAGE(M$79:M162) -> 997.4797564 | P162: 387.2621173 | Q162: =AVERAGE(P$79:P162) -> 593.511133 | R162: 633 | Y162: 0 | Z162: 633 | AA162: -602.1405932 | AO162: 40098.10431 | AP162: =LOOKUP($AO162,Data!$A$6:$A$1806,Data!$B$6:$B$1806) -> 59.93700027 | AQ162: =LOOKUP($AO162,Data!$A$6:$A$1806,Data!$C$6:$C$1806) -> 0 | AR162: =LOOKUP($AO162,Data!$A$6:$A$1806,Data!$D$6:$D$1806) -> 0 | AS162: =IF($AS$1="+",LOOKUP($AO162,Data!$A$6:$A$1806,Data!$E$6:$E$1806)*-1,LOOKUP($AO162,Data!$A$6:$A$1806,Data!$E$6:$E$1806)) -> -229.0892487 | AT162: =LOOKUP($AO162,Data!$A$6:$A$1806,Data!$F$6:$F$1806) -> 0 | AU162: =LOOKUP($AO162,Data!$A$6:$A$1806,Data!$G$6:$G$1806) -> 0 | AV162: =LOOKUP($AO162,Data!$A$6:$A$1806,Data!$H$6:$H$1806) -> 0 | AW162: =LOOKUP($AO162,Data!$A$6:$A$1806,Data!$I$6:$I$1806) -> 0 | AX162: =LOOKUP($AO162,Data!$A$6:$A$1806,Data!$J$6:$J$1806) -> -653 | AY162: =LOOKUP($AO162,Data!$A$6:$A$1806,Data!$K$6:$K$1806) -> 7667 | AZ162: 251.9989014
B163: 40098.10433 | C163: =LOOKUP(B163,Data!$A$6:$A$1806,Data!B$6:B$1806) -> 59.94499969 | D163: =LOOKUP(B163,Data!$A$6:$A$1806,Data!C$6:C$1806) -> 0 | H163: 220.0012207 | I163: 220.0012207 | L163: -5.030463798 | M163: 586.4481211 | N163: =AVERAGE(D$79:D163) -> 0 | O163: =AVERAGE(M$79:M163) -> 992.6440901 | P163: 382.2316535 | Q163: =AVERAGE(P$79:P163) -> 590.9959011 | R163: 633 | Y163: 0 | Z163: 633 | AA163: -651.7338937 | AO163: 40098.10433 | AP163: =LOOKUP($AO163,Data!$A$6:$A$1806,Data!$B$6:$B$1806) -> 59.94499969 | AQ163: =LOOKUP($AO163,Data!$A$6:$A$1806,Data!$C$6:$C$1806) -> 0 | AR163: =LOOKUP($AO163,Data!$A$6:$A$1806,Data!$D$6:$D$1806) -> 0 | AS163: =IF($AS$1="+",LOOKUP($AO163,Data!$A$6:$A$1806,Data!$E$6:$E$1806)*-1,LOOKUP($AO163,Data!$A$6:$A$1806,Data!$E$6:$E$1806)) -> -229.0892487 | AT163: =LOOKUP($AO163,Data!$A$6:$A$1806,Data!$F$6:$F$1806) -> 0 | AU163: =LOOKUP($AO163,Data!$A$6:$A$1806,Data!$G$6:$G$1806) -> 0 | AV163: =LOOKUP($AO163,Data!$A$6:$A$1806,Data!$H$6:$H$1806) -> 0 | AW163: =LOOKUP($AO163,Data!$A$6:$A$1806,Data!$I$6:$I$1806) -> 0 | AX163: =LOOKUP($AO163,Data!$A$6:$A$1806,Data!$J$6:$J$1806) -> -653 | AY163: =LOOKUP($AO163,Data!$A$6:$A$1806,Data!$K$6:$K$1806) -> 7668 | AZ163: 220.0012207
B164: 40098.10435 | C164: =LOOKUP(B164,Data!$A$6:$A$1806,Data!B$6:B$1806) -> 59.94900131 | D164: =LOOKUP(B164,Data!$A$6:$A$1806,Data!C$6:C$1806) -> 0 | H164: 203.994751 | I164: 203.994751 | L164: -5.030463798 | M164: 565.4111876 | N164: =AVERAGE(D$79:D164) -> 0 | O164: =AVERAGE(M$79:M164) -> 987.6762657 | P164: 377.2011897 | Q164: =AVERAGE(P$79:P164) -> 588.4806692 | R164: 633 | Y164: 0 | Z164: 633 | AA164: -679.7394792 | AO164: 40098.10435 | AP164: =LOOKUP($AO164,Data!$A$6:$A$1806,Data!$B$6:$B$1806) -> 59.94900131 | AQ164: =LOOKUP($AO164,Data!$A$6:$A$1806,Data!$C$6:$C$1806) -> 0 | AR164: =LOOKUP($AO164,Data!$A$6:$A$1806,Data!$D$6:$D$1806) -> 0 | AS164: =IF($AS$1="+",LOOKUP($AO164,Data!$A$6:$A$1806,Data!$E$6:$E$1806)*-1,LOOKUP($AO164,Data!$A$6:$A$1806,Data!$E$6:$E$1806)) -> -229.0892487 | AT164: =LOOKUP($AO164,Data!$A$6:$A$1806,Data!$F$6:$F$1806) -> 0 | AU164: =LOOKUP($AO164,Data!$A$6:$A$1806,Data!$G$6:$G$1806) -> 0 | AV164: =LOOKUP($AO164,Data!$A$6:$A$1806,Data!$H$6:$H$1806) -> 0 | AW164: =LOOKUP($AO164,Data!$A$6:$A$1806,Data!$I$6:$I$1806) -> 0 | AX164: =LOOKUP($AO164,Data!$A$6:$A$1806,Data!$J$6:$J$1806) -> -653 | AY164: =LOOKUP($AO164,Data!$A$6:$A$1806,Data!$K$6:$K$1806) -> 7668 | AZ164: 203.994751
B165: 40098.10437 | C165: =LOOKUP(B165,Data!$A$6:$A$1806,Data!B$6:B$1806) -> 59.9469986 | D165: =LOOKUP(B165,Data!$A$6:$A$1806,Data!C$6:C$1806) -> 0 | H165: 212.0056152 | I165: 212.0056152 | L165: -5.030463798 | M165: 568.391588 | N165: =AVERAGE(D$79:D165) -> 0 | O165: =AVERAGE(M$79:M165) -> 982.8569016 | P165: 372.1707259 | Q165: =AVERAGE(P$79:P165) -> 585.9654373 | R165: 633 | Y165: 0 | Z165: 633 | AA165: -665.4288158 | AO165: 40098.10437 | AP165: =LOOKUP($AO165,Data!$A$6:$A$1806,Data!$B$6:$B$1806) -> 59.9469986 | AQ165: =LOOKUP($AO165,Data!$A$6:$A$1806,Data!$C$6:$C$1806) -> 0 | AR165: =LOOKUP($AO165,Data!$A$6:$A$1806,Data!$D$6:$D$1806) -> 0 | AS165: =IF($AS$1="+",LOOKUP($AO165,Data!$A$6:$A$1806,Data!$E$6:$E$1806)*-1,LOOKUP($AO165,Data!$A$6:$A$1806,Data!$E$6:$E$1806)) -> -229.663269 | AT165: =LOOKUP($AO165,Data!$A$6:$A$1806,Data!$F$6:$F$1806) -> 0 | AU165: =LOOKUP($AO165,Data!$A$6:$A$1806,Data!$G$6:$G$1806) -> 0 | AV165: =LOOKUP($AO165,Data!$A$6:$A$1806,Data!$H$6:$H$1806) -> 0 | AW165: =LOOKUP($AO165,Data!$A$6:$A$1806,Data!$I$6:$I$1806) -> 0 | AX165: =LOOKUP($AO165,Data!$A$6:$A$1806,Data!$J$6:$J$1806) -> -653 | AY165: =LOOKUP($AO165,Data!$A$6:$A$1806,Data!$K$6:$K$1806) -> 7669 | AZ165: 212.0056152
B166: 40098.1044 | C166: =LOOKUP(B166,Data!$A$6:$A$1806,Data!B$6:B$1806) -> 59.94200134 | D166: =LOOKUP(B166,Data!$A$6:$A$1806,Data!C$6:C$1806) -> 0 | H166: 231.9946289 | I166: 231.9946289 | L166: -5.030463798 | M166: 583.3501379 | N166: =AVERAGE(D$79:D166) -> 0 | O166: =AVERAGE(M$79:M166) -> 978.317052 | P166: 367.1402621 | Q166: =AVERAGE(P$79:P166) -> 583.4502054 | R166: 633 | Y166: 0 | Z166: 633 | AA166: -632.2167953 | AO166: 40098.1044 | AP166: =LOOKUP($AO166,Data!$A$6:$A$1806,Data!$B$6:$B$1806) -> 59.94200134 | AQ166: =LOOKUP($AO166,Data!$A$6:$A$1806,Data!$C$6:$C$1806) -> 0 | AR166: =LOOKUP($AO166,Data!$A$6:$A$1806,Data!$D$6:$D$1806) -> 0 | AS166: =IF($AS$1="+",LOOKUP($AO166,Data!$A$6:$A$1806,Data!$E$6:$E$1806)*-1,LOOKUP($AO166,Data!$A$6:$A$1806,Data!$E$6:$E$1806)) -> -229.663269 | AT166: =LOOKUP($AO166,Data!$A$6:$A$1806,Data!$F$6:$F$1806) -> 0 | AU166: =LOOKUP($AO166,Data!$A$6:$A$1806,Data!$G$6:$G$1806) -> 0 | AV166: =LOOKUP($AO166,Data!$A$6:$A$1806,Data!$H$6:$H$1806) -> 0 | AW166: =LOOKUP($AO166,Data!$A$6:$A$1806,Data!$I$6:$I$1806) -> 0 | AX166: =LOOKUP($AO166,Data!$A$6:$A$1806,Data!$J$6:$J$1806) -> -653 | AY166: =LOOKUP($AO166,Data!$A$6:$A$1806,Data!$K$6:$K$1806) -> 7669 | AZ166: 231.9946289
B167: 40098.10442 | C167: =LOOKUP(B167,Data!$A$6:$A$1806,Data!B$6:B$1806) -> 59.94100189 | D167: =LOOKUP(B167,Data!$A$6:$A$1806,Data!C$6:C$1806) -> 0 | H167: 235.9924316 | I167: 235.9924316 | L167: -5.030463798 | M167: 582.3174768 | N167: =AVERAGE(D$79:D167) -> 0 | O167: =AVERAGE(M$79:M167) -> 973.8676185 | P167: 362.1097983 | Q167: =AVERAGE(P$79:P167) -> 580.9349735 | R167: 633 | Y167: 0 | Z167: 633 | AA167: -625.9682918 | AO167: 40098.10442 | AP167: =LOOKUP($AO167,Data!$A$6:$A$1806,Data!$B$6:$B$1806) -> 59.94100189 | AQ167: =LOOKUP($AO167,Data!$A$6:$A$1806,Data!$C$6:$C$1806) -> 0 | AR167: =LOOKUP($AO167,Data!$A$6:$A$1806,Data!$D$6:$D$1806) -> 0 | AS167: =IF($AS$1="+",LOOKUP($AO167,Data!$A$6:$A$1806,Data!$E$6:$E$1806)*-1,LOOKUP($AO167,Data!$A$6:$A$1806,Data!$E$6:$E$1806)) -> -229.663269 | AT167: =LOOKUP($AO167,Data!$A$6:$A$1806,Data!$F$6:$F$1806) -> 0 | AU167: =LOOKUP($AO167,Data!$A$6:$A$1806,Data!$G$6:$G$1806) -> 0 | AV167: =LOOKUP($AO167,Data!$A$6:$A$1806,Data!$H$6:$H$1806) -> 0 | AW167: =LOOKUP($AO167,Data!$A$6:$A$1806,Data!$I$6:$I$1806) -> 0 | AX167: =LOOKUP($AO167,Data!$A$6:$A$1806,Data!$J$6:$J$1806) -> -653 | AY167: =LOOKUP($AO167,Data!$A$6:$A$1806,Data!$K$6:$K$1806) -> 7670 | AZ167: 235.9924316
B168: 40098.10444 | C168: =LOOKUP(B168,Data!$A$6:$A$1806,Data!B$6:B$1806) -> 59.94200134 | D168: =LOOKUP(B168,Data!$A$6:$A$1806,Data!C$6:C$1806) -> 0 | H168: 231.9946289 | I168: 231.9946289 | L168: -5.030463798 | M168: 573.2892103 | N168: =AVERAGE(D$79:D168) -> 0 | O168: =AVERAGE(M$79:M168) -> 969.4167473 | P168: 357.0793345 | Q168: =AVERAGE(P$79:P168) -> 578.4197416 | R168: 633 | Y168: 0 | Z168: 633 | AA168: -632.2167953 | AO168: 40098.10444 | AP168: =LOOKUP($AO168,Data!$A$6:$A$1806,Data!$B$6:$B$1806) -> 59.94200134 | AQ168: =LOOKUP($AO168,Data!$A$6:$A$1806,Data!$C$6:$C$1806) -> 0 | AR168: =LOOKUP($AO168,Data!$A$6:$A$1806,Data!$D$6:$D$1806) -> 0 | AS168: =IF($AS$1="+",LOOKUP($AO168,Data!$A$6:$A$1806,Data!$E$6:$E$1806)*-1,LOOKUP($AO168,Data!$A$6:$A$1806,Data!$E$6:$E$1806)) -> -229.663269 | AT168: =LOOKUP($AO168,Data!$A$6:$A$1806,Data!$F$6:$F$1806) -> 0 | AU168: =LOOKUP($AO168,Data!$A$6:$A$1806,Data!$G$6:$G$1806) -> 0 | AV168: =LOOKUP($AO168,Data!$A$6:$A$1806,Data!$H$6:$H$1806) -> 0 | AW168: =LOOKUP($AO168,Data!$A$6:$A$1806,Data!$I$6:$I$1806) -> 0 | AX168: =LOOKUP($AO168,Data!$A$6:$A$1806,Data!$J$6:$J$1806) -> -653 | AY168: =LOOKUP($AO168,Data!$A$6:$A$1806,Data!$K$6:$K$1806) -> 7670 | AZ168: 231.9946289
B169: 40098.10447 | C169: =LOOKUP(B169,Data!$A$6:$A$1806,Data!B$6:B$1806) -> 59.94499969 | D169: =LOOKUP(B169,Data!$A$6:$A$1806,Data!C$6:C$1806) -> 0 | H169: 220.0012207 | I169: 220.0012207 | L169: -5.030463798 | M169: 556.2653383 | N169: =AVERAGE(D$79:D169) -> 0 | O169: =AVERAGE(M$79:M169) -> 964.876622 | P169: 352.0488707 | Q169: =AVERAGE(P$79:P169) -> 575.9045097 | R169: 633 | Y169: 0 | Z169: 633 | AA169: -651.7338937 | AO169: 40098.10447 | AP169: =LOOKUP($AO169,Data!$A$6:$A$1806,Data!$B$6:$B$1806) -> 59.94499969 | AQ169: =LOOKUP($AO169,Data!$A$6:$A$1806,Data!$C$6:$C$1806) -> 0 | AR169: =LOOKUP($AO169,Data!$A$6:$A$1806,Data!$D$6:$D$1806) -> 0 | AS169: =IF($AS$1="+",LOOKUP($AO169,Data!$A$6:$A$1806,Data!$E$6:$E$1806)*-1,LOOKUP($AO169,Data!$A$6:$A$1806,Data!$E$6:$E$1806)) -> -229.663269 | AT169: =LOOKUP($AO169,Data!$A$6:$A$1806,Data!$F$6:$F$1806) -> 0 | AU169: =LOOKUP($AO169,Data!$A$6:$A$1806,Data!$G$6:$G$1806) -> 0 | AV169: =LOOKUP($AO169,Data!$A$6:$A$1806,Data!$H$6:$H$1806) -> 0 | AW169: =LOOKUP($AO169,Data!$A$6:$A$1806,Data!$I$6:$I$1806) -> 0 | AX169: =LOOKUP($AO169,Data!$A$6:$A$1806,Data!$J$6:$J$1806) -> -653 | AY169: =LOOKUP($AO169,Data!$A$6:$A$1806,Data!$K$6:$K$1806) -> 7671 | AZ169: 220.0012207
B170: 40098.10449 | C170: =LOOKUP(B170,Data!$A$6:$A$1806,Data!B$6:B$1806) -> 59.94800186 | D170: =LOOKUP(B170,Data!$A$6:$A$1806,Data!C$6:C$1806) -> 0 | H170: 207.9925537 | I170: 207.9925537 | L170: -5.030463798 | M170: 539.2262075 | N170: =AVERAGE(D$79:D170) -> 0 | O170: =AVERAGE(M$79:M170) -> 960.249987 | P170: 347.0184069 | Q170: =AVERAGE(P$79:P170) -> 573.3892778 | R170: 633 | Y170: 0 | Z170: 633 | AA170: -672.521653 | AO170: 40098.10449 | AP170: =LOOKUP($AO170,Data!$A$6:$A$1806,Data!$B$6:$B$1806) -> 59.94800186 | AQ170: =LOOKUP($AO170,Data!$A$6:$A$1806,Data!$C$6:$C$1806) -> 0 | AR170: =LOOKUP($AO170,Data!$A$6:$A$1806,Data!$D$6:$D$1806) -> 0 | AS170: =IF($AS$1="+",LOOKUP($AO170,Data!$A$6:$A$1806,Data!$E$6:$E$1806)*-1,LOOKUP($AO170,Data!$A$6:$A$1806,Data!$E$6:$E$1806)) -> -229.2338562 | AT170: =LOOKUP($AO170,Data!$A$6:$A$1806,Data!$F$6:$F$1806) -> 0 | AU170: =LOOKUP($AO170,Data!$A$6:$A$1806,Data!$G$6:$G$1806) -> 0 | AV170: =LOOKUP($AO170,Data!$A$6:$A$1806,Data!$H$6:$H$1806) -> 0 | AW170: =LOOKUP($AO170,Data!$A$6:$A$1806,Data!$I$6:$I$1806) -> 0 | AX170: =LOOKUP($AO170,Data!$A$6:$A$1806,Data!$J$6:$J$1806) -> -653 | AY170: =LOOKUP($AO170,Data!$A$6:$A$1806,Data!$K$6:$K$1806) -> 7671 | AZ170: 207.9925537
B171: 40098.10451 | C171: =LOOKUP(B171,Data!$A$6:$A$1806,Data!B$6:B$1806) -> 59.9469986 | D171: =LOOKUP(B171,Data!$A$6:$A$1806,Data!C$6:C$1806) -> 0 | H171: 212.0056152 | I171: =L$13*H171+(1-L$13)*I170 -> 212.0056152 | L171: -5.030463798 | M171: 538.2088052 | N171: =AVERAGE(D$79:D171) -> 0 | O171: =AVERAGE(M$79:M171) -> 955.7119098 | P171: 341.9879431 | Q171: =AVERAGE(P$79:P171) -> 570.8740459 | R171: 633 | Y171: 0 | Z171: =SUM(R171:Y171) -> 633 | AA171: -665.4288158 | AO171: 40098.10451 | AP171: =LOOKUP($AO171,Data!$A$6:$A$1806,Data!$B$6:$B$1806) -> 59.9469986 | AQ171: =LOOKUP($AO171,Data!$A$6:$A$1806,Data!$C$6:$C$1806) -> 0 | AR171: =LOOKUP($AO171,Data!$A$6:$A$1806,Data!$D$6:$D$1806) -> 0 | AS171: =IF($AS$1="+",LOOKUP($AO171,Data!$A$6:$A$1806,Data!$E$6:$E$1806)*-1,LOOKUP($AO171,Data!$A$6:$A$1806,Data!$E$6:$E$1806)) -> -229.2338562 | AT171: =LOOKUP($AO171,Data!$A$6:$A$1806,Data!$F$6:$F$1806) -> 0 | AU171: =LOOKUP($AO171,Data!$A$6:$A$1806,Data!$G$6:$G$1806) -> 0 | AV171: =LOOKUP($AO171,Data!$A$6:$A$1806,Data!$H$6:$H$1806) -> 0 | AW171: =LOOKUP($AO171,Data!$A$6:$A$1806,Data!$I$6:$I$1806) -> 0 | AX171: =LOOKUP($AO171,Data!$A$6:$A$1806,Data!$J$6:$J$1806) -> -653 | AY171: =LOOKUP($AO171,Data!$A$6:$A$1806,Data!$K$6:$K$1806) -> 7672 | AZ171: 212.0056152
B172: 40098.10454 | C172: =LOOKUP(B172,Data!$A$6:$A$1806,Data!B$6:B$1806) -> 59.94900131 | D172: =LOOKUP(B172,Data!$A$6:$A$1806,Data!C$6:C$1806) -> 0 | H172: =(IF((C172-L$2)>0,((C172-L$2-L$5)/((L$4*L$2)-L$5)*L$3*-1),((C172-L$2+L$5)/((L$4*L$2)-L$5)*L$3*-1))) -> 203.994751 | I172: 203.994751 | L172: -5.030463798 | M172: 525.1674772 | N172: =AVERAGE(D$79:D172) -> 0 | O172: =AVERAGE(M$79:M172) -> 951.1316499 | P172: 336.9574793 | Q172: =AVERAGE(P$79:P172) -> 568.358814 | R172: 633 | Y172: 0 | Z172: 633 | AA172: -679.7394792 | AO172: 40098.10454 | AP172: =LOOKUP($AO172,Data!$A$6:$A$1806,Data!$B$6:$B$1806) -> 59.94900131 | AQ172: =LOOKUP($AO172,Data!$A$6:$A$1806,Data!$C$6:$C$1806) -> 0 | AR172: =LOOKUP($AO172,Data!$A$6:$A$1806,Data!$D$6:$D$1806) -> 0 | AS172: =IF($AS$1="+",LOOKUP($AO172,Data!$A$6:$A$1806,Data!$E$6:$E$1806)*-1,LOOKUP($AO172,Data!$A$6:$A$1806,Data!$E$6:$E$1806)) -> -229.2338562 | AT172: =LOOKUP($AO172,Data!$A$6:$A$1806,Data!$F$6:$F$1806) -> 0 | AU172: =LOOKUP($AO172,Data!$A$6:$A$1806,Data!$G$6:$G$1806) -> 0 | AV172: =LOOKUP($AO172,Data!$A$6:$A$1806,Data!$H$6:$H$1806) -> 0 | AW172: =LOOKUP($AO172,Data!$A$6:$A$1806,Data!$I$6:$I$1806) -> 0 | AX172: =LOOKUP($AO172,Data!$A$6:$A$1806,Data!$J$6:$J$1806) -> -653 | AY172: =LOOKUP($AO172,Data!$A$6:$A$1806,Data!$K$6:$K$1806) -> 7673 | AZ172: =(IF((AP172-$L$2)>0,((AP172-$L$2-$L$5)/(($L$4*$L$2)-$L$5)*$L$3*-1),((AP172-$L$2+$L$5)/(($L$4*$L$2)-$L$5)*$L$3*-1))) -> 203.994751
B173: 40098.10456 | C173: =LOOKUP(B173,Data!$A$6:$A$1806,Data!B$6:B$1806) -> 59.95100021 | D173: =LOOKUP(B173,Data!$A$6:$A$1806,Data!C$6:C$1806) -> 0 | H173: 195.9991455 | I173: 195.9991455 | L173: -5.030463798 | M173: 512.1414079 | N173: =AVERAGE(D$79:D173) -> 0 | O173: =AVERAGE(M$79:M173) -> 946.5107 | P173: 331.9270155 | Q173: =AVERAGE(P$79:P173) -> 565.8435821 | R173: 633 | Y173: 0 | Z173: 633 | AA173: -694.6501185 | AO173: 40098.10456 | AP173: =LOOKUP($AO173,Data!$A$6:$A$1806,Data!$B$6:$B$1806) -> 59.95100021 | AQ173: =LOOKUP($AO173,Data!$A$6:$A$1806,Data!$C$6:$C$1806) -> 0 | AR173: =LOOKUP($AO173,Data!$A$6:$A$1806,Data!$D$6:$D$1806) -> 0 | AS173: =IF($AS$1="+",LOOKUP($AO173,Data!$A$6:$A$1806,Data!$E$6:$E$1806)*-1,LOOKUP($AO173,Data!$A$6:$A$1806,Data!$E$6:$E$1806)) -> -229.2338562 | AT173: =LOOKUP($AO173,Data!$A$6:$A$1806,Data!$F$6:$F$1806) -> 0 | AU173: =LOOKUP($AO173,Data!$A$6:$A$1806,Data!$G$6:$G$1806) -> 0 | AV173: =LOOKUP($AO173,Data!$A$6:$A$1806,Data!$H$6:$H$1806) -> 0 | AW173: =LOOKUP($AO173,Data!$A$6:$A$1806,Data!$I$6:$I$1806) -> 0 | AX173: =LOOKUP($AO173,Data!$A$6:$A$1806,Data!$J$6:$J$1806) -> -653 | AY173: =LOOKUP($AO173,Data!$A$6:$A$1806,Data!$K$6:$K$1806) -> 7673 | AZ173: 195.9991455
B174: =B173+TIME(0,0,$B$1) -> 40098.10458 | C174: =LOOKUP(B174,Data!$A$6:$A$1806,Data!B$6:B$1806) -> 59.95199966 | D174: =LOOKUP(B174,Data!$A$6:$A$1806,Data!C$6:C$1806) -> 0 | H174: 192.0013428 | I174: 192.0013428 | L174: -5.030463798 | M174: 503.1131414 | N174: =AVERAGE(D$79:D174) -> 0 | O174: =AVERAGE(M$79:M174) -> 941.8919754 | P174: 326.8965517 | Q174: =AVERAGE(P$79:P174) -> 563.3283502 | R174: 633 | Y174: 0 | Z174: 633 | AA174: -702.3534663 | AO174: 40098.10458 | AP174: =LOOKUP($AO174,Data!$A$6:$A$1806,Data!$B$6:$B$1806) -> 59.95199966 | AQ174: =LOOKUP($AO174,Data!$A$6:$A$1806,Data!$C$6:$C$1806) -> 0 | AR174: =LOOKUP($AO174,Data!$A$6:$A$1806,Data!$D$6:$D$1806) -> 0 | AS174: =IF($AS$1="+",LOOKUP($AO174,Data!$A$6:$A$1806,Data!$E$6:$E$1806)*-1,LOOKUP($AO174,Data!$A$6:$A$1806,Data!$E$6:$E$1806)) -> -229.2338562 | AT174: =LOOKUP($AO174,Data!$A$6:$A$1806,Data!$F$6:$F$1806) -> 0 | AU174: =LOOKUP($AO174,Data!$A$6:$A$1806,Data!$G$6:$G$1806) -> 0 | AV174: =LOOKUP($AO174,Data!$A$6:$A$1806,Data!$H$6:$H$1806) -> 0 | AW174: =LOOKUP($AO174,Data!$A$6:$A$1806,Data!$I$6:$I$1806) -> 0 | AX174: =LOOKUP($AO174,Data!$A$6:$A$1806,Data!$J$6:$J$1806) -> -653 | AY174: =LOOKUP($AO174,Data!$A$6:$A$1806,Data!$K$6:$K$1806) -> 7673 | AZ174: 192.0013428
B175: 40098.10461 | C175: =LOOKUP(B175,Data!$A$6:$A$1806,Data!B$6:B$1806) -> 59.95299911 | D175: =LOOKUP(B175,Data!$A$6:$A$1806,Data!C$6:C$1806) -> 0 | H175: 188.00354 | I175: 188.00354 | L175: -5.030463798 | M175: 494.0848748 | N175: =AVERAGE(D$79:D175) -> 0 | O175: =AVERAGE(M$79:M175) -> 937.2754074 | P175: 321.8660879 | Q175: =AVERAGE(P$79:P175) -> 560.8131183 | R175: 633 | Y175: 0 | Z175: 633 | AA175: -710.2295831 | AO175: 40098.10461 | AP175: =LOOKUP($AO175,Data!$A$6:$A$1806,Data!$B$6:$B$1806) -> 59.95299911 | AQ175: =LOOKUP($AO175,Data!$A$6:$A$1806,Data!$C$6:$C$1806) -> 0 | AR175: =LOOKUP($AO175,Data!$A$6:$A$1806,Data!$D$6:$D$1806) -> 0 | AS175: =IF($AS$1="+",LOOKUP($AO175,Data!$A$6:$A$1806,Data!$E$6:$E$1806)*-1,LOOKUP($AO175,Data!$A$6:$A$1806,Data!$E$6:$E$1806)) -> -231.4098816 | AT175: =LOOKUP($AO175,Data!$A$6:$A$1806,Data!$F$6:$F$1806) -> 0 | AU175: =LOOKUP($AO175,Data!$A$6:$A$1806,Data!$G$6:$G$1806) -> 0 | AV175: =LOOKUP($AO175,Data!$A$6:$A$1806,Data!$H$6:$H$1806) -> 0 | AW175: =LOOKUP($AO175,Data!$A$6:$A$1806,Data!$I$6:$I$1806) -> 0 | AX175: =LOOKUP($AO175,Data!$A$6:$A$1806,Data!$J$6:$J$1806) -> -653 | AY175: =LOOKUP($AO175,Data!$A$6:$A$1806,Data!$K$6:$K$1806) -> 7673 | AZ175: 188.00354
B176: 40098.10463 | C176: =LOOKUP(B176,Data!$A$6:$A$1806,Data!B$6:B$1806) -> 59.95100021 | D176: =LOOKUP(B176,Data!$A$6:$A$1806,Data!C$6:C$1806) -> 0 | H176: 195.9991455 | I176: 195.9991455 | L176: -5.030463798 | M176: 497.0500165 | N176: =AVERAGE(D$79:D176) -> 0 | O176: =AVERAGE(M$79:M176) -> 932.7833115 | P176: 316.8356241 | Q176: =AVERAGE(P$79:P176) -> 558.2978864 | R176: 633 | Y176: 0 | Z176: 633 | AA176: -694.6501185 | AO176: 40098.10463 | AP176: =LOOKUP($AO176,Data!$A$6:$A$1806,Data!$B$6:$B$1806) -> 59.95100021 | AQ176: =LOOKUP($AO176,Data!$A$6:$A$1806,Data!$C$6:$C$1806) -> 0 | AR176: =LOOKUP($AO176,Data!$A$6:$A$1806,Data!$D$6:$D$1806) -> 0 | AS176: =IF($AS$1="+",LOOKUP($AO176,Data!$A$6:$A$1806,Data!$E$6:$E$1806)*-1,LOOKUP($AO176,Data!$A$6:$A$1806,Data!$E$6:$E$1806)) -> -231.4098816 | AT176: =LOOKUP($AO176,Data!$A$6:$A$1806,Data!$F$6:$F$1806) -> 0 | AU176: =LOOKUP($AO176,Data!$A$6:$A$1806,Data!$G$6:$G$1806) -> 0 | AV176: =LOOKUP($AO176,Data!$A$6:$A$1806,Data!$H$6:$H$1806) -> 0 | AW176: =LOOKUP($AO176,Data!$A$6:$A$1806,Data!$I$6:$I$1806) -> 0 | AX176: =LOOKUP($AO176,Data!$A$6:$A$1806,Data!$J$6:$J$1806) -> -653 | AY176: =LOOKUP($AO176,Data!$A$6:$A$1806,Data!$K$6:$K$1806) -> 7673 | AZ176: 195.9991455
B177: 40098.10465 | C177: =LOOKUP(B177,Data!$A$6:$A$1806,Data!B$6:B$1806) -> 59.95199966 | D177: =LOOKUP(B177,Data!$A$6:$A$1806,Data!C$6:C$1806) -> 0 | H177: 192.0013428 | I177: 192.0013428 | L177: -5.030463798 | M177: 488.02175 | N177: =AVERAGE(D$79:D177) -> 0 | O177: =AVERAGE(M$79:M177) -> 928.2907705 | P177: 311.8051603 | Q177: =AVERAGE(P$79:P177) -> 555.7826545 | R177: 633 | Y177: 0 | Z177: 633 | AA177: -702.3534663 | AO177: 40098.10465 | AP177: =LOOKUP($AO177,Data!$A$6:$A$1806,Data!$B$6:$B$1806) -> 59.95199966 | AQ177: =LOOKUP($AO177,Data!$A$6:$A$1806,Data!$C$6:$C$1806) -> 0 | AR177: =LOOKUP($AO177,Data!$A$6:$A$1806,Data!$D$6:$D$1806) -> 0 | AS177: =IF($AS$1="+",LOOKUP($AO177,Data!$A$6:$A$1806,Data!$E$6:$E$1806)*-1,LOOKUP($AO177,Data!$A$6:$A$1806,Data!$E$6:$E$1806)) -> -231.4098816 | AT177: =LOOKUP($AO177,Data!$A$6:$A$1806,Data!$F$6:$F$1806) -> 0 | AU177: =LOOKUP($AO177,Data!$A$6:$A$1806,Data!$G$6:$G$1806) -> 0 | AV177: =LOOKUP($AO177,Data!$A$6:$A$1806,Data!$H$6:$H$1806) -> 0 | AW177: =LOOKUP($AO177,Data!$A$6:$A$1806,Data!$I$6:$I$1806) -> 0 | AX177: =LOOKUP($AO177,Data!$A$6:$A$1806,Data!$J$6:$J$1806) -> -653 | AY177: =LOOKUP($AO177,Data!$A$6:$A$1806,Data!$K$6:$K$1806) -> 7673 | AZ177: 192.0013428
B178: 40098.10468 | C178: =LOOKUP(B178,Data!$A$6:$A$1806,Data!B$6:B$1806) -> 59.95199966 | D178: =LOOKUP(B178,Data!$A$6:$A$1806,Data!C$6:C$1806) -> 0 | H178: 192.0013428 | I178: 192.0013428 | L178: -5.030463798 | M178: 482.9912862 | N178: =AVERAGE(D$79:D178) -> 0 | O178: =AVERAGE(M$79:M178) -> 923.8377757 | P178: 306.7746965 | Q178: =AVERAGE(P$79:P178) -> 553.2674226 | R178: 633 | Y178: 0 | Z178: 633 | AA178: -702.3534663 | AO178: 40098.10468 | AP178: =LOOKUP($AO178,Data!$A$6:$A$1806,Data!$B$6:$B$1806) -> 59.95199966 | AQ178: =LOOKUP($AO178,Data!$A$6:$A$1806,Data!$C$6:$C$1806) -> 0 | AR178: =LOOKUP($AO178,Data!$A$6:$A$1806,Data!$D$6:$D$1806) -> 0 | AS178: =IF($AS$1="+",LOOKUP($AO178,Data!$A$6:$A$1806,Data!$E$6:$E$1806)*-1,LOOKUP($AO178,Data!$A$6:$A$1806,Data!$E$6:$E$1806)) -> -231.4098816 | AT178: =LOOKUP($AO178,Data!$A$6:$A$1806,Data!$F$6:$F$1806) -> 0 | AU178: =LOOKUP($AO178,Data!$A$6:$A$1806,Data!$G$6:$G$1806) -> 0 | AV178: =LOOKUP($AO178,Data!$A$6:$A$1806,Data!$H$6:$H$1806) -> 0 | AW178: =LOOKUP($AO178,Data!$A$6:$A$1806,Data!$I$6:$I$1806) -> 0 | AX178: =LOOKUP($AO178,Data!$A$6:$A$1806,Data!$J$6:$J$1806) -> -653 | AY178: =LOOKUP($AO178,Data!$A$6:$A$1806,Data!$K$6:$K$1806) -> 7673 | AZ178: 192.0013428
B179: 40098.1047 | C179: =LOOKUP(B179,Data!$A$6:$A$1806,Data!B$6:B$1806) -> 59.95199966 | D179: =LOOKUP(B179,Data!$A$6:$A$1806,Data!C$6:C$1806) -> 0 | H179: 192.0013428 | I179: 192.0013428 | L179: -5.030463798 | M179: 477.9608224 | N179: =AVERAGE(D$79:D179) -> 0 | O179: =AVERAGE(M$79:M179) -> 919.4231524 | P179: 301.7442327 | Q179: =AVERAGE(P$79:P179) -> 550.7521907 | R179: 633 | Y179: 0 | Z179: 633 | AA179: -702.3534663 | AO179: 40098.1047 | AP179: =LOOKUP($AO179,Data!$A$6:$A$1806,Data!$B$6:$B$1806) -> 59.95199966 | AQ179: =LOOKUP($AO179,Data!$A$6:$A$1806,Data!$C$6:$C$1806) -> 0 | AR179: =LOOKUP($AO179,Data!$A$6:$A$1806,Data!$D$6:$D$1806) -> 0 | AS179: =IF($AS$1="+",LOOKUP($AO179,Data!$A$6:$A$1806,Data!$E$6:$E$1806)*-1,LOOKUP($AO179,Data!$A$6:$A$1806,Data!$E$6:$E$1806)) -> -231.4098816 | AT179: =LOOKUP($AO179,Data!$A$6:$A$1806,Data!$F$6:$F$1806) -> 0 | AU179: =LOOKUP($AO179,Data!$A$6:$A$1806,Data!$G$6:$G$1806) -> 0 | AV179: =LOOKUP($AO179,Data!$A$6:$A$1806,Data!$H$6:$H$1806) -> 0 | AW179: =LOOKUP($AO179,Data!$A$6:$A$1806,Data!$I$6:$I$1806) -> 0 | AX179: =LOOKUP($AO179,Data!$A$6:$A$1806,Data!$J$6:$J$1806) -> -653 | AY179: =LOOKUP($AO179,Data!$A$6:$A$1806,Data!$K$6:$K$1806) -> 7673 | AZ179: 192.0013428
B180: 40098.10472 | C180: =LOOKUP(B180,Data!$A$6:$A$1806,Data!B$6:B$1806) -> 59.95500183 | D180: =LOOKUP(B180,Data!$A$6:$A$1806,Data!C$6:C$1806) -> 0 | H180: 179.9926758 | I180: 179.9926758 | L180: -5.030463798 | M180: 460.9216916 | N180: =AVERAGE(D$79:D180) -> 0 | O180: =AVERAGE(M$79:M180) -> 914.92804 | P180: 296.7137689 | Q180: =AVERAGE(P$79:P180) -> 548.2369588 | R180: 633 | Y180: 0 | Z180: 633 | AA180: -726.555717 | AO180: 40098.10472 | AP180: =LOOKUP($AO180,Data!$A$6:$A$1806,Data!$B$6:$B$1806) -> 59.95500183 | AQ180: =LOOKUP($AO180,Data!$A$6:$A$1806,Data!$C$6:$C$1806) -> 0 | AR180: =LOOKUP($AO180,Data!$A$6:$A$1806,Data!$D$6:$D$1806) -> 0 | AS180: =IF($AS$1="+",LOOKUP($AO180,Data!$A$6:$A$1806,Data!$E$6:$E$1806)*-1,LOOKUP($AO180,Data!$A$6:$A$1806,Data!$E$6:$E$1806)) -> -218.6222839 | AT180: =LOOKUP($AO180,Data!$A$6:$A$1806,Data!$F$6:$F$1806) -> 0 | AU180: =LOOKUP($AO180,Data!$A$6:$A$1806,Data!$G$6:$G$1806) -> 0 | AV180: =LOOKUP($AO180,Data!$A$6:$A$1806,Data!$H$6:$H$1806) -> 0 | AW180: =LOOKUP($AO180,Data!$A$6:$A$1806,Data!$I$6:$I$1806) -> 0 | AX180: =LOOKUP($AO180,Data!$A$6:$A$1806,Data!$J$6:$J$1806) -> -653 | AY180: =LOOKUP($AO180,Data!$A$6:$A$1806,Data!$K$6:$K$1806) -> 7673 | AZ180: 179.9926758
B181: 40098.10475 | C181: =LOOKUP(B181,Data!$A$6:$A$1806,Data!B$6:B$1806) -> 59.95199966 | D181: =LOOKUP(B181,Data!$A$6:$A$1806,Data!C$6:C$1806) -> 0 | H181: 192.0013428 | I181: 192.0013428 | L181: -5.030463798 | M181: 467.8998948 | N181: =AVERAGE(D$79:D181) -> 0 | O181: =AVERAGE(M$79:M181) -> 910.5879609 | P181: 291.6833051 | Q181: =AVERAGE(P$79:P181) -> 545.7217269 | R181: 633 | Y181: 0 | Z181: 633 | AA181: -702.3534663 | AO181: 40098.10475 | AP181: =LOOKUP($AO181,Data!$A$6:$A$1806,Data!$B$6:$B$1806) -> 59.95199966 | AQ181: =LOOKUP($AO181,Data!$A$6:$A$1806,Data!$C$6:$C$1806) -> 0 | AR181: =LOOKUP($AO181,Data!$A$6:$A$1806,Data!$D$6:$D$1806) -> 0 | AS181: =IF($AS$1="+",LOOKUP($AO181,Data!$A$6:$A$1806,Data!$E$6:$E$1806)*-1,LOOKUP($AO181,Data!$A$6:$A$1806,Data!$E$6:$E$1806)) -> -218.6222839 | AT181: =LOOKUP($AO181,Data!$A$6:$A$1806,Data!$F$6:$F$1806) -> 0 | AU181: =LOOKUP($AO181,Data!$A$6:$A$1806,Data!$G$6:$G$1806) -> 0 | AV181: =LOOKUP($AO181,Data!$A$6:$A$1806,Data!$H$6:$H$1806) -> 0 | AW181: =LOOKUP($AO181,Data!$A$6:$A$1806,Data!$I$6:$I$1806) -> 0 | AX181: =LOOKUP($AO181,Data!$A$6:$A$1806,Data!$J$6:$J$1806) -> -653 | AY181: =LOOKUP($AO181,Data!$A$6:$A$1806,Data!$K$6:$K$1806) -> 7673 | AZ181: 192.0013428
B182: 40098.10477 | C182: =LOOKUP(B182,Data!$A$6:$A$1806,Data!B$6:B$1806) -> 59.95399857 | D182: =LOOKUP(B182,Data!$A$6:$A$1806,Data!C$6:C$1806) -> 0 | H182: 184.0057373 | I182: 184.0057373 | L182: -5.030463798 | M182: 454.8738255 | N182: =AVERAGE(D$79:D182) -> 0 | O182: =AVERAGE(M$79:M182) -> 906.2060942 | P182: 286.6528413 | Q182: =AVERAGE(P$79:P182) -> 543.206495 | R182: 633 | Y182: 0 | Z182: 633 | AA182: -718.284347 | AO182: 40098.10477 | AP182: =LOOKUP($AO182,Data!$A$6:$A$1806,Data!$B$6:$B$1806) -> 59.95399857 | AQ182: =LOOKUP($AO182,Data!$A$6:$A$1806,Data!$C$6:$C$1806) -> 0 | AR182: =LOOKUP($AO182,Data!$A$6:$A$1806,Data!$D$6:$D$1806) -> 0 | AS182: =IF($AS$1="+",LOOKUP($AO182,Data!$A$6:$A$1806,Data!$E$6:$E$1806)*-1,LOOKUP($AO182,Data!$A$6:$A$1806,Data!$E$6:$E$1806)) -> -218.6222839 | AT182: =LOOKUP($AO182,Data!$A$6:$A$1806,Data!$F$6:$F$1806) -> 0 | AU182: =LOOKUP($AO182,Data!$A$6:$A$1806,Data!$G$6:$G$1806) -> 0 | AV182: =LOOKUP($AO182,Data!$A$6:$A$1806,Data!$H$6:$H$1806) -> 0 | AW182: =LOOKUP($AO182,Data!$A$6:$A$1806,Data!$I$6:$I$1806) -> 0 | AX182: =LOOKUP($AO182,Data!$A$6:$A$1806,Data!$J$6:$J$1806) -> -653 | AY182: =LOOKUP($AO182,Data!$A$6:$A$1806,Data!$K$6:$K$1806) -> 7673 | AZ182: 184.0057373
B183: 40098.10479 | C183: =LOOKUP(B183,Data!$A$6:$A$1806,Data!B$6:B$1806) -> 59.95199966 | D183: =LOOKUP(B183,Data!$A$6:$A$1806,Data!C$6:C$1806) -> 0 | H183: 192.0013428 | I183: 192.0013428 | L183: -5.030463798 | M183: 457.8389672 | N183: =AVERAGE(D$79:D183) -> 0 | O183: =AVERAGE(M$79:M183) -> 901.9359311 | P183: 281.6223775 | Q183: =AVERAGE(P$79:P183) -> 540.6912631 | R183: 633 | Y183: 0 | Z183: 633 | AA183: -702.3534663 | AO183: 40098.10479 | AP183: =LOOKUP($AO183,Data!$A$6:$A$1806,Data!$B$6:$B$1806) -> 59.95199966 | AQ183: =LOOKUP($AO183,Data!$A$6:$A$1806,Data!$C$6:$C$1806) -> 0 | AR183: =LOOKUP($AO183,Data!$A$6:$A$1806,Data!$D$6:$D$1806) -> 0 | AS183: =IF($AS$1="+",LOOKUP($AO183,Data!$A$6:$A$1806,Data!$E$6:$E$1806)*-1,LOOKUP($AO183,Data!$A$6:$A$1806,Data!$E$6:$E$1806)) -> -218.6222839 | AT183: =LOOKUP($AO183,Data!$A$6:$A$1806,Data!$F$6:$F$1806) -> 0 | AU183: =LOOKUP($AO183,Data!$A$6:$A$1806,Data!$G$6:$G$1806) -> 0 | AV183: =LOOKUP($AO183,Data!$A$6:$A$1806,Data!$H$6:$H$1806) -> 0 | AW183: =LOOKUP($AO183,Data!$A$6:$A$1806,Data!$I$6:$I$1806) -> 0 | AX183: =LOOKUP($AO183,Data!$A$6:$A$1806,Data!$J$6:$J$1806) -> -653 | AY183: =LOOKUP($AO183,Data!$A$6:$A$1806,Data!$K$6:$K$1806) -> 7673 | AZ183: 192.0013428
B184: 40098.10481 | C184: =LOOKUP(B184,Data!$A$6:$A$1806,Data!B$6:B$1806) -> 59.95299911 | D184: =LOOKUP(B184,Data!$A$6:$A$1806,Data!C$6:C$1806) -> 0 | H184: 188.00354 | I184: 188.00354 | L184: -5.030463798 | M184: 448.8107007 | N184: =AVERAGE(D$79:D184) -> 0 | O184: =AVERAGE(M$79:M184) -> 897.6611648 | P184: 276.5919137 | Q184: =AVERAGE(P$79:P184) -> 538.1760312 | R184: 633 | Y184: 0 | Z184: 633 | AA184: -710.2295831 | AO184: 40098.10481 | AP184: =LOOKUP($AO184,Data!$A$6:$A$1806,Data!$B$6:$B$1806) -> 59.95299911 | AQ184: =LOOKUP($AO184,Data!$A$6:$A$1806,Data!$C$6:$C$1806) -> 0 | AR184: =LOOKUP($AO184,Data!$A$6:$A$1806,Data!$D$6:$D$1806) -> 0 | AS184: =IF($AS$1="+",LOOKUP($AO184,Data!$A$6:$A$1806,Data!$E$6:$E$1806)*-1,LOOKUP($AO184,Data!$A$6:$A$1806,Data!$E$6:$E$1806)) -> -218.6222839 | AT184: =LOOKUP($AO184,Data!$A$6:$A$1806,Data!$F$6:$F$1806) -> 0 | AU184: =LOOKUP($AO184,Data!$A$6:$A$1806,Data!$G$6:$G$1806) -> 0 | AV184: =LOOKUP($AO184,Data!$A$6:$A$1806,Data!$H$6:$H$1806) -> 0 | AW184: =LOOKUP($AO184,Data!$A$6:$A$1806,Data!$I$6:$I$1806) -> 0 | AX184: =LOOKUP($AO184,Data!$A$6:$A$1806,Data!$J$6:$J$1806) -> -653 | AY184: =LOOKUP($AO184,Data!$A$6:$A$1806,Data!$K$6:$K$1806) -> 7673 | AZ184: 188.00354
B185: 40098.10484 | C185: =LOOKUP(B185,Data!$A$6:$A$1806,Data!B$6:B$1806) -> 59.95299911 | D185: =LOOKUP(B185,Data!$A$6:$A$1806,Data!C$6:C$1806) -> 0 | H185: 188.00354 | I185: 188.00354 | L185: -5.030463798 | M185: 443.7802369 | N185: =AVERAGE(D$79:D185) -> 0 | O185: =AVERAGE(M$79:M185) -> 893.419287 | P185: 271.5614499 | Q185: =AVERAGE(P$79:P185) -> 535.6607993 | R185: 633 | Y185: 0 | Z185: 633 | AA185: -710.2295831 | AO185: 40098.10484 | AP185: =LOOKUP($AO185,Data!$A$6:$A$1806,Data!$B$6:$B$1806) -> 59.95299911 | AQ185: =LOOKUP($AO185,Data!$A$6:$A$1806,Data!$C$6:$C$1806) -> 0 | AR185: =LOOKUP($AO185,Data!$A$6:$A$1806,Data!$D$6:$D$1806) -> 0 | AS185: =IF($AS$1="+",LOOKUP($AO185,Data!$A$6:$A$1806,Data!$E$6:$E$1806)*-1,LOOKUP($AO185,Data!$A$6:$A$1806,Data!$E$6:$E$1806)) -> -213.5358582 | AT185: =LOOKUP($AO185,Data!$A$6:$A$1806,Data!$F$6:$F$1806) -> 0 | AU185: =LOOKUP($AO185,Data!$A$6:$A$1806,Data!$G$6:$G$1806) -> 0 | AV185: =LOOKUP($AO185,Data!$A$6:$A$1806,Data!$H$6:$H$1806) -> 0 | AW185: =LOOKUP($AO185,Data!$A$6:$A$1806,Data!$I$6:$I$1806) -> 0 | AX185: =LOOKUP($AO185,Data!$A$6:$A$1806,Data!$J$6:$J$1806) -> -653 | AY185: =LOOKUP($AO185,Data!$A$6:$A$1806,Data!$K$6:$K$1806) -> 7673 | AZ185: 188.00354
B186: 40098.10486 | C186: =LOOKUP(B186,Data!$A$6:$A$1806,Data!B$6:B$1806) -> 59.95199966 | D186: =LOOKUP(B186,Data!$A$6:$A$1806,Data!C$6:C$1806) -> 0 | H186: 192.0013428 | I186: 192.0013428 | L186: -5.030463798 | M186: 442.7475758 | N186: =AVERAGE(D$79:D186) -> 0 | O186: =AVERAGE(M$79:M186) -> 889.2464007 | P186: 266.5309861 | Q186: =AVERAGE(P$79:P186) -> 533.1455674 | R186: 633 | Y186: 0 | Z186: 633 | AA186: -702.3534663 | AO186: 40098.10486 | AP186: =LOOKUP($AO186,Data!$A$6:$A$1806,Data!$B$6:$B$1806) -> 59.95199966 | AQ186: =LOOKUP($AO186,Data!$A$6:$A$1806,Data!$C$6:$C$1806) -> 0 | AR186: =LOOKUP($AO186,Data!$A$6:$A$1806,Data!$D$6:$D$1806) -> 0 | AS186: =IF($AS$1="+",LOOKUP($AO186,Data!$A$6:$A$1806,Data!$E$6:$E$1806)*-1,LOOKUP($AO186,Data!$A$6:$A$1806,Data!$E$6:$E$1806)) -> -213.5358582 | AT186: =LOOKUP($AO186,Data!$A$6:$A$1806,Data!$F$6:$F$1806) -> 0 | AU186: =LOOKUP($AO186,Data!$A$6:$A$1806,Data!$G$6:$G$1806) -> 0 | AV186: =LOOKUP($AO186,Data!$A$6:$A$1806,Data!$H$6:$H$1806) -> 0 | AW186: =LOOKUP($AO186,Data!$A$6:$A$1806,Data!$I$6:$I$1806) -> 0 | AX186: =LOOKUP($AO186,Data!$A$6:$A$1806,Data!$J$6:$J$1806) -> -653 | AY186: =LOOKUP($AO186,Data!$A$6:$A$1806,Data!$K$6:$K$1806) -> 7673 | AZ186: 192.0013428
B187: 40098.10488 | C187: =LOOKUP(B187,Data!$A$6:$A$1806,Data!B$6:B$1806) -> 59.95399857 | D187: =LOOKUP(B187,Data!$A$6:$A$1806,Data!C$6:C$1806) -> 0 | H187: 184.0057373 | I187: 184.0057373 | L187: -5.030463798 | M187: 429.7215065 | N187: =AVERAGE(D$79:D187) -> 0 | O187: =AVERAGE(M$79:M187) -> 885.030576 | P187: 261.5005223 | Q187: =AVERAGE(P$79:P187) -> 530.6303355 | R187: 633 | Y187: 0 | Z187: 633 | AA187: -718.284347 | AO187: 40098.10488 | AP187: =LOOKUP($AO187,Data!$A$6:$A$1806,Data!$B$6:$B$1806) -> 59.95399857 | AQ187: =LOOKUP($AO187,Data!$A$6:$A$1806,Data!$C$6:$C$1806) -> 0 | AR187: =LOOKUP($AO187,Data!$A$6:$A$1806,Data!$D$6:$D$1806) -> 0 | AS187: =IF($AS$1="+",LOOKUP($AO187,Data!$A$6:$A$1806,Data!$E$6:$E$1806)*-1,LOOKUP($AO187,Data!$A$6:$A$1806,Data!$E$6:$E$1806)) -> -213.5358582 | AT187: =LOOKUP($AO187,Data!$A$6:$A$1806,Data!$F$6:$F$1806) -> 0 | AU187: =LOOKUP($AO187,Data!$A$6:$A$1806,Data!$G$6:$G$1806) -> 0 | AV187: =LOOKUP($AO187,Data!$A$6:$A$1806,Data!$H$6:$H$1806) -> 0 | AW187: =LOOKUP($AO187,Data!$A$6:$A$1806,Data!$I$6:$I$1806) -> 0 | AX187: =LOOKUP($AO187,Data!$A$6:$A$1806,Data!$J$6:$J$1806) -> -653 | AY187: =LOOKUP($AO187,Data!$A$6:$A$1806,Data!$K$6:$K$1806) -> 7673 | AZ187: 184.0057373
B188: 40098.10491 | C188: =LOOKUP(B188,Data!$A$6:$A$1806,Data!B$6:B$1806) -> 59.95399857 | D188: =LOOKUP(B188,Data!$A$6:$A$1806,Data!C$6:C$1806) -> 0 | H188: 184.0057373 | I188: 184.0057373 | L188: -5.030463798 | M188: 424.6910427 | N188: =AVERAGE(D$79:D188) -> 0 | O188: =AVERAGE(M$79:M188) -> 880.8456712 | P188: 256.4700585 | Q188: =AVERAGE(P$79:P188) -> 528.1151036 | R188: 633 | Y188: 0 | Z188: 633 | AA188: -718.284347 | AO188: 40098.10491 | AP188: =LOOKUP($AO188,Data!$A$6:$A$1806,Data!$B$6:$B$1806) -> 59.95399857 | AQ188: =LOOKUP($AO188,Data!$A$6:$A$1806,Data!$C$6:$C$1806) -> 0 | AR188: =LOOKUP($AO188,Data!$A$6:$A$1806,Data!$D$6:$D$1806) -> 0 | AS188: =IF($AS$1="+",LOOKUP($AO188,Data!$A$6:$A$1806,Data!$E$6:$E$1806)*-1,LOOKUP($AO188,Data!$A$6:$A$1806,Data!$E$6:$E$1806)) -> -213.5358582 | AT188: =LOOKUP($AO188,Data!$A$6:$A$1806,Data!$F$6:$F$1806) -> 0 | AU188: =LOOKUP($AO188,Data!$A$6:$A$1806,Data!$G$6:$G$1806) -> 0 | AV188: =LOOKUP($AO188,Data!$A$6:$A$1806,Data!$H$6:$H$1806) -> 0 | AW188: =LOOKUP($AO188,Data!$A$6:$A$1806,Data!$I$6:$I$1806) -> 0 | AX188: =LOOKUP($AO188,Data!$A$6:$A$1806,Data!$J$6:$J$1806) -> -653 | AY188: =LOOKUP($AO188,Data!$A$6:$A$1806,Data!$K$6:$K$1806) -> 7674 | AZ188: 184.0057373
B189: 40098.10493 | C189: =LOOKUP(B189,Data!$A$6:$A$1806,Data!B$6:B$1806) -> 59.95899963 | D189: =LOOKUP(B189,Data!$A$6:$A$1806,Data!C$6:C$1806) -> 0 | H189: 164.0014648 | I189: 164.0014648 | L189: -5.030463798 | M189: 399.6563065 | N189: =AVERAGE(D$79:D189) -> 0 | O189: =AVERAGE(M$79:M189) -> 876.5106319 | P189: 251.4395947 | Q189: =AVERAGE(P$79:P189) -> 525.5998717 | R189: 633 | Y189: 0 | Z189: 633 | AA189: -761.4983428 | AO189: 40098.10493 | AP189: =LOOKUP($AO189,Data!$A$6:$A$1806,Data!$B$6:$B$1806) -> 59.95899963 | AQ189: =LOOKUP($AO189,Data!$A$6:$A$1806,Data!$C$6:$C$1806) -> 0 | AR189: =LOOKUP($AO189,Data!$A$6:$A$1806,Data!$D$6:$D$1806) -> 0 | AS189: =IF($AS$1="+",LOOKUP($AO189,Data!$A$6:$A$1806,Data!$E$6:$E$1806)*-1,LOOKUP($AO189,Data!$A$6:$A$1806,Data!$E$6:$E$1806)) -> -213.5358582 | AT189: =LOOKUP($AO189,Data!$A$6:$A$1806,Data!$F$6:$F$1806) -> 0 | AU189: =LOOKUP($AO189,Data!$A$6:$A$1806,Data!$G$6:$G$1806) -> 0 | AV189: =LOOKUP($AO189,Data!$A$6:$A$1806,Data!$H$6:$H$1806) -> 0 | AW189: =LOOKUP($AO189,Data!$A$6:$A$1806,Data!$I$6:$I$1806) -> 0 | AX189: =LOOKUP($AO189,Data!$A$6:$A$1806,Data!$J$6:$J$1806) -> -653 | AY189: =LOOKUP($AO189,Data!$A$6:$A$1806,Data!$K$6:$K$1806) -> 7675 | AZ189: 164.0014648
B190: 40098.10495 | C190: =LOOKUP(B190,Data!$A$6:$A$1806,Data!B$6:B$1806) -> 59.95700073 | D190: =LOOKUP(B190,Data!$A$6:$A$1806,Data!C$6:C$1806) -> 0 | H190: 171.9970703 | I190: 171.9970703 | L190: -5.030463798 | M190: 402.6214481 | N190: =AVERAGE(D$79:D190) -> 0 | O190: =AVERAGE(M$79:M190) -> 872.2794784 | P190: 246.4091309 | Q190: =AVERAGE(P$79:P190) -> 523.0846398 | R190: 633 | Y190: 0 | Z190: 633 | AA190: -743.6167668 | AO190: 40098.10495 | AP190: =LOOKUP($AO190,Data!$A$6:$A$1806,Data!$B$6:$B$1806) -> 59.95700073 | AQ190: =LOOKUP($AO190,Data!$A$6:$A$1806,Data!$C$6:$C$1806) -> 0 | AR190: =LOOKUP($AO190,Data!$A$6:$A$1806,Data!$D$6:$D$1806) -> 0 | AS190: =IF($AS$1="+",LOOKUP($AO190,Data!$A$6:$A$1806,Data!$E$6:$E$1806)*-1,LOOKUP($AO190,Data!$A$6:$A$1806,Data!$E$6:$E$1806)) -> -225.6518555 | AT190: =LOOKUP($AO190,Data!$A$6:$A$1806,Data!$F$6:$F$1806) -> 0 | AU190: =LOOKUP($AO190,Data!$A$6:$A$1806,Data!$G$6:$G$1806) -> 0 | AV190: =LOOKUP($AO190,Data!$A$6:$A$1806,Data!$H$6:$H$1806) -> 0 | AW190: =LOOKUP($AO190,Data!$A$6:$A$1806,Data!$I$6:$I$1806) -> 0 | AX190: =LOOKUP($AO190,Data!$A$6:$A$1806,Data!$J$6:$J$1806) -> -653 | AY190: =LOOKUP($AO190,Data!$A$6:$A$1806,Data!$K$6:$K$1806) -> 7676 | AZ190: 171.9970703
B191: 40098.10498 | C191: =LOOKUP(B191,Data!$A$6:$A$1806,Data!B$6:B$1806) -> 59.95600128 | D191: =LOOKUP(B191,Data!$A$6:$A$1806,Data!C$6:C$1806) -> 0 | H191: 175.994873 | I191: 175.994873 | L191: -5.030463798 | M191: 401.5887871 | N191: =AVERAGE(D$79:D191) -> 0 | O191: =AVERAGE(M$79:M191) -> 868.1140741 | P191: 241.3786671 | Q191: =AVERAGE(P$79:P191) -> 520.5694079 | R191: 633 | Y191: 0 | Z191: 633 | AA191: -734.9872469 | AO191: 40098.10498 | AP191: =LOOKUP($AO191,Data!$A$6:$A$1806,Data!$B$6:$B$1806) -> 59.95600128 | AQ191: =LOOKUP($AO191,Data!$A$6:$A$1806,Data!$C$6:$C$1806) -> 0 | AR191: =LOOKUP($AO191,Data!$A$6:$A$1806,Data!$D$6:$D$1806) -> 0 | AS191: =IF($AS$1="+",LOOKUP($AO191,Data!$A$6:$A$1806,Data!$E$6:$E$1806)*-1,LOOKUP($AO191,Data!$A$6:$A$1806,Data!$E$6:$E$1806)) -> -225.6518555 | AT191: =LOOKUP($AO191,Data!$A$6:$A$1806,Data!$F$6:$F$1806) -> 0 | AU191: =LOOKUP($AO191,Data!$A$6:$A$1806,Data!$G$6:$G$1806) -> 0 | AV191: =LOOKUP($AO191,Data!$A$6:$A$1806,Data!$H$6:$H$1806) -> 0 | AW191: =LOOKUP($AO191,Data!$A$6:$A$1806,Data!$I$6:$I$1806) -> 0 | AX191: =LOOKUP($AO191,Data!$A$6:$A$1806,Data!$J$6:$J$1806) -> -653 | AY191: =LOOKUP($AO191,Data!$A$6:$A$1806,Data!$K$6:$K$1806) -> 7677 | AZ191: 175.994873
B192: 40098.105 | C192: =LOOKUP(B192,Data!$A$6:$A$1806,Data!B$6:B$1806) -> 59.95399857 | D192: =LOOKUP(B192,Data!$A$6:$A$1806,Data!C$6:C$1806) -> 0 | H192: 184.0057373 | I192: 184.0057373 | L192: -5.030463798 | M192: 404.5691875 | N192: =AVERAGE(D$79:D192) -> 0 | O192: =AVERAGE(M$79:M192) -> 864.0478909 | P192: 236.3482033 | Q192: =AVERAGE(P$79:P192) -> 518.054176 | R192: 633 | Y192: 0 | Z192: 633 | AA192: -718.284347 | AO192: 40098.105 | AP192: =LOOKUP($AO192,Data!$A$6:$A$1806,Data!$B$6:$B$1806) -> 59.95399857 | AQ192: =LOOKUP($AO192,Data!$A$6:$A$1806,Data!$C$6:$C$1806) -> 0 | AR192: =LOOKUP($AO192,Data!$A$6:$A$1806,Data!$D$6:$D$1806) -> 0 | AS192: =IF($AS$1="+",LOOKUP($AO192,Data!$A$6:$A$1806,Data!$E$6:$E$1806)*-1,LOOKUP($AO192,Data!$A$6:$A$1806,Data!$E$6:$E$1806)) -> -225.6518555 | AT192: =LOOKUP($AO192,Data!$A$6:$A$1806,Data!$F$6:$F$1806) -> 0 | AU192: =LOOKUP($AO192,Data!$A$6:$A$1806,Data!$G$6:$G$1806) -> 0 | AV192: =LOOKUP($AO192,Data!$A$6:$A$1806,Data!$H$6:$H$1806) -> 0 | AW192: =LOOKUP($AO192,Data!$A$6:$A$1806,Data!$I$6:$I$1806) -> 0 | AX192: =LOOKUP($AO192,Data!$A$6:$A$1806,Data!$J$6:$J$1806) -> -653 | AY192: =LOOKUP($AO192,Data!$A$6:$A$1806,Data!$K$6:$K$1806) -> 7678 | AZ192: 184.0057373
B193: 40098.10502 | C193: =LOOKUP(B193,Data!$A$6:$A$1806,Data!B$6:B$1806) -> 59.95600128 | D193: =LOOKUP(B193,Data!$A$6:$A$1806,Data!C$6:C$1806) -> 0 | H193: 175.994873 | I193: 175.994873 | L193: -5.030463798 | M193: 391.5278595 | N193: =AVERAGE(D$79:D193) -> 0 | O193: =AVERAGE(M$79:M193) -> 859.939021 | P193: 231.3177395 | Q193: =AVERAGE(P$79:P193) -> 515.5389441 | R193: 633 | Y193: 0 | Z193: 633 | AA193: -734.9872469 | AO193: 40098.10502 | AP193: =LOOKUP($AO193,Data!$A$6:$A$1806,Data!$B$6:$B$1806) -> 59.95600128 | AQ193: =LOOKUP($AO193,Data!$A$6:$A$1806,Data!$C$6:$C$1806) -> 0 | AR193: =LOOKUP($AO193,Data!$A$6:$A$1806,Data!$D$6:$D$1806) -> 0 | AS193: =IF($AS$1="+",LOOKUP($AO193,Data!$A$6:$A$1806,Data!$E$6:$E$1806)*-1,LOOKUP($AO193,Data!$A$6:$A$1806,Data!$E$6:$E$1806)) -> -225.6518555 | AT193: =LOOKUP($AO193,Data!$A$6:$A$1806,Data!$F$6:$F$1806) -> 0 | AU193: =LOOKUP($AO193,Data!$A$6:$A$1806,Data!$G$6:$G$1806) -> 0 | AV193: =LOOKUP($AO193,Data!$A$6:$A$1806,Data!$H$6:$H$1806) -> 0 | AW193: =LOOKUP($AO193,Data!$A$6:$A$1806,Data!$I$6:$I$1806) -> 0 | AX193: =LOOKUP($AO193,Data!$A$6:$A$1806,Data!$J$6:$J$1806) -> -653 | AY193: =LOOKUP($AO193,Data!$A$6:$A$1806,Data!$K$6:$K$1806) -> 7679 | AZ193: 175.994873
B194: 40098.10505 | C194: =LOOKUP(B194,Data!$A$6:$A$1806,Data!B$6:B$1806) -> 59.95500183 | D194: =LOOKUP(B194,Data!$A$6:$A$1806,Data!C$6:C$1806) -> 0 | H194: 179.9926758 | I194: 179.9926758 | L194: -5.030463798 | M194: 390.4951984 | N194: =AVERAGE(D$79:D194) -> 0 | O194: =AVERAGE(M$79:M194) -> 855.8920915 | P194: 226.2872757 | Q194: =AVERAGE(P$79:P194) -> 513.0237122 | R194: 633 | Y194: 0 | Z194: 633 | AA194: -726.555717 | AO194: 40098.10505 | AP194: =LOOKUP($AO194,Data!$A$6:$A$1806,Data!$B$6:$B$1806) -> 59.95500183 | AQ194: =LOOKUP($AO194,Data!$A$6:$A$1806,Data!$C$6:$C$1806) -> 0 | AR194: =LOOKUP($AO194,Data!$A$6:$A$1806,Data!$D$6:$D$1806) -> 0 | AS194: =IF($AS$1="+",LOOKUP($AO194,Data!$A$6:$A$1806,Data!$E$6:$E$1806)*-1,LOOKUP($AO194,Data!$A$6:$A$1806,Data!$E$6:$E$1806)) -> -225.6518555 | AT194: =LOOKUP($AO194,Data!$A$6:$A$1806,Data!$F$6:$F$1806) -> 0 | AU194: =LOOKUP($AO194,Data!$A$6:$A$1806,Data!$G$6:$G$1806) -> 0 | AV194: =LOOKUP($AO194,Data!$A$6:$A$1806,Data!$H$6:$H$1806) -> 0 | AW194: =LOOKUP($AO194,Data!$A$6:$A$1806,Data!$I$6:$I$1806) -> 0 | AX194: =LOOKUP($AO194,Data!$A$6:$A$1806,Data!$J$6:$J$1806) -> -653 | AY194: =LOOKUP($AO194,Data!$A$6:$A$1806,Data!$K$6:$K$1806) -> 7680 | AZ194: 179.9926758
B195: 40098.10507 | C195: =LOOKUP(B195,Data!$A$6:$A$1806,Data!B$6:B$1806) -> 59.95800018 | D195: =LOOKUP(B195,Data!$A$6:$A$1806,Data!C$6:C$1806) -> 0 | H195: 167.9992676 | I195: 167.9992676 | L195: -5.030463798 | M195: 373.4713264 | N195: =AVERAGE(D$79:D195) -> 0 | O195: =AVERAGE(M$79:M195) -> 851.7688371 | P195: 221.2568119 | Q195: =AVERAGE(P$79:P195) -> 510.5084803 | R195: 633 | Y195: 0 | Z195: 633 | AA195: -752.4513334 | AO195: 40098.10507 | AP195: =LOOKUP($AO195,Data!$A$6:$A$1806,Data!$B$6:$B$1806) -> 59.95800018 | AQ195: =LOOKUP($AO195,Data!$A$6:$A$1806,Data!$C$6:$C$1806) -> 0 | AR195: =LOOKUP($AO195,Data!$A$6:$A$1806,Data!$D$6:$D$1806) -> 0 | AS195: =IF($AS$1="+",LOOKUP($AO195,Data!$A$6:$A$1806,Data!$E$6:$E$1806)*-1,LOOKUP($AO195,Data!$A$6:$A$1806,Data!$E$6:$E$1806)) -> -212.5736389 | AT195: =LOOKUP($AO195,Data!$A$6:$A$1806,Data!$F$6:$F$1806) -> 0 | AU195: =LOOKUP($AO195,Data!$A$6:$A$1806,Data!$G$6:$G$1806) -> 0 | AV195: =LOOKUP($AO195,Data!$A$6:$A$1806,Data!$H$6:$H$1806) -> 0 | AW195: =LOOKUP($AO195,Data!$A$6:$A$1806,Data!$I$6:$I$1806) -> 0 | AX195: =LOOKUP($AO195,Data!$A$6:$A$1806,Data!$J$6:$J$1806) -> -653 | AY195: =LOOKUP($AO195,Data!$A$6:$A$1806,Data!$K$6:$K$1806) -> 7681 | AZ195: 167.9992676
B196: 40098.10509 | C196: =LOOKUP(B196,Data!$A$6:$A$1806,Data!B$6:B$1806) -> 59.96099854 | D196: =LOOKUP(B196,Data!$A$6:$A$1806,Data!C$6:C$1806) -> 0 | H196: 156.0058594 | I196: 156.0058594 | L196: -5.030463798 | M196: 356.4474544 | N196: =AVERAGE(D$79:D196) -> 0 | O196: =AVERAGE(M$79:M196) -> 847.5711983 | P196: 216.2263481 | Q196: =AVERAGE(P$79:P196) -> 507.9932484 | R196: 633 | Y196: 0 | Z196: 633 | AA196: -780.2610962 | AO196: 40098.10509 | AP196: =LOOKUP($AO196,Data!$A$6:$A$1806,Data!$B$6:$B$1806) -> 59.96099854 | AQ196: =LOOKUP($AO196,Data!$A$6:$A$1806,Data!$C$6:$C$1806) -> 0 | AR196: =LOOKUP($AO196,Data!$A$6:$A$1806,Data!$D$6:$D$1806) -> 0 | AS196: =IF($AS$1="+",LOOKUP($AO196,Data!$A$6:$A$1806,Data!$E$6:$E$1806)*-1,LOOKUP($AO196,Data!$A$6:$A$1806,Data!$E$6:$E$1806)) -> -212.5736389 | AT196: =LOOKUP($AO196,Data!$A$6:$A$1806,Data!$F$6:$F$1806) -> 0 | AU196: =LOOKUP($AO196,Data!$A$6:$A$1806,Data!$G$6:$G$1806) -> 0 | AV196: =LOOKUP($AO196,Data!$A$6:$A$1806,Data!$H$6:$H$1806) -> 0 | AW196: =LOOKUP($AO196,Data!$A$6:$A$1806,Data!$I$6:$I$1806) -> 0 | AX196: =LOOKUP($AO196,Data!$A$6:$A$1806,Data!$J$6:$J$1806) -> -653 | AY196: =LOOKUP($AO196,Data!$A$6:$A$1806,Data!$K$6:$K$1806) -> 7682 | AZ196: 156.0058594
B197: 40098.10512 | C197: =LOOKUP(B197,Data!$A$6:$A$1806,Data!B$6:B$1806) -> 59.9620018 | D197: =LOOKUP(B197,Data!$A$6:$A$1806,Data!C$6:C$1806) -> 0 | H197: 151.9927979 | I197: 151.9927979 | L197: -5.030463798 | M197: 347.4039291 | N197: =AVERAGE(D$79:D197) -> 0 | O197: =AVERAGE(M$79:M197) -> 843.368112 | P197: 211.1958843 | Q197: =AVERAGE(P$79:P197) -> 505.4780165 | R197: 633 | Y197: 0 | Z197: 633 | AA197: -790.0311347 | AO197: 40098.10512 | AP197: =LOOKUP($AO197,Data!$A$6:$A$1806,Data!$B$6:$B$1806) -> 59.9620018 | AQ197: =LOOKUP($AO197,Data!$A$6:$A$1806,Data!$C$6:$C$1806) -> 0 | AR197: =LOOKUP($AO197,Data!$A$6:$A$1806,Data!$D$6:$D$1806) -> 0 | AS197: =IF($AS$1="+",LOOKUP($AO197,Data!$A$6:$A$1806,Data!$E$6:$E$1806)*-1,LOOKUP($AO197,Data!$A$6:$A$1806,Data!$E$6:$E$1806)) -> -212.5736389 | AT197: =LOOKUP($AO197,Data!$A$6:$A$1806,Data!$F$6:$F$1806) -> 0 | AU197: =LOOKUP($AO197,Data!$A$6:$A$1806,Data!$G$6:$G$1806) -> 0 | AV197: =LOOKUP($AO197,Data!$A$6:$A$1806,Data!$H$6:$H$1806) -> 0 | AW197: =LOOKUP($AO197,Data!$A$6:$A$1806,Data!$I$6:$I$1806) -> 0 | AX197: =LOOKUP($AO197,Data!$A$6:$A$1806,Data!$J$6:$J$1806) -> -653 | AY197: =LOOKUP($AO197,Data!$A$6:$A$1806,Data!$K$6:$K$1806) -> 7684 | AZ197: 151.9927979
B198: 40098.10514 | C198: =LOOKUP(B198,Data!$A$6:$A$1806,Data!B$6:B$1806) -> 59.9620018 | D198: =LOOKUP(B198,Data!$A$6:$A$1806,Data!C$6:C$1806) -> 0 | H198: 151.9927979 | I198: 151.9927979 | L198: -5.030463798 | M198: 342.3734653 | N198: =AVERAGE(D$79:D198) -> 0 | O198: =AVERAGE(M$79:M198) -> 839.1931566 | P198: 206.1654205 | Q198: =AVERAGE(P$79:P198) -> 502.9627846 | R198: 633 | Y198: 0 | Z198: 633 | AA198: -790.0311347 | AO198: 40098.10514 | AP198: =LOOKUP($AO198,Data!$A$6:$A$1806,Data!$B$6:$B$1806) -> 59.9620018 | AQ198: =LOOKUP($AO198,Data!$A$6:$A$1806,Data!$C$6:$C$1806) -> 0 | AR198: =LOOKUP($AO198,Data!$A$6:$A$1806,Data!$D$6:$D$1806) -> 0 | AS198: =IF($AS$1="+",LOOKUP($AO198,Data!$A$6:$A$1806,Data!$E$6:$E$1806)*-1,LOOKUP($AO198,Data!$A$6:$A$1806,Data!$E$6:$E$1806)) -> -212.5736389 | AT198: =LOOKUP($AO198,Data!$A$6:$A$1806,Data!$F$6:$F$1806) -> 0 | AU198: =LOOKUP($AO198,Data!$A$6:$A$1806,Data!$G$6:$G$1806) -> 0 | AV198: =LOOKUP($AO198,Data!$A$6:$A$1806,Data!$H$6:$H$1806) -> 0 | AW198: =LOOKUP($AO198,Data!$A$6:$A$1806,Data!$I$6:$I$1806) -> 0 | AX198: =LOOKUP($AO198,Data!$A$6:$A$1806,Data!$J$6:$J$1806) -> -653 | AY198: =LOOKUP($AO198,Data!$A$6:$A$1806,Data!$K$6:$K$1806) -> 7685 | AZ198: 151.9927979
B199: 40098.10516 | C199: =LOOKUP(B199,Data!$A$6:$A$1806,Data!B$6:B$1806) -> 59.9679985 | D199: =LOOKUP(B199,Data!$A$6:$A$1806,Data!C$6:C$1806) -> 0 | H199: 128.0059814 | I199: 128.0059814 | L199: -5.030463798 | M199: 313.3561851 | N199: =AVERAGE(D$79:D199) -> 0 | O199: =AVERAGE(M$79:M199) -> 834.8473965 | P199: 201.1349568 | Q199: =AVERAGE(P$79:P199) -> 500.4475527 | R199: 633 | Y199: 0 | Z199: 633 | AA199: -853.9430806 | AO199: 40098.10516 | AP199: =LOOKUP($AO199,Data!$A$6:$A$1806,Data!$B$6:$B$1806) -> 59.9679985 | AQ199: =LOOKUP($AO199,Data!$A$6:$A$1806,Data!$C$6:$C$1806) -> 0 | AR199: =LOOKUP($AO199,Data!$A$6:$A$1806,Data!$D$6:$D$1806) -> 0 | AS199: =IF($AS$1="+",LOOKUP($AO199,Data!$A$6:$A$1806,Data!$E$6:$E$1806)*-1,LOOKUP($AO199,Data!$A$6:$A$1806,Data!$E$6:$E$1806)) -> -212.5736389 | AT199: =LOOKUP($AO199,Data!$A$6:$A$1806,Data!$F$6:$F$1806) -> 0 | AU199: =LOOKUP($AO199,Data!$A$6:$A$1806,Data!$G$6:$G$1806) -> 0 | AV199: =LOOKUP($AO199,Data!$A$6:$A$1806,Data!$H$6:$H$1806) -> 0 | AW199: =LOOKUP($AO199,Data!$A$6:$A$1806,Data!$I$6:$I$1806) -> 0 | AX199: =LOOKUP($AO199,Data!$A$6:$A$1806,Data!$J$6:$J$1806) -> -653 | AY199: =LOOKUP($AO199,Data!$A$6:$A$1806,Data!$K$6:$K$1806) -> 7687 | AZ199: 128.0059814
B200: 40098.10519 | C200: =LOOKUP(B200,Data!$A$6:$A$1806,Data!B$6:B$1806) -> 59.9659996 | D200: =LOOKUP(B200,Data!$A$6:$A$1806,Data!C$6:C$1806) -> 0 | H200: 136.0015869 | I200: 136.0015869 | L200: -5.030463798 | M200: 316.3213268 | N200: =AVERAGE(D$79:D200) -> 0 | O200: =AVERAGE(M$79:M200) -> 830.5971828 | P200: 196.104493 | Q200: =AVERAGE(P$79:P200) -> 497.9323208 | R200: 633 | Y200: 0 | Z200: 633 | AA200: -831.5203017 | AO200: 40098.10519 | AP200: =LOOKUP($AO200,Data!$A$6:$A$1806,Data!$B$6:$B$1806) -> 59.9659996 | AQ200: =LOOKUP($AO200,Data!$A$6:$A$1806,Data!$C$6:$C$1806) -> 0 | AR200: =LOOKUP($AO200,Data!$A$6:$A$1806,Data!$D$6:$D$1806) -> 0 | AS200: =IF($AS$1="+",LOOKUP($AO200,Data!$A$6:$A$1806,Data!$E$6:$E$1806)*-1,LOOKUP($AO200,Data!$A$6:$A$1806,Data!$E$6:$E$1806)) -> -219.8972931 | AT200: =LOOKUP($AO200,Data!$A$6:$A$1806,Data!$F$6:$F$1806) -> 0 | AU200: =LOOKUP($AO200,Data!$A$6:$A$1806,Data!$G$6:$G$1806) -> 0 | AV200: =LOOKUP($AO200,Data!$A$6:$A$1806,Data!$H$6:$H$1806) -> 0 | AW200: =LOOKUP($AO200,Data!$A$6:$A$1806,Data!$I$6:$I$1806) -> 0 | AX200: =LOOKUP($AO200,Data!$A$6:$A$1806,Data!$J$6:$J$1806) -> -653 | AY200: =LOOKUP($AO200,Data!$A$6:$A$1806,Data!$K$6:$K$1806) -> 7689 | AZ200: 136.0015869
... 329 more rows

Sheet Graph 12 to 24s (hidden)

Sheet Graph 18 to 30s (hidden)

Sheet Graph 20 to 40s (hidden)

Sheet Graph 18 to 52s (hidden)

Sheet Graph 20 to 52s (hidden)

Sheet Sustained Graph (hidden)

Sheet Form 1 Summary Data
J1: Interconnection Performance | T1: Value A Data | V1: BA Performance | AE1: Value B | AG1: 12 to 24 second Average Period Evaluation | AS1: Value B | AT1: 18 to 30 second Average Period Evaluation | BG1: Value B | BH1: 20 to 40 second Average Period Evaluation | BU1: Value B | BV1: 18 to 52 second Average Period Evaluation | CI1: Value B | CJ1: 20 to 52 second Average Period Evaluation
V2: JOU | W2: Non- | Z2: Transferred | AA2: Contingent | AG2: JOU | AH2: Non- | AK2: Transferred | AL2: Contingent | AU2: JOU | AV2: Non- | AY2: Transferred | AZ2: Contingent | BI2: JOU | BJ2: Non- | BM2: Transferred | BN2: Contingent | BW2: JOU | BX2: Non- | CA2: Transferred | CB2: Contingent | CK2: JOU | CL2: Non- | CO2: Transferred | CP2: Contingent
A3: Date | B3: A Point | C3: FPointA | D3: A Value | E3: t(0) Time | F3: C Value | J3: Value B | K3: FR B | L3: Value B | M3: FR B | N3: Value B | O3: FR B | P3: Value B | Q3: FR B | R3: Value B | S3: FR B | U3: Total | V3: Dynamic | W3: Conforming | X3: Pumped | Y3: Ramping | Z3: Frequency | AA3: BA | AB3: BA | AC3: BA | AD3: Bias | AF3: Total | AG3: Dynamic | AH3: Conforming | AI3: Pumped | AJ3: Ramping | AK3: Frequency | AL3: BA | AM3: Initial | AN3: Initial | AO3: Sustained | AP3: BA | AQ3: BA | AR3: Bias | AT3: Total | AU3: Dynamic | AV3: Conforming | AW3: Pumped | AX3: Ramping | AY3: Frequency | AZ3: BA | BA3: Initial | BB3: Initial | BC3: Sustained | BD3: BA | BE3: BA | BF3: Bias | BH3: Total | BI3: Dynamic | BJ3: Conforming | BK3: Pumped | BL3: Ramping | BM3: Frequency | BN3: BA | BO3: Initial | BP3: Initial | BQ3: Sustained | BR3: BA | BS3: BA | BT3: Bias | BV3: Total | BW3: Dynamic | BX3: Conforming | BY3: Pumped | BZ3: Ramping | CA3: Frequency | CB3: BA | CC3: Initial | CD3: Initial | CE3: Sustained | CF3: BA | CG3: BA | CH3: Bias | CJ3: Total | CK3: Dynamic | CL3: Conforming | CM3: Pumped | CN3: Ramping | CO3: Frequency | CP3: BA | CQ3: Initial | CR3: Initial | CS3: Sustained | CT3: BA | CU3: BA | CV3: Bias
B4: Time | C4: Hz | D4: Hz | F4: Hz | J4: 12 to 24 sec | K4: 12 to 24 sec | L4: 18 to 30 sec | M4: 18 to 30 sec | N4: 20 to 40 sec | O4: 20 to 40 sec | P4: 18 to 52 sec | Q4: 18 to 52 sec | R4: 20 to 52 sec | S4: 20 to 52 sec | U4: Generation | V4: Schedules | W4: Load | X4: Hydro | Y4: Units | Z4: Response | AA4: Lost Generation | AB4: Bias | AC4: Load | AD4: Setting | AF4: Generation | AG4: Schedules | AH4: Load | AI4: Hydro | AJ4: Units | AK4: Response | AL4: Lost Generation | AM4: Performance | AN4: Performance | AO4: Performance | AP4: Bias | AQ4: Load | AR4: Setting | AT4: Generation | AU4: Schedules | AV4: Load | AW4: Hydro | AX4: Units | AY4: Response | AZ4: Lost Generation | BA4: Performance | BB4: Performance | BC4: Performance | BD4: Bias | BE4: Load | BF4: Setting | BH4: Generation | BI4: Schedules | BJ4: Load | BK4: Hydro | BL4: Units | BM4: Response | BN4: Lost Generation | BO4: Performance | BP4: Performance | BQ4: Performance | BR4: Bias | BS4: Load | BT4: Setting | BV4: Generation | BW4: Schedules | BX4: Load | BY4: Hydro | BZ4: Units | CA4: Response | CB4: Lost Generation | CC4: Performance | CD4: Performance | CE4: Performance | CF4: Bias | CG4: Load | CH4: Setting | CJ4: Generation | CK4: Schedules | CL4: Load | CM4: Hydro | CN4: Units | CO4: Response | CP4: Lost Generation | CQ4: Performance | CR4: Performance | CS4: Performance | CT4: Bias | CU4: Load | CV4: Setting
J5: Average | K5: Average | L5: Average | M5: Average | N5: Average | O5: Average | P5: Average | Q5: Average | R5: Average | S5: Average | T5: Frequency | U5: Lost | V5: n/a | W5: Load (-) | X5: Load (-) Gen (+) | Y5: n/a | Z5: n/a | AA5: n/a | AB5: Setting | AD5: EPFR | AE5: Frequency | AF5: Lost | AG5: n/a | AH5: Load (-) | AI5: Load (-) Gen (+) | AJ5: n/a | AK5: n/a | AL5: n/a | AM5: Adjusted | AN5: Unadjusted | AP5: Setting | AR5: EPFR | AS5: Frequency | AT5: Lost | AU5: n/a | AV5: Load (-) | AW5: Load (-) Gen (+) | AX5: n/a | AY5: n/a | AZ5: n/a | BA5: Adjusted | BB5: Unadjusted | BD5: Setting | BF5: EPFR | BG5: Frequency | BH5: Lost | BI5: n/a | BJ5: Load (-) | BK5: Load (-) Gen (+) | BL5: n/a | BM5: n/a | BN5: n/a | BO5: Adjusted | BP5: Unadjusted | BR5: Setting | BT5: EPFR | BU5: Frequency | BV5: Lost | BW5: n/a | BX5: Load (-) | BY5: Load (-) Gen (+) | BZ5: n/a | CA5: n/a | CB5: n/a | CC5: Adjusted | CD5: Unadjusted | CF5: Setting | CH5: EPFR | CI5: Frequency | CJ5: Lost | CK5: n/a | CL5: Load (-) | CM5: Load (-) Gen (+) | CN5: n/a | CO5: n/a | CP5: n/a | CQ5: Adjusted | CR5: Unadjusted | CT5: Setting | CV5: EPFR
J6: Frequency | K6: MW | L6: Frequency | M6: MW | N6: Frequency | O6: MW | P6: Frequency | Q6: MW | R6: Frequency | S6: MW | T6: Hz | U6: MW | W6: MW | X6: MW | AB6: MW/0.1 Hz | AC6: MW | AD6: MW | AE6: Hz | AF6: MW | AH6: MW | AI6: MW | AM6: P.U. | AN6: P.U. | AO6: P.U. | AP6: MW/0.1 Hz | AQ6: MW | AR6: MW | AS6: Hz | AT6: MW | AV6: MW | AW6: MW | BA6: P.U. | BB6: P.U. | BC6: P.U. | BD6: MW/0.1 Hz | BE6: MW | BF6: MW | BG6: Hz | BH6: MW | BJ6: MW | BK6: MW | BO6: P.U. | BP6: P.U. | BQ6: P.U. | BR6: MW/0.1 Hz | BS6: MW | BT6: MW | BU6: Hz | BV6: MW | BX6: MW | BY6: MW | CC6: P.U. | CD6: P.U. | CE6: P.U. | CF6: MW/0.1 Hz | CG6: MW | CH6: MW | CI6: Hz | CJ6: MW | CL6: MW | CM6: MW | CQ6: P.U. | CR6: P.U. | CS6: P.U. | CT6: MW/0.1 Hz | CU6: MW | CV6: MW
A7: =Evaluation!BG2 -> 2009-10-12T02:27:26 | B7: =Evaluation!AD1 -> 40098.10236 | C7: =Evaluation!AD2 -> 60.03900146 | D7: =Evaluation!AD3 -> 60.04212523 | E7: =Evaluation!G2 -> 40098.10238 | F7: =Evaluation!AD4 -> 59.83599854 | J7: =Evaluation!AD9 -> 59.88257163 | K7: =Evaluation!AE10 -> -397.1996054 | L7: =Evaluation!AF9 -> 59.88442884 | M7: =Evaluation!AG10 -> -401.6699921 | N7: =Evaluation!AH9 -> 59.88911775 | O7: =Evaluation!AI10 -> -414.4045417 | P7: =Evaluation!AJ9 -> 59.88833343 | Q7: =Evaluation!AK10 -> -411.9963314 | R7: =Evaluation!AL9 -> 59.88911775 | S7: =Evaluation!AM10 -> -413.951533 | T7: =Evaluation!BG4 -> 60.04212523 | U7: =Evaluation!BG7 -> 633 | V7: =Evaluation!BG15 -> 0 | W7: =Evaluation!BG16 -> -165.3358784 | X7: =Evaluation!BG17 -> 0 | Y7: =Evaluation!BG18 -> 0 | Z7: =Evaluation!BG19 -> 0 | AA7: =Evaluation!BG20 -> 0 | AB7: =Evaluation!BL15 -> -653 | AC7: =Evaluation!BL23 -> 7651.305 | AD7: =Evaluation!BL17 -> -275.0777197 | AE7: =Evaluation!BG5 -> 59.88257163 | AF7: =Evaluation!BG8 -> 0 | AG7: =Evaluation!BG23 -> 0 | AH7: =Evaluation!BG24 -> -212.139086 | AI7: =Evaluation!BG25 -> 0 | AJ7: =Evaluation!BG26 -> 0 | AK7: =Evaluation!BG27 -> 0 | AL7: =Evaluation!BG28 -> 0 | AM7: =Evaluation!BG34 -> 1.070321336 | AN7: =Evaluation!BG33 -> 0.99182973 | AO7: =Evaluation!$K$33 -> No Evaluation | AP7: =Evaluation!BL16 -> -653 | AQ7: =Evaluation!BL24 -> 7632 | AR7: =Evaluation!BL18 -> 766.8072619 | AS7: =Evaluation!BU5 -> 59.88442884 | AT7: =Evaluation!BU8 -> 0 | AU7: =Evaluation!BU23 -> 0 | AV7: =Evaluation!BU24 -> -213.4636514 | AW7: =Evaluation!BU25 -> 0 | AX7: =Evaluation!BU26 -> 0 | AY7: =Evaluation!BU27 -> 0 | AZ7: =Evaluation!BU28 -> 0 | BA7: =Evaluation!BU34 -> 1.086401045 | BB7: =Evaluation!BU33 -> 1.003510649 | BC7: =Evaluation!$K$33 -> No Evaluation | BD7: =Evaluation!BZ16 -> -653 | BE7: =Evaluation!BZ24 -> 7632 | BF7: =Evaluation!BZ18 -> 754.6796635 | BG7: =Evaluation!CI5 -> 59.88927321 | BH7: =Evaluation!CI8 -> 0 | BI7: =Evaluation!CI23 -> 0 | BJ7: =Evaluation!CI24 -> -213.0775466 | BK7: =Evaluation!CI25 -> 0 | BL7: =Evaluation!CI26 -> 0 | BM7: =Evaluation!CI27 -> 0 | BN7: =Evaluation!CI28 -> 0 | BO7: =Evaluation!CI34 -> 1.123004687 | BP7: =Evaluation!CI33 -> 1.035315105 | BQ7: =Evaluation!$K$33 -> No Evaluation | BR7: =Evaluation!CN16 -> -653 | BS7: =Evaluation!CN24 -> 7632 | BT7: =Evaluation!CN18 -> 723.0459387 | BU7: =Evaluation!CW5 -> 59.88833343 | BV7: =Evaluation!CW8 -> 0 | BW7: =Evaluation!CW23 -> 0 | BX7: =Evaluation!CW24 -> -213.9681769 | BY7: =Evaluation!CW25 -> 0 | BZ7: =Evaluation!CW26 -> 0 | CA7: =Evaluation!CW27 -> 0 | CB7: =Evaluation!CW28 -> 0 | CC7: =Evaluation!CW34 -> 1.117318642 | CD7: =Evaluation!CW33 -> 1.028988552 | CE7: =Evaluation!$K$33 -> No Evaluation | CF7: =Evaluation!DB16 -> -653 | CG7: =Evaluation!DB24 -> 7632 | CH7: =Evaluation!DB18 -> 729.1827244 | CI7: =Evaluation!DK5 -> 59.88911775 | CJ7: =Evaluation!DK8 -> 0 | CK7: =Evaluation!DK23 -> 0 | CL7: =Evaluation!DK24 -> -214.1277143 | CM7: =Evaluation!DK25 -> 0 | CN7: =Evaluation!DK26 -> 0 | CO7: =Evaluation!DK27 -> 0 | CP7: =Evaluation!DK28 -> 0 | CQ7: =Evaluation!DK34 -> 1.123858669 | CR7: =Evaluation!DK33 -> 1.034263166 | CS7: =Evaluation!$K$33 -> No Evaluation | CT7: =Evaluation!DP16 -> -653 | CU7: =Evaluation!DP24 -> 7632 | CV7: =Evaluation!DP18 -> 724.06112

Sheet Instructions
A1: Steps | B1: To be completed for each event evaluated.
A2: 1 | B2: Set-up Data collection in exact same order as the "Data" sheet of this work book. Data should be in this order:
B3: Column A: Date and Time in this format, mm/dd/yy HH:MM:SS
B4: Column B: Frequency Hz
B5: Column C: Total Lost Generation: enter the MW data of the units that tripped as a single generator where the value typically goes to zero at t(0).
B6: Column D: not applicable
B7: Column E: Non Conforming Load
B8: Column F: Pumped Hydro
B9: Column G: not applicable
B10: Column H: not applicable
B11: Column I: not applicable
B12: Column J: BA Bias Setting
B13: Column K: BA Load
A15: 2 | B15: Note: Columns D, E, F, G and H are optional data. If you choose not to use these, leave the columns blank. Do not delete the columns. Use the sign (+/-) convention defined in FRS Form 1.
A16: 3 | B16: Data compression must be turned off for each data point. Quality data will give you quality results in the evaluation.
